Workbook

Sheet Summary>>
B8: Summary>>

Sheet Total Costs & Financeability
AH1: Check (Nominal & Base)
B2: Cost Summary | E2: Item | F2: Units | H2: 2020 | I2: 2021 | J2: 2022 | K2: 2023 | L2: 2024 | M2: 2025 | N2: 2026 | O2: 2027 | P2: 2028 | Q2: 2029 | S2: Service Units Scenario: | V2: ='DUC & UR'!$F$6 -> Base | AH2: Total | AI2: ANSP | AJ2: MET | AK2: NSA
E3: UR Year: | H3: 2020 | I3: 2021 | J3: 2022 | K3: 2023 | L3: 2024 | M3: 2025 | N3: 2026 | O3: 2027 | P3: 2028 | Q3: 2029
E4: Price Base: | H4: Actual | I4: Actual | J4: Actual | K4: Actual | L4: Forecast | M4: Forecast | N4: Forecast | O4: Forecast | P4: Forecast | Q4: Forecast
E5: Index: | F5: ='Misc. Items'!$F$26 -> 2022 | H5: ='Misc. Items'!J27 -> 90.3490699 | I5: ='Misc. Items'!K27 -> 92.52919296 | J5: ='Misc. Items'!L27 -> 100 | K5: ='Misc. Items'!M27 -> 105.201 | L5: ='Misc. Items'!N27 -> 106.5928092 | M5: ='Misc. Items'!O27 -> 108.6266 | N5: ='Misc. Items'!P27 -> 110.4319741 | O5: ='Misc. Items'!Q27 -> 112.3733682 | P5: ='Misc. Items'!R27 -> 114.5489166 | Q5: ='Misc. Items'!S27 -> 116.8742596
B6: Traffic
D8: Service Units
E9: En Route | H9: ='Misc. Items'!J36 -> 1988 | I9: ='Misc. Items'!K36 -> 2419 | J9: ='Misc. Items'!L36 -> 4233 | K9: ='Misc. Items'!M36 -> 4812 | L9: ='Misc. Items'!N36 -> 5048 | M9: ='Misc. Items'!O36 -> 5175 | N9: ='Misc. Items'!P36 -> 5256 | O9: ='Misc. Items'!Q36 -> 5349 | P9: ='Misc. Items'!R36 -> 5458 | Q9: ='Misc. Items'!S36 -> 5544
E10: Terminal | H10: ='Misc. Items'!J37 -> 71 | I10: ='Misc. Items'!K37 -> 75 | J10: ='Misc. Items'!L37 -> 170 | K10: ='Misc. Items'!M37 -> 193 | L10: ='Misc. Items'!N37 -> 205 | M10: ='Misc. Items'!O37 -> 215 | N10: ='Misc. Items'!P37 -> 221 | O10: ='Misc. Items'!Q37 -> 226.0649416 | P10: ='Misc. Items'!R37 -> 232.5306909 | Q10: ='Misc. Items'!S37 -> 237.3634187
B13: Determined Costs | D13: Entity: | E13: Total | F13: Real | G13: =INDEX('Misc. Items'!$E$58:$E$59,MATCH(F13,'Misc. Items'!$C$58:$C$59,0)) -> (Operating Costs Real, Capital Costs Nominal)
B14: Includes costs for exempted VFR flights | E14: =INDEX('Misc. Items'!$D$52:$D$55,MATCH(E13,'Misc. Items'!$C$52:$C$55,0)) -> 4
D15: Total | AI15: =ROUND(IF(AND($E$13=AI$2,$F$13='Misc. Items'!$C$58),SUMPRODUCT('AirNav Opex (IAA)'!Q43:U43,$M$5:$Q$5)/100-SUM(M16:Q16),0),5) -> 0 | AJ15: =IF(AND($E$13=AJ$2,$F$13='Misc. Items'!$C$58),SUM(M16:Q16)-SUMPRODUCT($M$5:$Q$5,'Met Opex'!Q45:U45)/100,0) -> 0 | AK15: =ROUND(IF(AND($E$13=AK$2,$F$13='Misc. Items'!$C$58),SUM(M16:Q16)-SUM('Supervision Opex'!Q55:U55,'Supervision Opex'!Q65:U65),0),5) -> 0
E16: Staff | F16: €'000 | H16: =SUM(H46,H31) -> 77937.36669 | I16: =SUM(I46,I31) -> 70229.55757 | J16: 80155.63878 | K16: 90689.05542 | L16: =SUM(L46,L31) -> 92685.42664 | M16: 98135.37362 | N16: 100573.5228 | O16: 102110.5091 | P16: 104199.1576 | Q16: 104813.7604 | AI16: =ROUND(IF(AND($E$13=AI$2,$F$13='Misc. Items'!$C$58),SUMPRODUCT('AirNav Opex (IAA)'!Q141:U141,$M$5:$Q$5)/100-SUM(M17:Q17),0),5) -> 0 | AJ16: =ROUND(IF(AND($E$13=AJ$2,$F$13='Misc. Items'!$C$58),SUM(M17:Q17)-SUMPRODUCT($M$5:$Q$5,'Met Opex'!Q72:U72)/100,0),5) -> 0 | AK16: =ROUND(IF(AND($E$13=AK$2,$F$13='Misc. Items'!$C$58),SUM(M17:Q17)-SUM('Supervision Opex'!Q101:U101,'Supervision Opex'!Q109:U109),0),5) -> 0
E17: Other Opex | F17: €'000 | H17: =SUM(H47,H32) -> 44099.55632 | I17: =SUM(I47,I32) -> 42700.56134 | J17: 51876.35103 | K17: 51216.17873 | L17: =SUM(L47,L32) -> 52418.20575 | M17: 58832.29639 | N17: 62771.07979 | O17: 60601.33549 | P17: 61387.23416 | Q17: 63027.30916 | AI17: =ROUND(IF(AND($E$13=AI$2,$F$13='Misc. Items'!$C$58),SUM('AirNav Capex (IAA)'!CK889:CO889,'AirNav Capex (IAA)'!CK1169:CO1169)-SUM(M18:Q18)),5) -> 0 | AJ17: =ROUND(IF(AND($E$13=AJ$2,$F$13='Misc. Items'!$C$58),SUM(M18:Q18)-SUM('MET Capex'!X49:AB49),0),5) -> 0 | AK17: =ROUND(IF(AND($E$13=AK$2,$F$13='Misc. Items'!$C$58),SUM(M18:Q18)-SUM('Supervision Capex '!W64:AA64,'Supervision Capex '!W92:AA92),0),5) -> 0 | AP17: RP3 | AU17: RP4
E18: Depreciation | F18: €'000 | H18: =SUM(H48,H33) -> 9635.704756 | I18: =SUM(I48,I33) -> 10500.91879 | J18: =SUM(J48,J33) -> 11417.37195 | K18: =SUM(K48,K33) -> 11528 | L18: 10465 | M18: 13155.988 | N18: 15024.62065 | O18: 17635.39536 | P18: 18151.04976 | Q18: 20747.23678 | AI18: =IF(AND($E$13=AI$2,$F$13='Misc. Items'!$C$58),SUM(M19:Q19)-SUM('AirNav WACC (IAA)'!#REF!),0) -> 0 | AJ18: 0 | AK18: 0 | AP18: =H2 -> 2020 | AQ18: 2021 | AR18: 2022 | AS18: 2023 | AT18: 2024 | AU18: 2025 | AV18: 2026 | AW18: 2027 | AX18: 2028 | AY18: 2029
E19: Cost of capital | F19: €'000 | H19: =SUM(H49,H34) -> 2578.260045 | I19: 3341.895 | J19: 5572.362 | K19: 5599 | L19: 5620 | M19: =SUM(M49,M34) -> 8635.093241 | N19: 9622.160699 | O19: 11485.5803 | P19: 12493.47955 | Q19: 13149.19109 | AI19: =ROUND(IF(AND($E$13=AI$2,$F$13='Misc. Items'!$C$58),SUM(M20:Q20)-SUMPRODUCT('AirNav Opex (IAA)'!Q232:U232,$M$5:$Q$5/100),0),5) -> 0 | AJ19: =ROUND(IF(AND($E$13=AJ$2,$F$13='Misc. Items'!$C$58),SUM(M20:Q20)-SUMPRODUCT($M$5:$Q$5,'Met Opex'!Q102:U102)/100,0),5) -> 0 | AK19: 0
E20: Exceptional items | F20: €'000 | H20: =SUM(H50,H35) -> 1675.169431 | I20: 2599.41314 | J20: 1363 | K20: 978.1275843 | L20: 1258.058597 | M20: 1268.449 | N20: =SUM(N50,N35) -> 1335.882 | O20: 1257.302 | P20: 1235.116 | Q20: 1240.983 | AO20: ANSP | AP20: =('T1 ANSP ERT'!K61+'T1 ANSP TRM'!K61)/1000 -> 103.2881987 | AQ20: =('T1 ANSP ERT'!L61+'T1 ANSP TRM'!L61)/1000 -> 97.99314523 | AR20: =('T1 ANSP ERT'!N61+'T1 ANSP TRM'!N61)/1000 -> 124.6212617 | AS20: =('T1 ANSP ERT'!O61+'T1 ANSP TRM'!O61)/1000 -> 140.025 | AT20: =('T1 ANSP ERT'!P61+'T1 ANSP TRM'!P61)/1000 -> 143.684 | AU20: =('T1 ANSP ERT'!Q61+'T1 ANSP TRM'!Q61)/1000 -> 163.1843818 | AV20: =('T1 ANSP ERT'!R61+'T1 ANSP TRM'!R61)/1000 -> 175.159112 | AW20: =('T1 ANSP ERT'!S61+'T1 ANSP TRM'!S61)/1000 -> 181.5298019 | AX20: =('T1 ANSP ERT'!T61+'T1 ANSP TRM'!T61)/1000 -> 189.7851646 | AY20: =('T1 ANSP ERT'!U61+'T1 ANSP TRM'!U61)/1000 -> 199.1400601
AO21: MET | AP21: =('T1 MET ERT'!K61+'T1 MET TRM'!K61)/1000 -> 8.28403 | AQ21: =('T1 MET ERT'!L61+'T1 MET TRM'!L61)/1000 -> 8.876514846 | AR21: =('T1 MET ERT'!N61+'T1 MET TRM'!N61)/1000 -> 10.26109506 | AS21: =('T1 MET ERT'!O61+'T1 MET TRM'!O61)/1000 -> 9.946685375 | AT21: =('T1 MET ERT'!P61+'T1 MET TRM'!P61)/1000 -> 10.88003806 | AU21: =('T1 MET ERT'!Q61+'T1 MET TRM'!Q61)/1000 -> 11.08024387 | AV21: =('T1 MET ERT'!R61+'T1 MET TRM'!R61)/1000 -> 11.42496101 | AW21: =('T1 MET ERT'!S61+'T1 MET TRM'!S61)/1000 -> 11.6334964 | AX21: =('T1 MET ERT'!T61+'T1 MET TRM'!T61)/1000 -> 11.58707703 | AY21: =('T1 MET ERT'!U61+'T1 MET TRM'!U61)/1000 -> 11.74635554
E22: Total | H22: =SUM(H16:H20) -> 135926.0572 | I22: =SUM(I16:I20) -> 129372.3458 | J22: 150384.7238 | K22: 160010.3617 | L22: 162446.691 | M22: 180027.2003 | N22: =SUM(N16:N20) -> 189327.266 | O22: =SUM(O16:O20) -> 193090.1223 | P22: 197466.0371 | Q22: 202978.4804 | AH22: =ROUND(IF(AND($F$13='Misc. Items'!$C$58,$E$13="total"),SUM(M22:Q22)-SUM(#REF!,#REF!),0),5) -> 0 | AO22: Supervision | AP22: =('T1 NSA ERT'!K61+'T1 NSA TRM'!K61)/1000 -> 12.287461 | AQ22: =('T1 NSA ERT'!L61+'T1 NSA TRM'!L61)/1000 -> 13.74469735 | AR22: =('T1 NSA ERT'!N61+'T1 NSA TRM'!N61)/1000 -> 15.375367 | AS22: =('T1 NSA ERT'!O61+'T1 NSA TRM'!O61)/1000 -> 17.34304 | AT22: =('T1 NSA ERT'!P61+'T1 NSA TRM'!P61)/1000 -> 17.405 | AU22: =('T1 NSA ERT'!Q61+'T1 NSA TRM'!Q61)/1000 -> 19.28597171 | AV22: =('T1 NSA ERT'!R61+'T1 NSA TRM'!R61)/1000 -> 19.7956185 | AW22: =('T1 NSA ERT'!S61+'T1 NSA TRM'!S61)/1000 -> 20.08833024 | AX22: =('T1 NSA ERT'!T61+'T1 NSA TRM'!T61)/1000 -> 20.23751764 | AY22: =('T1 NSA ERT'!U61+'T1 NSA TRM'!U61)/1000 -> 20.49640931
AO23: IFR Movements | AP23: 263 | AQ23: 300 | AR23: 582 | AS23: 664 | AT23: 701 | AU23: 723 | AV23: 738 | AW23: 752 | AX23: 769 | AY23: 782
D30: En Route
E31: Staff | F31: €'000 | H31: =CHOOSE($E$14,'T1 ANSP ERT'!K12,'T1 MET ERT'!K12,'T1 NSA ERT'!K12,'T1 ERT'!K12)/IF($F$13='Misc. Items'!$C$58,1,H$5/100) -> 66416.79984 | I31: =CHOOSE($E$14,'T1 ANSP ERT'!L12,'T1 MET ERT'!L12,'T1 NSA ERT'!L12,'T1 ERT'!L12)/IF($F$13='Misc. Items'!$C$58,1,I$5/100) -> 59679.9009 | J31: =CHOOSE($E$14,'T1 ANSP ERT'!N12,'T1 MET ERT'!N12,'T1 NSA ERT'!N12,'T1 ERT'!N12)/IF($F$13='Misc. Items'!$C$58,1,J$5/100) -> 68067.048 | K31: =CHOOSE($E$14,'T1 ANSP ERT'!O12,'T1 MET ERT'!O12,'T1 NSA ERT'!O12,'T1 ERT'!O12)/IF($F$13='Misc. Items'!$C$58,1,K$5/100) -> 77159.94577 | L31: =CHOOSE($E$14,'T1 ANSP ERT'!P12,'T1 MET ERT'!P12,'T1 NSA ERT'!P12,'T1 ERT'!P12)/IF($F$13='Misc. Items'!$C$58,1,L$5/100) -> 78590.66724 | M31: =CHOOSE($E$14,'T1 ANSP ERT'!Q12,'T1 MET ERT'!Q12,'T1 NSA ERT'!Q12,'T1 ERT'!Q12)/IF($F$13='Misc. Items'!$C$58,1,M$5/100) -> 83681.21911 | N31: =CHOOSE($E$14,'T1 ANSP ERT'!R12,'T1 MET ERT'!R12,'T1 NSA ERT'!R12,'T1 ERT'!R12)/IF($F$13='Misc. Items'!$C$58,1,N$5/100) -> 85853.24303 | O31: =CHOOSE($E$14,'T1 ANSP ERT'!S12,'T1 MET ERT'!S12,'T1 NSA ERT'!S12,'T1 ERT'!S12)/IF($F$13='Misc. Items'!$C$58,1,O$5/100) -> 87205.41943 | P31: =CHOOSE($E$14,'T1 ANSP ERT'!T12,'T1 MET ERT'!T12,'T1 NSA ERT'!T12,'T1 ERT'!T12)/IF($F$13='Misc. Items'!$C$58,1,P$5/100) -> 89085.65761 | Q31: =CHOOSE($E$14,'T1 ANSP ERT'!U12,'T1 MET ERT'!U12,'T1 NSA ERT'!U12,'T1 ERT'!U12)/IF($F$13='Misc. Items'!$C$58,1,Q$5/100) -> 89648.00806
E32: Other Opex | F32: €'000 | H32: =CHOOSE($E$14,'T1 ANSP ERT'!K14,'T1 MET ERT'!K14,'T1 NSA ERT'!K14,'T1 ERT'!K14)/IF($F$13='Misc. Items'!$C$58,1,H$5/100) -> 37716.78558 | I32: =CHOOSE($E$14,'T1 ANSP ERT'!L14,'T1 MET ERT'!L14,'T1 NSA ERT'!L14,'T1 ERT'!L14)/IF($F$13='Misc. Items'!$C$58,1,I$5/100) -> 36197.74876 | J32: =CHOOSE($E$14,'T1 ANSP ERT'!N14,'T1 MET ERT'!N14,'T1 NSA ERT'!N14,'T1 ERT'!N14)/IF($F$13='Misc. Items'!$C$58,1,J$5/100) -> 40310.75883 | K32: =CHOOSE($E$14,'T1 ANSP ERT'!O14,'T1 MET ERT'!O14,'T1 NSA ERT'!O14,'T1 ERT'!O14)/IF($F$13='Misc. Items'!$C$58,1,K$5/100) -> 42913.42644 | L32: =CHOOSE($E$14,'T1 ANSP ERT'!P14,'T1 MET ERT'!P14,'T1 NSA ERT'!P14,'T1 ERT'!P14)/IF($F$13='Misc. Items'!$C$58,1,L$5/100) -> 43898.86221 | M32: =CHOOSE($E$14,'T1 ANSP ERT'!Q14,'T1 MET ERT'!Q14,'T1 NSA ERT'!Q14,'T1 ERT'!Q14)/IF($F$13='Misc. Items'!$C$58,1,M$5/100) -> 49606.02503 | N32: =CHOOSE($E$14,'T1 ANSP ERT'!R14,'T1 MET ERT'!R14,'T1 NSA ERT'!R14,'T1 ERT'!R14)/IF($F$13='Misc. Items'!$C$58,1,N$5/100) -> 52814.94973 | O32: =CHOOSE($E$14,'T1 ANSP ERT'!S14,'T1 MET ERT'!S14,'T1 NSA ERT'!S14,'T1 ERT'!S14)/IF($F$13='Misc. Items'!$C$58,1,O$5/100) -> 51041.02052 | P32: =CHOOSE($E$14,'T1 ANSP ERT'!T14,'T1 MET ERT'!T14,'T1 NSA ERT'!T14,'T1 ERT'!T14)/IF($F$13='Misc. Items'!$C$58,1,P$5/100) -> 51641.29789 | Q32: =CHOOSE($E$14,'T1 ANSP ERT'!U14,'T1 MET ERT'!U14,'T1 NSA ERT'!U14,'T1 ERT'!U14)/IF($F$13='Misc. Items'!$C$58,1,Q$5/100) -> 52944.37198
E33: Depreciation | F33: €'000 | H33: =CHOOSE($E$14,'T1 ANSP ERT'!K15,'T1 MET ERT'!K15,'T1 NSA ERT'!K15,'T1 ERT'!K15) -> 7048.696756 | I33: =CHOOSE($E$14,'T1 ANSP ERT'!L15,'T1 MET ERT'!L15,'T1 NSA ERT'!L15,'T1 ERT'!L15) -> 7705.765314 | J33: =CHOOSE($E$14,'T1 ANSP ERT'!N15,'T1 MET ERT'!N15,'T1 NSA ERT'!N15,'T1 ERT'!N15) -> 7349.944868 | K33: =CHOOSE($E$14,'T1 ANSP ERT'!O15,'T1 MET ERT'!O15,'T1 NSA ERT'!O15,'T1 ERT'!O15) -> 7257 | L33: =CHOOSE($E$14,'T1 ANSP ERT'!P15,'T1 MET ERT'!P15,'T1 NSA ERT'!P15,'T1 ERT'!P15) -> 6366 | M33: =CHOOSE($E$14,'T1 ANSP ERT'!Q15,'T1 MET ERT'!Q15,'T1 NSA ERT'!Q15,'T1 ERT'!Q15) -> 8180.332426 | N33: =CHOOSE($E$14,'T1 ANSP ERT'!R15,'T1 MET ERT'!R15,'T1 NSA ERT'!R15,'T1 ERT'!R15) -> 9614.719442 | O33: =CHOOSE($E$14,'T1 ANSP ERT'!S15,'T1 MET ERT'!S15,'T1 NSA ERT'!S15,'T1 ERT'!S15) -> 11410.67538 | P33: =CHOOSE($E$14,'T1 ANSP ERT'!T15,'T1 MET ERT'!T15,'T1 NSA ERT'!T15,'T1 ERT'!T15) -> 11652.55369 | Q33: =CHOOSE($E$14,'T1 ANSP ERT'!U15,'T1 MET ERT'!U15,'T1 NSA ERT'!U15,'T1 ERT'!U15) -> 13279.54728
E34: Cost of capital | F34: €'000 | H34: =CHOOSE($E$14,'T1 ANSP ERT'!K16,'T1 MET ERT'!K16,'T1 NSA ERT'!K16,'T1 ERT'!K16) -> 1846.260045 | I34: =CHOOSE($E$14,'T1 ANSP ERT'!L16,'T1 MET ERT'!L16,'T1 NSA ERT'!L16,'T1 ERT'!L16) -> 2350.28 | J34: =CHOOSE($E$14,'T1 ANSP ERT'!N16,'T1 MET ERT'!N16,'T1 NSA ERT'!N16,'T1 ERT'!N16) -> 2272.62 | K34: =CHOOSE($E$14,'T1 ANSP ERT'!O16,'T1 MET ERT'!O16,'T1 NSA ERT'!O16,'T1 ERT'!O16) -> 2190 | L34: =CHOOSE($E$14,'T1 ANSP ERT'!P16,'T1 MET ERT'!P16,'T1 NSA ERT'!P16,'T1 ERT'!P16) -> 2254 | M34: =CHOOSE($E$14,'T1 ANSP ERT'!Q16,'T1 MET ERT'!Q16,'T1 NSA ERT'!Q16,'T1 ERT'!Q16) -> 3998.639227 | N34: =CHOOSE($E$14,'T1 ANSP ERT'!R16,'T1 MET ERT'!R16,'T1 NSA ERT'!R16,'T1 ERT'!R16) -> 4789.784921 | O34: =CHOOSE($E$14,'T1 ANSP ERT'!S16,'T1 MET ERT'!S16,'T1 NSA ERT'!S16,'T1 ERT'!S16) -> 6114.580479 | P34: =CHOOSE($E$14,'T1 ANSP ERT'!T16,'T1 MET ERT'!T16,'T1 NSA ERT'!T16,'T1 ERT'!T16) -> 6899.36121 | Q34: =CHOOSE($E$14,'T1 ANSP ERT'!U16,'T1 MET ERT'!U16,'T1 NSA ERT'!U16,'T1 ERT'!U16) -> 7368.889143
E35: Exceptional items | F35: €'000 | H35: =CHOOSE($E$14,'T1 ANSP ERT'!K17,'T1 MET ERT'!K17,'T1 NSA ERT'!K17,'T1 ERT'!K17)/IF($F$13='Misc. Items'!$C$58,1,H$5/100) -> 1340.135545 | I35: =CHOOSE($E$14,'T1 ANSP ERT'!L17,'T1 MET ERT'!L17,'T1 NSA ERT'!L17,'T1 ERT'!L17)/IF($F$13='Misc. Items'!$C$58,1,I$5/100) -> 2284.9178 | J35: =CHOOSE($E$14,'T1 ANSP ERT'!N17,'T1 MET ERT'!N17,'T1 NSA ERT'!N17,'T1 ERT'!N17)/IF($F$13='Misc. Items'!$C$58,1,J$5/100) -> 1090 | K35: =CHOOSE($E$14,'T1 ANSP ERT'!O17,'T1 MET ERT'!O17,'T1 NSA ERT'!O17,'T1 ERT'!O17)/IF($F$13='Misc. Items'!$C$58,1,K$5/100) -> 782.3119552 | L35: =CHOOSE($E$14,'T1 ANSP ERT'!P17,'T1 MET ERT'!P17,'T1 NSA ERT'!P17,'T1 ERT'!P17)/IF($F$13='Misc. Items'!$C$58,1,L$5/100) -> 1006.634507 | M35: =CHOOSE($E$14,'T1 ANSP ERT'!Q17,'T1 MET ERT'!Q17,'T1 NSA ERT'!Q17,'T1 ERT'!Q17)/IF($F$13='Misc. Items'!$C$58,1,M$5/100) -> 1014.7592 | N35: =CHOOSE($E$14,'T1 ANSP ERT'!R17,'T1 MET ERT'!R17,'T1 NSA ERT'!R17,'T1 ERT'!R17)/IF($F$13='Misc. Items'!$C$58,1,N$5/100) -> 1068.7056 | O35: =CHOOSE($E$14,'T1 ANSP ERT'!S17,'T1 MET ERT'!S17,'T1 NSA ERT'!S17,'T1 ERT'!S17)/IF($F$13='Misc. Items'!$C$58,1,O$5/100) -> 1005.8416 | P35: =CHOOSE($E$14,'T1 ANSP ERT'!T17,'T1 MET ERT'!T17,'T1 NSA ERT'!T17,'T1 ERT'!T17)/IF($F$13='Misc. Items'!$C$58,1,P$5/100) -> 988.0928 | Q35: =CHOOSE($E$14,'T1 ANSP ERT'!U17,'T1 MET ERT'!U17,'T1 NSA ERT'!U17,'T1 ERT'!U17)/IF($F$13='Misc. Items'!$C$58,1,Q$5/100) -> 992.7864
E37: Total | H37: =SUM(H31:H35) -> 114368.6778 | I37: 108218.6128 | J37: 119090.3717 | K37: 130302.6842 | L37: 132116.1639 | M37: 146480.975 | N37: 154141.4027 | O37: 156777.5374 | P37: 160266.9632 | Q37: =SUM(Q31:Q35) -> 164233.6029
D45: Terminal
E46: Staff | F46: €'000 | H46: =CHOOSE($E$14,'T1 ANSP TRM'!K12,'T1 MET TRM'!K12,'T1 NSA TRM'!K12,'T1 TRM'!K12)/IF($F$13='Misc. Items'!$C$58,1,H$5/100) -> 11520.56685 | I46: =CHOOSE($E$14,'T1 ANSP TRM'!L12,'T1 MET TRM'!L12,'T1 NSA TRM'!L12,'T1 TRM'!L12)/IF($F$13='Misc. Items'!$C$58,1,I$5/100) -> 10549.65667 | J46: =CHOOSE($E$14,'T1 ANSP TRM'!N12,'T1 MET TRM'!N12,'T1 NSA TRM'!N12,'T1 TRM'!N12)/IF($F$13='Misc. Items'!$C$58,1,J$5/100) -> 12088.59078 | K46: =CHOOSE($E$14,'T1 ANSP TRM'!O12,'T1 MET TRM'!O12,'T1 NSA TRM'!O12,'T1 TRM'!O12)/IF($F$13='Misc. Items'!$C$58,1,K$5/100) -> 13529.10965 | L46: =CHOOSE($E$14,'T1 ANSP TRM'!P12,'T1 MET TRM'!P12,'T1 NSA TRM'!P12,'T1 TRM'!P12)/IF($F$13='Misc. Items'!$C$58,1,L$5/100) -> 14094.7594 | M46: =CHOOSE($E$14,'T1 ANSP TRM'!Q12,'T1 MET TRM'!Q12,'T1 NSA TRM'!Q12,'T1 TRM'!Q12)/IF($F$13='Misc. Items'!$C$58,1,M$5/100) -> 14454.15451 | N46: =CHOOSE($E$14,'T1 ANSP TRM'!R12,'T1 MET TRM'!R12,'T1 NSA TRM'!R12,'T1 TRM'!R12)/IF($F$13='Misc. Items'!$C$58,1,N$5/100) -> 14720.27982 | O46: =CHOOSE($E$14,'T1 ANSP TRM'!S12,'T1 MET TRM'!S12,'T1 NSA TRM'!S12,'T1 TRM'!S12)/IF($F$13='Misc. Items'!$C$58,1,O$5/100) -> 14905.08971 | P46: =CHOOSE($E$14,'T1 ANSP TRM'!T12,'T1 MET TRM'!T12,'T1 NSA TRM'!T12,'T1 TRM'!T12)/IF($F$13='Misc. Items'!$C$58,1,P$5/100) -> 15113.50003 | Q46: =CHOOSE($E$14,'T1 ANSP TRM'!U12,'T1 MET TRM'!U12,'T1 NSA TRM'!U12,'T1 TRM'!U12)/IF($F$13='Misc. Items'!$C$58,1,Q$5/100) -> 15165.75231
E47: Other Opex | F47: €'000 | H47: =CHOOSE($E$14,'T1 ANSP TRM'!K14,'T1 MET TRM'!K14,'T1 NSA TRM'!K14,'T1 TRM'!K14)/IF($F$13='Misc. Items'!$C$58,1,H$5/100) -> 6382.770743 | I47: =CHOOSE($E$14,'T1 ANSP TRM'!L14,'T1 MET TRM'!L14,'T1 NSA TRM'!L14,'T1 TRM'!L14)/IF($F$13='Misc. Items'!$C$58,1,I$5/100) -> 6502.81258 | J47: =CHOOSE($E$14,'T1 ANSP TRM'!N14,'T1 MET TRM'!N14,'T1 NSA TRM'!N14,'T1 TRM'!N14)/IF($F$13='Misc. Items'!$C$58,1,J$5/100) -> 11565.5922 | K47: =CHOOSE($E$14,'T1 ANSP TRM'!O14,'T1 MET TRM'!O14,'T1 NSA TRM'!O14,'T1 TRM'!O14)/IF($F$13='Misc. Items'!$C$58,1,K$5/100) -> 8302.75229 | L47: =CHOOSE($E$14,'T1 ANSP TRM'!P14,'T1 MET TRM'!P14,'T1 NSA TRM'!P14,'T1 TRM'!P14)/IF($F$13='Misc. Items'!$C$58,1,L$5/100) -> 8519.343544 | M47: =CHOOSE($E$14,'T1 ANSP TRM'!Q14,'T1 MET TRM'!Q14,'T1 NSA TRM'!Q14,'T1 TRM'!Q14)/IF($F$13='Misc. Items'!$C$58,1,M$5/100) -> 9226.271361 | N47: =CHOOSE($E$14,'T1 ANSP TRM'!R14,'T1 MET TRM'!R14,'T1 NSA TRM'!R14,'T1 TRM'!R14)/IF($F$13='Misc. Items'!$C$58,1,N$5/100) -> 9956.130066 | O47: =CHOOSE($E$14,'T1 ANSP TRM'!S14,'T1 MET TRM'!S14,'T1 NSA TRM'!S14,'T1 TRM'!S14)/IF($F$13='Misc. Items'!$C$58,1,O$5/100) -> 9560.314974 | P47: =CHOOSE($E$14,'T1 ANSP TRM'!T14,'T1 MET TRM'!T14,'T1 NSA TRM'!T14,'T1 TRM'!T14)/IF($F$13='Misc. Items'!$C$58,1,P$5/100) -> 9745.936272 | Q47: =CHOOSE($E$14,'T1 ANSP TRM'!U14,'T1 MET TRM'!U14,'T1 NSA TRM'!U14,'T1 TRM'!U14)/IF($F$13='Misc. Items'!$C$58,1,Q$5/100) -> 10082.93718
E48: Depreciation | F48: €'000 | H48: =CHOOSE($E$14,'T1 ANSP TRM'!K15,'T1 MET TRM'!K15,'T1 NSA TRM'!K15,'T1 TRM'!K15) -> 2587.008 | I48: =CHOOSE($E$14,'T1 ANSP TRM'!L15,'T1 MET TRM'!L15,'T1 NSA TRM'!L15,'T1 TRM'!L15) -> 2795.153475 | J48: =CHOOSE($E$14,'T1 ANSP TRM'!N15,'T1 MET TRM'!N15,'T1 NSA TRM'!N15,'T1 TRM'!N15) -> 4067.427086 | K48: =CHOOSE($E$14,'T1 ANSP TRM'!O15,'T1 MET TRM'!O15,'T1 NSA TRM'!O15,'T1 TRM'!O15) -> 4271 | L48: =CHOOSE($E$14,'T1 ANSP TRM'!P15,'T1 MET TRM'!P15,'T1 NSA TRM'!P15,'T1 TRM'!P15) -> 4099 | M48: =CHOOSE($E$14,'T1 ANSP TRM'!Q15,'T1 MET TRM'!Q15,'T1 NSA TRM'!Q15,'T1 TRM'!Q15) -> 4975.655579 | N48: =CHOOSE($E$14,'T1 ANSP TRM'!R15,'T1 MET TRM'!R15,'T1 NSA TRM'!R15,'T1 TRM'!R15) -> 5409.901209 | O48: =CHOOSE($E$14,'T1 ANSP TRM'!S15,'T1 MET TRM'!S15,'T1 NSA TRM'!S15,'T1 TRM'!S15) -> 6224.719974 | P48: =CHOOSE($E$14,'T1 ANSP TRM'!T15,'T1 MET TRM'!T15,'T1 NSA TRM'!T15,'T1 TRM'!T15) -> 6498.496066 | Q48: =CHOOSE($E$14,'T1 ANSP TRM'!U15,'T1 MET TRM'!U15,'T1 NSA TRM'!U15,'T1 TRM'!U15) -> 7467.689504
E49: Cost of capital | F49: €'000 | H49: =CHOOSE($E$14,'T1 ANSP TRM'!K16,'T1 MET TRM'!K16,'T1 NSA TRM'!K16,'T1 TRM'!K16) -> 732 | I49: =CHOOSE($E$14,'T1 ANSP TRM'!L16,'T1 MET TRM'!L16,'T1 NSA TRM'!L16,'T1 TRM'!L16) -> 991.615 | J49: =CHOOSE($E$14,'T1 ANSP TRM'!N16,'T1 MET TRM'!N16,'T1 NSA TRM'!N16,'T1 TRM'!N16) -> 3299.742 | K49: =CHOOSE($E$14,'T1 ANSP TRM'!O16,'T1 MET TRM'!O16,'T1 NSA TRM'!O16,'T1 TRM'!O16) -> 3409 | L49: =CHOOSE($E$14,'T1 ANSP TRM'!P16,'T1 MET TRM'!P16,'T1 NSA TRM'!P16,'T1 TRM'!P16) -> 3366 | M49: =CHOOSE($E$14,'T1 ANSP TRM'!Q16,'T1 MET TRM'!Q16,'T1 NSA TRM'!Q16,'T1 TRM'!Q16) -> 4636.454014 | N49: =CHOOSE($E$14,'T1 ANSP TRM'!R16,'T1 MET TRM'!R16,'T1 NSA TRM'!R16,'T1 TRM'!R16) -> 4832.375778 | O49: =CHOOSE($E$14,'T1 ANSP TRM'!S16,'T1 MET TRM'!S16,'T1 NSA TRM'!S16,'T1 TRM'!S16) -> 5370.99982 | P49: =CHOOSE($E$14,'T1 ANSP TRM'!T16,'T1 MET TRM'!T16,'T1 NSA TRM'!T16,'T1 TRM'!T16) -> 5594.118342 | Q49: =CHOOSE($E$14,'T1 ANSP TRM'!U16,'T1 MET TRM'!U16,'T1 NSA TRM'!U16,'T1 TRM'!U16) -> 5780.301944
E50: Exceptional items | F50: €'000 | H50: =CHOOSE($E$14,'T1 ANSP TRM'!K17,'T1 MET TRM'!K17,'T1 NSA TRM'!K17,'T1 TRM'!K17)/IF($F$13='Misc. Items'!$C$58,1,H$5/100) -> 335.0338862 | I50: =CHOOSE($E$14,'T1 ANSP TRM'!L17,'T1 MET TRM'!L17,'T1 NSA TRM'!L17,'T1 TRM'!L17)/IF($F$13='Misc. Items'!$C$58,1,I$5/100) -> 314.49534 | J50: =CHOOSE($E$14,'T1 ANSP TRM'!N17,'T1 MET TRM'!N17,'T1 NSA TRM'!N17,'T1 TRM'!N17)/IF($F$13='Misc. Items'!$C$58,1,J$5/100) -> 273 | K50: =CHOOSE($E$14,'T1 ANSP TRM'!O17,'T1 MET TRM'!O17,'T1 NSA TRM'!O17,'T1 TRM'!O17)/IF($F$13='Misc. Items'!$C$58,1,K$5/100) -> 195.8156291 | L50: =CHOOSE($E$14,'T1 ANSP TRM'!P17,'T1 MET TRM'!P17,'T1 NSA TRM'!P17,'T1 TRM'!P17)/IF($F$13='Misc. Items'!$C$58,1,L$5/100) -> 251.4240894 | M50: =CHOOSE($E$14,'T1 ANSP TRM'!Q17,'T1 MET TRM'!Q17,'T1 NSA TRM'!Q17,'T1 TRM'!Q17)/IF($F$13='Misc. Items'!$C$58,1,M$5/100) -> 253.6898 | N50: =CHOOSE($E$14,'T1 ANSP TRM'!R17,'T1 MET TRM'!R17,'T1 NSA TRM'!R17,'T1 TRM'!R17)/IF($F$13='Misc. Items'!$C$58,1,N$5/100) -> 267.1764 | O50: =CHOOSE($E$14,'T1 ANSP TRM'!S17,'T1 MET TRM'!S17,'T1 NSA TRM'!S17,'T1 TRM'!S17)/IF($F$13='Misc. Items'!$C$58,1,O$5/100) -> 251.4604 | P50: =CHOOSE($E$14,'T1 ANSP TRM'!T17,'T1 MET TRM'!T17,'T1 NSA TRM'!T17,'T1 TRM'!T17)/IF($F$13='Misc. Items'!$C$58,1,P$5/100) -> 247.0232 | Q50: =CHOOSE($E$14,'T1 ANSP TRM'!U17,'T1 MET TRM'!U17,'T1 NSA TRM'!U17,'T1 TRM'!U17)/IF($F$13='Misc. Items'!$C$58,1,Q$5/100) -> 248.1966
E52: Total | H52: =SUM(H46:H50) -> 21557.37948 | I52: 21153.73307 | J52: 31294.35207 | K52: 29707.67756 | L52: 30330.52703 | M52: 33546.22527 | N52: 35185.86327 | O52: 36312.58488 | P52: 37199.07391 | Q52: =SUM(Q46:Q50) -> 38744.87753
E54: Total operating costs (staff + other opex) | M54: =SUM(M46:M47,M31:M32) -> 156967.67 | N54: =SUM(N46:N47,N31:N32) -> 163344.6026 | O54: =SUM(O46:O47,O31:O32) -> 162711.8446 | P54: =SUM(P46:P47,P31:P32) -> 165586.3918 | Q54: =SUM(Q46:Q47,Q31:Q32) -> 167841.0695
B60: AirNav Regulated Entity Financeability | F60: Nominal
D62: Cash Flow
E63: CFO (Gross of any dividend) | F63: €'000 | G63: 0 | H63: < Set Opex % overspend | M63: =('T2 ERT'!C91+'T2 TRM'!C91)-(SUM('T1 ANSP ERT'!Q12,'T1 ANSP ERT'!Q14,'T1 ANSP TRM'!Q12,'T1 ANSP TRM'!Q14)+SUM('T1 MET ERT'!Q18,'T1 MET TRM'!Q18,'T1 NSA ERT'!Q18,'T1 NSA TRM'!Q18))*(1+$G63) -> 36212.17269 | N63: =('T2 ERT'!D91+'T2 TRM'!D91)-(SUM('T1 ANSP ERT'!R12,'T1 ANSP ERT'!R14,'T1 ANSP TRM'!R12,'T1 ANSP TRM'!R14)+SUM('T1 MET ERT'!R18,'T1 MET TRM'!R18,'T1 NSA ERT'!R18,'T1 NSA TRM'!R18))*(1+$G63) -> 39481.43335 | O63: =('T2 ERT'!E91+'T2 TRM'!E91)-(SUM('T1 ANSP ERT'!S12,'T1 ANSP ERT'!S14,'T1 ANSP TRM'!S12,'T1 ANSP TRM'!S14)+SUM('T1 MET ERT'!S18,'T1 MET TRM'!S18,'T1 NSA ERT'!S18,'T1 NSA TRM'!S18))*(1+$G63) -> 38113.69132 | P63: =('T2 ERT'!F91+'T2 TRM'!F91)-(SUM('T1 ANSP ERT'!T12,'T1 ANSP ERT'!T14,'T1 ANSP TRM'!T12,'T1 ANSP TRM'!T14)+SUM('T1 MET ERT'!T18,'T1 MET TRM'!T18,'T1 NSA ERT'!T18,'T1 NSA TRM'!T18))*(1+$G63) -> 39843.05715 | Q63: =('T2 ERT'!G91+'T2 TRM'!G91)-(SUM('T1 ANSP ERT'!U12,'T1 ANSP ERT'!U14,'T1 ANSP TRM'!U12,'T1 ANSP TRM'!U14)+SUM('T1 MET ERT'!U18,'T1 MET TRM'!U18,'T1 NSA ERT'!U18,'T1 NSA TRM'!U18))*(1+$G63) -> 42765.61971
E64: Capex | F64: €'000 | H64: < Set Capex % overspend | M64: =-SUM('AirNav Capex (IAA)'!CK52:CK53)*(1+$G64) -> -35652.7444 | N64: =-SUM('AirNav Capex (IAA)'!CL52:CL53)*(1+$G64) -> -35664.669 | O64: =-SUM('AirNav Capex (IAA)'!CM52:CM53)*(1+$G64) -> -32863.896 | P64: =-SUM('AirNav Capex (IAA)'!CN52:CN53)*(1+$G64) -> -32916.1828 | Q64: =-SUM('AirNav Capex (IAA)'!CO52:CO53)*(1+$G64) -> -25985.039
E66: FCF | F66: €'000 | M66: =SUM(M63:M64) -> 559.4282928 | N66: =SUM(N63:N64) -> 3816.764354 | O66: =SUM(O63:O64) -> 5249.795317 | P66: =SUM(P63:P64) -> 6926.874349 | Q66: =SUM(Q63:Q64) -> 16780.58071
E68: Opening Cash Position | F68: €'000 | M68: =L70 -> 0 | N68: =M70 -> 559.4282928 | O68: =N70 -> 4376.192647 | P68: =O70 -> 9625.987964 | Q68: =P70 -> 16552.86231
E70: Year End Cash | F70: €'000 | K70: Set year end cash position > | L70: 0 | M70: =SUM(M66:M68) -> 559.4282928 | N70: =SUM(N66:N68) -> 4376.192647 | O70: =SUM(O66:O68) -> 9625.987964 | P70: =SUM(P66:P68) -> 16552.86231 | Q70: =SUM(Q66:Q68) -> 33333.44302
E73: CFO/Debt | F73: Ratio | M73: =-IF(M70>=0,0,M63/M70) -> 0 | N73: 0 | O73: =-IF(O70>=0,0,O63/O70) -> 0 | P73: =-IF(P70>=0,0,P63/P70) -> 0 | Q73: 0
B79: END

Sheet Cost Comparison
B2: ANSP Cost Comparison | E2: Item | F2: Units | J2: 2025 | K2: 2026 | L2: 2027 | M2: 2028 | N2: 2029 | P2: Service Units Scenario: | S2: ='DUC & UR'!$F$6 -> Base | T2: =INDEX('Misc. Items'!$E$61:$E$63,MATCH(S2,'Misc. Items'!$C$61:$C$63,0)) -> 2
E3: UR Year: | J3: 2025 | K3: 2026 | L3: 2027 | M3: 2028 | N3: 2029
E4: Price Base: | J4: Forecast | K4: Forecast | L4: Forecast | M4: Forecast | N4: Forecast
E5: Index: | F5: ='Misc. Items'!$F$26 -> 2022 | J5: ='Misc. Items'!O27 -> 108.6266 | K5: ='Misc. Items'!P27 -> 110.4319741 | L5: ='Misc. Items'!Q27 -> 112.3733682 | M5: ='Misc. Items'!R27 -> 114.5489166 | N5: ='Misc. Items'!S27 -> 116.8742596
B6: Traffic
D8: Service Units
E9: En Route | J9: ='Misc. Items'!O36 -> 5175 | K9: ='Misc. Items'!P36 -> 5256 | L9: ='Misc. Items'!Q36 -> 5349 | M9: ='Misc. Items'!R36 -> 5458 | N9: ='Misc. Items'!S36 -> 5544
E10: Terminal | J10: ='Misc. Items'!O37 -> 215 | K10: ='Misc. Items'!P37 -> 221 | L10: ='Misc. Items'!Q37 -> 226.0649416 | M10: ='Misc. Items'!R37 -> 232.5306909 | N10: ='Misc. Items'!S37 -> 237.3634187
B13: Opex | D13: Entity: | E13: ANSP | F13: Nominal
C15: AirNav Staff
D16: FTEs
E17: ='AirNav Opex'!C31 -> ATCO | F17: # | J17: ='AirNav Opex'!Q18 -> 328 | K17: ='AirNav Opex'!R18 -> 340 | L17: ='AirNav Opex'!S18 -> 352 | M17: ='AirNav Opex'!T18 -> 363 | N17: ='AirNav Opex'!U18 -> 374
E18: ='AirNav Opex'!C32 -> Corporate Services | F18: # | J18: ='AirNav Opex'!Q19 -> 66 | K18: ='AirNav Opex'!R19 -> 69 | L18: ='AirNav Opex'!S19 -> 69 | M18: ='AirNav Opex'!T19 -> 69 | N18: ='AirNav Opex'!U19 -> 69
E19: ='AirNav Opex'!C33 -> Data Assistant | F19: # | J19: ='AirNav Opex'!Q20 -> 48 | K19: ='AirNav Opex'!R20 -> 48 | L19: ='AirNav Opex'!S20 -> 48 | M19: ='AirNav Opex'!T20 -> 48 | N19: ='AirNav Opex'!U20 -> 48
E20: ='AirNav Opex'!C34 -> Engineer | F20: # | J20: ='AirNav Opex'!Q21 -> 114 | K20: ='AirNav Opex'!R21 -> 126 | L20: ='AirNav Opex'!S21 -> 126 | M20: ='AirNav Opex'!T21 -> 126 | N20: ='AirNav Opex'!U21 -> 126
E21: ='AirNav Opex'!C35 -> Op Mgt Supp | F21: # | J21: ='AirNav Opex'!Q22 -> 77 | K21: ='AirNav Opex'!R22 -> 79 | L21: ='AirNav Opex'!S22 -> 82 | M21: ='AirNav Opex'!T22 -> 83 | N21: ='AirNav Opex'!U22 -> 83
E22: ='AirNav Opex'!C36 -> FMP/AMC | J22: ='AirNav Opex'!Q23 -> 5 | K22: ='AirNav Opex'!R23 -> 10 | L22: ='AirNav Opex'!S23 -> 10 | M22: ='AirNav Opex'!T23 -> 10 | N22: ='AirNav Opex'!U23 -> 10
D23: Unit Cost
E24: ='AirNav Opex'!C31 -> ATCO | F24: € | J24: =1000*J31/J17 -> 0 | K24: 0 | L24: 0 | M24: 0 | N24: 0
E25: ='AirNav Opex'!C32 -> Corporate Services | F25: € | J25: 0 | K25: 0 | L25: 0 | M25: 0 | N25: 0
E26: ='AirNav Opex'!C33 -> Data Assistant | F26: € | J26: 0 | K26: 0 | L26: 0 | M26: 0 | N26: 0
E27: ='AirNav Opex'!C34 -> Engineer | F27: € | J27: 0 | K27: 0 | L27: 0 | M27: 0 | N27: 0
E28: ='AirNav Opex'!C35 -> Op Mgt Supp | F28: € | J28: 0 | K28: 0 | L28: 0 | M28: 0 | N28: 0
E29: ='AirNav Opex'!C36 -> FMP/AMC
D30: Total Cost
E31: ='AirNav Opex'!C31 -> ATCO | F31: €'000 | J31: ='AirNav Opex'!Q31*J$5/100 -> 0 | K31: ='AirNav Opex'!R31*K$5/100 -> 0 | L31: ='AirNav Opex'!S31*L$5/100 -> 0 | M31: ='AirNav Opex'!T31*M$5/100 -> 0 | N31: ='AirNav Opex'!U31*N$5/100 -> 0
E32: ='AirNav Opex'!C32 -> Corporate Services | F32: €'000 | J32: ='AirNav Opex'!Q32*J$5/100 -> 0 | K32: ='AirNav Opex'!R32*K$5/100 -> 0 | L32: ='AirNav Opex'!S32*L$5/100 -> 0 | M32: ='AirNav Opex'!T32*M$5/100 -> 0 | N32: ='AirNav Opex'!U32*N$5/100 -> 0
E33: ='AirNav Opex'!C33 -> Data Assistant | F33: €'000 | J33: ='AirNav Opex'!Q33*J$5/100 -> 0 | K33: ='AirNav Opex'!R33*K$5/100 -> 0 | L33: ='AirNav Opex'!S33*L$5/100 -> 0 | M33: ='AirNav Opex'!T33*M$5/100 -> 0 | N33: ='AirNav Opex'!U33*N$5/100 -> 0
E34: ='AirNav Opex'!C34 -> Engineer | F34: €'000 | J34: ='AirNav Opex'!Q34*J$5/100 -> 0 | K34: ='AirNav Opex'!R34*K$5/100 -> 0 | L34: ='AirNav Opex'!S34*L$5/100 -> 0 | M34: ='AirNav Opex'!T34*M$5/100 -> 0 | N34: ='AirNav Opex'!U34*N$5/100 -> 0
E35: ='AirNav Opex'!C35 -> Op Mgt Supp | F35: €'000 | J35: ='AirNav Opex'!Q35*J$5/100 -> 0 | K35: ='AirNav Opex'!R35*K$5/100 -> 0 | L35: ='AirNav Opex'!S35*L$5/100 -> 0 | M35: ='AirNav Opex'!T35*M$5/100 -> 0 | N35: ='AirNav Opex'!U35*N$5/100 -> 0
E36: ='AirNav Opex'!C36 -> FMP/AMC | F36: €'000 | J36: ='AirNav Opex'!Q36*J$5/100 -> 0 | K36: ='AirNav Opex'!R36*K$5/100 -> 0 | L36: ='AirNav Opex'!S36*L$5/100 -> 0 | M36: ='AirNav Opex'!T36*M$5/100 -> 0 | N36: ='AirNav Opex'!U36*N$5/100 -> 0
E37: ='AirNav Opex'!C37 -> << add staff category >> | F37: €'000 | J37: ='AirNav Opex'!Q37*J$5/100 -> 0 | K37: ='AirNav Opex'!R37*K$5/100 -> 0 | L37: ='AirNav Opex'!S37*L$5/100 -> 0 | M37: ='AirNav Opex'!T37*M$5/100 -> 0 | N37: ='AirNav Opex'!U37*N$5/100 -> 0
A39: =(SUMPRODUCT($J$5:$N$5,'AirNav Opex'!Q41:U41)/100)-SUM($J$39:$N$39) -> 22446.21023 | E39: Total | F39: €'000 | J39: ='AirNav Opex'!P14*J5/100 -> 88160.26232 | K39: ='AirNav Opex'!Q14*K5/100 -> 98210.46755 | L39: ='AirNav Opex'!R14*L5/100 -> 105026.3974 | M39: ='AirNav Opex'!S14*M5/100 -> 109563.7478 | N39: ='AirNav Opex'!T14*N5/100 -> 115672.7923
C42: IAA Staff (Note: Staff costs exclude overtime)
D43: FTEs
E44: ='AirNav Opex (IAA)'!C18 -> ATCOs | F44: # | J44: =CHOOSE($T$2,'AirNav Opex (IAA-10% SUs)'!Q18,'AirNav Opex (IAA)'!Q18,'AirNav Opex (IAA+10% SUs)'!Q18) -> 326.3046831 | K44: =CHOOSE($T$2,'AirNav Opex (IAA-10% SUs)'!R18,'AirNav Opex (IAA)'!R18,'AirNav Opex (IAA+10% SUs)'!R18) -> 342.6350298 | L44: =CHOOSE($T$2,'AirNav Opex (IAA-10% SUs)'!S18,'AirNav Opex (IAA)'!S18,'AirNav Opex (IAA+10% SUs)'!S18) -> 347.7382632 | M44: =CHOOSE($T$2,'AirNav Opex (IAA-10% SUs)'!T18,'AirNav Opex (IAA)'!T18,'AirNav Opex (IAA+10% SUs)'!T18) -> 361.0066699 | N44: =CHOOSE($T$2,'AirNav Opex (IAA-10% SUs)'!U18,'AirNav Opex (IAA)'!U18,'AirNav Opex (IAA+10% SUs)'!U18) -> 364.0686099
E45: ='AirNav Opex (IAA)'!C19 -> Corp Serv | F45: # | J45: =CHOOSE($T$2,'AirNav Opex (IAA-10% SUs)'!Q19,'AirNav Opex (IAA)'!Q19,'AirNav Opex (IAA+10% SUs)'!Q19) -> 64.52972973 | K45: =CHOOSE($T$2,'AirNav Opex (IAA-10% SUs)'!R19,'AirNav Opex (IAA)'!R19,'AirNav Opex (IAA+10% SUs)'!R19) -> 65.74414414 | L45: =CHOOSE($T$2,'AirNav Opex (IAA-10% SUs)'!S19,'AirNav Opex (IAA)'!S19,'AirNav Opex (IAA+10% SUs)'!S19) -> 65.83873874 | M45: =CHOOSE($T$2,'AirNav Opex (IAA-10% SUs)'!T19,'AirNav Opex (IAA)'!T19,'AirNav Opex (IAA+10% SUs)'!T19) -> 65.91441441 | N45: =CHOOSE($T$2,'AirNav Opex (IAA-10% SUs)'!U19,'AirNav Opex (IAA)'!U19,'AirNav Opex (IAA+10% SUs)'!U19) -> 65.98378378
E46: ='AirNav Opex (IAA)'!C20 -> Data Assistant | F46: # | J46: =CHOOSE($T$2,'AirNav Opex (IAA-10% SUs)'!Q20,'AirNav Opex (IAA)'!Q20,'AirNav Opex (IAA+10% SUs)'!Q20) -> 47.5 | K46: =CHOOSE($T$2,'AirNav Opex (IAA-10% SUs)'!R20,'AirNav Opex (IAA)'!R20,'AirNav Opex (IAA+10% SUs)'!R20) -> 47.5 | L46: =CHOOSE($T$2,'AirNav Opex (IAA-10% SUs)'!S20,'AirNav Opex (IAA)'!S20,'AirNav Opex (IAA+10% SUs)'!S20) -> 47.5 | M46: =CHOOSE($T$2,'AirNav Opex (IAA-10% SUs)'!T20,'AirNav Opex (IAA)'!T20,'AirNav Opex (IAA+10% SUs)'!T20) -> 47.5 | N46: =CHOOSE($T$2,'AirNav Opex (IAA-10% SUs)'!U20,'AirNav Opex (IAA)'!U20,'AirNav Opex (IAA+10% SUs)'!U20) -> 47.5
E47: ='AirNav Opex (IAA)'!C21 -> Engineer | F47: # | J47: =CHOOSE($T$2,'AirNav Opex (IAA-10% SUs)'!Q21,'AirNav Opex (IAA)'!Q21,'AirNav Opex (IAA+10% SUs)'!Q21) -> 115.756046 | K47: =CHOOSE($T$2,'AirNav Opex (IAA-10% SUs)'!R21,'AirNav Opex (IAA)'!R21,'AirNav Opex (IAA+10% SUs)'!R21) -> 116.5965982 | L47: =CHOOSE($T$2,'AirNav Opex (IAA-10% SUs)'!S21,'AirNav Opex (IAA)'!S21,'AirNav Opex (IAA+10% SUs)'!S21) -> 117.370749 | M47: =CHOOSE($T$2,'AirNav Opex (IAA-10% SUs)'!T21,'AirNav Opex (IAA)'!T21,'AirNav Opex (IAA+10% SUs)'!T21) -> 118.2994139 | N47: =CHOOSE($T$2,'AirNav Opex (IAA-10% SUs)'!U21,'AirNav Opex (IAA)'!U21,'AirNav Opex (IAA+10% SUs)'!U21) -> 118.9993649
E48: ='AirNav Opex (IAA)'!C22 -> Op Mgt Supp | F48: # | J48: =CHOOSE($T$2,'AirNav Opex (IAA-10% SUs)'!Q22,'AirNav Opex (IAA)'!Q22,'AirNav Opex (IAA+10% SUs)'!Q22) -> 77 | K48: =CHOOSE($T$2,'AirNav Opex (IAA-10% SUs)'!R22,'AirNav Opex (IAA)'!R22,'AirNav Opex (IAA+10% SUs)'!R22) -> 79 | L48: =CHOOSE($T$2,'AirNav Opex (IAA-10% SUs)'!S22,'AirNav Opex (IAA)'!S22,'AirNav Opex (IAA+10% SUs)'!S22) -> 82 | M48: =CHOOSE($T$2,'AirNav Opex (IAA-10% SUs)'!T22,'AirNav Opex (IAA)'!T22,'AirNav Opex (IAA+10% SUs)'!T22) -> 83 | N48: =CHOOSE($T$2,'AirNav Opex (IAA-10% SUs)'!U22,'AirNav Opex (IAA)'!U22,'AirNav Opex (IAA+10% SUs)'!U22) -> 83
E49: ='AirNav Opex (IAA)'!C23 -> FMP/AMC | J49: =CHOOSE($T$2,'AirNav Opex (IAA-10% SUs)'!Q23,'AirNav Opex (IAA)'!Q23,'AirNav Opex (IAA+10% SUs)'!Q23) -> 5 | K49: =CHOOSE($T$2,'AirNav Opex (IAA-10% SUs)'!R23,'AirNav Opex (IAA)'!R23,'AirNav Opex (IAA+10% SUs)'!R23) -> 10 | L49: =CHOOSE($T$2,'AirNav Opex (IAA-10% SUs)'!S23,'AirNav Opex (IAA)'!S23,'AirNav Opex (IAA+10% SUs)'!S23) -> 10 | M49: =CHOOSE($T$2,'AirNav Opex (IAA-10% SUs)'!T23,'AirNav Opex (IAA)'!T23,'AirNav Opex (IAA+10% SUs)'!T23) -> 10 | N49: =CHOOSE($T$2,'AirNav Opex (IAA-10% SUs)'!U23,'AirNav Opex (IAA)'!U23,'AirNav Opex (IAA+10% SUs)'!U23) -> 10
D50: Unit Cost
E51: =E44 -> ATCOs | F51: € | J51: =1000*J58/J44 -> 159488.556 | K51: 161605.5661 | L51: 163688.5757 | M51: 164668.6112 | N51: 167544.8995
E52: =E45 -> Corp Serv | F52: € | J52: 109519.6653 | K52: 114293.4869 | L52: 118005.3191 | M52: 122039.6841 | N52: 126326.891
E53: Data Assistant | F53: € | J53: 70187.87379 | K53: 73186.13462 | L53: 75523.48298 | M53: 78043.35039 | N53: 80740.04419
E54: Engineer | F54: € | J54: 130477.1726 | K54: 136227.1372 | L54: 140701.3405 | M54: 145576.6982 | N54: 150759.8837
E55: Op Mgt Supp | F55: € | J55: 137771.811 | K55: 143777.1073 | L55: 148446.4591 | M55: 153521.5456 | N55: 158914.698
E56: FMP/AMC | J56: 70188.01747 | K56: 73186.28443 | L56: 75523.63757 | M56: 78043.51015 | N56: 80740.20946
D57: Total Cost
E58: =E44 -> ATCOs | F58: €'000 | J58: =CHOOSE($T$2,'AirNav Opex (IAA-10% SUs)'!Q32,'AirNav Opex (IAA)'!Q32,'AirNav Opex (IAA+10% SUs)'!Q32)*J$5/100 -> 52041.86274 | K58: =CHOOSE($T$2,'AirNav Opex (IAA-10% SUs)'!R32,'AirNav Opex (IAA)'!R32,'AirNav Opex (IAA+10% SUs)'!R32)*K$5/100 -> 55371.72794 | L58: =CHOOSE($T$2,'AirNav Opex (IAA-10% SUs)'!S32,'AirNav Opex (IAA)'!S32,'AirNav Opex (IAA+10% SUs)'!S32)*L$5/100 -> 56920.78101 | M58: =CHOOSE($T$2,'AirNav Opex (IAA-10% SUs)'!T32,'AirNav Opex (IAA)'!T32,'AirNav Opex (IAA+10% SUs)'!T32)*M$5/100 -> 59446.46696 | N58: =CHOOSE($T$2,'AirNav Opex (IAA-10% SUs)'!U32,'AirNav Opex (IAA)'!U32,'AirNav Opex (IAA+10% SUs)'!U32)*N$5/100 -> 60997.83866
E59: =E45 -> Corp Serv | F59: €'000 | J59: =CHOOSE($T$2,'AirNav Opex (IAA-10% SUs)'!Q33,'AirNav Opex (IAA)'!Q33,'AirNav Opex (IAA+10% SUs)'!Q33)*J$5/100 -> 7067.274405 | K59: =CHOOSE($T$2,'AirNav Opex (IAA-10% SUs)'!R33,'AirNav Opex (IAA)'!R33,'AirNav Opex (IAA+10% SUs)'!R33)*K$5/100 -> 7514.127476 | L59: =CHOOSE($T$2,'AirNav Opex (IAA-10% SUs)'!S33,'AirNav Opex (IAA)'!S33,'AirNav Opex (IAA+10% SUs)'!S33)*L$5/100 -> 7769.321375 | M59: =CHOOSE($T$2,'AirNav Opex (IAA-10% SUs)'!T33,'AirNav Opex (IAA)'!T33,'AirNav Opex (IAA+10% SUs)'!T33)*M$5/100 -> 8044.174316 | N59: =CHOOSE($T$2,'AirNav Opex (IAA-10% SUs)'!U33,'AirNav Opex (IAA)'!U33,'AirNav Opex (IAA+10% SUs)'!U33)*N$5/100 -> 8335.526259
E60: Data Assistant | F60: €'000 | J60: =CHOOSE($T$2,'AirNav Opex (IAA-10% SUs)'!Q34,'AirNav Opex (IAA)'!Q34,'AirNav Opex (IAA+10% SUs)'!Q34)*J$5/100 -> 3333.924005 | K60: =CHOOSE($T$2,'AirNav Opex (IAA-10% SUs)'!R34,'AirNav Opex (IAA)'!R34,'AirNav Opex (IAA+10% SUs)'!R34)*K$5/100 -> 3476.341394 | L60: =CHOOSE($T$2,'AirNav Opex (IAA-10% SUs)'!S34,'AirNav Opex (IAA)'!S34,'AirNav Opex (IAA+10% SUs)'!S34)*L$5/100 -> 3587.365441 | M60: =CHOOSE($T$2,'AirNav Opex (IAA-10% SUs)'!T34,'AirNav Opex (IAA)'!T34,'AirNav Opex (IAA+10% SUs)'!T34)*M$5/100 -> 3707.059144 | N60: =CHOOSE($T$2,'AirNav Opex (IAA-10% SUs)'!U34,'AirNav Opex (IAA)'!U34,'AirNav Opex (IAA+10% SUs)'!U34)*N$5/100 -> 3835.152099
E61: Engineer | F61: €'000 | J61: =CHOOSE($T$2,'AirNav Opex (IAA-10% SUs)'!Q35,'AirNav Opex (IAA)'!Q35,'AirNav Opex (IAA+10% SUs)'!Q35)*J$5/100 -> 15103.52159 | K61: =CHOOSE($T$2,'AirNav Opex (IAA-10% SUs)'!R35,'AirNav Opex (IAA)'!R35,'AirNav Opex (IAA+10% SUs)'!R35)*K$5/100 -> 15883.62078 | L61: =CHOOSE($T$2,'AirNav Opex (IAA-10% SUs)'!S35,'AirNav Opex (IAA)'!S35,'AirNav Opex (IAA+10% SUs)'!S35)*L$5/100 -> 16514.22172 | M61: =CHOOSE($T$2,'AirNav Opex (IAA-10% SUs)'!T35,'AirNav Opex (IAA)'!T35,'AirNav Opex (IAA+10% SUs)'!T35)*M$5/100 -> 17221.63807 | N61: =CHOOSE($T$2,'AirNav Opex (IAA-10% SUs)'!U35,'AirNav Opex (IAA)'!U35,'AirNav Opex (IAA+10% SUs)'!U35)*N$5/100 -> 17940.33041
E62: Op Mgt Supp | F62: €'000 | J62: =CHOOSE($T$2,'AirNav Opex (IAA-10% SUs)'!Q36,'AirNav Opex (IAA)'!Q36,'AirNav Opex (IAA+10% SUs)'!Q36)*J$5/100 -> 10608.42945 | K62: =CHOOSE($T$2,'AirNav Opex (IAA-10% SUs)'!R36,'AirNav Opex (IAA)'!R36,'AirNav Opex (IAA+10% SUs)'!R36)*K$5/100 -> 11358.39148 | L62: =CHOOSE($T$2,'AirNav Opex (IAA-10% SUs)'!S36,'AirNav Opex (IAA)'!S36,'AirNav Opex (IAA+10% SUs)'!S36)*L$5/100 -> 12172.60965 | M62: =CHOOSE($T$2,'AirNav Opex (IAA-10% SUs)'!T36,'AirNav Opex (IAA)'!T36,'AirNav Opex (IAA+10% SUs)'!T36)*M$5/100 -> 12742.28829 | N62: =CHOOSE($T$2,'AirNav Opex (IAA-10% SUs)'!U36,'AirNav Opex (IAA)'!U36,'AirNav Opex (IAA+10% SUs)'!U36)*N$5/100 -> 13189.91994
E63: FMP/AMC | F63: €'000 | J63: =CHOOSE($T$2,'AirNav Opex (IAA-10% SUs)'!Q37,'AirNav Opex (IAA)'!Q37,'AirNav Opex (IAA+10% SUs)'!Q37)*J$5/100 -> 350.9400874 | K63: =CHOOSE($T$2,'AirNav Opex (IAA-10% SUs)'!R37,'AirNav Opex (IAA)'!R37,'AirNav Opex (IAA+10% SUs)'!R37)*K$5/100 -> 731.8628443 | L63: =CHOOSE($T$2,'AirNav Opex (IAA-10% SUs)'!S37,'AirNav Opex (IAA)'!S37,'AirNav Opex (IAA+10% SUs)'!S37)*L$5/100 -> 755.2363757 | M63: =CHOOSE($T$2,'AirNav Opex (IAA-10% SUs)'!T37,'AirNav Opex (IAA)'!T37,'AirNav Opex (IAA+10% SUs)'!T37)*M$5/100 -> 780.4351015 | N63: =CHOOSE($T$2,'AirNav Opex (IAA-10% SUs)'!U37,'AirNav Opex (IAA)'!U37,'AirNav Opex (IAA+10% SUs)'!U37)*N$5/100 -> 807.4020946
F64: €'000
A66: =(SUMPRODUCT($J$5:$N$5,'AirNav Opex (IAA)'!Q43:U43)/100)-SUM(J66:N66) -> 36016.97457 | E66: Total | F66: €'000 | J66: =SUM(J58:J64) -> 88505.95228 | K66: =SUM(K58:K64) -> 94336.07191 | L66: 97719.53557 | M66: 101942.0619 | N66: 105106.1695
C69: Staff Comparison (Note: IAA Staff Cost Forecasts exclude overtime)
D71: FTEs
E72: =E44 -> ATCOs | F72: # | J72: =J44-J17 -> -1.695316892 | K72: 2.635029816 | L72: -4.261736837 | M72: -1.993330137 | N72: -9.931390129
E73: Corp Serv | F73: # | J73: -1.47027027 | K73: -3.255855856 | L73: -3.161261261 | M73: -3.085585586 | N73: -3.016216216
E74: Data Assistant | F74: # | J74: -0.5 | K74: -0.5 | L74: -0.5 | M74: -0.5 | N74: -0.5
E75: Engineer | F75: # | J75: 1.756045963 | K75: -9.403401836 | L75: -8.629250981 | M75: -7.700586145 | N75: -7.000635127
E76: Op Mgt Supp | F76: # | J76: 0 | K76: 0 | L76: 0 | M76: 0 | N76: 0
E77: FMP/AMC | J77: 0 | K77: 0 | L77: 0 | M77: 0 | N77: 0
D78: Unit Cost
E79: =E51 -> ATCOs | F79: € | J79: =J51-J24 -> 159488.556 | K79: 161605.5661 | L79: 163688.5757 | M79: 164668.6112 | N79: 167544.8995
E80: Corp Serv | F80: € | J80: 109519.6653 | K80: 114293.4869 | L80: 118005.3191 | M80: 122039.6841 | N80: 126326.891
E81: Data Assistant | F81: € | J81: 70187.87379 | K81: 73186.13462 | L81: 75523.48298 | M81: 78043.35039 | N81: 80740.04419
E82: Engineer | F82: € | J82: 130477.1726 | K82: 136227.1372 | L82: 140701.3405 | M82: 145576.6982 | N82: 150759.8837
E83: Op Mgt Supp | F83: € | J83: 137771.811 | K83: 143777.1073 | L83: 148446.4591 | M83: 153521.5456 | N83: 158914.698
E84: FMP/AMC | J84: 70188.01747 | K84: 73186.28443 | L84: 75523.63757 | M84: 78043.51015 | N84: 80740.20946
D85: Total Cost
E86: =E58 -> ATCOs | F86: €'000 | J86: =J58-J31 -> 52041.86274 | K86: 55371.72794 | L86: 56920.78101 | M86: 59446.46696 | N86: 60997.83866
E87: Corp Serv | F87: €'000 | J87: 7067.274405 | K87: 7514.127476 | L87: 7769.321375 | M87: 8044.174316 | N87: 8335.526259
E88: Data Assistant | F88: €'000 | J88: 3333.924005 | K88: 3476.341394 | L88: 3587.365441 | M88: 3707.059144 | N88: 3835.152099
E89: Engineer | F89: €'000 | J89: 15103.52159 | K89: 15883.62078 | L89: 16514.22172 | M89: 17221.63807 | N89: 17940.33041
E90: Op Mgt Supp | F90: €'000 | J90: 10608.42945 | K90: 11358.39148 | L90: 12172.60965 | M90: 12742.28829 | N90: 13189.91994
E91: FMP/AMC | F91: €'000 | J91: 350.9400874 | K91: 731.8628443 | L91: 755.2363757 | M91: 780.4351015 | N91: 807.4020946
F92: €'000 | J92: 0 | K92: 0 | L92: 0 | M92: 0 | N92: 0
E94: Total Difference | F94: €'000 | J94: =J66-J39 -> 345.6899594 | K94: =K66-K39 -> -3874.395634 | L94: =L66-L39 -> -7306.861842 | M94: =M66-M39 -> -7621.685914 | N94: =N66-N39 -> -10566.62279
E96: Total % Difference | F96: % | J96: =J94/J39 -> 0.003921153934 | K96: =K94/K39 -> -0.03944992556 | L96: =L94/L39 -> -0.06957166981 | M96: =M94/M39 -> -0.06956393943 | N96: =N94/N39 -> -0.09134924976
C99: AirNav Other Opex
D100: 1 | E100: =IFERROR(INDEX('AirNav Opex'!$G$106:$G$137,MATCH(D100,'AirNav Opex'!$H$106:$H$137,0)),"") -> Admin&Other | F100: =IF(E100="","","€'000") -> €'000 | J100: =SUMIFS('AirNav Opex'!Q$106:Q$137,'AirNav Opex'!$G$106:$G$137,$E100)*(J$5/100) -> 8681.437874 | K100: =SUMIFS('AirNav Opex'!R$106:R$137,'AirNav Opex'!$G$106:$G$137,$E100)*(K$5/100) -> 8801.428338 | L100: =SUMIFS('AirNav Opex'!S$106:S$137,'AirNav Opex'!$G$106:$G$137,$E100)*(L$5/100) -> 8951.662513 | M100: =SUMIFS('AirNav Opex'!T$106:T$137,'AirNav Opex'!$G$106:$G$137,$E100)*(M$5/100) -> 9116.948275 | N100: =SUMIFS('AirNav Opex'!U$106:U$137,'AirNav Opex'!$G$106:$G$137,$E100)*(N$5/100) -> 9296.178612
D101: =D100+1 -> 2 | E101: =IFERROR(INDEX('AirNav Opex'!$G$106:$G$137,MATCH(D101,'AirNav Opex'!$H$106:$H$137,0)),"") -> Training (Redacted) | F101: =IF(E101="","","€'000") -> €'000 | J101: =SUMIFS('AirNav Opex'!Q$106:Q$137,'AirNav Opex'!$G$106:$G$137,$E101)*(J$5/100) -> 0 | K101: =SUMIFS('AirNav Opex'!R$106:R$137,'AirNav Opex'!$G$106:$G$137,$E101)*(K$5/100) -> 0 | L101: =SUMIFS('AirNav Opex'!S$106:S$137,'AirNav Opex'!$G$106:$G$137,$E101)*(L$5/100) -> 0 | M101: =SUMIFS('AirNav Opex'!T$106:T$137,'AirNav Opex'!$G$106:$G$137,$E101)*(M$5/100) -> 0 | N101: =SUMIFS('AirNav Opex'!U$106:U$137,'AirNav Opex'!$G$106:$G$137,$E101)*(N$5/100) -> 0
D102: 3 | E102: =IFERROR(INDEX('AirNav Opex'!$G$106:$G$137,MATCH(D102,'AirNav Opex'!$H$106:$H$137,0)),"") -> Telecoms (Redacted) | F102: €'000 | J102: =SUMIFS('AirNav Opex'!Q$106:Q$137,'AirNav Opex'!$G$106:$G$137,$E102)*(J$5/100) -> 0 | K102: =SUMIFS('AirNav Opex'!R$106:R$137,'AirNav Opex'!$G$106:$G$137,$E102)*(K$5/100) -> 0 | L102: =SUMIFS('AirNav Opex'!S$106:S$137,'AirNav Opex'!$G$106:$G$137,$E102)*(L$5/100) -> 0 | M102: =SUMIFS('AirNav Opex'!T$106:T$137,'AirNav Opex'!$G$106:$G$137,$E102)*(M$5/100) -> 0 | N102: =SUMIFS('AirNav Opex'!U$106:U$137,'AirNav Opex'!$G$106:$G$137,$E102)*(N$5/100) -> 0
D103: 4 | E103: =IFERROR(INDEX('AirNav Opex'!$G$106:$G$137,MATCH(D103,'AirNav Opex'!$H$106:$H$137,0)),"") -> Operational | F103: €'000 | J103: =SUMIFS('AirNav Opex'!Q$106:Q$137,'AirNav Opex'!$G$106:$G$137,$E103)*(J$5/100) -> 10631.28534 | K103: =SUMIFS('AirNav Opex'!R$106:R$137,'AirNav Opex'!$G$106:$G$137,$E103)*(K$5/100) -> 11680.3899 | L103: =SUMIFS('AirNav Opex'!S$106:S$137,'AirNav Opex'!$G$106:$G$137,$E103)*(L$5/100) -> 12728.53142 | M103: =SUMIFS('AirNav Opex'!T$106:T$137,'AirNav Opex'!$G$106:$G$137,$E103)*(M$5/100) -> 12302.55365 | N103: =SUMIFS('AirNav Opex'!U$106:U$137,'AirNav Opex'!$G$106:$G$137,$E103)*(N$5/100) -> 12895.90581
D104: 5 | E104: =IFERROR(INDEX('AirNav Opex'!$G$106:$G$137,MATCH(D104,'AirNav Opex'!$H$106:$H$137,0)),"") -> Operational (Redacted( | F104: €'000 | J104: =SUMIFS('AirNav Opex'!Q$106:Q$137,'AirNav Opex'!$G$106:$G$137,$E104)*(J$5/100) -> 0 | K104: =SUMIFS('AirNav Opex'!R$106:R$137,'AirNav Opex'!$G$106:$G$137,$E104)*(K$5/100) -> 0 | L104: =SUMIFS('AirNav Opex'!S$106:S$137,'AirNav Opex'!$G$106:$G$137,$E104)*(L$5/100) -> 0 | M104: =SUMIFS('AirNav Opex'!T$106:T$137,'AirNav Opex'!$G$106:$G$137,$E104)*(M$5/100) -> 0 | N104: =SUMIFS('AirNav Opex'!U$106:U$137,'AirNav Opex'!$G$106:$G$137,$E104)*(N$5/100) -> 0
D105: 6 | E105: =IFERROR(INDEX('AirNav Opex'!$G$106:$G$137,MATCH(D105,'AirNav Opex'!$H$106:$H$137,0)),"") -> Rent & Rates | F105: €'000 | J105: =SUMIFS('AirNav Opex'!Q$106:Q$137,'AirNav Opex'!$G$106:$G$137,$E105)*(J$5/100) -> 3417.392837 | K105: =SUMIFS('AirNav Opex'!R$106:R$137,'AirNav Opex'!$G$106:$G$137,$E105)*(K$5/100) -> 3475.294226 | L105: =SUMIFS('AirNav Opex'!S$106:S$137,'AirNav Opex'!$G$106:$G$137,$E105)*(L$5/100) -> 3531.894963 | M105: =SUMIFS('AirNav Opex'!T$106:T$137,'AirNav Opex'!$G$106:$G$137,$E105)*(M$5/100) -> 3601.417939 | N105: =SUMIFS('AirNav Opex'!U$106:U$137,'AirNav Opex'!$G$106:$G$137,$E105)*(N$5/100) -> 3675.695466
D106: 7 | E106: =IFERROR(INDEX('AirNav Opex'!$G$106:$G$137,MATCH(D106,'AirNav Opex'!$H$106:$H$137,0)),"") -> Computing | F106: €'000 | J106: =SUMIFS('AirNav Opex'!Q$106:Q$137,'AirNav Opex'!$G$106:$G$137,$E106)*(J$5/100) -> 4041.995787 | K106: =SUMIFS('AirNav Opex'!R$106:R$137,'AirNav Opex'!$G$106:$G$137,$E106)*(K$5/100) -> 4145.616309 | L106: =SUMIFS('AirNav Opex'!S$106:S$137,'AirNav Opex'!$G$106:$G$137,$E106)*(L$5/100) -> 4254.455721 | M106: =SUMIFS('AirNav Opex'!T$106:T$137,'AirNav Opex'!$G$106:$G$137,$E106)*(M$5/100) -> 4374.623126 | N106: =SUMIFS('AirNav Opex'!U$106:U$137,'AirNav Opex'!$G$106:$G$137,$E106)*(N$5/100) -> 4499.658996
D107: 8 | E107: =IFERROR(INDEX('AirNav Opex'!$G$106:$G$137,MATCH(D107,'AirNav Opex'!$H$106:$H$137,0)),"") -> Consultancy | F107: €'000 | J107: =SUMIFS('AirNav Opex'!Q$106:Q$137,'AirNav Opex'!$G$106:$G$137,$E107)*(J$5/100) -> 1942.243609 | K107: =SUMIFS('AirNav Opex'!R$106:R$137,'AirNav Opex'!$G$106:$G$137,$E107)*(K$5/100) -> 1974.523697 | L107: =SUMIFS('AirNav Opex'!S$106:S$137,'AirNav Opex'!$G$106:$G$137,$E107)*(L$5/100) -> 2009.235824 | M107: =SUMIFS('AirNav Opex'!T$106:T$137,'AirNav Opex'!$G$106:$G$137,$E107)*(M$5/100) -> 2048.134629 | N107: =SUMIFS('AirNav Opex'!U$106:U$137,'AirNav Opex'!$G$106:$G$137,$E107)*(N$5/100) -> 2089.711762
D108: 9 | E108: =IFERROR(INDEX('AirNav Opex'!$G$106:$G$137,MATCH(D108,'AirNav Opex'!$H$106:$H$137,0)),"") -> Insurance (Redacted) | F108: €'000 | J108: =SUMIFS('AirNav Opex'!Q$106:Q$137,'AirNav Opex'!$G$106:$G$137,$E108)*(J$5/100) -> 0 | K108: =SUMIFS('AirNav Opex'!R$106:R$137,'AirNav Opex'!$G$106:$G$137,$E108)*(K$5/100) -> 0 | L108: =SUMIFS('AirNav Opex'!S$106:S$137,'AirNav Opex'!$G$106:$G$137,$E108)*(L$5/100) -> 0 | M108: =SUMIFS('AirNav Opex'!T$106:T$137,'AirNav Opex'!$G$106:$G$137,$E108)*(M$5/100) -> 0 | N108: =SUMIFS('AirNav Opex'!U$106:U$137,'AirNav Opex'!$G$106:$G$137,$E108)*(N$5/100) -> 0
D109: 10 | E109: =IFERROR(INDEX('AirNav Opex'!$G$106:$G$137,MATCH(D109,'AirNav Opex'!$H$106:$H$137,0)),"") -> Building Repairs | F109: €'000 | J109: =SUMIFS('AirNav Opex'!Q$106:Q$137,'AirNav Opex'!$G$106:$G$137,$E109)*(J$5/100) -> 2162.755607 | K109: =SUMIFS('AirNav Opex'!R$106:R$137,'AirNav Opex'!$G$106:$G$137,$E109)*(K$5/100) -> 2057.347678 | L109: =SUMIFS('AirNav Opex'!S$106:S$137,'AirNav Opex'!$G$106:$G$137,$E109)*(L$5/100) -> 2145.207599 | M109: =SUMIFS('AirNav Opex'!T$106:T$137,'AirNav Opex'!$G$106:$G$137,$E109)*(M$5/100) -> 2240.576809 | N109: =SUMIFS('AirNav Opex'!U$106:U$137,'AirNav Opex'!$G$106:$G$137,$E109)*(N$5/100) -> 2342.160163
D110: 11 | E110: =IFERROR(INDEX('AirNav Opex'!$G$106:$G$137,MATCH(D110,'AirNav Opex'!$H$106:$H$137,0)),"") -> Security (Redacted) | F110: €'000 | J110: =SUMIFS('AirNav Opex'!Q$106:Q$137,'AirNav Opex'!$G$106:$G$137,$E110)*(J$5/100) -> 0 | K110: =SUMIFS('AirNav Opex'!R$106:R$137,'AirNav Opex'!$G$106:$G$137,$E110)*(K$5/100) -> 0 | L110: =SUMIFS('AirNav Opex'!S$106:S$137,'AirNav Opex'!$G$106:$G$137,$E110)*(L$5/100) -> 0 | M110: =SUMIFS('AirNav Opex'!T$106:T$137,'AirNav Opex'!$G$106:$G$137,$E110)*(M$5/100) -> 0 | N110: =SUMIFS('AirNav Opex'!U$106:U$137,'AirNav Opex'!$G$106:$G$137,$E110)*(N$5/100) -> 0
D111: 12 | E111: =IFERROR(INDEX('AirNav Opex'!$G$106:$G$137,MATCH(D111,'AirNav Opex'!$H$106:$H$137,0)),"") -> Redacted | F111: €'000 | J111: =SUMIFS('AirNav Opex'!Q$106:Q$137,'AirNav Opex'!$G$106:$G$137,$E111)*(J$5/100) -> 19339.87987 | K111: =SUMIFS('AirNav Opex'!R$106:R$137,'AirNav Opex'!$G$106:$G$137,$E111)*(K$5/100) -> 22474.01105 | L111: =SUMIFS('AirNav Opex'!S$106:S$137,'AirNav Opex'!$G$106:$G$137,$E111)*(L$5/100) -> 20272.15563 | M111: =SUMIFS('AirNav Opex'!T$106:T$137,'AirNav Opex'!$G$106:$G$137,$E111)*(M$5/100) -> 21409.19252 | N111: =SUMIFS('AirNav Opex'!U$106:U$137,'AirNav Opex'!$G$106:$G$137,$E111)*(N$5/100) -> 24576.31932
D112: 13 | E112: =IFERROR(INDEX('AirNav Opex'!$G$106:$G$137,MATCH(D112,'AirNav Opex'!$H$106:$H$137,0)),"") ->  | J112: =SUMIFS('AirNav Opex'!Q$106:Q$137,'AirNav Opex'!$G$106:$G$137,$E112)*(J$5/100) -> 0 | K112: =SUMIFS('AirNav Opex'!R$106:R$137,'AirNav Opex'!$G$106:$G$137,$E112)*(K$5/100) -> 0 | L112: =SUMIFS('AirNav Opex'!S$106:S$137,'AirNav Opex'!$G$106:$G$137,$E112)*(L$5/100) -> 0 | M112: =SUMIFS('AirNav Opex'!T$106:T$137,'AirNav Opex'!$G$106:$G$137,$E112)*(M$5/100) -> 0 | N112: =SUMIFS('AirNav Opex'!U$106:U$137,'AirNav Opex'!$G$106:$G$137,$E112)*(N$5/100) -> 0
D113: 14 | E113: =IFERROR(INDEX('AirNav Opex'!$G$106:$G$137,MATCH(D113,'AirNav Opex'!$H$106:$H$137,0)),"") ->  | J113: =SUMIFS('AirNav Opex'!Q$106:Q$137,'AirNav Opex'!$G$106:$G$137,$E113)*(J$5/100) -> 0 | K113: =SUMIFS('AirNav Opex'!R$106:R$137,'AirNav Opex'!$G$106:$G$137,$E113)*(K$5/100) -> 0 | L113: =SUMIFS('AirNav Opex'!S$106:S$137,'AirNav Opex'!$G$106:$G$137,$E113)*(L$5/100) -> 0 | M113: =SUMIFS('AirNav Opex'!T$106:T$137,'AirNav Opex'!$G$106:$G$137,$E113)*(M$5/100) -> 0 | N113: =SUMIFS('AirNav Opex'!U$106:U$137,'AirNav Opex'!$G$106:$G$137,$E113)*(N$5/100) -> 0
D114: 15 | E114: =IFERROR(INDEX('AirNav Opex'!$G$106:$G$137,MATCH(D114,'AirNav Opex'!$H$106:$H$137,0)),"") -> 
A116: =(SUMPRODUCT($J$5:$N$5,'AirNav Opex'!$Q$139:$U$139)/100)-SUM(J116:N116) -> 0 | E116: Total | F116: €'000 | J116: =SUM(J100:J113) -> 50216.99093 | K116: =SUM(K100:K113) -> 54608.6112 | L116: =SUM(L100:L113) -> 53893.14367 | M116: =SUM(M100:M113) -> 55093.44695 | N116: =SUM(N100:N113) -> 59375.63013
C119: IAA Other Opex
D120: 1 | E120: =IFERROR(INDEX('AirNav Opex'!$G$106:$G$137,MATCH(D120,'AirNav Opex'!$H$106:$H$137,0)),"") -> Admin&Other | F120: =IF(E120="","","€'000") -> €'000 | J120: =CHOOSE($T$2,SUMIFS('AirNav Opex (IAA-10% SUs)'!Q$108:Q$139,'AirNav Opex (IAA-10% SUs)'!$G$108:$G$139,$E120),SUMIFS('AirNav Opex (IAA)'!Q$108:Q$139,'AirNav Opex (IAA)'!$G$108:$G$139,$E120),SUMIFS('AirNav Opex (IAA+10% SUs)'!Q$108:Q$139,'AirNav Opex (IAA+10% SUs)'!$G$108:$G$139,$E120))*(J$5/100) -> 7686.472756 | K120: =CHOOSE($T$2,SUMIFS('AirNav Opex (IAA-10% SUs)'!R$108:R$139,'AirNav Opex (IAA-10% SUs)'!$G$108:$G$139,$E120),SUMIFS('AirNav Opex (IAA)'!R$108:R$139,'AirNav Opex (IAA)'!$G$108:$G$139,$E120),SUMIFS('AirNav Opex (IAA+10% SUs)'!R$108:R$139,'AirNav Opex (IAA+10% SUs)'!$G$108:$G$139,$E120))*(K$5/100) -> 7858.612107 | L120: =CHOOSE($T$2,SUMIFS('AirNav Opex (IAA-10% SUs)'!S$108:S$139,'AirNav Opex (IAA-10% SUs)'!$G$108:$G$139,$E120),SUMIFS('AirNav Opex (IAA)'!S$108:S$139,'AirNav Opex (IAA)'!$G$108:$G$139,$E120),SUMIFS('AirNav Opex (IAA+10% SUs)'!S$108:S$139,'AirNav Opex (IAA+10% SUs)'!$G$108:$G$139,$E120))*(L$5/100) -> 8019.433866 | M120: =CHOOSE($T$2,SUMIFS('AirNav Opex (IAA-10% SUs)'!T$108:T$139,'AirNav Opex (IAA-10% SUs)'!$G$108:$G$139,$E120),SUMIFS('AirNav Opex (IAA)'!T$108:T$139,'AirNav Opex (IAA)'!$G$108:$G$139,$E120),SUMIFS('AirNav Opex (IAA+10% SUs)'!T$108:T$139,'AirNav Opex (IAA+10% SUs)'!$G$108:$G$139,$E120))*(M$5/100) -> 8206.469209 | N120: =CHOOSE($T$2,SUMIFS('AirNav Opex (IAA-10% SUs)'!U$108:U$139,'AirNav Opex (IAA-10% SUs)'!$G$108:$G$139,$E120),SUMIFS('AirNav Opex (IAA)'!U$108:U$139,'AirNav Opex (IAA)'!$G$108:$G$139,$E120),SUMIFS('AirNav Opex (IAA+10% SUs)'!U$108:U$139,'AirNav Opex (IAA+10% SUs)'!$G$108:$G$139,$E120))*(N$5/100) -> 8388.344593
D121: =D120+1 -> 2 | E121: =IFERROR(INDEX('AirNav Opex'!$G$106:$G$137,MATCH(D121,'AirNav Opex'!$H$106:$H$137,0)),"") -> Training (Redacted) | F121: =IF(E121="","","€'000") -> €'000 | J121: =CHOOSE($T$2,SUMIFS('AirNav Opex (IAA-10% SUs)'!Q$108:Q$139,'AirNav Opex (IAA-10% SUs)'!$G$108:$G$139,$E121),SUMIFS('AirNav Opex (IAA)'!Q$108:Q$139,'AirNav Opex (IAA)'!$G$108:$G$139,$E121),SUMIFS('AirNav Opex (IAA+10% SUs)'!Q$108:Q$139,'AirNav Opex (IAA+10% SUs)'!$G$108:$G$139,$E121))*(J$5/100) -> 0 | K121: =CHOOSE($T$2,SUMIFS('AirNav Opex (IAA-10% SUs)'!R$108:R$139,'AirNav Opex (IAA-10% SUs)'!$G$108:$G$139,$E121),SUMIFS('AirNav Opex (IAA)'!R$108:R$139,'AirNav Opex (IAA)'!$G$108:$G$139,$E121),SUMIFS('AirNav Opex (IAA+10% SUs)'!R$108:R$139,'AirNav Opex (IAA+10% SUs)'!$G$108:$G$139,$E121))*(K$5/100) -> 0 | L121: =CHOOSE($T$2,SUMIFS('AirNav Opex (IAA-10% SUs)'!S$108:S$139,'AirNav Opex (IAA-10% SUs)'!$G$108:$G$139,$E121),SUMIFS('AirNav Opex (IAA)'!S$108:S$139,'AirNav Opex (IAA)'!$G$108:$G$139,$E121),SUMIFS('AirNav Opex (IAA+10% SUs)'!S$108:S$139,'AirNav Opex (IAA+10% SUs)'!$G$108:$G$139,$E121))*(L$5/100) -> 0 | M121: =CHOOSE($T$2,SUMIFS('AirNav Opex (IAA-10% SUs)'!T$108:T$139,'AirNav Opex (IAA-10% SUs)'!$G$108:$G$139,$E121),SUMIFS('AirNav Opex (IAA)'!T$108:T$139,'AirNav Opex (IAA)'!$G$108:$G$139,$E121),SUMIFS('AirNav Opex (IAA+10% SUs)'!T$108:T$139,'AirNav Opex (IAA+10% SUs)'!$G$108:$G$139,$E121))*(M$5/100) -> 0 | N121: =CHOOSE($T$2,SUMIFS('AirNav Opex (IAA-10% SUs)'!U$108:U$139,'AirNav Opex (IAA-10% SUs)'!$G$108:$G$139,$E121),SUMIFS('AirNav Opex (IAA)'!U$108:U$139,'AirNav Opex (IAA)'!$G$108:$G$139,$E121),SUMIFS('AirNav Opex (IAA+10% SUs)'!U$108:U$139,'AirNav Opex (IAA+10% SUs)'!$G$108:$G$139,$E121))*(N$5/100) -> 0
D122: 3 | E122: =IFERROR(INDEX('AirNav Opex'!$G$106:$G$137,MATCH(D122,'AirNav Opex'!$H$106:$H$137,0)),"") -> Telecoms (Redacted) | F122: €'000 | J122: =CHOOSE($T$2,SUMIFS('AirNav Opex (IAA-10% SUs)'!Q$108:Q$139,'AirNav Opex (IAA-10% SUs)'!$G$108:$G$139,$E122),SUMIFS('AirNav Opex (IAA)'!Q$108:Q$139,'AirNav Opex (IAA)'!$G$108:$G$139,$E122),SUMIFS('AirNav Opex (IAA+10% SUs)'!Q$108:Q$139,'AirNav Opex (IAA+10% SUs)'!$G$108:$G$139,$E122))*(J$5/100) -> 0 | K122: =CHOOSE($T$2,SUMIFS('AirNav Opex (IAA-10% SUs)'!R$108:R$139,'AirNav Opex (IAA-10% SUs)'!$G$108:$G$139,$E122),SUMIFS('AirNav Opex (IAA)'!R$108:R$139,'AirNav Opex (IAA)'!$G$108:$G$139,$E122),SUMIFS('AirNav Opex (IAA+10% SUs)'!R$108:R$139,'AirNav Opex (IAA+10% SUs)'!$G$108:$G$139,$E122))*(K$5/100) -> 0 | L122: =CHOOSE($T$2,SUMIFS('AirNav Opex (IAA-10% SUs)'!S$108:S$139,'AirNav Opex (IAA-10% SUs)'!$G$108:$G$139,$E122),SUMIFS('AirNav Opex (IAA)'!S$108:S$139,'AirNav Opex (IAA)'!$G$108:$G$139,$E122),SUMIFS('AirNav Opex (IAA+10% SUs)'!S$108:S$139,'AirNav Opex (IAA+10% SUs)'!$G$108:$G$139,$E122))*(L$5/100) -> 0 | M122: =CHOOSE($T$2,SUMIFS('AirNav Opex (IAA-10% SUs)'!T$108:T$139,'AirNav Opex (IAA-10% SUs)'!$G$108:$G$139,$E122),SUMIFS('AirNav Opex (IAA)'!T$108:T$139,'AirNav Opex (IAA)'!$G$108:$G$139,$E122),SUMIFS('AirNav Opex (IAA+10% SUs)'!T$108:T$139,'AirNav Opex (IAA+10% SUs)'!$G$108:$G$139,$E122))*(M$5/100) -> 0 | N122: =CHOOSE($T$2,SUMIFS('AirNav Opex (IAA-10% SUs)'!U$108:U$139,'AirNav Opex (IAA-10% SUs)'!$G$108:$G$139,$E122),SUMIFS('AirNav Opex (IAA)'!U$108:U$139,'AirNav Opex (IAA)'!$G$108:$G$139,$E122),SUMIFS('AirNav Opex (IAA+10% SUs)'!U$108:U$139,'AirNav Opex (IAA+10% SUs)'!$G$108:$G$139,$E122))*(N$5/100) -> 0
D123: 4 | E123: =IFERROR(INDEX('AirNav Opex'!$G$106:$G$137,MATCH(D123,'AirNav Opex'!$H$106:$H$137,0)),"") -> Operational | F123: €'000 | J123: =CHOOSE($T$2,SUMIFS('AirNav Opex (IAA-10% SUs)'!Q$108:Q$139,'AirNav Opex (IAA-10% SUs)'!$G$108:$G$139,$E123),SUMIFS('AirNav Opex (IAA)'!Q$108:Q$139,'AirNav Opex (IAA)'!$G$108:$G$139,$E123),SUMIFS('AirNav Opex (IAA+10% SUs)'!Q$108:Q$139,'AirNav Opex (IAA+10% SUs)'!$G$108:$G$139,$E123))*(J$5/100) -> 10331.68882 | K123: =CHOOSE($T$2,SUMIFS('AirNav Opex (IAA-10% SUs)'!R$108:R$139,'AirNav Opex (IAA-10% SUs)'!$G$108:$G$139,$E123),SUMIFS('AirNav Opex (IAA)'!R$108:R$139,'AirNav Opex (IAA)'!$G$108:$G$139,$E123),SUMIFS('AirNav Opex (IAA+10% SUs)'!R$108:R$139,'AirNav Opex (IAA+10% SUs)'!$G$108:$G$139,$E123))*(K$5/100) -> 11470.35555 | L123: =CHOOSE($T$2,SUMIFS('AirNav Opex (IAA-10% SUs)'!S$108:S$139,'AirNav Opex (IAA-10% SUs)'!$G$108:$G$139,$E123),SUMIFS('AirNav Opex (IAA)'!S$108:S$139,'AirNav Opex (IAA)'!$G$108:$G$139,$E123),SUMIFS('AirNav Opex (IAA+10% SUs)'!S$108:S$139,'AirNav Opex (IAA+10% SUs)'!$G$108:$G$139,$E123))*(L$5/100) -> 12511.73938 | M123: =CHOOSE($T$2,SUMIFS('AirNav Opex (IAA-10% SUs)'!T$108:T$139,'AirNav Opex (IAA-10% SUs)'!$G$108:$G$139,$E123),SUMIFS('AirNav Opex (IAA)'!T$108:T$139,'AirNav Opex (IAA)'!$G$108:$G$139,$E123),SUMIFS('AirNav Opex (IAA+10% SUs)'!T$108:T$139,'AirNav Opex (IAA+10% SUs)'!$G$108:$G$139,$E123))*(M$5/100) -> 11780.98675 | N123: =CHOOSE($T$2,SUMIFS('AirNav Opex (IAA-10% SUs)'!U$108:U$139,'AirNav Opex (IAA-10% SUs)'!$G$108:$G$139,$E123),SUMIFS('AirNav Opex (IAA)'!U$108:U$139,'AirNav Opex (IAA)'!$G$108:$G$139,$E123),SUMIFS('AirNav Opex (IAA+10% SUs)'!U$108:U$139,'AirNav Opex (IAA+10% SUs)'!$G$108:$G$139,$E123))*(N$5/100) -> 12171.55896
D124: 5 | E124: =IFERROR(INDEX('AirNav Opex'!$G$106:$G$137,MATCH(D124,'AirNav Opex'!$H$106:$H$137,0)),"") -> Operational (Redacted( | F124: €'000 | J124: =CHOOSE($T$2,SUMIFS('AirNav Opex (IAA-10% SUs)'!Q$108:Q$139,'AirNav Opex (IAA-10% SUs)'!$G$108:$G$139,$E124),SUMIFS('AirNav Opex (IAA)'!Q$108:Q$139,'AirNav Opex (IAA)'!$G$108:$G$139,$E124),SUMIFS('AirNav Opex (IAA+10% SUs)'!Q$108:Q$139,'AirNav Opex (IAA+10% SUs)'!$G$108:$G$139,$E124))*(J$5/100) -> 0 | K124: =CHOOSE($T$2,SUMIFS('AirNav Opex (IAA-10% SUs)'!R$108:R$139,'AirNav Opex (IAA-10% SUs)'!$G$108:$G$139,$E124),SUMIFS('AirNav Opex (IAA)'!R$108:R$139,'AirNav Opex (IAA)'!$G$108:$G$139,$E124),SUMIFS('AirNav Opex (IAA+10% SUs)'!R$108:R$139,'AirNav Opex (IAA+10% SUs)'!$G$108:$G$139,$E124))*(K$5/100) -> 0 | L124: =CHOOSE($T$2,SUMIFS('AirNav Opex (IAA-10% SUs)'!S$108:S$139,'AirNav Opex (IAA-10% SUs)'!$G$108:$G$139,$E124),SUMIFS('AirNav Opex (IAA)'!S$108:S$139,'AirNav Opex (IAA)'!$G$108:$G$139,$E124),SUMIFS('AirNav Opex (IAA+10% SUs)'!S$108:S$139,'AirNav Opex (IAA+10% SUs)'!$G$108:$G$139,$E124))*(L$5/100) -> 0 | M124: =CHOOSE($T$2,SUMIFS('AirNav Opex (IAA-10% SUs)'!T$108:T$139,'AirNav Opex (IAA-10% SUs)'!$G$108:$G$139,$E124),SUMIFS('AirNav Opex (IAA)'!T$108:T$139,'AirNav Opex (IAA)'!$G$108:$G$139,$E124),SUMIFS('AirNav Opex (IAA+10% SUs)'!T$108:T$139,'AirNav Opex (IAA+10% SUs)'!$G$108:$G$139,$E124))*(M$5/100) -> 0 | N124: =CHOOSE($T$2,SUMIFS('AirNav Opex (IAA-10% SUs)'!U$108:U$139,'AirNav Opex (IAA-10% SUs)'!$G$108:$G$139,$E124),SUMIFS('AirNav Opex (IAA)'!U$108:U$139,'AirNav Opex (IAA)'!$G$108:$G$139,$E124),SUMIFS('AirNav Opex (IAA+10% SUs)'!U$108:U$139,'AirNav Opex (IAA+10% SUs)'!$G$108:$G$139,$E124))*(N$5/100) -> 0
D125: 6 | E125: =IFERROR(INDEX('AirNav Opex'!$G$106:$G$137,MATCH(D125,'AirNav Opex'!$H$106:$H$137,0)),"") -> Rent & Rates | F125: €'000 | J125: =CHOOSE($T$2,SUMIFS('AirNav Opex (IAA-10% SUs)'!Q$108:Q$139,'AirNav Opex (IAA-10% SUs)'!$G$108:$G$139,$E125),SUMIFS('AirNav Opex (IAA)'!Q$108:Q$139,'AirNav Opex (IAA)'!$G$108:$G$139,$E125),SUMIFS('AirNav Opex (IAA+10% SUs)'!Q$108:Q$139,'AirNav Opex (IAA+10% SUs)'!$G$108:$G$139,$E125))*(J$5/100) -> 3417.392837 | K125: =CHOOSE($T$2,SUMIFS('AirNav Opex (IAA-10% SUs)'!R$108:R$139,'AirNav Opex (IAA-10% SUs)'!$G$108:$G$139,$E125),SUMIFS('AirNav Opex (IAA)'!R$108:R$139,'AirNav Opex (IAA)'!$G$108:$G$139,$E125),SUMIFS('AirNav Opex (IAA+10% SUs)'!R$108:R$139,'AirNav Opex (IAA+10% SUs)'!$G$108:$G$139,$E125))*(K$5/100) -> 3475.294226 | L125: =CHOOSE($T$2,SUMIFS('AirNav Opex (IAA-10% SUs)'!S$108:S$139,'AirNav Opex (IAA-10% SUs)'!$G$108:$G$139,$E125),SUMIFS('AirNav Opex (IAA)'!S$108:S$139,'AirNav Opex (IAA)'!$G$108:$G$139,$E125),SUMIFS('AirNav Opex (IAA+10% SUs)'!S$108:S$139,'AirNav Opex (IAA+10% SUs)'!$G$108:$G$139,$E125))*(L$5/100) -> 3531.894963 | M125: =CHOOSE($T$2,SUMIFS('AirNav Opex (IAA-10% SUs)'!T$108:T$139,'AirNav Opex (IAA-10% SUs)'!$G$108:$G$139,$E125),SUMIFS('AirNav Opex (IAA)'!T$108:T$139,'AirNav Opex (IAA)'!$G$108:$G$139,$E125),SUMIFS('AirNav Opex (IAA+10% SUs)'!T$108:T$139,'AirNav Opex (IAA+10% SUs)'!$G$108:$G$139,$E125))*(M$5/100) -> 3601.417939 | N125: =CHOOSE($T$2,SUMIFS('AirNav Opex (IAA-10% SUs)'!U$108:U$139,'AirNav Opex (IAA-10% SUs)'!$G$108:$G$139,$E125),SUMIFS('AirNav Opex (IAA)'!U$108:U$139,'AirNav Opex (IAA)'!$G$108:$G$139,$E125),SUMIFS('AirNav Opex (IAA+10% SUs)'!U$108:U$139,'AirNav Opex (IAA+10% SUs)'!$G$108:$G$139,$E125))*(N$5/100) -> 3675.695466
D126: 7 | E126: =IFERROR(INDEX('AirNav Opex'!$G$106:$G$137,MATCH(D126,'AirNav Opex'!$H$106:$H$137,0)),"") -> Computing | F126: €'000 | J126: =CHOOSE($T$2,SUMIFS('AirNav Opex (IAA-10% SUs)'!Q$108:Q$139,'AirNav Opex (IAA-10% SUs)'!$G$108:$G$139,$E126),SUMIFS('AirNav Opex (IAA)'!Q$108:Q$139,'AirNav Opex (IAA)'!$G$108:$G$139,$E126),SUMIFS('AirNav Opex (IAA+10% SUs)'!Q$108:Q$139,'AirNav Opex (IAA+10% SUs)'!$G$108:$G$139,$E126))*(J$5/100) -> 2875.645935 | K126: =CHOOSE($T$2,SUMIFS('AirNav Opex (IAA-10% SUs)'!R$108:R$139,'AirNav Opex (IAA-10% SUs)'!$G$108:$G$139,$E126),SUMIFS('AirNav Opex (IAA)'!R$108:R$139,'AirNav Opex (IAA)'!$G$108:$G$139,$E126),SUMIFS('AirNav Opex (IAA+10% SUs)'!R$108:R$139,'AirNav Opex (IAA+10% SUs)'!$G$108:$G$139,$E126))*(K$5/100) -> 2964.895817 | L126: =CHOOSE($T$2,SUMIFS('AirNav Opex (IAA-10% SUs)'!S$108:S$139,'AirNav Opex (IAA-10% SUs)'!$G$108:$G$139,$E126),SUMIFS('AirNav Opex (IAA)'!S$108:S$139,'AirNav Opex (IAA)'!$G$108:$G$139,$E126),SUMIFS('AirNav Opex (IAA+10% SUs)'!S$108:S$139,'AirNav Opex (IAA+10% SUs)'!$G$108:$G$139,$E126))*(L$5/100) -> 3059.802472 | M126: =CHOOSE($T$2,SUMIFS('AirNav Opex (IAA-10% SUs)'!T$108:T$139,'AirNav Opex (IAA-10% SUs)'!$G$108:$G$139,$E126),SUMIFS('AirNav Opex (IAA)'!T$108:T$139,'AirNav Opex (IAA)'!$G$108:$G$139,$E126),SUMIFS('AirNav Opex (IAA+10% SUs)'!T$108:T$139,'AirNav Opex (IAA+10% SUs)'!$G$108:$G$139,$E126))*(M$5/100) -> 3163.270893 | N126: =CHOOSE($T$2,SUMIFS('AirNav Opex (IAA-10% SUs)'!U$108:U$139,'AirNav Opex (IAA-10% SUs)'!$G$108:$G$139,$E126),SUMIFS('AirNav Opex (IAA)'!U$108:U$139,'AirNav Opex (IAA)'!$G$108:$G$139,$E126),SUMIFS('AirNav Opex (IAA+10% SUs)'!U$108:U$139,'AirNav Opex (IAA+10% SUs)'!$G$108:$G$139,$E126))*(N$5/100) -> 3273.253894
D127: 8 | E127: =IFERROR(INDEX('AirNav Opex'!$G$106:$G$137,MATCH(D127,'AirNav Opex'!$H$106:$H$137,0)),"") -> Consultancy | F127: €'000 | J127: =CHOOSE($T$2,SUMIFS('AirNav Opex (IAA-10% SUs)'!Q$108:Q$139,'AirNav Opex (IAA-10% SUs)'!$G$108:$G$139,$E127),SUMIFS('AirNav Opex (IAA)'!Q$108:Q$139,'AirNav Opex (IAA)'!$G$108:$G$139,$E127),SUMIFS('AirNav Opex (IAA+10% SUs)'!Q$108:Q$139,'AirNav Opex (IAA+10% SUs)'!$G$108:$G$139,$E127))*(J$5/100) -> 1036.194325 | K127: =CHOOSE($T$2,SUMIFS('AirNav Opex (IAA-10% SUs)'!R$108:R$139,'AirNav Opex (IAA-10% SUs)'!$G$108:$G$139,$E127),SUMIFS('AirNav Opex (IAA)'!R$108:R$139,'AirNav Opex (IAA)'!$G$108:$G$139,$E127),SUMIFS('AirNav Opex (IAA+10% SUs)'!R$108:R$139,'AirNav Opex (IAA+10% SUs)'!$G$108:$G$139,$E127))*(K$5/100) -> 1067.500362 | L127: =CHOOSE($T$2,SUMIFS('AirNav Opex (IAA-10% SUs)'!S$108:S$139,'AirNav Opex (IAA-10% SUs)'!$G$108:$G$139,$E127),SUMIFS('AirNav Opex (IAA)'!S$108:S$139,'AirNav Opex (IAA)'!$G$108:$G$139,$E127),SUMIFS('AirNav Opex (IAA+10% SUs)'!S$108:S$139,'AirNav Opex (IAA+10% SUs)'!$G$108:$G$139,$E127))*(L$5/100) -> 1100.790735 | M127: =CHOOSE($T$2,SUMIFS('AirNav Opex (IAA-10% SUs)'!T$108:T$139,'AirNav Opex (IAA-10% SUs)'!$G$108:$G$139,$E127),SUMIFS('AirNav Opex (IAA)'!T$108:T$139,'AirNav Opex (IAA)'!$G$108:$G$139,$E127),SUMIFS('AirNav Opex (IAA+10% SUs)'!T$108:T$139,'AirNav Opex (IAA+10% SUs)'!$G$108:$G$139,$E127))*(M$5/100) -> 1137.104885 | N127: =CHOOSE($T$2,SUMIFS('AirNav Opex (IAA-10% SUs)'!U$108:U$139,'AirNav Opex (IAA-10% SUs)'!$G$108:$G$139,$E127),SUMIFS('AirNav Opex (IAA)'!U$108:U$139,'AirNav Opex (IAA)'!$G$108:$G$139,$E127),SUMIFS('AirNav Opex (IAA+10% SUs)'!U$108:U$139,'AirNav Opex (IAA+10% SUs)'!$G$108:$G$139,$E127))*(N$5/100) -> 1175.700179
D128: 9 | E128: =IFERROR(INDEX('AirNav Opex'!$G$106:$G$137,MATCH(D128,'AirNav Opex'!$H$106:$H$137,0)),"") -> Insurance (Redacted) | F128: €'000 | J128: =CHOOSE($T$2,SUMIFS('AirNav Opex (IAA-10% SUs)'!Q$108:Q$139,'AirNav Opex (IAA-10% SUs)'!$G$108:$G$139,$E128),SUMIFS('AirNav Opex (IAA)'!Q$108:Q$139,'AirNav Opex (IAA)'!$G$108:$G$139,$E128),SUMIFS('AirNav Opex (IAA+10% SUs)'!Q$108:Q$139,'AirNav Opex (IAA+10% SUs)'!$G$108:$G$139,$E128))*(J$5/100) -> 0 | K128: =CHOOSE($T$2,SUMIFS('AirNav Opex (IAA-10% SUs)'!R$108:R$139,'AirNav Opex (IAA-10% SUs)'!$G$108:$G$139,$E128),SUMIFS('AirNav Opex (IAA)'!R$108:R$139,'AirNav Opex (IAA)'!$G$108:$G$139,$E128),SUMIFS('AirNav Opex (IAA+10% SUs)'!R$108:R$139,'AirNav Opex (IAA+10% SUs)'!$G$108:$G$139,$E128))*(K$5/100) -> 0 | L128: =CHOOSE($T$2,SUMIFS('AirNav Opex (IAA-10% SUs)'!S$108:S$139,'AirNav Opex (IAA-10% SUs)'!$G$108:$G$139,$E128),SUMIFS('AirNav Opex (IAA)'!S$108:S$139,'AirNav Opex (IAA)'!$G$108:$G$139,$E128),SUMIFS('AirNav Opex (IAA+10% SUs)'!S$108:S$139,'AirNav Opex (IAA+10% SUs)'!$G$108:$G$139,$E128))*(L$5/100) -> 0 | M128: =CHOOSE($T$2,SUMIFS('AirNav Opex (IAA-10% SUs)'!T$108:T$139,'AirNav Opex (IAA-10% SUs)'!$G$108:$G$139,$E128),SUMIFS('AirNav Opex (IAA)'!T$108:T$139,'AirNav Opex (IAA)'!$G$108:$G$139,$E128),SUMIFS('AirNav Opex (IAA+10% SUs)'!T$108:T$139,'AirNav Opex (IAA+10% SUs)'!$G$108:$G$139,$E128))*(M$5/100) -> 0 | N128: =CHOOSE($T$2,SUMIFS('AirNav Opex (IAA-10% SUs)'!U$108:U$139,'AirNav Opex (IAA-10% SUs)'!$G$108:$G$139,$E128),SUMIFS('AirNav Opex (IAA)'!U$108:U$139,'AirNav Opex (IAA)'!$G$108:$G$139,$E128),SUMIFS('AirNav Opex (IAA+10% SUs)'!U$108:U$139,'AirNav Opex (IAA+10% SUs)'!$G$108:$G$139,$E128))*(N$5/100) -> 0
D129: 10 | E129: =IFERROR(INDEX('AirNav Opex'!$G$106:$G$137,MATCH(D129,'AirNav Opex'!$H$106:$H$137,0)),"") -> Building Repairs | F129: €'000 | J129: =CHOOSE($T$2,SUMIFS('AirNav Opex (IAA-10% SUs)'!Q$108:Q$139,'AirNav Opex (IAA-10% SUs)'!$G$108:$G$139,$E129),SUMIFS('AirNav Opex (IAA)'!Q$108:Q$139,'AirNav Opex (IAA)'!$G$108:$G$139,$E129),SUMIFS('AirNav Opex (IAA+10% SUs)'!Q$108:Q$139,'AirNav Opex (IAA+10% SUs)'!$G$108:$G$139,$E129))*(J$5/100) -> 1446.015614 | K129: =CHOOSE($T$2,SUMIFS('AirNav Opex (IAA-10% SUs)'!R$108:R$139,'AirNav Opex (IAA-10% SUs)'!$G$108:$G$139,$E129),SUMIFS('AirNav Opex (IAA)'!R$108:R$139,'AirNav Opex (IAA)'!$G$108:$G$139,$E129),SUMIFS('AirNav Opex (IAA+10% SUs)'!R$108:R$139,'AirNav Opex (IAA+10% SUs)'!$G$108:$G$139,$E129))*(K$5/100) -> 1484.748877 | L129: =CHOOSE($T$2,SUMIFS('AirNav Opex (IAA-10% SUs)'!S$108:S$139,'AirNav Opex (IAA-10% SUs)'!$G$108:$G$139,$E129),SUMIFS('AirNav Opex (IAA)'!S$108:S$139,'AirNav Opex (IAA)'!$G$108:$G$139,$E129),SUMIFS('AirNav Opex (IAA+10% SUs)'!S$108:S$139,'AirNav Opex (IAA+10% SUs)'!$G$108:$G$139,$E129))*(L$5/100) -> 1525.95927 | M129: =CHOOSE($T$2,SUMIFS('AirNav Opex (IAA-10% SUs)'!T$108:T$139,'AirNav Opex (IAA-10% SUs)'!$G$108:$G$139,$E129),SUMIFS('AirNav Opex (IAA)'!T$108:T$139,'AirNav Opex (IAA)'!$G$108:$G$139,$E129),SUMIFS('AirNav Opex (IAA+10% SUs)'!T$108:T$139,'AirNav Opex (IAA+10% SUs)'!$G$108:$G$139,$E129))*(M$5/100) -> 1571.05686 | N129: =CHOOSE($T$2,SUMIFS('AirNav Opex (IAA-10% SUs)'!U$108:U$139,'AirNav Opex (IAA-10% SUs)'!$G$108:$G$139,$E129),SUMIFS('AirNav Opex (IAA)'!U$108:U$139,'AirNav Opex (IAA)'!$G$108:$G$139,$E129),SUMIFS('AirNav Opex (IAA+10% SUs)'!U$108:U$139,'AirNav Opex (IAA+10% SUs)'!$G$108:$G$139,$E129))*(N$5/100) -> 1618.978807
D130: 11 | E130: =IFERROR(INDEX('AirNav Opex'!$G$106:$G$137,MATCH(D130,'AirNav Opex'!$H$106:$H$137,0)),"") -> Security (Redacted) | F130: €'000 | J130: =CHOOSE($T$2,SUMIFS('AirNav Opex (IAA-10% SUs)'!Q$108:Q$139,'AirNav Opex (IAA-10% SUs)'!$G$108:$G$139,$E130),SUMIFS('AirNav Opex (IAA)'!Q$108:Q$139,'AirNav Opex (IAA)'!$G$108:$G$139,$E130),SUMIFS('AirNav Opex (IAA+10% SUs)'!Q$108:Q$139,'AirNav Opex (IAA+10% SUs)'!$G$108:$G$139,$E130))*(J$5/100) -> 0 | K130: =CHOOSE($T$2,SUMIFS('AirNav Opex (IAA-10% SUs)'!R$108:R$139,'AirNav Opex (IAA-10% SUs)'!$G$108:$G$139,$E130),SUMIFS('AirNav Opex (IAA)'!R$108:R$139,'AirNav Opex (IAA)'!$G$108:$G$139,$E130),SUMIFS('AirNav Opex (IAA+10% SUs)'!R$108:R$139,'AirNav Opex (IAA+10% SUs)'!$G$108:$G$139,$E130))*(K$5/100) -> 0 | L130: =CHOOSE($T$2,SUMIFS('AirNav Opex (IAA-10% SUs)'!S$108:S$139,'AirNav Opex (IAA-10% SUs)'!$G$108:$G$139,$E130),SUMIFS('AirNav Opex (IAA)'!S$108:S$139,'AirNav Opex (IAA)'!$G$108:$G$139,$E130),SUMIFS('AirNav Opex (IAA+10% SUs)'!S$108:S$139,'AirNav Opex (IAA+10% SUs)'!$G$108:$G$139,$E130))*(L$5/100) -> 0 | M130: =CHOOSE($T$2,SUMIFS('AirNav Opex (IAA-10% SUs)'!T$108:T$139,'AirNav Opex (IAA-10% SUs)'!$G$108:$G$139,$E130),SUMIFS('AirNav Opex (IAA)'!T$108:T$139,'AirNav Opex (IAA)'!$G$108:$G$139,$E130),SUMIFS('AirNav Opex (IAA+10% SUs)'!T$108:T$139,'AirNav Opex (IAA+10% SUs)'!$G$108:$G$139,$E130))*(M$5/100) -> 0 | N130: =CHOOSE($T$2,SUMIFS('AirNav Opex (IAA-10% SUs)'!U$108:U$139,'AirNav Opex (IAA-10% SUs)'!$G$108:$G$139,$E130),SUMIFS('AirNav Opex (IAA)'!U$108:U$139,'AirNav Opex (IAA)'!$G$108:$G$139,$E130),SUMIFS('AirNav Opex (IAA+10% SUs)'!U$108:U$139,'AirNav Opex (IAA+10% SUs)'!$G$108:$G$139,$E130))*(N$5/100) -> 0
D131: 12 | E131: =IFERROR(INDEX('AirNav Opex'!$G$106:$G$137,MATCH(D131,'AirNav Opex'!$H$106:$H$137,0)),"") -> Redacted | F131: €'000 | J131: =CHOOSE($T$2,SUMIFS('AirNav Opex (IAA-10% SUs)'!Q$108:Q$139,'AirNav Opex (IAA-10% SUs)'!$G$108:$G$139,$E131),SUMIFS('AirNav Opex (IAA)'!Q$108:Q$139,'AirNav Opex (IAA)'!$G$108:$G$139,$E131),SUMIFS('AirNav Opex (IAA+10% SUs)'!Q$108:Q$139,'AirNav Opex (IAA+10% SUs)'!$G$108:$G$139,$E131))*(J$5/100) -> 18630.18684 | K131: =CHOOSE($T$2,SUMIFS('AirNav Opex (IAA-10% SUs)'!R$108:R$139,'AirNav Opex (IAA-10% SUs)'!$G$108:$G$139,$E131),SUMIFS('AirNav Opex (IAA)'!R$108:R$139,'AirNav Opex (IAA)'!$G$108:$G$139,$E131),SUMIFS('AirNav Opex (IAA+10% SUs)'!R$108:R$139,'AirNav Opex (IAA+10% SUs)'!$G$108:$G$139,$E131))*(K$5/100) -> 22169.07375 | L131: =CHOOSE($T$2,SUMIFS('AirNav Opex (IAA-10% SUs)'!S$108:S$139,'AirNav Opex (IAA-10% SUs)'!$G$108:$G$139,$E131),SUMIFS('AirNav Opex (IAA)'!S$108:S$139,'AirNav Opex (IAA)'!$G$108:$G$139,$E131),SUMIFS('AirNav Opex (IAA+10% SUs)'!S$108:S$139,'AirNav Opex (IAA+10% SUs)'!$G$108:$G$139,$E131))*(L$5/100) -> 19249.65092 | M131: =CHOOSE($T$2,SUMIFS('AirNav Opex (IAA-10% SUs)'!T$108:T$139,'AirNav Opex (IAA-10% SUs)'!$G$108:$G$139,$E131),SUMIFS('AirNav Opex (IAA)'!T$108:T$139,'AirNav Opex (IAA)'!$G$108:$G$139,$E131),SUMIFS('AirNav Opex (IAA+10% SUs)'!T$108:T$139,'AirNav Opex (IAA+10% SUs)'!$G$108:$G$139,$E131))*(M$5/100) -> 21693.31352 | N131: =CHOOSE($T$2,SUMIFS('AirNav Opex (IAA-10% SUs)'!U$108:U$139,'AirNav Opex (IAA-10% SUs)'!$G$108:$G$139,$E131),SUMIFS('AirNav Opex (IAA)'!U$108:U$139,'AirNav Opex (IAA)'!$G$108:$G$139,$E131),SUMIFS('AirNav Opex (IAA+10% SUs)'!U$108:U$139,'AirNav Opex (IAA+10% SUs)'!$G$108:$G$139,$E131))*(N$5/100) -> 24034.55594
D132: 13 | J132: =CHOOSE($T$2,SUMIFS('AirNav Opex (IAA-10% SUs)'!Q$108:Q$139,'AirNav Opex (IAA-10% SUs)'!$G$108:$G$139,$E132),SUMIFS('AirNav Opex (IAA)'!Q$108:Q$139,'AirNav Opex (IAA)'!$G$108:$G$139,$E132),SUMIFS('AirNav Opex (IAA+10% SUs)'!Q$108:Q$139,'AirNav Opex (IAA+10% SUs)'!$G$108:$G$139,$E132))*(J$5/100) -> 0 | K132: =CHOOSE($T$2,SUMIFS('AirNav Opex (IAA-10% SUs)'!R$108:R$139,'AirNav Opex (IAA-10% SUs)'!$G$108:$G$139,$E132),SUMIFS('AirNav Opex (IAA)'!R$108:R$139,'AirNav Opex (IAA)'!$G$108:$G$139,$E132),SUMIFS('AirNav Opex (IAA+10% SUs)'!R$108:R$139,'AirNav Opex (IAA+10% SUs)'!$G$108:$G$139,$E132))*(K$5/100) -> 0 | L132: =CHOOSE($T$2,SUMIFS('AirNav Opex (IAA-10% SUs)'!S$108:S$139,'AirNav Opex (IAA-10% SUs)'!$G$108:$G$139,$E132),SUMIFS('AirNav Opex (IAA)'!S$108:S$139,'AirNav Opex (IAA)'!$G$108:$G$139,$E132),SUMIFS('AirNav Opex (IAA+10% SUs)'!S$108:S$139,'AirNav Opex (IAA+10% SUs)'!$G$108:$G$139,$E132))*(L$5/100) -> 0 | M132: =CHOOSE($T$2,SUMIFS('AirNav Opex (IAA-10% SUs)'!T$108:T$139,'AirNav Opex (IAA-10% SUs)'!$G$108:$G$139,$E132),SUMIFS('AirNav Opex (IAA)'!T$108:T$139,'AirNav Opex (IAA)'!$G$108:$G$139,$E132),SUMIFS('AirNav Opex (IAA+10% SUs)'!T$108:T$139,'AirNav Opex (IAA+10% SUs)'!$G$108:$G$139,$E132))*(M$5/100) -> 0 | N132: =CHOOSE($T$2,SUMIFS('AirNav Opex (IAA-10% SUs)'!U$108:U$139,'AirNav Opex (IAA-10% SUs)'!$G$108:$G$139,$E132),SUMIFS('AirNav Opex (IAA)'!U$108:U$139,'AirNav Opex (IAA)'!$G$108:$G$139,$E132),SUMIFS('AirNav Opex (IAA+10% SUs)'!U$108:U$139,'AirNav Opex (IAA+10% SUs)'!$G$108:$G$139,$E132))*(N$5/100) -> 0
D133: 14 | J133: =CHOOSE($T$2,SUMIFS('AirNav Opex (IAA-10% SUs)'!Q$108:Q$139,'AirNav Opex (IAA-10% SUs)'!$G$108:$G$139,$E133),SUMIFS('AirNav Opex (IAA)'!Q$108:Q$139,'AirNav Opex (IAA)'!$G$108:$G$139,$E133),SUMIFS('AirNav Opex (IAA+10% SUs)'!Q$108:Q$139,'AirNav Opex (IAA+10% SUs)'!$G$108:$G$139,$E133))*(J$5/100) -> 0 | K133: =CHOOSE($T$2,SUMIFS('AirNav Opex (IAA-10% SUs)'!R$108:R$139,'AirNav Opex (IAA-10% SUs)'!$G$108:$G$139,$E133),SUMIFS('AirNav Opex (IAA)'!R$108:R$139,'AirNav Opex (IAA)'!$G$108:$G$139,$E133),SUMIFS('AirNav Opex (IAA+10% SUs)'!R$108:R$139,'AirNav Opex (IAA+10% SUs)'!$G$108:$G$139,$E133))*(K$5/100) -> 0 | L133: =CHOOSE($T$2,SUMIFS('AirNav Opex (IAA-10% SUs)'!S$108:S$139,'AirNav Opex (IAA-10% SUs)'!$G$108:$G$139,$E133),SUMIFS('AirNav Opex (IAA)'!S$108:S$139,'AirNav Opex (IAA)'!$G$108:$G$139,$E133),SUMIFS('AirNav Opex (IAA+10% SUs)'!S$108:S$139,'AirNav Opex (IAA+10% SUs)'!$G$108:$G$139,$E133))*(L$5/100) -> 0 | M133: =CHOOSE($T$2,SUMIFS('AirNav Opex (IAA-10% SUs)'!T$108:T$139,'AirNav Opex (IAA-10% SUs)'!$G$108:$G$139,$E133),SUMIFS('AirNav Opex (IAA)'!T$108:T$139,'AirNav Opex (IAA)'!$G$108:$G$139,$E133),SUMIFS('AirNav Opex (IAA+10% SUs)'!T$108:T$139,'AirNav Opex (IAA+10% SUs)'!$G$108:$G$139,$E133))*(M$5/100) -> 0 | N133: =CHOOSE($T$2,SUMIFS('AirNav Opex (IAA-10% SUs)'!U$108:U$139,'AirNav Opex (IAA-10% SUs)'!$G$108:$G$139,$E133),SUMIFS('AirNav Opex (IAA)'!U$108:U$139,'AirNav Opex (IAA)'!$G$108:$G$139,$E133),SUMIFS('AirNav Opex (IAA+10% SUs)'!U$108:U$139,'AirNav Opex (IAA+10% SUs)'!$G$108:$G$139,$E133))*(N$5/100) -> 0
D134: 15
A136: =(SUMPRODUCT($J$5:$N$5,'AirNav Opex (IAA)'!$Q$141:$U$141)/100)-SUM(J136:N136) -> 0 | E136: Total | F136: €'000 | J136: =SUM(J120:J133) -> 45423.59713 | K136: =SUM(K120:K133) -> 50490.48069 | L136: =SUM(L120:L133) -> 48999.27161 | M136: =SUM(M120:M133) -> 51153.62006 | N136: =SUM(N120:N133) -> 54338.08784
C139: Other Opex Comparison
D140: 1 | E140: =IFERROR(INDEX('AirNav Opex'!$G$106:$G$137,MATCH(D140,'AirNav Opex'!$H$106:$H$137,0)),"") -> Admin&Other | F140: =IF(E140="","","€'000") -> €'000 | J140: =J120-J100 -> -994.9651187 | K140: =K120-K100 -> -942.8162304 | L140: -932.2286467 | M140: -910.4790659 | N140: -907.834019
D141: =D140+1 -> 2 | E141: =IFERROR(INDEX('AirNav Opex'!$G$106:$G$137,MATCH(D141,'AirNav Opex'!$H$106:$H$137,0)),"") -> Training (Redacted) | F141: =IF(E141="","","€'000") -> €'000 | J141: =J121-J101 -> 0 | K141: 0 | L141: 0 | M141: 0 | N141: 0
D142: 3 | E142: =IFERROR(INDEX('AirNav Opex'!$G$106:$G$137,MATCH(D142,'AirNav Opex'!$H$106:$H$137,0)),"") -> Telecoms (Redacted) | F142: €'000 | J142: =J122-J102 -> 0 | K142: 0 | L142: 0 | M142: 0 | N142: 0
D143: 4 | E143: =IFERROR(INDEX('AirNav Opex'!$G$106:$G$137,MATCH(D143,'AirNav Opex'!$H$106:$H$137,0)),"") -> Operational | F143: €'000 | J143: =J123-J103 -> -299.5965227 | K143: -210.0343558 | L143: -216.7920357 | M143: -521.5668986 | N143: -724.3468476
D144: 5 | E144: =IFERROR(INDEX('AirNav Opex'!$G$106:$G$137,MATCH(D144,'AirNav Opex'!$H$106:$H$137,0)),"") -> Operational (Redacted( | F144: €'000 | J144: =J124-J104 -> 0 | K144: 0 | L144: 0 | M144: 0 | N144: 0
D145: 6 | E145: =IFERROR(INDEX('AirNav Opex'!$G$106:$G$137,MATCH(D145,'AirNav Opex'!$H$106:$H$137,0)),"") -> Rent & Rates | F145: €'000 | J145: =J125-J105 -> 5.00222086e-12 | K145: 5.00222086e-12 | L145: 5.00222086e-12 | M145: 5.00222086e-12 | N145: 5.456968211e-12
D146: 7 | E146: =IFERROR(INDEX('AirNav Opex'!$G$106:$G$137,MATCH(D146,'AirNav Opex'!$H$106:$H$137,0)),"") -> Computing | F146: €'000 | J146: =J126-J106 -> -1166.349852 | K146: -1180.720491 | L146: -1194.653249 | M146: -1211.352233 | N146: -1226.405102
D147: 8 | E147: =IFERROR(INDEX('AirNav Opex'!$G$106:$G$137,MATCH(D147,'AirNav Opex'!$H$106:$H$137,0)),"") -> Consultancy | F147: €'000 | J147: =J127-J107 -> -906.0492836 | K147: -907.0233356 | L147: -908.445089 | M147: -911.029744 | N147: -914.0115837
D148: 9 | E148: =IFERROR(INDEX('AirNav Opex'!$G$106:$G$137,MATCH(D148,'AirNav Opex'!$H$106:$H$137,0)),"") -> Insurance (Redacted) | F148: €'000 | J148: =J128-J108 -> 0 | K148: 0 | L148: 0 | M148: 0 | N148: 0
D149: 10 | E149: =IFERROR(INDEX('AirNav Opex'!$G$106:$G$137,MATCH(D149,'AirNav Opex'!$H$106:$H$137,0)),"") -> Building Repairs | F149: €'000 | J149: =J129-J109 -> -716.7399928 | K149: -572.5988007 | L149: -619.2483294 | M149: -669.5199495 | N149: -723.1813559
D150: 11 | E150: =IFERROR(INDEX('AirNav Opex'!$G$106:$G$137,MATCH(D150,'AirNav Opex'!$H$106:$H$137,0)),"") -> Security (Redacted) | F150: €'000 | J150: =J130-J110 -> 0 | K150: 0 | L150: 0 | M150: 0 | N150: 0
D151: 12 | J151: =J131-J111 -> -709.6930269 | K151: -304.9373021 | L151: -1022.504711 | M151: 284.1210033 | N151: -541.763378
D152: 13 | J152: =J132-J112 -> 0 | K152: 0 | L152: 0 | M152: 0 | N152: 0
D153: 14 | J153: =J133-J113 -> 0 | K153: 0 | L153: 0 | M153: 0 | N153: 0
D154: 15
E156: Total Difference | F156: €'000 | J156: =SUM(J140:J153) -> -4793.393797 | K156: =SUM(K140:K153) -> -4118.130516 | L156: =SUM(L140:L153) -> -4893.872062 | M156: =SUM(M140:M153) -> -3939.826888 | N156: =SUM(N140:N153) -> -5037.542287
E158: Total % Difference | F158: % | J158: =J156/J116 -> -0.09545362453 | K158: =K156/K116 -> -0.07541174231 | L158: -0.0908069511 | M158: -0.07151171521 | N158: -0.08484191706
B162: Capital Costs | D162: Entity: | E162: ANSP | F162: Nominal
B163: Includes Unregulated
C164: AirNav Capex
D166: Capitalisations | O166: Total
E167: COOPANS TopSky ATC1 | F167: =IF(E167="","","€'000") -> €'000 | J167: =SUMIFS('AirNav Capex'!CL$47:CL$317,'AirNav Capex'!$C$47:$C$317,$E167) -> 0 | K167: =SUMIFS('AirNav Capex'!CM$47:CM$317,'AirNav Capex'!$C$47:$C$317,$E167) -> 10344 | L167: =SUMIFS('AirNav Capex'!CN$47:CN$317,'AirNav Capex'!$C$47:$C$317,$E167) -> 0 | M167: =SUMIFS('AirNav Capex'!CO$47:CO$317,'AirNav Capex'!$C$47:$C$317,$E167) -> 0 | N167: =SUMIFS('AirNav Capex'!CP$47:CP$317,'AirNav Capex'!$C$47:$C$317,$E167) -> 31287
E168: Ballycasey Expansion | F168: €'000 | J168: =SUMIFS('AirNav Capex'!CL$47:CL$317,'AirNav Capex'!$C$47:$C$317,$E168) -> 0 | K168: =SUMIFS('AirNav Capex'!CM$47:CM$317,'AirNav Capex'!$C$47:$C$317,$E168) -> 0 | L168: =SUMIFS('AirNav Capex'!CN$47:CN$317,'AirNav Capex'!$C$47:$C$317,$E168) -> 0 | M168: =SUMIFS('AirNav Capex'!CO$47:CO$317,'AirNav Capex'!$C$47:$C$317,$E168) -> 0 | N168: =SUMIFS('AirNav Capex'!CP$47:CP$317,'AirNav Capex'!$C$47:$C$317,$E168) -> 12200
E169: Dublin ACC Expansion | F169: €'000 | J169: =SUMIFS('AirNav Capex'!CL$47:CL$317,'AirNav Capex'!$C$47:$C$317,$E169) -> 0 | K169: =SUMIFS('AirNav Capex'!CM$47:CM$317,'AirNav Capex'!$C$47:$C$317,$E169) -> 0 | L169: =SUMIFS('AirNav Capex'!CN$47:CN$317,'AirNav Capex'!$C$47:$C$317,$E169) -> 0 | M169: =SUMIFS('AirNav Capex'!CO$47:CO$317,'AirNav Capex'!$C$47:$C$317,$E169) -> 7500 | N169: =SUMIFS('AirNav Capex'!CP$47:CP$317,'AirNav Capex'!$C$47:$C$317,$E169) -> 0
E170: RP4 ICT Projects | F170: €'000 | J170: =SUMIFS('AirNav Capex'!CL$47:CL$317,'AirNav Capex'!$C$47:$C$317,$E170) -> 750 | K170: =SUMIFS('AirNav Capex'!CM$47:CM$317,'AirNav Capex'!$C$47:$C$317,$E170) -> 1375 | L170: =SUMIFS('AirNav Capex'!CN$47:CN$317,'AirNav Capex'!$C$47:$C$317,$E170) -> 1500 | M170: =SUMIFS('AirNav Capex'!CO$47:CO$317,'AirNav Capex'!$C$47:$C$317,$E170) -> 1500 | N170: =SUMIFS('AirNav Capex'!CP$47:CP$317,'AirNav Capex'!$C$47:$C$317,$E170) -> 1500
E171: RADAR Overhaul PH2 - Dublin | F171: €'000 | J171: =SUMIFS('AirNav Capex'!CL$47:CL$317,'AirNav Capex'!$C$47:$C$317,$E171) -> 0 | K171: =SUMIFS('AirNav Capex'!CM$47:CM$317,'AirNav Capex'!$C$47:$C$317,$E171) -> 0 | L171: =SUMIFS('AirNav Capex'!CN$47:CN$317,'AirNav Capex'!$C$47:$C$317,$E171) -> 0 | M171: =SUMIFS('AirNav Capex'!CO$47:CO$317,'AirNav Capex'!$C$47:$C$317,$E171) -> 6058.333333 | N171: =SUMIFS('AirNav Capex'!CP$47:CP$317,'AirNav Capex'!$C$47:$C$317,$E171) -> 0
E172: A-SMGCS | F172: €'000 | J172: =SUMIFS('AirNav Capex'!CL$47:CL$317,'AirNav Capex'!$C$47:$C$317,$E172) -> 0 | K172: =SUMIFS('AirNav Capex'!CM$47:CM$317,'AirNav Capex'!$C$47:$C$317,$E172) -> 0 | L172: =SUMIFS('AirNav Capex'!CN$47:CN$317,'AirNav Capex'!$C$47:$C$317,$E172) -> 0 | M172: =SUMIFS('AirNav Capex'!CO$47:CO$317,'AirNav Capex'!$C$47:$C$317,$E172) -> 0 | N172: =SUMIFS('AirNav Capex'!CP$47:CP$317,'AirNav Capex'!$C$47:$C$317,$E172) -> 12000
E173: RADAR Overhaul PH2 - Shannon | F173: €'000 | J173: =SUMIFS('AirNav Capex'!CL$47:CL$317,'AirNav Capex'!$C$47:$C$317,$E173) -> 0 | K173: =SUMIFS('AirNav Capex'!CM$47:CM$317,'AirNav Capex'!$C$47:$C$317,$E173) -> 0 | L173: =SUMIFS('AirNav Capex'!CN$47:CN$317,'AirNav Capex'!$C$47:$C$317,$E173) -> 5908.333333 | M173: =SUMIFS('AirNav Capex'!CO$47:CO$317,'AirNav Capex'!$C$47:$C$317,$E173) -> 0 | N173: =SUMIFS('AirNav Capex'!CP$47:CP$317,'AirNav Capex'!$C$47:$C$317,$E173) -> 0
E174: [] | F174: €'000 | J174: =SUMIFS('AirNav Capex'!CL$47:CL$317,'AirNav Capex'!$C$47:$C$317,$E174) -> 0 | K174: =SUMIFS('AirNav Capex'!CM$47:CM$317,'AirNav Capex'!$C$47:$C$317,$E174) -> 0 | L174: =SUMIFS('AirNav Capex'!CN$47:CN$317,'AirNav Capex'!$C$47:$C$317,$E174) -> 0 | M174: =SUMIFS('AirNav Capex'!CO$47:CO$317,'AirNav Capex'!$C$47:$C$317,$E174) -> 0 | N174: =SUMIFS('AirNav Capex'!CP$47:CP$317,'AirNav Capex'!$C$47:$C$317,$E174) -> 0
E176: Other RP4 | F176: €'000 | J176: =J178-SUM(J167:J174) -> 23430.32324 | K176: =K178-SUM(K167:K174) -> 35062.30053 | L176: =L178-SUM(L167:L174) -> 24210.15133 | M176: =M178-SUM(M167:M174) -> 11960.11267 | N176: =N178-SUM(N167:N174) -> 18043.34933
E178: Total | F178: €'000 | J178: ='AirNav Capex'!CL319 -> 24180.32324 | K178: ='AirNav Capex'!CM319 -> 46781.30053 | L178: ='AirNav Capex'!CN319 -> 31618.48467 | M178: ='AirNav Capex'!CO319 -> 27018.446 | N178: ='AirNav Capex'!CP319 -> 75030.34933 | O178: =SUM(J178:N178) -> 204628.9038 | AB178: =SUM(J167:N176)-SUM('AirNav Capex'!CL319:CP319) -> 0
D185: Depreciation
E186: =E167 -> COOPANS TopSky ATC1 | F186: =IF(E186="","","€'000") -> €'000 | J186: =SUMIFS('AirNav Capex'!CL$323:CL$593,'AirNav Capex'!$C$323:$C$593,$E186) -> 0 | K186: =SUMIFS('AirNav Capex'!CM$323:CM$593,'AirNav Capex'!$C$323:$C$593,$E186) -> 323.25 | L186: =SUMIFS('AirNav Capex'!CN$323:CN$593,'AirNav Capex'!$C$323:$C$593,$E186) -> 1293 | M186: =SUMIFS('AirNav Capex'!CO$323:CO$593,'AirNav Capex'!$C$323:$C$593,$E186) -> 1293 | N186: =SUMIFS('AirNav Capex'!CP$323:CP$593,'AirNav Capex'!$C$323:$C$593,$E186) -> 4226.15625
E187: =E168 -> Ballycasey Expansion | F187: €'000 | J187: =SUMIFS('AirNav Capex'!CL$323:CL$593,'AirNav Capex'!$C$323:$C$593,$E187) -> 0 | K187: =SUMIFS('AirNav Capex'!CM$323:CM$593,'AirNav Capex'!$C$323:$C$593,$E187) -> 0 | L187: =SUMIFS('AirNav Capex'!CN$323:CN$593,'AirNav Capex'!$C$323:$C$593,$E187) -> 0 | M187: =SUMIFS('AirNav Capex'!CO$323:CO$593,'AirNav Capex'!$C$323:$C$593,$E187) -> 0 | N187: =SUMIFS('AirNav Capex'!CP$323:CP$593,'AirNav Capex'!$C$323:$C$593,$E187) -> 152.5
E188: Dublin ACC Expansion | F188: €'000 | J188: =SUMIFS('AirNav Capex'!CL$323:CL$593,'AirNav Capex'!$C$323:$C$593,$E188) -> 0 | K188: =SUMIFS('AirNav Capex'!CM$323:CM$593,'AirNav Capex'!$C$323:$C$593,$E188) -> 0 | L188: =SUMIFS('AirNav Capex'!CN$323:CN$593,'AirNav Capex'!$C$323:$C$593,$E188) -> 0 | M188: =SUMIFS('AirNav Capex'!CO$323:CO$593,'AirNav Capex'!$C$323:$C$593,$E188) -> 375 | N188: =SUMIFS('AirNav Capex'!CP$323:CP$593,'AirNav Capex'!$C$323:$C$593,$E188) -> 375
E189: RP4 ICT Projects | F189: €'000 | J189: =SUMIFS('AirNav Capex'!CL$323:CL$593,'AirNav Capex'!$C$323:$C$593,$E189) -> 125 | K189: =SUMIFS('AirNav Capex'!CM$323:CM$593,'AirNav Capex'!$C$323:$C$593,$E189) -> 520.8329861 | L189: =SUMIFS('AirNav Capex'!CN$323:CN$593,'AirNav Capex'!$C$323:$C$593,$E189) -> 1020.833333 | M189: =SUMIFS('AirNav Capex'!CO$323:CO$593,'AirNav Capex'!$C$323:$C$593,$E189) -> 1395.833333 | N189: =SUMIFS('AirNav Capex'!CP$323:CP$593,'AirNav Capex'!$C$323:$C$593,$E189) -> 1500.000347
E190: RADAR Overhaul PH2 - Dublin | F190: €'000 | J190: =SUMIFS('AirNav Capex'!CL$323:CL$593,'AirNav Capex'!$C$323:$C$593,$E190) -> 0 | K190: =SUMIFS('AirNav Capex'!CM$323:CM$593,'AirNav Capex'!$C$323:$C$593,$E190) -> 0 | L190: =SUMIFS('AirNav Capex'!CN$323:CN$593,'AirNav Capex'!$C$323:$C$593,$E190) -> 0 | M190: =SUMIFS('AirNav Capex'!CO$323:CO$593,'AirNav Capex'!$C$323:$C$593,$E190) -> 252.4305556 | N190: =SUMIFS('AirNav Capex'!CP$323:CP$593,'AirNav Capex'!$C$323:$C$593,$E190) -> 504.8611111
E191: A-SMGCS | F191: €'000 | J191: =SUMIFS('AirNav Capex'!CL$323:CL$593,'AirNav Capex'!$C$323:$C$593,$E191) -> 0 | K191: =SUMIFS('AirNav Capex'!CM$323:CM$593,'AirNav Capex'!$C$323:$C$593,$E191) -> 0 | L191: =SUMIFS('AirNav Capex'!CN$323:CN$593,'AirNav Capex'!$C$323:$C$593,$E191) -> 0 | M191: =SUMIFS('AirNav Capex'!CO$323:CO$593,'AirNav Capex'!$C$323:$C$593,$E191) -> 0 | N191: =SUMIFS('AirNav Capex'!CP$323:CP$593,'AirNav Capex'!$C$323:$C$593,$E191) -> 750
E192: RADAR Overhaul PH2 - Shannon | F192: €'000 | J192: =SUMIFS('AirNav Capex'!CL$323:CL$593,'AirNav Capex'!$C$323:$C$593,$E192) -> 0 | K192: =SUMIFS('AirNav Capex'!CM$323:CM$593,'AirNav Capex'!$C$323:$C$593,$E192) -> 0 | L192: =SUMIFS('AirNav Capex'!CN$323:CN$593,'AirNav Capex'!$C$323:$C$593,$E192) -> 492.3611111 | M192: =SUMIFS('AirNav Capex'!CO$323:CO$593,'AirNav Capex'!$C$323:$C$593,$E192) -> 492.3611111 | N192: =SUMIFS('AirNav Capex'!CP$323:CP$593,'AirNav Capex'!$C$323:$C$593,$E192) -> 492.3611111
E193: [] | F193: €'000 | J193: =SUMIFS('AirNav Capex'!CL$323:CL$593,'AirNav Capex'!$C$323:$C$593,$E193) -> 0 | K193: =SUMIFS('AirNav Capex'!CM$323:CM$593,'AirNav Capex'!$C$323:$C$593,$E193) -> 0 | L193: =SUMIFS('AirNav Capex'!CN$323:CN$593,'AirNav Capex'!$C$323:$C$593,$E193) -> 0 | M193: =SUMIFS('AirNav Capex'!CO$323:CO$593,'AirNav Capex'!$C$323:$C$593,$E193) -> 0 | N193: =SUMIFS('AirNav Capex'!CP$323:CP$593,'AirNav Capex'!$C$323:$C$593,$E193) -> 0
E195: Other RP4 | F195: €'000 | J195: ='AirNav Capex'!CL597-SUM(J186:J193) -> 4537.256378 | K195: ='AirNav Capex'!CM597-SUM(K186:K193) -> 7186.956814 | L195: ='AirNav Capex'!CN597-SUM(L186:L193) -> 9935.806741 | M195: ='AirNav Capex'!CO597-SUM(M186:M193) -> 10967.7874 | N195: ='AirNav Capex'!CP597-SUM(N186:N193) -> 12313.343
E196: Pre-RP4 | F196: €'000 | J196: ='AirNav Capex'!CL598 -> 8160.468124 | K196: ='AirNav Capex'!CM598 -> 7370.507372 | L196: ='AirNav Capex'!CN598 -> 6637.499968 | M196: ='AirNav Capex'!CO598 -> 5986.56321 | N196: ='AirNav Capex'!CP598 -> 4594.666982
E198: Total | F198: €'000 | J198: =SUM(J186:J196) -> 12822.7245 | K198: =SUM(K186:K196) -> 15401.54717 | L198: 19379.50115 | M198: 20762.97561 | N198: 24908.8888 | AB198: =SUM('AirNav Capex'!CL599:CP599)-SUM(J198:N198) -> 0
C209: IAA Capex
D211: Capitalisations | O211: Total
E212: COOPANS TopSky ATC1 | F212: €'000 | J212: =SUMIFS('AirNav Capex (IAA)'!CK$56:CK$326,'AirNav Capex (IAA)'!$C$56:$C$326,$E212) -> 0 | K212: =SUMIFS('AirNav Capex (IAA)'!CL$56:CL$326,'AirNav Capex (IAA)'!$C$56:$C$326,$E212) -> 10344 | L212: =SUMIFS('AirNav Capex (IAA)'!CM$56:CM$326,'AirNav Capex (IAA)'!$C$56:$C$326,$E212) -> 0 | M212: =SUMIFS('AirNav Capex (IAA)'!CN$56:CN$326,'AirNav Capex (IAA)'!$C$56:$C$326,$E212) -> 0 | N212: =SUMIFS('AirNav Capex (IAA)'!CO$56:CO$326,'AirNav Capex (IAA)'!$C$56:$C$326,$E212) -> 31287
E213: Ballycasey Expansion | F213: €'000 | J213: =SUMIFS('AirNav Capex (IAA)'!CK$56:CK$326,'AirNav Capex (IAA)'!$C$56:$C$326,$E213) -> 0 | K213: =SUMIFS('AirNav Capex (IAA)'!CL$56:CL$326,'AirNav Capex (IAA)'!$C$56:$C$326,$E213) -> 0 | L213: =SUMIFS('AirNav Capex (IAA)'!CM$56:CM$326,'AirNav Capex (IAA)'!$C$56:$C$326,$E213) -> 0 | M213: =SUMIFS('AirNav Capex (IAA)'!CN$56:CN$326,'AirNav Capex (IAA)'!$C$56:$C$326,$E213) -> 0 | N213: =SUMIFS('AirNav Capex (IAA)'!CO$56:CO$326,'AirNav Capex (IAA)'!$C$56:$C$326,$E213) -> 9760
E214: Dublin ACC Expansion | F214: €'000 | J214: =SUMIFS('AirNav Capex (IAA)'!CK$56:CK$326,'AirNav Capex (IAA)'!$C$56:$C$326,$E214) -> 0 | K214: =SUMIFS('AirNav Capex (IAA)'!CL$56:CL$326,'AirNav Capex (IAA)'!$C$56:$C$326,$E214) -> 0 | L214: =SUMIFS('AirNav Capex (IAA)'!CM$56:CM$326,'AirNav Capex (IAA)'!$C$56:$C$326,$E214) -> 0 | M214: =SUMIFS('AirNav Capex (IAA)'!CN$56:CN$326,'AirNav Capex (IAA)'!$C$56:$C$326,$E214) -> 6000 | N214: =SUMIFS('AirNav Capex (IAA)'!CO$56:CO$326,'AirNav Capex (IAA)'!$C$56:$C$326,$E214) -> 0
E215: RP4 ICT Projects | F215: €'000 | J215: =SUMIFS('AirNav Capex (IAA)'!CK$56:CK$326,'AirNav Capex (IAA)'!$C$56:$C$326,$E215) -> 600 | K215: =SUMIFS('AirNav Capex (IAA)'!CL$56:CL$326,'AirNav Capex (IAA)'!$C$56:$C$326,$E215) -> 1100 | L215: =SUMIFS('AirNav Capex (IAA)'!CM$56:CM$326,'AirNav Capex (IAA)'!$C$56:$C$326,$E215) -> 1200 | M215: =SUMIFS('AirNav Capex (IAA)'!CN$56:CN$326,'AirNav Capex (IAA)'!$C$56:$C$326,$E215) -> 1200 | N215: =SUMIFS('AirNav Capex (IAA)'!CO$56:CO$326,'AirNav Capex (IAA)'!$C$56:$C$326,$E215) -> 1200
E216: RADAR Overhaul PH2 - Dublin | F216: €'000 | J216: =SUMIFS('AirNav Capex (IAA)'!CK$56:CK$326,'AirNav Capex (IAA)'!$C$56:$C$326,$E216) -> 0 | K216: =SUMIFS('AirNav Capex (IAA)'!CL$56:CL$326,'AirNav Capex (IAA)'!$C$56:$C$326,$E216) -> 0 | L216: =SUMIFS('AirNav Capex (IAA)'!CM$56:CM$326,'AirNav Capex (IAA)'!$C$56:$C$326,$E216) -> 0 | M216: =SUMIFS('AirNav Capex (IAA)'!CN$56:CN$326,'AirNav Capex (IAA)'!$C$56:$C$326,$E216) -> 4846.666667 | N216: =SUMIFS('AirNav Capex (IAA)'!CO$56:CO$326,'AirNav Capex (IAA)'!$C$56:$C$326,$E216) -> 0
E217: A-SMGCS | F217: €'000 | J217: =SUMIFS('AirNav Capex (IAA)'!CK$56:CK$326,'AirNav Capex (IAA)'!$C$56:$C$326,$E217) -> 0 | K217: =SUMIFS('AirNav Capex (IAA)'!CL$56:CL$326,'AirNav Capex (IAA)'!$C$56:$C$326,$E217) -> 0 | L217: =SUMIFS('AirNav Capex (IAA)'!CM$56:CM$326,'AirNav Capex (IAA)'!$C$56:$C$326,$E217) -> 0 | M217: =SUMIFS('AirNav Capex (IAA)'!CN$56:CN$326,'AirNav Capex (IAA)'!$C$56:$C$326,$E217) -> 0 | N217: =SUMIFS('AirNav Capex (IAA)'!CO$56:CO$326,'AirNav Capex (IAA)'!$C$56:$C$326,$E217) -> 9600
E218: RADAR Overhaul PH2 - Shannon | F218: €'000 | J218: =SUMIFS('AirNav Capex (IAA)'!CK$56:CK$326,'AirNav Capex (IAA)'!$C$56:$C$326,$E218) -> 0 | K218: =SUMIFS('AirNav Capex (IAA)'!CL$56:CL$326,'AirNav Capex (IAA)'!$C$56:$C$326,$E218) -> 0 | L218: =SUMIFS('AirNav Capex (IAA)'!CM$56:CM$326,'AirNav Capex (IAA)'!$C$56:$C$326,$E218) -> 4726.666667 | M218: =SUMIFS('AirNav Capex (IAA)'!CN$56:CN$326,'AirNav Capex (IAA)'!$C$56:$C$326,$E218) -> 0 | N218: =SUMIFS('AirNav Capex (IAA)'!CO$56:CO$326,'AirNav Capex (IAA)'!$C$56:$C$326,$E218) -> 0
E219: [] | F219: €'000 | J219: =SUMIFS('AirNav Capex (IAA)'!CK$56:CK$326,'AirNav Capex (IAA)'!$C$56:$C$326,$E219) -> 0 | K219: =SUMIFS('AirNav Capex (IAA)'!CL$56:CL$326,'AirNav Capex (IAA)'!$C$56:$C$326,$E219) -> 0 | L219: =SUMIFS('AirNav Capex (IAA)'!CM$56:CM$326,'AirNav Capex (IAA)'!$C$56:$C$326,$E219) -> 0 | M219: =SUMIFS('AirNav Capex (IAA)'!CN$56:CN$326,'AirNav Capex (IAA)'!$C$56:$C$326,$E219) -> 0 | N219: =SUMIFS('AirNav Capex (IAA)'!CO$56:CO$326,'AirNav Capex (IAA)'!$C$56:$C$326,$E219) -> 0
E221: Other RP4 | F221: €'000 | J221: =J223-SUM(J212:J219) -> 19342.52761 | K221: =K223-SUM(K212:K219) -> 28240.19042 | L221: =L223-SUM(L212:L219) -> 19468.12107 | M221: =M223-SUM(M212:M219) -> 9668.090133 | N221: =N223-SUM(N212:N219) -> 14484.67947
E223: Total | F223: €'000 | J223: ='AirNav Capex (IAA)'!CK328 -> 19942.52761 | K223: ='AirNav Capex (IAA)'!CL328 -> 39684.19042 | L223: ='AirNav Capex (IAA)'!CM328 -> 25394.78773 | M223: ='AirNav Capex (IAA)'!CN328 -> 21714.7568 | N223: ='AirNav Capex (IAA)'!CO328 -> 66331.67947 | O223: =SUM(J223:N223) -> 173067.942 | AB223: =SUM(J212:N221)-SUM('AirNav Capex (IAA)'!CK328:CO328) -> 0
D230: Depreciation
E231: =E212 -> COOPANS TopSky ATC1 | F231: €'000 | J231: =SUMIFS('AirNav Capex (IAA)'!CK$332:CK$602,'AirNav Capex (IAA)'!$C$332:$C$602,$E231) -> 0 | K231: =SUMIFS('AirNav Capex (IAA)'!CL$332:CL$602,'AirNav Capex (IAA)'!$C$332:$C$602,$E231) -> 215.5 | L231: =SUMIFS('AirNav Capex (IAA)'!CM$332:CM$602,'AirNav Capex (IAA)'!$C$332:$C$602,$E231) -> 862 | M231: =SUMIFS('AirNav Capex (IAA)'!CN$332:CN$602,'AirNav Capex (IAA)'!$C$332:$C$602,$E231) -> 862 | N231: =SUMIFS('AirNav Capex (IAA)'!CO$332:CO$602,'AirNav Capex (IAA)'!$C$332:$C$602,$E231) -> 2817.4375
E232: =E213 -> Ballycasey Expansion | F232: €'000 | J232: =SUMIFS('AirNav Capex (IAA)'!CK$332:CK$602,'AirNav Capex (IAA)'!$C$332:$C$602,$E232) -> 0 | K232: =SUMIFS('AirNav Capex (IAA)'!CL$332:CL$602,'AirNav Capex (IAA)'!$C$332:$C$602,$E232) -> 0 | L232: =SUMIFS('AirNav Capex (IAA)'!CM$332:CM$602,'AirNav Capex (IAA)'!$C$332:$C$602,$E232) -> 0 | M232: =SUMIFS('AirNav Capex (IAA)'!CN$332:CN$602,'AirNav Capex (IAA)'!$C$332:$C$602,$E232) -> 0 | N232: =SUMIFS('AirNav Capex (IAA)'!CO$332:CO$602,'AirNav Capex (IAA)'!$C$332:$C$602,$E232) -> 97.6
E233: Dublin ACC Expansion | F233: €'000 | J233: =SUMIFS('AirNav Capex (IAA)'!CK$332:CK$602,'AirNav Capex (IAA)'!$C$332:$C$602,$E233) -> 0 | K233: =SUMIFS('AirNav Capex (IAA)'!CL$332:CL$602,'AirNav Capex (IAA)'!$C$332:$C$602,$E233) -> 0 | L233: =SUMIFS('AirNav Capex (IAA)'!CM$332:CM$602,'AirNav Capex (IAA)'!$C$332:$C$602,$E233) -> 0 | M233: =SUMIFS('AirNav Capex (IAA)'!CN$332:CN$602,'AirNav Capex (IAA)'!$C$332:$C$602,$E233) -> 240 | N233: =SUMIFS('AirNav Capex (IAA)'!CO$332:CO$602,'AirNav Capex (IAA)'!$C$332:$C$602,$E233) -> 240
E234: RP4 ICT Projects | F234: €'000 | J234: =SUMIFS('AirNav Capex (IAA)'!CK$332:CK$602,'AirNav Capex (IAA)'!$C$332:$C$602,$E234) -> 100 | K234: =SUMIFS('AirNav Capex (IAA)'!CL$332:CL$602,'AirNav Capex (IAA)'!$C$332:$C$602,$E234) -> 416.6663889 | L234: =SUMIFS('AirNav Capex (IAA)'!CM$332:CM$602,'AirNav Capex (IAA)'!$C$332:$C$602,$E234) -> 816.6666667 | M234: =SUMIFS('AirNav Capex (IAA)'!CN$332:CN$602,'AirNav Capex (IAA)'!$C$332:$C$602,$E234) -> 1116.666667 | N234: =SUMIFS('AirNav Capex (IAA)'!CO$332:CO$602,'AirNav Capex (IAA)'!$C$332:$C$602,$E234) -> 1200.000278
E235: RADAR Overhaul PH2 - Dublin | F235: €'000 | J235: =SUMIFS('AirNav Capex (IAA)'!CK$332:CK$602,'AirNav Capex (IAA)'!$C$332:$C$602,$E235) -> 0 | K235: =SUMIFS('AirNav Capex (IAA)'!CL$332:CL$602,'AirNav Capex (IAA)'!$C$332:$C$602,$E235) -> 0 | L235: =SUMIFS('AirNav Capex (IAA)'!CM$332:CM$602,'AirNav Capex (IAA)'!$C$332:$C$602,$E235) -> 0 | M235: =SUMIFS('AirNav Capex (IAA)'!CN$332:CN$602,'AirNav Capex (IAA)'!$C$332:$C$602,$E235) -> 201.9444444 | N235: =SUMIFS('AirNav Capex (IAA)'!CO$332:CO$602,'AirNav Capex (IAA)'!$C$332:$C$602,$E235) -> 403.8888889
E236: A-SMGCS | F236: €'000 | J236: =SUMIFS('AirNav Capex (IAA)'!CK$332:CK$602,'AirNav Capex (IAA)'!$C$332:$C$602,$E236) -> 0 | K236: =SUMIFS('AirNav Capex (IAA)'!CL$332:CL$602,'AirNav Capex (IAA)'!$C$332:$C$602,$E236) -> 0 | L236: =SUMIFS('AirNav Capex (IAA)'!CM$332:CM$602,'AirNav Capex (IAA)'!$C$332:$C$602,$E236) -> 0 | M236: =SUMIFS('AirNav Capex (IAA)'!CN$332:CN$602,'AirNav Capex (IAA)'!$C$332:$C$602,$E236) -> 0 | N236: =SUMIFS('AirNav Capex (IAA)'!CO$332:CO$602,'AirNav Capex (IAA)'!$C$332:$C$602,$E236) -> 480
E237: RADAR Overhaul PH2 - Shannon | F237: €'000 | J237: =SUMIFS('AirNav Capex (IAA)'!CK$332:CK$602,'AirNav Capex (IAA)'!$C$332:$C$602,$E237) -> 0 | K237: =SUMIFS('AirNav Capex (IAA)'!CL$332:CL$602,'AirNav Capex (IAA)'!$C$332:$C$602,$E237) -> 0 | L237: =SUMIFS('AirNav Capex (IAA)'!CM$332:CM$602,'AirNav Capex (IAA)'!$C$332:$C$602,$E237) -> 393.8888889 | M237: =SUMIFS('AirNav Capex (IAA)'!CN$332:CN$602,'AirNav Capex (IAA)'!$C$332:$C$602,$E237) -> 393.8888889 | N237: =SUMIFS('AirNav Capex (IAA)'!CO$332:CO$602,'AirNav Capex (IAA)'!$C$332:$C$602,$E237) -> 393.8888889
E238: [] | F238: €'000 | J238: =SUMIFS('AirNav Capex (IAA)'!CK$332:CK$602,'AirNav Capex (IAA)'!$C$332:$C$602,$E238) -> 0 | K238: =SUMIFS('AirNav Capex (IAA)'!CL$332:CL$602,'AirNav Capex (IAA)'!$C$332:$C$602,$E238) -> 0 | L238: =SUMIFS('AirNav Capex (IAA)'!CM$332:CM$602,'AirNav Capex (IAA)'!$C$332:$C$602,$E238) -> 0 | M238: =SUMIFS('AirNav Capex (IAA)'!CN$332:CN$602,'AirNav Capex (IAA)'!$C$332:$C$602,$E238) -> 0 | N238: =SUMIFS('AirNav Capex (IAA)'!CO$332:CO$602,'AirNav Capex (IAA)'!$C$332:$C$602,$E238) -> 0
E240: Other RP4 | F240: €'000 | J240: ='AirNav Capex (IAA)'!CK606-SUM(J231:J238) -> 4276.905865 | K240: ='AirNav Capex (IAA)'!CL606-SUM(K231:K238) -> 6331.528248 | L240: ='AirNav Capex (IAA)'!CM606-SUM(L231:L238) -> 8167.011972 | M240: ='AirNav Capex (IAA)'!CN606-SUM(M231:M238) -> 8718.192346 | N240: ='AirNav Capex (IAA)'!CO606-SUM(N231:N238) -> 9549.145297
E241: Pre-RP4 | F241: €'000 | J241: ='AirNav Capex (IAA)'!CK607 -> 8170.191365 | K241: ='AirNav Capex (IAA)'!CL607 -> 7363.512188 | L241: ='AirNav Capex (IAA)'!CM607 -> 6630.504784 | M241: ='AirNav Capex (IAA)'!CN607 -> 5979.568025 | N241: ='AirNav Capex (IAA)'!CO607 -> 4587.671798
E243: Total | F243: €'000 | J243: =SUM(J231:J241) -> 12547.09723 | K243: =SUM(K231:K241) -> 14327.20682 | L243: 16870.07231 | M243: 17512.26037 | N243: 19769.63265 | AB243: =SUM('AirNav Capex (IAA)'!CK608:CO608)-SUM(J243:N243) -> 0
C254: Capex Comparison
D256: Capitalisations
E257: =E167 -> COOPANS TopSky ATC1 | F257: €'000 | J257: =J212-J167 -> 0 | K257: =K212-K167 -> 0 | L257: 0 | M257: 0 | N257: 0
E258: =E168 -> Ballycasey Expansion | F258: €'000 | J258: =J213-J168 -> 0 | K258: 0 | L258: 0 | M258: 0 | N258: -2440
E259: Dublin ACC Expansion | F259: €'000 | J259: =J214-J169 -> 0 | K259: 0 | L259: 0 | M259: -1500 | N259: 0
E260: RP4 ICT Projects | F260: €'000 | J260: =J215-J170 -> -150 | K260: -275 | L260: -300 | M260: -300 | N260: -300
E261: RADAR Overhaul PH2 - Dublin | F261: €'000 | J261: =J216-J171 -> 0 | K261: 0 | L261: 0 | M261: -1211.666667 | N261: 0
E262: A-SMGCS | F262: €'000 | J262: =J217-J172 -> 0 | K262: 0 | L262: 0 | M262: 0 | N262: -2400
E263: RADAR Overhaul PH2 - Shannon | F263: €'000 | J263: =J218-J173 -> 0 | K263: 0 | L263: -1181.666667 | M263: 0 | N263: 0
E264: [] | F264: €'000 | J264: =J219-J174 -> 0 | K264: 0 | L264: 0 | M264: 0 | N264: 0
E266: Other RP4 | F266: €'000 | J266: =J221-J176 -> -4087.795633 | K266: =K221-K176 -> -6822.110106 | L266: =L221-L176 -> -4742.030267 | M266: =M221-M176 -> -2292.022533 | N266: =N221-N176 -> -3558.669867
E268: Total Difference | F268: €'000 | J268: =SUM(J257:J266) -> -4237.795633 | K268: =SUM(K257:K266) -> -7097.110106 | L268: =SUM(L257:L266) -> -6223.696933 | M268: =SUM(M257:M266) -> -5303.6892 | N268: =SUM(N257:N266) -> -8698.669867
E270: Total % Difference | F270: % | J270: =J268/J178 -> -0.1752580224 | K270: =K268/K178 -> -0.1517082686 | L270: -0.1968372931 | M270: -0.1962988249 | N270: -0.1159353507
D275: Depreciation
E276: =E186 -> COOPANS TopSky ATC1 | F276: €'000 | J276: =J231-J186 -> 0 | K276: =K231-K186 -> -107.75 | L276: =L231-L186 -> -431 | M276: -431 | N276: -1408.71875
E277: =E187 -> Ballycasey Expansion | F277: €'000 | J277: =J232-J187 -> 0 | K277: 0 | L277: 0 | M277: 0 | N277: -54.9
... 34 more rows

Sheet DUC & UR
B2: Rates Summary | E2: Item | F2: Units | H2: 2019 | I2: 2020 | J2: 2021 | K2: 2022 | L2: 2023 | M2: 2024 | N2: 2025 | O2: 2026 | P2: 2027 | Q2: 2028 | R2: 2029 | T2: Service Units Scenario: | W2: ='DUC & UR'!$F$6 -> Base
H3: Actual | I3: Actual | J3: Actual | K3: Actual | L3: Actual | M3: Actual | N3: Forecast | O3: Forecast | P3: Forecast | Q3: Forecast | R3: Forecast
E4: Index: | F4: ='Misc. Items'!$F$26 -> 2022 | H4: ='Misc. Items'!I27 -> 90.76568439 | I4: =AVERAGEIFS('Total Costs & Financeability'!$H$5:$Q$5,'Total Costs & Financeability'!$H$3:$Q$3,I$2) -> 90.3490699 | J4: =AVERAGEIFS('Total Costs & Financeability'!$H$5:$Q$5,'Total Costs & Financeability'!$H$3:$Q$3,J$2) -> 92.52919296 | K4: =AVERAGEIFS('Total Costs & Financeability'!$H$5:$Q$5,'Total Costs & Financeability'!$H$3:$Q$3,K$2) -> 100 | L4: =AVERAGEIFS('Total Costs & Financeability'!$H$5:$Q$5,'Total Costs & Financeability'!$H$3:$Q$3,L$2) -> 105.201 | M4: =AVERAGEIFS('Total Costs & Financeability'!$H$5:$Q$5,'Total Costs & Financeability'!$H$3:$Q$3,M$2) -> 106.5928092 | N4: =AVERAGEIFS('Total Costs & Financeability'!$H$5:$Q$5,'Total Costs & Financeability'!$H$3:$Q$3,N$2) -> 108.6266 | O4: =AVERAGEIFS('Total Costs & Financeability'!$H$5:$Q$5,'Total Costs & Financeability'!$H$3:$Q$3,O$2) -> 110.4319741 | P4: =AVERAGEIFS('Total Costs & Financeability'!$H$5:$Q$5,'Total Costs & Financeability'!$H$3:$Q$3,P$2) -> 112.3733682 | Q4: =AVERAGEIFS('Total Costs & Financeability'!$H$5:$Q$5,'Total Costs & Financeability'!$H$3:$Q$3,Q$2) -> 114.5489166 | R4: =AVERAGEIFS('Total Costs & Financeability'!$H$5:$Q$5,'Total Costs & Financeability'!$H$3:$Q$3,R$2) -> 116.8742596
B6: Service Units | E6: Scenario: | F6: Base
G7: 2019 adjustment
E8: En Route | F8: 000s | H8: ='Misc. Items'!I36 -> 4641 | I8: =SUMIFS('Total Costs & Financeability'!$H9:$Q9,'Total Costs & Financeability'!$H$3:$Q$3,'DUC & UR'!I$2) -> 1988 | J8: =SUMIFS('Total Costs & Financeability'!$H9:$Q9,'Total Costs & Financeability'!$H$3:$Q$3,'DUC & UR'!J$2) -> 2419 | K8: =SUMIFS('Total Costs & Financeability'!$H9:$Q9,'Total Costs & Financeability'!$H$3:$Q$3,'DUC & UR'!K$2) -> 4233 | L8: =SUMIFS('Total Costs & Financeability'!$H9:$Q9,'Total Costs & Financeability'!$H$3:$Q$3,'DUC & UR'!L$2) -> 4812 | M8: =SUMIFS('Total Costs & Financeability'!$H9:$Q9,'Total Costs & Financeability'!$H$3:$Q$3,'DUC & UR'!M$2) -> 5048 | N8: =SUMIFS('Total Costs & Financeability'!$H9:$Q9,'Total Costs & Financeability'!$H$3:$Q$3,'DUC & UR'!N$2) -> 5175 | O8: =SUMIFS('Total Costs & Financeability'!$H9:$Q9,'Total Costs & Financeability'!$H$3:$Q$3,'DUC & UR'!O$2) -> 5256 | P8: =SUMIFS('Total Costs & Financeability'!$H9:$Q9,'Total Costs & Financeability'!$H$3:$Q$3,'DUC & UR'!P$2) -> 5349 | Q8: =SUMIFS('Total Costs & Financeability'!$H9:$Q9,'Total Costs & Financeability'!$H$3:$Q$3,'DUC & UR'!Q$2) -> 5458 | R8: =SUMIFS('Total Costs & Financeability'!$H9:$Q9,'Total Costs & Financeability'!$H$3:$Q$3,'DUC & UR'!R$2) -> 5544
E9: Terminal | F9: 000s | H9: ='T1 ANSP TRM'!J68 -> 187.7094468 | I9: =SUMIFS('Total Costs & Financeability'!$H10:$Q10,'Total Costs & Financeability'!$H$3:$Q$3,'DUC & UR'!I$2) -> 71 | J9: =SUMIFS('Total Costs & Financeability'!$H10:$Q10,'Total Costs & Financeability'!$H$3:$Q$3,'DUC & UR'!J$2) -> 75 | K9: =SUMIFS('Total Costs & Financeability'!$H10:$Q10,'Total Costs & Financeability'!$H$3:$Q$3,'DUC & UR'!K$2) -> 170 | L9: =SUMIFS('Total Costs & Financeability'!$H10:$Q10,'Total Costs & Financeability'!$H$3:$Q$3,'DUC & UR'!L$2) -> 193 | M9: =SUMIFS('Total Costs & Financeability'!$H10:$Q10,'Total Costs & Financeability'!$H$3:$Q$3,'DUC & UR'!M$2) -> 205 | N9: =SUMIFS('Total Costs & Financeability'!$H10:$Q10,'Total Costs & Financeability'!$H$3:$Q$3,'DUC & UR'!N$2) -> 215 | O9: =SUMIFS('Total Costs & Financeability'!$H10:$Q10,'Total Costs & Financeability'!$H$3:$Q$3,'DUC & UR'!O$2) -> 221 | P9: =SUMIFS('Total Costs & Financeability'!$H10:$Q10,'Total Costs & Financeability'!$H$3:$Q$3,'DUC & UR'!P$2) -> 226.0649416 | Q9: =SUMIFS('Total Costs & Financeability'!$H10:$Q10,'Total Costs & Financeability'!$H$3:$Q$3,'DUC & UR'!Q$2) -> 232.5306909 | R9: =SUMIFS('Total Costs & Financeability'!$H10:$Q10,'Total Costs & Financeability'!$H$3:$Q$3,'DUC & UR'!R$2) -> 237.3634187
B12: DUC (Actual UC 2019-2023, Forecast DUC 2024-2029) | E12: Price Base: | F12: Real | G12: =INDEX('Misc. Items'!$E$58:$E$59,MATCH(F12,'Misc. Items'!$C$58:$C$59,0)) -> (Operating Costs Real, Capital Costs Nominal)
F13: =INDEX('Misc. Items'!$D$58:$D$59,MATCH(F12,'Misc. Items'!$C$58:$C$59,0)) -> 2
D14: En Route
E15: ANSP | F15: € | H15: =CHOOSE($F$13,'T1 ANSP ERT'!J$61/H$8,'T1 ANSP ERT'!J$70) -> 22.41750793 | I15: =CHOOSE($F$13,'T1 ANSP ERT'!K$61/I$8,'T1 ANSP ERT'!K$70) -> 47.37597709 | J15: =CHOOSE($F$13,'T1 ANSP ERT'!L$61/J$8,'T1 ANSP ERT'!L$70) -> 35.88114701 | K15: =CHOOSE($F$13,'T1 ANSP ERT'!N$61/K$8,'T1 ANSP ERT'!N$70) -> 22.82485065 | L15: =CHOOSE($F$13,'T1 ANSP ERT'!O$61/L$8,'T1 ANSP ERT'!O$70) -> 22.34073208 | M15: =CHOOSE($F$13,'T1 ANSP ERT'!P$61/M$8,'T1 ANSP ERT'!P$70) -> 21.82917121 | N15: =CHOOSE($F$13,'T1 ANSP ERT'!Q$61/N$8,'T1 ANSP ERT'!Q$70) -> 23.53118024 | O15: =CHOOSE($F$13,'T1 ANSP ERT'!R$61/O$8,'T1 ANSP ERT'!R$70) -> 24.5701873 | P15: =CHOOSE($F$13,'T1 ANSP ERT'!S$61/P$8,'T1 ANSP ERT'!S$70) -> 24.6419963 | Q15: =CHOOSE($F$13,'T1 ANSP ERT'!T$61/Q$8,'T1 ANSP ERT'!T$70) -> 24.86491282 | R15: =CHOOSE($F$13,'T1 ANSP ERT'!U$61/R$8,'T1 ANSP ERT'!U$70) -> 25.21968753
E16: MET | F16: € | H16: =CHOOSE($F$13,'T1 MET ERT'!J$61/H$8,'T1 MET ERT'!J$70) -> 1.584974244 | I16: =CHOOSE($F$13,'T1 MET ERT'!K$61/I$8,'T1 MET ERT'!K$70) -> 3.666518702 | J16: =CHOOSE($F$13,'T1 MET ERT'!L$61/J$8,'T1 MET ERT'!L$70) -> 3.158590531 | K16: =CHOOSE($F$13,'T1 MET ERT'!N$61/K$8,'T1 MET ERT'!N$70) -> 1.939101958 | L16: =CHOOSE($F$13,'T1 MET ERT'!O$61/L$8,'T1 MET ERT'!O$70) -> 1.581026267 | M16: =CHOOSE($F$13,'T1 MET ERT'!P$61/M$8,'T1 MET ERT'!P$70) -> 1.644852572 | N16: =CHOOSE($F$13,'T1 MET ERT'!Q$61/N$8,'T1 MET ERT'!Q$70) -> 1.584425971 | O16: =CHOOSE($F$13,'T1 MET ERT'!R$61/O$8,'T1 MET ERT'!R$70) -> 1.584449337 | P16: =CHOOSE($F$13,'T1 MET ERT'!S$61/P$8,'T1 MET ERT'!S$70) -> 1.560742829 | Q16: =CHOOSE($F$13,'T1 MET ERT'!T$61/Q$8,'T1 MET ERT'!T$70) -> 1.492852278 | R16: =CHOOSE($F$13,'T1 MET ERT'!U$61/R$8,'T1 MET ERT'!U$70) -> 1.468555712
E17: Supervision | F17: € | H17: =CHOOSE($F$13,'T1 NSA ERT'!J$61/H$8,'T1 NSA ERT'!J$70) -> 2.710489258 | I17: =CHOOSE($F$13,'T1 NSA ERT'!K$61/I$8,'T1 NSA ERT'!K$70) -> 5.794958629 | J17: =CHOOSE($F$13,'T1 NSA ERT'!L$61/J$8,'T1 NSA ERT'!L$70) -> 5.22369421 | K17: =CHOOSE($F$13,'T1 NSA ERT'!N$61/K$8,'T1 NSA ERT'!N$70) -> 3.33684355 | L17: =CHOOSE($F$13,'T1 NSA ERT'!O$61/L$8,'T1 NSA ERT'!O$70) -> 3.294272652 | M17: =CHOOSE($F$13,'T1 NSA ERT'!P$61/M$8,'T1 NSA ERT'!P$70) -> 3.185044106 | N17: =CHOOSE($F$13,'T1 NSA ERT'!Q$61/N$8,'T1 NSA ERT'!Q$70) -> 3.437612396 | O17: =CHOOSE($F$13,'T1 NSA ERT'!R$61/O$8,'T1 NSA ERT'!R$70) -> 3.474587223 | P17: =CHOOSE($F$13,'T1 NSA ERT'!S$61/P$8,'T1 NSA ERT'!S$70) -> 3.462790703 | Q17: =CHOOSE($F$13,'T1 NSA ERT'!T$61/Q$8,'T1 NSA ERT'!T$70) -> 3.414383929 | R17: =CHOOSE($F$13,'T1 NSA ERT'!U$61/R$8,'T1 NSA ERT'!U$70) -> 3.401465593
B19: ENR Baseline adjustments? | C19: On | E19: Baseline Adj (real only) | H19: =H21-SUM(H15:H17) -> 0.9005674782 | M19: =M21-SUM(M15:M17) -> 0.2298217561
E21: Total | F21: € | H21: =IF(AND(F12="Real",C19="On"),'RP4 PP ERT'!D19, SUM(H15:H17)) -> 27.61353891 | I21: =SUM(I15:I17) -> 56.83745442 | J21: =SUM(J15:J17) -> 44.26343175 | K21: 28.10079616 | L21: 27.216031 | M21: =IF(AND(F12="Real",C19="On"),'RP4 PP ERT'!E18, SUM(M15:M17)) -> 26.88888964 | N21: 28.55321861 | O21: =SUM(O15:O17) -> 29.62922386 | P21: 29.66552983 | Q21: =SUM(Q15:Q17) -> 29.77214903 | R21: 30.08970883 | AG21: =ROUND(IF($F$13=3,SUM(I21:R21)-SUM(#REF!,#REF!)),6) -> 0
E24: DUC YoY | F24: % | I24: =I21/H21-1 -> 1.058318371 | J24: =J21/I21-1 -> -0.221227759 | K24: =K21/J21-1 -> -0.3651464641 | L24: -0.03148541255 | M24: -0.01202017127 | N24: 0.06189652999 | O24: 0.03768420175 | P24: 0.001225343343 | Q24: 0.003594043109 | R24: 0.01066633811
E26: Union-wide Target | F26: % | N26: ='Misc. Items'!P43+IF($F$12='Misc. Items'!$C$58,N4/M4-1,0) -> -0.012 | O26: ='Misc. Items'!Q43+IF($F$12='Misc. Items'!$C$58,O4/N4-1,0) -> -0.012 | P26: ='Misc. Items'!R43+IF($F$12='Misc. Items'!$C$58,P4/O4-1,0) -> -0.012 | Q26: ='Misc. Items'!S43+IF($F$12='Misc. Items'!$C$58,Q4/P4-1,0) -> -0.012 | R26: ='Misc. Items'!S43+IF($F$12='Misc. Items'!$C$58,R4/P4-1,0) -> -0.012
E30: En Route DUC | H30: =H21 -> 27.61353891 | I30: 56.83745442 | J30: 44.26343175 | K30: 28.10079616 | L30: 27.216031 | M30: =M21 -> 26.88888964 | N30: =N21 -> 28.55321861 | O30: 29.62922386 | P30: 29.66552983 | Q30: =Q21 -> 29.77214903 | R30: 30.08970883 | T30: =SUMPRODUCT(N30:R30,$N$8:$R$8)/SUM($N$8:$R$8) -> 29.55301177
E32: Target DUC | F32: € | M32: =M30 -> 26.88888964 | N32: =M32*(1+N26) -> 26.56622297 | O32: =N32*(1+O26) -> 26.24742829 | P32: 25.93245915 | Q32: 25.62126964 | R32: =P32*(1+R26) -> 25.62126964 | T32: =SUMPRODUCT(N32:R32,$N$8:$R$8)/SUM($N$8:$R$8) -> 25.98889626
R35: =R30/M30-1 -> 0.1190387268 | S35: =R30/N30-1 -> 0.05381145449
R36: =R47/M47-1 -> 0.04705338505 | S36: =R47/N47-1 -> 0.04786799426
D42: Terminal
E43: ANSP | F43: € | H43: =CHOOSE($F$13,'T1 ANSP TRM'!J$61/H$9,'T1 ANSP TRM'!J$70) -> 130.2791113 | I43: =CHOOSE($F$13,'T1 ANSP TRM'!K$61/I$9,'T1 ANSP TRM'!K$70) -> 267.8993455 | J43: =CHOOSE($F$13,'T1 ANSP TRM'!L$61/J$9,'T1 ANSP TRM'!L$70) -> 241.6441014 | K43: =CHOOSE($F$13,'T1 ANSP TRM'!N$61/K$9,'T1 ANSP TRM'!N$70) -> 164.6997168 | L43: =CHOOSE($F$13,'T1 ANSP TRM'!O$61/L$9,'T1 ANSP TRM'!O$70) -> 136.725303 | M43: =CHOOSE($F$13,'T1 ANSP TRM'!P$61/M$9,'T1 ANSP TRM'!P$70) -> 138.4248397 | N43: =CHOOSE($F$13,'T1 ANSP TRM'!Q$61/N$9,'T1 ANSP TRM'!Q$70) -> 140.1927706 | O43: =CHOOSE($F$13,'T1 ANSP TRM'!R$61/O$9,'T1 ANSP TRM'!R$70) -> 143.4686132 | P43: =CHOOSE($F$13,'T1 ANSP TRM'!S$61/P$9,'T1 ANSP TRM'!S$70) -> 145.2123211 | Q43: =CHOOSE($F$13,'T1 ANSP TRM'!T$61/Q$9,'T1 ANSP TRM'!T$70) -> 145.1781975 | R43: =CHOOSE($F$13,'T1 ANSP TRM'!U$61/R$9,'T1 ANSP TRM'!U$70) -> 148.7226429
E44: MET | F44: € | H44: =CHOOSE($F$13,'T1 MET TRM'!J$61/H$9,'T1 MET TRM'!J$70) -> 9.795106296 | I44: =CHOOSE($F$13,'T1 MET TRM'!K$61/I$9,'T1 MET TRM'!K$70) -> 25.84723671 | J44: =CHOOSE($F$13,'T1 MET TRM'!L$61/J$9,'T1 MET TRM'!L$70) -> 25.5816213 | K44: =CHOOSE($F$13,'T1 MET TRM'!N$61/K$9,'T1 MET TRM'!N$70) -> 12.07300284 | L44: =CHOOSE($F$13,'T1 MET TRM'!O$61/L$9,'T1 MET TRM'!O$70) -> 9.854726627 | M44: =CHOOSE($F$13,'T1 MET TRM'!P$61/M$9,'T1 MET TRM'!P$70) -> 10.57284102 | N44: =CHOOSE($F$13,'T1 MET TRM'!Q$61/N$9,'T1 MET TRM'!Q$70) -> 9.542217252 | O44: =CHOOSE($F$13,'T1 MET TRM'!R$61/O$9,'T1 MET TRM'!R$70) -> 9.419205246 | P44: =CHOOSE($F$13,'T1 MET TRM'!S$61/P$9,'T1 MET TRM'!S$70) -> 9.232317637 | Q44: =CHOOSE($F$13,'T1 MET TRM'!T$61/Q$9,'T1 MET TRM'!T$70) -> 8.760120764 | R44: =CHOOSE($F$13,'T1 MET TRM'!U$61/R$9,'T1 MET TRM'!U$70) -> 8.575113338
E45: Supervision | F45: € | H45: =CHOOSE($F$13,'T1 NSA TRM'!J$61/H$9,'T1 NSA TRM'!J$70) -> 4.208632083 | I45: =CHOOSE($F$13,'T1 NSA TRM'!K$61/I$9,'T1 NSA TRM'!K$70) -> 10.8549903 | J45: =CHOOSE($F$13,'T1 NSA TRM'!L$61/J$9,'T1 NSA TRM'!L$70) -> 14.82763607 | K45: =CHOOSE($F$13,'T1 NSA TRM'!N$61/K$9,'T1 NSA TRM'!N$70) -> 7.348528529 | L45: =CHOOSE($F$13,'T1 NSA TRM'!O$61/L$9,'T1 NSA TRM'!O$70) -> 7.725388601 | M45: =CHOOSE($F$13,'T1 NSA TRM'!P$61/M$9,'T1 NSA TRM'!P$70) -> 7.824742268 | N45: =CHOOSE($F$13,'T1 NSA TRM'!Q$61/N$9,'T1 NSA TRM'!Q$70) -> 6.965521894 | O45: =CHOOSE($F$13,'T1 NSA TRM'!R$61/O$9,'T1 NSA TRM'!R$70) -> 6.936429318 | P45: =CHOOSE($F$13,'T1 NSA TRM'!S$61/P$9,'T1 NSA TRM'!S$70) -> 6.926605923 | Q45: =CHOOSE($F$13,'T1 NSA TRM'!T$61/Q$9,'T1 NSA TRM'!T$70) -> 6.888596714 | R45: =CHOOSE($F$13,'T1 NSA TRM'!U$61/R$9,'T1 NSA TRM'!U$70) -> 6.903692543
E47: Total | F47: € | H47: =SUM(H43:H45) -> 144.2828497 | I47: =SUM(I43:I45) -> 304.6015725 | J47: =SUM(J43:J45) -> 282.0533588 | K47: 184.1212482 | L47: 154.3054182 | M47: 156.822423 | N47: 156.7005097 | O47: 159.8242478 | P47: 161.3712447 | Q47: =SUM(Q43:Q45) -> 160.826915 | R47: 164.2014488 | T47: =SUMPRODUCT(N47:R47,$N$9:$R$9)/SUM($N$9:$R$9) -> 160.6637273 | AG47: =ROUND(IF($F$13=3,SUM(I47:R47)-SUM(#REF!,#REF!)),6) -> 0
E50: DUC YoY | F50: % | I50: =I47/H47-1 -> 1.111141922 | J50: =J47/I47-1 -> -0.07402527039 | K50: =K47/J47-1 -> -0.3472112901 | L50: -0.1619358455 | M50: 0.0163118367 | N50: -0.0007773967874 | O50: 0.01993444752 | P50: 0.00967936276 | Q50: -0.00337315161 | R50: =R47/P47-1 -> 0.01753846632
B58: Unit Rate (Actual 2020-2024, Forecast 2025-2029) | E58: Price Base: | F58: Nominal
D60: En Route
E62: Determined cost | F62: €'000 | N62: ='T2 ERT'!C81/IF($F$58='Misc. Items'!$C$58,1,N$4/100) -> 157939.6716 | O62: ='T2 ERT'!D81/IF($F$58='Misc. Items'!$C$58,1,O$4/100) -> 168591.7198 | P62: ='T2 ERT'!E81/IF($F$58='Misc. Items'!$C$58,1,P$4/100) -> 173880.735 | Q62: ='T2 ERT'!F81/IF($F$58='Misc. Items'!$C$58,1,Q$4/100) -> 180757.9674 | R62: ='T2 ERT'!G81/IF($F$58='Misc. Items'!$C$58,1,R$4/100) -> 188335.5367
E63: Inflation | F63: €'000 | N63: ='T2 ERT'!C82/IF($F$58='Misc. Items'!$C$58,1,N$4/100) -> 10426.78419 | O63: ='T2 ERT'!D82/IF($F$58='Misc. Items'!$C$58,1,O$4/100) -> 9813.675282 | P63: ='T2 ERT'!E82/IF($F$58='Misc. Items'!$C$58,1,P$4/100) -> 0 | Q63: ='T2 ERT'!F82/IF($F$58='Misc. Items'!$C$58,1,Q$4/100) -> 0 | R63: ='T2 ERT'!G82/IF($F$58='Misc. Items'!$C$58,1,R$4/100) -> 0
E64: TRS | F64: €'000 | N64: ='T2 ERT'!C83/IF($F$58='Misc. Items'!$C$58,1,N$4/100) -> 0 | O64: ='T2 ERT'!D83/IF($F$58='Misc. Items'!$C$58,1,O$4/100) -> 0 | P64: ='T2 ERT'!E83/IF($F$58='Misc. Items'!$C$58,1,P$4/100) -> 0 | Q64: ='T2 ERT'!F83/IF($F$58='Misc. Items'!$C$58,1,Q$4/100) -> 0 | R64: ='T2 ERT'!G83/IF($F$58='Misc. Items'!$C$58,1,R$4/100) -> 0
E65: Cost Sharing | F65: €'000 | N65: ='T2 ERT'!C84/IF($F$58='Misc. Items'!$C$58,1,N$4/100) -> -4028.798803 | O65: ='T2 ERT'!D84/IF($F$58='Misc. Items'!$C$58,1,O$4/100) -> -2032.259147 | P65: ='T2 ERT'!E84/IF($F$58='Misc. Items'!$C$58,1,P$4/100) -> 0 | Q65: ='T2 ERT'!F84/IF($F$58='Misc. Items'!$C$58,1,Q$4/100) -> 0 | R65: ='T2 ERT'!G84/IF($F$58='Misc. Items'!$C$58,1,R$4/100) -> 0
E66: Incentives | F66: €'000 | N66: ='T2 ERT'!C85/IF($F$58='Misc. Items'!$C$58,1,N$4/100) -> 0 | O66: ='T2 ERT'!D85/IF($F$58='Misc. Items'!$C$58,1,O$4/100) -> 0 | P66: ='T2 ERT'!E85/IF($F$58='Misc. Items'!$C$58,1,P$4/100) -> 0 | Q66: ='T2 ERT'!F85/IF($F$58='Misc. Items'!$C$58,1,Q$4/100) -> 0 | R66: ='T2 ERT'!G85/IF($F$58='Misc. Items'!$C$58,1,R$4/100) -> 0
E67: Charges Modulation | F67: €'000 | N67: ='T2 ERT'!C86/IF($F$58='Misc. Items'!$C$58,1,N$4/100) -> 0 | O67: ='T2 ERT'!D86/IF($F$58='Misc. Items'!$C$58,1,O$4/100) -> 0 | P67: ='T2 ERT'!E86/IF($F$58='Misc. Items'!$C$58,1,P$4/100) -> 0 | Q67: ='T2 ERT'!F86/IF($F$58='Misc. Items'!$C$58,1,Q$4/100) -> 0 | R67: ='T2 ERT'!G86/IF($F$58='Misc. Items'!$C$58,1,R$4/100) -> 0
E68: Traffic | F68: €'000 | N68: ='T2 ERT'!C87/IF($F$58='Misc. Items'!$C$58,1,N$4/100) -> 313.7769263 | O68: ='T2 ERT'!D87/IF($F$58='Misc. Items'!$C$58,1,O$4/100) -> -640.4436356 | P68: ='T2 ERT'!E87/IF($F$58='Misc. Items'!$C$58,1,P$4/100) -> 0 | Q68: ='T2 ERT'!F87/IF($F$58='Misc. Items'!$C$58,1,Q$4/100) -> 0 | R68: ='T2 ERT'!G87/IF($F$58='Misc. Items'!$C$58,1,R$4/100) -> 0
E69: Other Revenue | F69: €'000 | N69: ='T2 ERT'!C88/IF($F$58='Misc. Items'!$C$58,1,N$4/100) -> -1823.382 | O69: ='T2 ERT'!D88/IF($F$58='Misc. Items'!$C$58,1,O$4/100) -> -1450.225 | P69: ='T2 ERT'!E88/IF($F$58='Misc. Items'!$C$58,1,P$4/100) -> 0 | Q69: ='T2 ERT'!F88/IF($F$58='Misc. Items'!$C$58,1,Q$4/100) -> 0 | R69: ='T2 ERT'!G88/IF($F$58='Misc. Items'!$C$58,1,R$4/100) -> 0
E70: Cross-financing | F70: €'000 | N70: ='T2 ERT'!C89/IF($F$58='Misc. Items'!$C$58,1,N$4/100) -> 0 | O70: ='T2 ERT'!D89/IF($F$58='Misc. Items'!$C$58,1,O$4/100) -> 0 | P70: ='T2 ERT'!E89/IF($F$58='Misc. Items'!$C$58,1,P$4/100) -> 0 | Q70: ='T2 ERT'!F89/IF($F$58='Misc. Items'!$C$58,1,Q$4/100) -> 0 | R70: ='T2 ERT'!G89/IF($F$58='Misc. Items'!$C$58,1,R$4/100) -> 0
E71: Temporary UR | F71: €'000 | N71: ='T2 ERT'!C90/IF($F$58='Misc. Items'!$C$58,1,N$4/100) -> 9847.892172 | O71: ='T2 ERT'!D90/IF($F$58='Misc. Items'!$C$58,1,O$4/100) -> 9847.892172 | P71: ='T2 ERT'!E90/IF($F$58='Misc. Items'!$C$58,1,P$4/100) -> 9847.892172 | Q71: ='T2 ERT'!F90/IF($F$58='Misc. Items'!$C$58,1,Q$4/100) -> 9847.892172 | R71: ='T2 ERT'!G90/IF($F$58='Misc. Items'!$C$58,1,R$4/100) -> 9847.892172
E72: Total | F72: €'000 | N72: ='T2 ERT'!C91/IF($F$58='Misc. Items'!$C$58,1,N$4/100) -> 172675.9441 | O72: ='T2 ERT'!D91/IF($F$58='Misc. Items'!$C$58,1,O$4/100) -> 184130.3595 | P72: ='T2 ERT'!E91/IF($F$58='Misc. Items'!$C$58,1,P$4/100) -> 183728.6271 | Q72: ='T2 ERT'!F91/IF($F$58='Misc. Items'!$C$58,1,Q$4/100) -> 190605.8596 | R72: ='T2 ERT'!G91/IF($F$58='Misc. Items'!$C$58,1,R$4/100) -> 198183.4288
E74: Unit Rate | F74: € | I74: ='Misc. Items'!J46/IF($F$58='Misc. Items'!$C$59,I$4/100,1) -> 38.37 | J74: ='Misc. Items'!K46/IF($F$58='Misc. Items'!$C$59,J$4/100,1) -> 38.37 | K74: ='Misc. Items'!L46/IF($F$58='Misc. Items'!$C$59,K$4/100,1) -> 29.15 | L74: ='Misc. Items'!M46/IF($F$58='Misc. Items'!$C$59,L$4/100,1) -> 26.37 | M74: ='Misc. Items'!N46/IF($F$58='Misc. Items'!$C$59,M$4/100,1) -> 28.78 | N74: =N72/N8 -> 33.3673322 | O74: =O72/O8 -> 35.03241238 | P74: =P72/P8 -> 34.34821969 | Q74: =Q72/Q8 -> 34.92229014 | R74: =R72/R8 -> 35.74737172 | AG74: =IF($F$12='Misc. Items'!$C$59,0,SUM(N74:R74)-SUM(#REF!)) -> 0
D77: Terminal
E79: Determined cost | F79: €'000 | N79: ='T2 TRM'!C81/IF($F$58='Misc. Items'!$C$58,1,N$4/100) -> 35610.9257 | O79: ='T2 TRM'!D81/IF($F$58='Misc. Items'!$C$58,1,O$4/100) -> 37787.97174 | P79: ='T2 TRM'!E81/IF($F$58='Misc. Items'!$C$58,1,P$4/100) -> 39370.89361 | Q79: ='T2 TRM'!F81/IF($F$58='Misc. Items'!$C$58,1,Q$4/100) -> 40851.79177 | R79: ='T2 TRM'!G81/IF($F$58='Misc. Items'!$C$58,1,R$4/100) -> 43047.28829
E80: Inflation | F80: €'000 | N80: ='T2 TRM'!C82/IF($F$58='Misc. Items'!$C$58,1,N$4/100) -> 2031.820972 | O80: ='T2 TRM'!D82/IF($F$58='Misc. Items'!$C$58,1,O$4/100) -> 1956.739929 | P80: ='T2 TRM'!E82/IF($F$58='Misc. Items'!$C$58,1,P$4/100) -> 0 | Q80: ='T2 TRM'!F82/IF($F$58='Misc. Items'!$C$58,1,Q$4/100) -> 0 | R80: ='T2 TRM'!G82/IF($F$58='Misc. Items'!$C$58,1,R$4/100) -> 0
E81: TRS | F81: €'000 | N81: ='T2 TRM'!C83/IF($F$58='Misc. Items'!$C$58,1,N$4/100) -> -1549.381113 | O81: ='T2 TRM'!D83/IF($F$58='Misc. Items'!$C$58,1,O$4/100) -> -821.838348 | P81: ='T2 TRM'!E83/IF($F$58='Misc. Items'!$C$58,1,P$4/100) -> 0 | Q81: ='T2 TRM'!F83/IF($F$58='Misc. Items'!$C$58,1,Q$4/100) -> 0 | R81: ='T2 TRM'!G83/IF($F$58='Misc. Items'!$C$58,1,R$4/100) -> 0
E82: Cost Sharing | F82: €'000 | N82: ='T2 TRM'!C84/IF($F$58='Misc. Items'!$C$58,1,N$4/100) -> -734.7558823 | O82: ='T2 TRM'!D84/IF($F$58='Misc. Items'!$C$58,1,O$4/100) -> -1335.614157 | P82: ='T2 TRM'!E84/IF($F$58='Misc. Items'!$C$58,1,P$4/100) -> -1500.133063 | Q82: ='T2 TRM'!F84/IF($F$58='Misc. Items'!$C$58,1,Q$4/100) -> -1500.133063 | R82: ='T2 TRM'!G84/IF($F$58='Misc. Items'!$C$58,1,R$4/100) -> -1500.133063
E83: Incentives | F83: €'000 | N83: ='T2 TRM'!C85/IF($F$58='Misc. Items'!$C$58,1,N$4/100) -> 0 | O83: ='T2 TRM'!D85/IF($F$58='Misc. Items'!$C$58,1,O$4/100) -> -143.24437 | P83: ='T2 TRM'!E85/IF($F$58='Misc. Items'!$C$58,1,P$4/100) -> 0 | Q83: ='T2 TRM'!F85/IF($F$58='Misc. Items'!$C$58,1,Q$4/100) -> 0 | R83: ='T2 TRM'!G85/IF($F$58='Misc. Items'!$C$58,1,R$4/100) -> 0
E84: Charges Modulation | F84: €'000 | N84: ='T2 TRM'!C86/IF($F$58='Misc. Items'!$C$58,1,N$4/100) -> 0 | O84: ='T2 TRM'!D86/IF($F$58='Misc. Items'!$C$58,1,O$4/100) -> 0 | P84: ='T2 TRM'!E86/IF($F$58='Misc. Items'!$C$58,1,P$4/100) -> 0 | Q84: ='T2 TRM'!F86/IF($F$58='Misc. Items'!$C$58,1,Q$4/100) -> 0 | R84: ='T2 TRM'!G86/IF($F$58='Misc. Items'!$C$58,1,R$4/100) -> 0
E85: Traffic | F85: €'000 | N85: ='T2 TRM'!C87/IF($F$58='Misc. Items'!$C$58,1,N$4/100) -> -87.0016026 | O85: ='T2 TRM'!D87/IF($F$58='Misc. Items'!$C$58,1,O$4/100) -> -319.2967579 | P85: ='T2 TRM'!E87/IF($F$58='Misc. Items'!$C$58,1,P$4/100) -> 0 | Q85: ='T2 TRM'!F87/IF($F$58='Misc. Items'!$C$58,1,Q$4/100) -> 0 | R85: ='T2 TRM'!G87/IF($F$58='Misc. Items'!$C$58,1,R$4/100) -> 0
E86: Other Revenue | F86: €'000 | N86: ='T2 TRM'!C88/IF($F$58='Misc. Items'!$C$58,1,N$4/100) -> -799.41 | O86: ='T2 TRM'!D88/IF($F$58='Misc. Items'!$C$58,1,O$4/100) -> -753.481 | P86: ='T2 TRM'!E88/IF($F$58='Misc. Items'!$C$58,1,P$4/100) -> 0 | Q86: ='T2 TRM'!F88/IF($F$58='Misc. Items'!$C$58,1,Q$4/100) -> 0 | R86: ='T2 TRM'!G88/IF($F$58='Misc. Items'!$C$58,1,R$4/100) -> 0
E87: Cross-financing | F87: €'000 | N87: ='T2 TRM'!C89/IF($F$58='Misc. Items'!$C$58,1,N$4/100) -> 0 | O87: ='T2 TRM'!D89/IF($F$58='Misc. Items'!$C$58,1,O$4/100) -> 0 | P87: ='T2 TRM'!E89/IF($F$58='Misc. Items'!$C$58,1,P$4/100) -> 0 | Q87: ='T2 TRM'!F89/IF($F$58='Misc. Items'!$C$58,1,Q$4/100) -> 0 | R87: ='T2 TRM'!G89/IF($F$58='Misc. Items'!$C$58,1,R$4/100) -> 0
E88: Temporary UR | F88: €'000 | N88: ='T2 TRM'!C90/IF($F$58='Misc. Items'!$C$58,1,N$4/100) -> 1777.309937 | O88: ='T2 TRM'!D90/IF($F$58='Misc. Items'!$C$58,1,O$4/100) -> 1777.309937 | P88: ='T2 TRM'!E90/IF($F$58='Misc. Items'!$C$58,1,P$4/100) -> 1777.309937 | Q88: ='T2 TRM'!F90/IF($F$58='Misc. Items'!$C$58,1,Q$4/100) -> 1777.309937 | R88: ='T2 TRM'!G90/IF($F$58='Misc. Items'!$C$58,1,R$4/100) -> 1777.309937
E89: Total | F89: €'000 | N89: ='T2 TRM'!C91/IF($F$58='Misc. Items'!$C$58,1,N$4/100) -> 36249.50801 | O89: ='T2 TRM'!D91/IF($F$58='Misc. Items'!$C$58,1,O$4/100) -> 38148.54697 | P89: ='T2 TRM'!E91/IF($F$58='Misc. Items'!$C$58,1,P$4/100) -> 39648.07048 | Q89: ='T2 TRM'!F91/IF($F$58='Misc. Items'!$C$58,1,Q$4/100) -> 41128.96865 | R89: ='T2 TRM'!G91/IF($F$58='Misc. Items'!$C$58,1,R$4/100) -> 43324.46517
E91: Unit Rate | F91: € | I91: ='Misc. Items'!J47/IF($F$58='Misc. Items'!$C$59,I$4/100,1) -> 183.34 | J91: ='Misc. Items'!K47/IF($F$58='Misc. Items'!$C$59,J$4/100,1) -> 183.34 | K91: ='Misc. Items'!L47/IF($F$58='Misc. Items'!$C$59,K$4/100,1) -> 146.49 | L91: ='Misc. Items'!M47/IF($F$58='Misc. Items'!$C$59,L$4/100,1) -> 162.85 | M91: ='Misc. Items'!N47/IF($F$58='Misc. Items'!$C$59,M$4/100,1) -> 184.9 | N91: =N89/N9 -> 168.6023628 | O91: =O89/O9 -> 172.6178596 | P91: =P89/P9 -> 175.3835433 | Q91: =Q89/Q9 -> 176.8754417 | R91: =R89/R9 -> 182.5237663 | AG91: =IF($F$12='Misc. Items'!$C$59,0,SUM(N91:R91)-SUM(#REF!)) -> 0
B94: END

Sheet Misc. Items
H2: Period Start | I2: 01/01/20219 | J2: 2020-01-01 | K2: 2021-01-01 | L2: 2022-01-01 | M2: 2023-01-01 | N2: 2024-01-01 | O2: 2025-01-01 | P2: 2026-01-01 | Q2: 2027-01-01 | R2: 2028-01-01 | S2: 2029-01-01 | T2: 2030-01-01 | U2: 2031-01-01 | V2: 2032-01-01 | W2: 2033-01-01 | X2: 2034-01-01 | Y2: 2035-01-01 | Z2: 2036-01-01 | AA2: 2037-01-01 | AB2: 2038-01-01 | AC2: 2039-01-01
C3: Cost Data | H3: Period End | I3: 2019-12-31 | J3: 2020-12-31 | K3: 2021-12-31 | L3: 2022-12-31 | M3: 2023-12-31 | N3: 2024-12-31 | O3: 2025-12-31 | P3: 2026-12-31 | Q3: 2027-12-31 | R3: 2028-12-31 | S3: 2029-12-31 | T3: 2030-12-31 | U3: 2031-12-31 | V3: 2032-12-31 | W3: 2033-12-31 | X3: 2034-12-31 | Y3: 2035-12-31 | Z3: 2036-12-31 | AA3: 2037-12-31 | AB3: 2038-12-31 | AC3: 2039-12-31
C4: Assumption | H4: Year | I4: 2019 | J4: 2020 | K4: 2021 | L4: 2022 | M4: 2023 | N4: 2024 | O4: 2025 | P4: 2026 | Q4: 2027 | R4: 2028 | S4: 2029 | T4: 2030 | U4: 2031 | V4: 2032 | W4: 2033 | X4: 2034 | Y4: 2035 | Z4: 2036 | AA4: 2037 | AB4: 2038 | AC4: 2039
C5: ="Price Base: "&'Misc. Items'!$F$26 -> Price Base: 2022 | H5: Period Counter | I5: 0 | J5: 1 | K5: 2 | L5: 3 | M5: 4 | N5: 5 | O5: 6 | P5: 7 | Q5: 8 | R5: 9 | S5: 10 | T5: 11 | U5: 12 | V5: 13 | W5: 14 | X5: 15 | Y5: 16 | Z5: 17 | AA5: 18 | AB5: 19 | AC5: 20
H6: RP# | I6: RP2 | J6: RP3 | K6: RP3 | L6: RP3 | M6: RP3 | N6: RP3 | O6: RP4 | P6: RP4 | Q6: RP4 | R6: RP4 | S6: RP4 | T6: RP5 | U6: RP5 | V6: RP5 | W6: RP5 | X6: RP5 | Y6: RP6 | Z6: RP6 | AA6: RP6 | AB6: RP6 | AC6: RP6
B8: Sources
E11: ANSP | J11: Actual | K11: Actual | L11: Actual | M11: Actual | N11: Forecast | O11: Forecast | P11: Forecast | Q11: Forecast | R11: Forecast | S11: Forecast
E12: Source: | F12: Non-Staff Opex | J12: June 23 RTs | M12: AirNav opex forecast
F13: Staff Opex
F14: Capex & Depreication | M14: AirNav capex forecast
F15: Cost of Capital | M15: AirNav WACC forecast
E17: MET | J17: Actual | K17: Actual | L17: Actual | M17: Actual | N17: Forecast | O17: Forecast | P17: Forecast | Q17: Forecast | R17: Forecast | S17: Forecast
E18: Source: | J18: June 23 RTs | M18: MET forecast
E20: Supervision | J20: Actual | K20: Actual | L20: Actual | M20: Actual | N20: Forecast | O20: Forecast | P20: Forecast | Q20: Forecast | R20: Forecast | S20: Forecast
E21: Source: | J21: June 23 RTs | M21: NSA forecast
B23: Misc Items
C25: Inflation | F25: Price Base | J25: IMF WEO April 2024
C26: CPI | E26: % | F26: 2022 | H26: 2025-04-01 | I26: 0.00885 | J26: -0.00459 | K26: 0.02413 | L26: 0.08074 | M26: 0.05201 | N26: 0.01323 | O26: 0.01908 | P26: 0.01662 | Q26: 0.01758 | R26: 0.01936 | S26: 0.0203
C27: Index | E27: # | I27: =IF(I$4=$F$26,100,IF(I$4>$F$26,H27*(1+I26),J27/(1+J26))) -> 90.76568439 | J27: 90.3490699 | K27: 92.52919296 | L27: 100 | M27: 105.201 | N27: 106.5928092 | O27: 108.6266 | P27: 110.4319741 | Q27: 112.3733682 | R27: 114.5489166 | S27: =IF(S$4=$F$26,100,IF(S$4>$F$26,R27*(1+S26),T27/(1+T26))) -> 116.8742596
C29: WACC CPI | E29: % | H29: 2025-04-01 | J29: -0.00459 | K29: 0.02413 | L29: 0.08074 | M29: 0.05201 | N29: 0.01323 | O29: 0.01908 | P29: 0.01662 | Q29: 0.01758 | R29: 0.01936 | S29: 0.0203
C31: Service Units | F31: Scenario
C32: Base | F32: ='DUC & UR'!F6 -> Base
C33: En-route | E33: 000s | I33: 4641 | J33: 1988 | K33: 2419 | L33: 4233 | M33: 4812 | N33: 4988 | O33: 5175 | P33: 5256 | Q33: 5349 | R33: 5458 | S33: 5544
C34: Terminal | E34: 000s | I34: 188 | J34: 71 | K34: 75 | L34: 170 | M34: 193 | N34: 194 | O34: 214.8191606 | P34: 221.0341928 | Q34: 226.0649416 | R34: 232.5306909 | S34: 237.3634187
C35: Modulated
C36: En-route | E36: 000s | F36: -0.0074 | I36: 4641 | J36: 1988 | K36: 2419 | L36: 4233 | M36: 4812 | N36: 5048 | O36: 5175 | P36: 5256 | Q36: =Q33*INDEX($D$61:$D$63,MATCH($F$32,$C$61:$C$63,0)) -> 5349 | R36: =R33*INDEX($D$61:$D$63,MATCH($F$32,$C$61:$C$63,0)) -> 5458 | S36: 5544
C37: Terminal | E37: 000s | I37: 188 | J37: 71 | K37: 75 | L37: 170 | M37: 193 | N37: 205 | O37: 215 | P37: 221 | Q37: 226.0649416 | R37: 232.5306909 | S37: 237.3634187
C39: Costs for exempted VFR flights
E40: €'000s | J40: 127 | K40: 127 | L40: 127 | M40: 127 | N40: 127 | O40: 127 | P40: 127 | Q40: 127 | R40: 127 | S40: 127
C42: DUC Target (Union-wide)
C43: En Route | E43: % | O43: -0.012 | P43: -0.012 | Q43: -0.012 | R43: -0.012 | S43: -0.012
C45: RP3 UR
C46: En Route | E46: € | F46: Nominal | J46: 38.37 | K46: 38.37 | L46: 29.15 | M46: 26.37 | N46: 28.78
C47: Terminal | E47: € | F47: Nominal | J47: 183.34 | K47: 183.34 | L47: 146.49 | M47: 162.85 | N47: 184.9
B50: Lists
C52: ANSP | D52: 1
C53: MET | D53: 2
C54: Supervision | D54: 3
C55: Total | D55: 4
D57: DUC
C58: Nominal | D58: 1 | E58: (All Costs Nominal)
C59: Real | D59: 2 | E59: (Operating Costs Real, Capital Costs Nominal)
C61: +10% | D61: 1.1 | E61: 3
C62: Base | D62: 1 | E62: 2
C63: -10% | D63: 0.9 | E63: 1
C65: COOPANS TopSky ATC1
C66: On | D66: 1
C67: Off | D67: 0
B70: END

Sheet DC>>>
B8: =IF(CELL("filename",$A$1)="","",MID(CELL("filename",$A$1),FIND("]",CELL("filename",$A$1))+1,99)) -> 

Sheet AirNav>>
B8: AirNav>>

Sheet AirNav Capex
P2: Project Details>> | CF2: Period Start | CG2: 2020-01-01 | CH2: 2021-01-01 | CI2: 2022-01-01 | CJ2: 2023-01-01 | CK2: 2024-01-01 | CL2: 2025-01-01 | CM2: 2026-01-01 | CN2: 2027-01-01 | CO2: 2028-01-01 | CP2: 2029-01-01
C3: Cost Data | P3: (Expand) | CF3: Period End | CG3: 2020-12-31 | CH3: 2021-12-31 | CI3: 2022-12-31 | CJ3: 2023-12-31 | CK3: 2024-12-31 | CL3: 2025-12-31 | CM3: 2026-12-31 | CN3: 2027-12-31 | CO3: 2028-12-31 | CP3: 2029-12-31
C4: Assumption | Q4: Months of Depreciation>> | CF4: Year | CG4: 2020 | CH4: 2021 | CI4: 2022 | CJ4: 2023 | CK4: 2024 | CL4: 2025 | CM4: 2026 | CN4: 2027 | CO4: 2028 | CP4: 2029
C5: Price Base: Nominal | CF5: Period Counter | CG5: 1 | CH5: 2 | CI5: 3 | CJ5: 4 | CK5: 5 | CL5: 6 | CM5: 7 | CN5: 8 | CO5: 9 | CP5: 10
C6: Project | D6: Division | E6: Asset Type | F6: Large Projects | G6: Asset Code | H6: RP3/RP4 | I6: Year | J6: Capitalisation start | K6: Total Cost | L6: Units | M6: Life: Years | N6: Life: Months | Q6: 2023 Projects | Y6: 2024 Projects | AG6: 2025 Projects | AO6: 2026 Projects | AW6: 2027 Projects | BE6: 2028 Project | BM6: 2029 Projects | BU6: % of Year | CC6: En-Route % | CE6: Terminal % | CF6: RP# | CG6: RP3 | CH6: RP3 | CI6: RP3 | CJ6: RP3 | CK6: RP3 | CL6: RP4 | CM6: RP4 | CN6: RP4 | CO6: RP4 | CP6: RP4
B8: Previous Periods
C11: Capitalised Assets
C12: Source: IAA RP4 Opening RAB - v0.10.xlsb O_Summary
C13: Total (Incl. non-regulated)
C14: Closing RAB | L14: €'000 | CK14: 91379.03254 | CL14: =CK14-CL15 -> 79787.9356 | CM14: =CL14-CM15 -> 68918.31529 | CN14: =CM14-CN15 -> 59061.30781 | CO14: =CN14-CO15 -> 50390.81844 | CP14: =CO14-CP15 -> 43336.73071
C15: Depreciation | L15: €'000 | CJ15: 10439.67967 | CK15: 10283.68701 | CL15: 11591.09694 | CM15: 10869.62031 | CN15: 9857.007484 | CO15: 8670.489366 | CP15: 7054.087725
C17: ENR
C18: Closing RAB | L18: €'000 | CK18: 42519.2966 | CL18: =CK18-CL19 -> 35633.81017 | CM18: =CL18-CM19 -> 29201.02545 | CN18: =CM18-CN19 -> 23523.13232 | CO18: =CN18-CO19 -> 18748.57672 | CP18: =CO18-CP19 -> 15267.6969
C19: Depreciation | L19: €'000 | CJ19: 6325.234773 | CK19: 6029.681966 | CL19: 6885.486429 | CM19: 6432.78472 | CN19: 5677.893129 | CO19: 4774.555608 | CP19: 3480.879811
C21: TER
C22: Closing RAB | L22: €'000 | CK22: 49190.11157 | CL22: =CK22-CL23 -> 44675.17363 | CM22: =CL22-CM23 -> 40413.04715 | CN22: =CM22-CN23 -> 36359.70713 | CO22: =CN22-CO23 -> 32489.12118 | CP22: =CO22-CP23 -> 28921.5423
C23: Depreciation | L23: €'000 | CJ23: 4040.773322 | CK23: 4125.001664 | CL23: 4514.93794 | CM23: 4262.126487 | CN23: 4053.340017 | CO23: 3870.585955 | CP23: 3567.578874
C25: Notional Assets
C27: Total (Incl. non-regulated)
C28: Notional interest | L28: €'000 | CL28: 1491.534539 | CM28: 980.5628943 | CN28: 979.7418003 | CO28: 956.3709198 | CP28: 681.5580085
C30: ENR
C31: Notional interest | L31: €'000 | CL31: 497.4815516 | CM31: 491.380269 | CN31: 490.559175 | CO31: 467.1882945 | CP31: 209.9261456
C33: TER
C34: Notional interest | L34: €'000 | CL34: 496.5714357 | CM34: 489.1826253 | CN34: 489.1826253 | CO34: 489.1826253 | CP34: 471.6318629
B36: Current Period
B38: Total ANSP
B40: Capex | CQ40: RP4 Total Capex
C42: Capex in year (Other) | L42: €'000 | CL42: 33117.348 | CM42: 32102 | CN42: 31227.25 | CO42: 33616.016 | CP42: 25162.49 | CQ42: =SUM(CL42:CP42) -> 155225.104
C43: Capex in year (TopSky ATC One) | L43: €'000 | CL43: 9158.866 | CM43: 9983.069 | CN43: 7882.096 | CO43: 6023.37 | CP43: 5855.047 | CQ43: =SUM(CL43:CP43) -> 38902.448
B45: Capitalisation | O45: 1 Year % | Q45: 2023 | R45: 2024 | S45: 2025 | T45: 2026 | U45: 2027 | V45: 2028 | W45: 2029 | Y45: 2023 | Z45: 2024 | AA45: 2025 | AB45: 2026 | AC45: 2027 | AD45: 2028 | AE45: 2029 | AG45: 2023 | AH45: 2024 | AI45: 2025 | AJ45: 2026 | AK45: 2027 | AL45: 2028 | AM45: 2029 | AO45: 2023 | AP45: 2024 | AQ45: 2025 | AR45: 2026 | AS45: 2027 | AT45: 2028 | AU45: 2029 | AW45: 2023 | AX45: 2024 | AY45: 2025 | AZ45: 2026 | BA45: 2027 | BB45: 2028 | BC45: 2029 | BE45: 2023 | BF45: 2024 | BG45: 2025 | BH45: 2026 | BI45: 2027 | BJ45: 2028 | BK45: 2029 | BM45: 2023 | BN45: 2024 | BO45: 2025 | BP45: 2026 | BQ45: 2027 | BR45: 2028 | BS45: 2029 | BU45: 2023 | BV45: 2024 | BW45: 2025 | BX45: 2026 | BY45: 2027 | BZ45: 2028 | CA45: 2029 | CC45: En-Route % | CE45: Terminal %
C47: COOPANS 2019 Roadmap Builds | D47: ATM Operations & Technology & Training | E47: FDPS | F47: COOPANS | G47: U002 | H47: 0 | I47: 0 | K47: =SUM(CG47:CP47) -> 0 | L47: €'000 | M47: 0 | N47: =M47*12 -> 0 | O47: =IFERROR(1/M47,0) -> 0 | Q47: 0 | R47: =IF($CJ47=0,0,IF(SUM(Q47:$Q47)<($N47-12),12,$N47-SUM(Q47:$Q47))) -> 0 | S47: =IF($CJ47=0,0,IF(SUM($Q47:R47)<($N47-12),12,$N47-SUM($Q47:R47))) -> 0 | T47: =IF($CJ47=0,0,IF(SUM($Q47:S47)<($N47-12),12,$N47-SUM($Q47:S47))) -> 0 | U47: =IF($CJ47=0,0,IF(SUM($Q47:T47)<($N47-12),12,$N47-SUM($Q47:T47))) -> 0 | V47: =IF($CJ47=0,0,IF(SUM($Q47:U47)<($N47-12),12,$N47-SUM($Q47:U47))) -> 0 | W47: =IF($CJ47=0,0,IF(SUM($Q47:V47)<($N47-12),12,$N47-SUM($Q47:V47))) -> 0 | Z47: 0 | AA47: =IF($CK47=0,0,IF(SUM(Z47:$Z47)<($N47-12),12,$N47-SUM(Z47:$Z47))) -> 0 | AB47: =IF($CK47=0,0,IF(SUM($Z47:AA47)<($N47-12),12,$N47-SUM($Z47:AA47))) -> 0 | AC47: =IF($CK47=0,0,IF(SUM($Z47:AB47)<($N47-12),12,$N47-SUM($Z47:AB47))) -> 0 | AD47: =IF($CK47=0,0,IF(SUM($Z47:AC47)<($N47-12),12,$N47-SUM($Z47:AC47))) -> 0 | AE47: =IF($CK47=0,0,IF(SUM($Z47:AD47)<($N47-12),12,$N47-SUM($Z47:AD47))) -> 0 | AI47: 0 | AJ47: =IF($CL47=0,0,IF(SUM($AI47:AI47)<($N47-12),12,$N47-SUM($AI47:AI47))) -> 0 | AK47: =IF($CL47=0,0,IF(SUM($AI47:AJ47)<($N47-12),12,$N47-SUM($AI47:AJ47))) -> 0 | AL47: =IF($CL47=0,0,IF(SUM($AI47:AK47)<($N47-12),12,$N47-SUM($AI47:AK47))) -> 0 | AM47: =IF($CL47=0,0,IF(SUM($AI47:AL47)<($N47-12),12,$N47-SUM($AI47:AL47))) -> 0 | AR47: 0 | AS47: =IF($CM47=0,0,IF(SUM($AQ47:AR47)<($N47-12),12,$N47-SUM($AQ47:AR47))) -> 0 | AT47: =IF($CM47=0,0,IF(SUM($AQ47:AS47)<($N47-12),12,$N47-SUM($AQ47:AS47))) -> 0 | AU47: =IF($CM47=0,0,IF(SUM($AQ47:AT47)<($N47-12),12,$N47-SUM($AQ47:AT47))) -> 0 | BA47: 0 | BB47: =IF($CN47=0,0,IF(SUM($AY47:BA47)<($N47-12),12,$N47-SUM($AY47:BA47))) -> 0 | BC47: =IF($CN47=0,0,IF(SUM($AY47:BB47)<($N47-12),12,$N47-SUM($AY47:BB47))) -> 0 | BJ47: 0 | BK47: =IF($CO47=0,0,IF(SUM($BG47:BJ47)<($N47-12),12,$N47-SUM($BG47:BJ47))) -> 0 | BS47: 0 | BU47: =Q47/12 -> 0 | BV47: =Z47/12 -> 0 | BW47: =AI47/12 -> 0 | BX47: =AR47/12 -> 0 | BY47: =BA47/12 -> 0 | BZ47: =BJ47/12 -> 0 | CA47: =BS47/12 -> 0 | CC47: 0 | CE47: 0 | CJ47: 0 | CK47: 0 | CL47: 0 | CM47: 0 | CN47: 0 | CO47: 0 | CP47: 0
C48: COOPANS 2019 Roadmap Builds 3.9 Dublin | D48: ATM Operations & Technology & Training | E48: FDPS | F48: COOPANS | G48: U002A | H48: RP3 | I48: 2024 | J48: 2024-07-01 | K48: =SUM(CG48:CP48) -> 498.75 | L48: €'000 | M48: 8 | N48: =M48*12 -> 96 | O48: =IFERROR(1/M48,0) -> 0.125 | Q48: 0 | R48: =IF($CJ48=0,0,IF(SUM(Q48:$Q48)<($N48-12),12,$N48-SUM(Q48:$Q48))) -> 0 | S48: =IF($CJ48=0,0,IF(SUM($Q48:R48)<($N48-12),12,$N48-SUM($Q48:R48))) -> 0 | T48: =IF($CJ48=0,0,IF(SUM($Q48:S48)<($N48-12),12,$N48-SUM($Q48:S48))) -> 0 | U48: =IF($CJ48=0,0,IF(SUM($Q48:T48)<($N48-12),12,$N48-SUM($Q48:T48))) -> 0 | V48: =IF($CJ48=0,0,IF(SUM($Q48:U48)<($N48-12),12,$N48-SUM($Q48:U48))) -> 0 | W48: =IF($CJ48=0,0,IF(SUM($Q48:V48)<($N48-12),12,$N48-SUM($Q48:V48))) -> 0 | Z48: 6 | AA48: =IF($CK48=0,0,IF(SUM(Z48:$Z48)<($N48-12),12,$N48-SUM(Z48:$Z48))) -> 12 | AB48: =IF($CK48=0,0,IF(SUM($Z48:AA48)<($N48-12),12,$N48-SUM($Z48:AA48))) -> 12 | AC48: =IF($CK48=0,0,IF(SUM($Z48:AB48)<($N48-12),12,$N48-SUM($Z48:AB48))) -> 12 | AD48: =IF($CK48=0,0,IF(SUM($Z48:AC48)<($N48-12),12,$N48-SUM($Z48:AC48))) -> 12 | AE48: =IF($CK48=0,0,IF(SUM($Z48:AD48)<($N48-12),12,$N48-SUM($Z48:AD48))) -> 12 | AJ48: =IF($CL48=0,0,IF(SUM($AI48:AI48)<($N48-12),12,$N48-SUM($AI48:AI48))) -> 0 | AK48: =IF($CL48=0,0,IF(SUM($AI48:AJ48)<($N48-12),12,$N48-SUM($AI48:AJ48))) -> 0 | AL48: =IF($CL48=0,0,IF(SUM($AI48:AK48)<($N48-12),12,$N48-SUM($AI48:AK48))) -> 0 | AM48: =IF($CL48=0,0,IF(SUM($AI48:AL48)<($N48-12),12,$N48-SUM($AI48:AL48))) -> 0 | AR48: 0 | AS48: =IF($CM48=0,0,IF(SUM($AQ48:AR48)<($N48-12),12,$N48-SUM($AQ48:AR48))) -> 0 | AT48: =IF($CM48=0,0,IF(SUM($AQ48:AS48)<($N48-12),12,$N48-SUM($AQ48:AS48))) -> 0 | AU48: =IF($CM48=0,0,IF(SUM($AQ48:AT48)<($N48-12),12,$N48-SUM($AQ48:AT48))) -> 0 | BA48: 0 | BB48: =IF($CN48=0,0,IF(SUM($AY48:BA48)<($N48-12),12,$N48-SUM($AY48:BA48))) -> 0 | BC48: =IF($CN48=0,0,IF(SUM($AY48:BB48)<($N48-12),12,$N48-SUM($AY48:BB48))) -> 0 | BJ48: 0 | BK48: =IF($CO48=0,0,IF(SUM($BG48:BJ48)<($N48-12),12,$N48-SUM($BG48:BJ48))) -> 0 | BS48: 0 | BU48: =Q48/12 -> 0 | BV48: =Z48/12 -> 0.5 | BW48: =AI48/12 -> 0 | BX48: =AR48/12 -> 0 | BY48: =BA48/12 -> 0 | BZ48: =BJ48/12 -> 0 | CA48: =BS48/12 -> 0 | CC48: 0.75 | CE48: 0.25 | CJ48: 0 | CK48: 498.75 | CL48: 0 | CM48: 0 | CN48: 0 | CO48: 0 | CP48: 0
C49: COOPANS 2019 Roadmap Builds 3.9 Ballycasey | D49: ATM Operations & Technology & Training | E49: FDPS | F49: COOPANS | G49: U002A | H49: RP3 | I49: 2024 | J49: 2024-04-01 | K49: 926.25 | L49: €'000 | M49: 8 | N49: 96 | O49: 0.125 | Q49: 0 | R49: =IF($CJ49=0,0,IF(SUM(Q49:$Q49)<($N49-12),12,$N49-SUM(Q49:$Q49))) -> 0 | S49: =IF($CJ49=0,0,IF(SUM($Q49:R49)<($N49-12),12,$N49-SUM($Q49:R49))) -> 0 | T49: =IF($CJ49=0,0,IF(SUM($Q49:S49)<($N49-12),12,$N49-SUM($Q49:S49))) -> 0 | U49: =IF($CJ49=0,0,IF(SUM($Q49:T49)<($N49-12),12,$N49-SUM($Q49:T49))) -> 0 | V49: =IF($CJ49=0,0,IF(SUM($Q49:U49)<($N49-12),12,$N49-SUM($Q49:U49))) -> 0 | W49: =IF($CJ49=0,0,IF(SUM($Q49:V49)<($N49-12),12,$N49-SUM($Q49:V49))) -> 0 | Z49: 9 | AA49: =IF($CK49=0,0,IF(SUM(Z49:$Z49)<($N49-12),12,$N49-SUM(Z49:$Z49))) -> 12 | AB49: =IF($CK49=0,0,IF(SUM($Z49:AA49)<($N49-12),12,$N49-SUM($Z49:AA49))) -> 12 | AC49: =IF($CK49=0,0,IF(SUM($Z49:AB49)<($N49-12),12,$N49-SUM($Z49:AB49))) -> 12 | AD49: =IF($CK49=0,0,IF(SUM($Z49:AC49)<($N49-12),12,$N49-SUM($Z49:AC49))) -> 12 | AE49: =IF($CK49=0,0,IF(SUM($Z49:AD49)<($N49-12),12,$N49-SUM($Z49:AD49))) -> 12 | AJ49: =IF($CL49=0,0,IF(SUM($AI49:AI49)<($N49-12),12,$N49-SUM($AI49:AI49))) -> 0 | AK49: =IF($CL49=0,0,IF(SUM($AI49:AJ49)<($N49-12),12,$N49-SUM($AI49:AJ49))) -> 0 | AL49: =IF($CL49=0,0,IF(SUM($AI49:AK49)<($N49-12),12,$N49-SUM($AI49:AK49))) -> 0 | AM49: =IF($CL49=0,0,IF(SUM($AI49:AL49)<($N49-12),12,$N49-SUM($AI49:AL49))) -> 0 | AR49: 0 | AS49: =IF($CM49=0,0,IF(SUM($AQ49:AR49)<($N49-12),12,$N49-SUM($AQ49:AR49))) -> 0 | AT49: =IF($CM49=0,0,IF(SUM($AQ49:AS49)<($N49-12),12,$N49-SUM($AQ49:AS49))) -> 0 | AU49: =IF($CM49=0,0,IF(SUM($AQ49:AT49)<($N49-12),12,$N49-SUM($AQ49:AT49))) -> 0 | BA49: 0 | BB49: =IF($CN49=0,0,IF(SUM($AY49:BA49)<($N49-12),12,$N49-SUM($AY49:BA49))) -> 0 | BC49: =IF($CN49=0,0,IF(SUM($AY49:BB49)<($N49-12),12,$N49-SUM($AY49:BB49))) -> 0 | BJ49: 0 | BK49: =IF($CO49=0,0,IF(SUM($BG49:BJ49)<($N49-12),12,$N49-SUM($BG49:BJ49))) -> 0 | BS49: 0 | BU49: 0 | BV49: 0.75 | BW49: 0 | BX49: 0 | BY49: 0 | BZ49: 0 | CA49: 0 | CC49: 0.75 | CE49: 0.25 | CJ49: 0 | CK49: 926.25 | CL49: 0 | CM49: 0 | CN49: 0 | CO49: 0 | CP49: 0
C50: COOPANS 2019 Roadmap Builds 3.10 Dublin | D50: ATM Operations & Technology & Training | E50: FDPS | F50: COOPANS | G50: U002A | H50: RP4 | I50: 2025 | J50: 2025-04-01 | K50: 923.3 | L50: €'000 | M50: 8 | N50: 96 | O50: 0.125 | Q50: 0 | R50: =IF($CJ50=0,0,IF(SUM(Q50:$Q50)<($N50-12),12,$N50-SUM(Q50:$Q50))) -> 0 | S50: =IF($CJ50=0,0,IF(SUM($Q50:R50)<($N50-12),12,$N50-SUM($Q50:R50))) -> 0 | T50: =IF($CJ50=0,0,IF(SUM($Q50:S50)<($N50-12),12,$N50-SUM($Q50:S50))) -> 0 | U50: =IF($CJ50=0,0,IF(SUM($Q50:T50)<($N50-12),12,$N50-SUM($Q50:T50))) -> 0 | V50: =IF($CJ50=0,0,IF(SUM($Q50:U50)<($N50-12),12,$N50-SUM($Q50:U50))) -> 0 | W50: =IF($CJ50=0,0,IF(SUM($Q50:V50)<($N50-12),12,$N50-SUM($Q50:V50))) -> 0 | Z50: 0 | AA50: =IF($CK50=0,0,IF(SUM(Z50:$Z50)<($N50-12),12,$N50-SUM(Z50:$Z50))) -> 0 | AB50: =IF($CK50=0,0,IF(SUM($Z50:AA50)<($N50-12),12,$N50-SUM($Z50:AA50))) -> 0 | AC50: =IF($CK50=0,0,IF(SUM($Z50:AB50)<($N50-12),12,$N50-SUM($Z50:AB50))) -> 0 | AD50: =IF($CK50=0,0,IF(SUM($Z50:AC50)<($N50-12),12,$N50-SUM($Z50:AC50))) -> 0 | AE50: =IF($CK50=0,0,IF(SUM($Z50:AD50)<($N50-12),12,$N50-SUM($Z50:AD50))) -> 0 | AI50: 9 | AJ50: =IF($CL50=0,0,IF(SUM($AI50:AI50)<($N50-12),12,$N50-SUM($AI50:AI50))) -> 12 | AK50: =IF($CL50=0,0,IF(SUM($AI50:AJ50)<($N50-12),12,$N50-SUM($AI50:AJ50))) -> 12 | AL50: =IF($CL50=0,0,IF(SUM($AI50:AK50)<($N50-12),12,$N50-SUM($AI50:AK50))) -> 12 | AM50: =IF($CL50=0,0,IF(SUM($AI50:AL50)<($N50-12),12,$N50-SUM($AI50:AL50))) -> 12 | AR50: 0 | AS50: =IF($CM50=0,0,IF(SUM($AQ50:AR50)<($N50-12),12,$N50-SUM($AQ50:AR50))) -> 0 | AT50: =IF($CM50=0,0,IF(SUM($AQ50:AS50)<($N50-12),12,$N50-SUM($AQ50:AS50))) -> 0 | AU50: =IF($CM50=0,0,IF(SUM($AQ50:AT50)<($N50-12),12,$N50-SUM($AQ50:AT50))) -> 0 | BA50: 0 | BB50: =IF($CN50=0,0,IF(SUM($AY50:BA50)<($N50-12),12,$N50-SUM($AY50:BA50))) -> 0 | BC50: =IF($CN50=0,0,IF(SUM($AY50:BB50)<($N50-12),12,$N50-SUM($AY50:BB50))) -> 0 | BJ50: 0 | BK50: =IF($CO50=0,0,IF(SUM($BG50:BJ50)<($N50-12),12,$N50-SUM($BG50:BJ50))) -> 0 | BS50: 0 | BU50: 0 | BV50: 0 | BW50: 0.75 | BX50: 0 | BY50: 0 | BZ50: 0 | CA50: 0 | CC50: 0.75 | CE50: 0.25 | CJ50: 0 | CK50: 0 | CL50: 923.3 | CM50: 0 | CN50: 0 | CO50: 0 | CP50: 0
C51: COOPANS 2019 Roadmap Builds 3.10 Ballycasey | D51: ATM Operations & Technology & Training | E51: FDPS | F51: COOPANS | G51: U002A | H51: RP4 | I51: 2025 | J51: 2025-04-01 | K51: 574.7 | L51: €'000 | M51: 8 | N51: 96 | O51: 0.125 | Q51: 0 | R51: =IF($CJ51=0,0,IF(SUM(Q51:$Q51)<($N51-12),12,$N51-SUM(Q51:$Q51))) -> 0 | S51: =IF($CJ51=0,0,IF(SUM($Q51:R51)<($N51-12),12,$N51-SUM($Q51:R51))) -> 0 | T51: =IF($CJ51=0,0,IF(SUM($Q51:S51)<($N51-12),12,$N51-SUM($Q51:S51))) -> 0 | U51: =IF($CJ51=0,0,IF(SUM($Q51:T51)<($N51-12),12,$N51-SUM($Q51:T51))) -> 0 | V51: =IF($CJ51=0,0,IF(SUM($Q51:U51)<($N51-12),12,$N51-SUM($Q51:U51))) -> 0 | W51: =IF($CJ51=0,0,IF(SUM($Q51:V51)<($N51-12),12,$N51-SUM($Q51:V51))) -> 0 | Z51: 0 | AA51: =IF($CK51=0,0,IF(SUM(Z51:$Z51)<($N51-12),12,$N51-SUM(Z51:$Z51))) -> 0 | AB51: =IF($CK51=0,0,IF(SUM($Z51:AA51)<($N51-12),12,$N51-SUM($Z51:AA51))) -> 0 | AC51: =IF($CK51=0,0,IF(SUM($Z51:AB51)<($N51-12),12,$N51-SUM($Z51:AB51))) -> 0 | AD51: =IF($CK51=0,0,IF(SUM($Z51:AC51)<($N51-12),12,$N51-SUM($Z51:AC51))) -> 0 | AE51: =IF($CK51=0,0,IF(SUM($Z51:AD51)<($N51-12),12,$N51-SUM($Z51:AD51))) -> 0 | AI51: 9 | AJ51: =IF($CL51=0,0,IF(SUM($AI51:AI51)<($N51-12),12,$N51-SUM($AI51:AI51))) -> 12 | AK51: =IF($CL51=0,0,IF(SUM($AI51:AJ51)<($N51-12),12,$N51-SUM($AI51:AJ51))) -> 12 | AL51: =IF($CL51=0,0,IF(SUM($AI51:AK51)<($N51-12),12,$N51-SUM($AI51:AK51))) -> 12 | AM51: =IF($CL51=0,0,IF(SUM($AI51:AL51)<($N51-12),12,$N51-SUM($AI51:AL51))) -> 12 | AR51: 0 | AS51: =IF($CM51=0,0,IF(SUM($AQ51:AR51)<($N51-12),12,$N51-SUM($AQ51:AR51))) -> 0 | AT51: =IF($CM51=0,0,IF(SUM($AQ51:AS51)<($N51-12),12,$N51-SUM($AQ51:AS51))) -> 0 | AU51: =IF($CM51=0,0,IF(SUM($AQ51:AT51)<($N51-12),12,$N51-SUM($AQ51:AT51))) -> 0 | BA51: 0 | BB51: =IF($CN51=0,0,IF(SUM($AY51:BA51)<($N51-12),12,$N51-SUM($AY51:BA51))) -> 0 | BC51: =IF($CN51=0,0,IF(SUM($AY51:BB51)<($N51-12),12,$N51-SUM($AY51:BB51))) -> 0 | BJ51: 0 | BK51: =IF($CO51=0,0,IF(SUM($BG51:BJ51)<($N51-12),12,$N51-SUM($BG51:BJ51))) -> 0 | BS51: 0 | BU51: 0 | BV51: 0 | BW51: 0.75 | BX51: 0 | BY51: 0 | BZ51: 0 | CA51: 0 | CC51: 0.75 | CE51: 0.25 | CJ51: 0 | CK51: 0 | CL51: 574.7 | CM51: 0 | CN51: 0 | CO51: 0 | CP51: 0
C52: COOPANS 2019 Roadmap Builds 3.10.3 | D52: ATM Operations & Technology & Training | E52: FDPS | F52: COOPANS | G52: U002A | H52: RP4 | I52: 2026 | J52: 2026-04-01 | K52: 1750 | L52: €'000 | M52: 8 | N52: 96 | O52: 0.125 | Q52: 0 | R52: =IF($CJ52=0,0,IF(SUM(Q52:$Q52)<($N52-12),12,$N52-SUM(Q52:$Q52))) -> 0 | S52: =IF($CJ52=0,0,IF(SUM($Q52:R52)<($N52-12),12,$N52-SUM($Q52:R52))) -> 0 | T52: =IF($CJ52=0,0,IF(SUM($Q52:S52)<($N52-12),12,$N52-SUM($Q52:S52))) -> 0 | U52: =IF($CJ52=0,0,IF(SUM($Q52:T52)<($N52-12),12,$N52-SUM($Q52:T52))) -> 0 | V52: =IF($CJ52=0,0,IF(SUM($Q52:U52)<($N52-12),12,$N52-SUM($Q52:U52))) -> 0 | W52: =IF($CJ52=0,0,IF(SUM($Q52:V52)<($N52-12),12,$N52-SUM($Q52:V52))) -> 0 | Z52: 0 | AA52: =IF($CK52=0,0,IF(SUM(Z52:$Z52)<($N52-12),12,$N52-SUM(Z52:$Z52))) -> 0 | AB52: =IF($CK52=0,0,IF(SUM($Z52:AA52)<($N52-12),12,$N52-SUM($Z52:AA52))) -> 0 | AC52: =IF($CK52=0,0,IF(SUM($Z52:AB52)<($N52-12),12,$N52-SUM($Z52:AB52))) -> 0 | AD52: =IF($CK52=0,0,IF(SUM($Z52:AC52)<($N52-12),12,$N52-SUM($Z52:AC52))) -> 0 | AE52: =IF($CK52=0,0,IF(SUM($Z52:AD52)<($N52-12),12,$N52-SUM($Z52:AD52))) -> 0 | AI52: 0 | AJ52: =IF($CL52=0,0,IF(SUM($AI52:AI52)<($N52-12),12,$N52-SUM($AI52:AI52))) -> 0 | AK52: =IF($CL52=0,0,IF(SUM($AI52:AJ52)<($N52-12),12,$N52-SUM($AI52:AJ52))) -> 0 | AL52: =IF($CL52=0,0,IF(SUM($AI52:AK52)<($N52-12),12,$N52-SUM($AI52:AK52))) -> 0 | AM52: =IF($CL52=0,0,IF(SUM($AI52:AL52)<($N52-12),12,$N52-SUM($AI52:AL52))) -> 0 | AR52: 8.5714285 | AS52: =IF($CM52=0,0,IF(SUM($AQ52:AR52)<($N52-12),12,$N52-SUM($AQ52:AR52))) -> 12 | AT52: =IF($CM52=0,0,IF(SUM($AQ52:AS52)<($N52-12),12,$N52-SUM($AQ52:AS52))) -> 12 | AU52: =IF($CM52=0,0,IF(SUM($AQ52:AT52)<($N52-12),12,$N52-SUM($AQ52:AT52))) -> 12 | BA52: 3 | BB52: =IF($CN52=0,0,IF(SUM($AY52:BA52)<($N52-12),12,$N52-SUM($AY52:BA52))) -> 12 | BC52: =IF($CN52=0,0,IF(SUM($AY52:BB52)<($N52-12),12,$N52-SUM($AY52:BB52))) -> 12 | BJ52: 0 | BK52: =IF($CO52=0,0,IF(SUM($BG52:BJ52)<($N52-12),12,$N52-SUM($BG52:BJ52))) -> 0 | BS52: 0 | BU52: 0 | BV52: 0 | BW52: 0 | BX52: 0.7142857083 | BY52: 0.25 | BZ52: 0 | CA52: 0 | CC52: 0.75 | CE52: 0.25 | CJ52: 0 | CK52: 0 | CL52: 0 | CM52: 1225 | CN52: 525 | CO52: 0 | CP52: 0
C53: COOPANS 2019 Roadmap Builds 3.10.3 | D53: ATM Operations & Technology & Training | E53: FDPS | F53: COOPANS | G53: U002A | H53: RP4 | I53: 2026 | J53: 2026-07-01 | K53: 3250 | L53: €'000 | M53: 8 | N53: 96 | O53: 0.125 | Q53: 0 | R53: =IF($CJ53=0,0,IF(SUM(Q53:$Q53)<($N53-12),12,$N53-SUM(Q53:$Q53))) -> 0 | S53: =IF($CJ53=0,0,IF(SUM($Q53:R53)<($N53-12),12,$N53-SUM($Q53:R53))) -> 0 | T53: =IF($CJ53=0,0,IF(SUM($Q53:S53)<($N53-12),12,$N53-SUM($Q53:S53))) -> 0 | U53: =IF($CJ53=0,0,IF(SUM($Q53:T53)<($N53-12),12,$N53-SUM($Q53:T53))) -> 0 | V53: =IF($CJ53=0,0,IF(SUM($Q53:U53)<($N53-12),12,$N53-SUM($Q53:U53))) -> 0 | W53: =IF($CJ53=0,0,IF(SUM($Q53:V53)<($N53-12),12,$N53-SUM($Q53:V53))) -> 0 | Z53: 0 | AA53: =IF($CK53=0,0,IF(SUM(Z53:$Z53)<($N53-12),12,$N53-SUM(Z53:$Z53))) -> 0 | AB53: =IF($CK53=0,0,IF(SUM($Z53:AA53)<($N53-12),12,$N53-SUM($Z53:AA53))) -> 0 | AC53: =IF($CK53=0,0,IF(SUM($Z53:AB53)<($N53-12),12,$N53-SUM($Z53:AB53))) -> 0 | AD53: =IF($CK53=0,0,IF(SUM($Z53:AC53)<($N53-12),12,$N53-SUM($Z53:AC53))) -> 0 | AE53: =IF($CK53=0,0,IF(SUM($Z53:AD53)<($N53-12),12,$N53-SUM($Z53:AD53))) -> 0 | AI53: 0 | AJ53: =IF($CL53=0,0,IF(SUM($AI53:AI53)<($N53-12),12,$N53-SUM($AI53:AI53))) -> 0 | AK53: =IF($CL53=0,0,IF(SUM($AI53:AJ53)<($N53-12),12,$N53-SUM($AI53:AJ53))) -> 0 | AL53: =IF($CL53=0,0,IF(SUM($AI53:AK53)<($N53-12),12,$N53-SUM($AI53:AK53))) -> 0 | AM53: =IF($CL53=0,0,IF(SUM($AI53:AL53)<($N53-12),12,$N53-SUM($AI53:AL53))) -> 0 | AR53: 5.5714285 | AS53: =IF($CM53=0,0,IF(SUM($AQ53:AR53)<($N53-12),12,$N53-SUM($AQ53:AR53))) -> 12 | AT53: =IF($CM53=0,0,IF(SUM($AQ53:AS53)<($N53-12),12,$N53-SUM($AQ53:AS53))) -> 12 | AU53: =IF($CM53=0,0,IF(SUM($AQ53:AT53)<($N53-12),12,$N53-SUM($AQ53:AT53))) -> 12 | BA53: 3 | BB53: =IF($CN53=0,0,IF(SUM($AY53:BA53)<($N53-12),12,$N53-SUM($AY53:BA53))) -> 12 | BC53: =IF($CN53=0,0,IF(SUM($AY53:BB53)<($N53-12),12,$N53-SUM($AY53:BB53))) -> 12 | BJ53: 0 | BK53: =IF($CO53=0,0,IF(SUM($BG53:BJ53)<($N53-12),12,$N53-SUM($BG53:BJ53))) -> 0 | BS53: 0 | BU53: 0 | BV53: 0 | BW53: 0 | BX53: 0.4642857083 | BY53: 0.25 | BZ53: 0 | CA53: 0 | CC53: 0.75 | CE53: 0.25 | CJ53: 0 | CK53: 0 | CL53: 0 | CM53: 2275 | CN53: 975 | CO53: 0 | CP53: 0
C54: COOPANS TopSky ATC1 | D54: ATM Operations & Technology & Training | E54: TOPSKY-ATC1 | F54: TOPSKY-ATC1 | G54: Z001 | H54: RP4 | I54: 2026 | J54: 2026-10-01 | K54: 41631 | L54: €'000 | M54: 8 | N54: 96 | O54: 0.125 | Q54: 0 | R54: =IF($CJ54=0,0,IF(SUM(Q54:$Q54)<($N54-12),12,$N54-SUM(Q54:$Q54))) -> 0 | S54: =IF($CJ54=0,0,IF(SUM($Q54:R54)<($N54-12),12,$N54-SUM($Q54:R54))) -> 0 | T54: =IF($CJ54=0,0,IF(SUM($Q54:S54)<($N54-12),12,$N54-SUM($Q54:S54))) -> 0 | U54: =IF($CJ54=0,0,IF(SUM($Q54:T54)<($N54-12),12,$N54-SUM($Q54:T54))) -> 0 | V54: =IF($CJ54=0,0,IF(SUM($Q54:U54)<($N54-12),12,$N54-SUM($Q54:U54))) -> 0 | W54: =IF($CJ54=0,0,IF(SUM($Q54:V54)<($N54-12),12,$N54-SUM($Q54:V54))) -> 0 | Z54: 0 | AA54: =IF($CK54=0,0,IF(SUM(Z54:$Z54)<($N54-12),12,$N54-SUM(Z54:$Z54))) -> 0 | AB54: =IF($CK54=0,0,IF(SUM($Z54:AA54)<($N54-12),12,$N54-SUM($Z54:AA54))) -> 0 | AC54: =IF($CK54=0,0,IF(SUM($Z54:AB54)<($N54-12),12,$N54-SUM($Z54:AB54))) -> 0 | AD54: =IF($CK54=0,0,IF(SUM($Z54:AC54)<($N54-12),12,$N54-SUM($Z54:AC54))) -> 0 | AE54: =IF($CK54=0,0,IF(SUM($Z54:AD54)<($N54-12),12,$N54-SUM($Z54:AD54))) -> 0 | AI54: 0 | AJ54: =IF($CL54=0,0,IF(SUM($AI54:AI54)<($N54-12),12,$N54-SUM($AI54:AI54))) -> 0 | AK54: =IF($CL54=0,0,IF(SUM($AI54:AJ54)<($N54-12),12,$N54-SUM($AI54:AJ54))) -> 0 | AL54: =IF($CL54=0,0,IF(SUM($AI54:AK54)<($N54-12),12,$N54-SUM($AI54:AK54))) -> 0 | AM54: =IF($CL54=0,0,IF(SUM($AI54:AL54)<($N54-12),12,$N54-SUM($AI54:AL54))) -> 0 | AR54: 3 | AS54: =IF($CM54=0,0,IF(SUM($AQ54:AR54)<($N54-12),12,$N54-SUM($AQ54:AR54))) -> 12 | AT54: =IF($CM54=0,0,IF(SUM($AQ54:AS54)<($N54-12),12,$N54-SUM($AQ54:AS54))) -> 12 | AU54: =IF($CM54=0,0,IF(SUM($AQ54:AT54)<($N54-12),12,$N54-SUM($AQ54:AT54))) -> 12 | BA54: 0 | BB54: =IF($CN54=0,0,IF(SUM($AY54:BA54)<($N54-12),12,$N54-SUM($AY54:BA54))) -> 0 | BC54: =IF($CN54=0,0,IF(SUM($AY54:BB54)<($N54-12),12,$N54-SUM($AY54:BB54))) -> 0 | BJ54: 0 | BK54: =IF($CO54=0,0,IF(SUM($BG54:BJ54)<($N54-12),12,$N54-SUM($BG54:BJ54))) -> 0 | BS54: 9 | BU54: 0 | BV54: 0 | BW54: 0 | BX54: 0.25 | BY54: 0 | BZ54: 0 | CA54: 0.75 | CC54: 0.75 | CE54: 0.25 | CJ54: 0 | CK54: 0 | CL54: 0 | CM54: 10344 | CN54: 0 | CO54: 0 | CP54: 31287
C55: SWIM Enabling project | D55: ATM Operations & Technology & Training | E55: FDPS | F55: COOPANS | G55: S001 | H55: RP4 | I55: 2025 | J55: 2025-04-01 | K55: 300 | L55: €'000 | M55: 8 | N55: 96 | O55: 0.125 | Q55: 0 | R55: =IF($CJ55=0,0,IF(SUM(Q55:$Q55)<($N55-12),12,$N55-SUM(Q55:$Q55))) -> 0 | S55: =IF($CJ55=0,0,IF(SUM($Q55:R55)<($N55-12),12,$N55-SUM($Q55:R55))) -> 0 | T55: =IF($CJ55=0,0,IF(SUM($Q55:S55)<($N55-12),12,$N55-SUM($Q55:S55))) -> 0 | U55: =IF($CJ55=0,0,IF(SUM($Q55:T55)<($N55-12),12,$N55-SUM($Q55:T55))) -> 0 | V55: =IF($CJ55=0,0,IF(SUM($Q55:U55)<($N55-12),12,$N55-SUM($Q55:U55))) -> 0 | W55: =IF($CJ55=0,0,IF(SUM($Q55:V55)<($N55-12),12,$N55-SUM($Q55:V55))) -> 0 | Z55: 0 | AA55: =IF($CK55=0,0,IF(SUM(Z55:$Z55)<($N55-12),12,$N55-SUM(Z55:$Z55))) -> 0 | AB55: =IF($CK55=0,0,IF(SUM($Z55:AA55)<($N55-12),12,$N55-SUM($Z55:AA55))) -> 0 | AC55: =IF($CK55=0,0,IF(SUM($Z55:AB55)<($N55-12),12,$N55-SUM($Z55:AB55))) -> 0 | AD55: =IF($CK55=0,0,IF(SUM($Z55:AC55)<($N55-12),12,$N55-SUM($Z55:AC55))) -> 0 | AE55: =IF($CK55=0,0,IF(SUM($Z55:AD55)<($N55-12),12,$N55-SUM($Z55:AD55))) -> 0 | AI55: 9 | AJ55: =IF($CL55=0,0,IF(SUM($AI55:AI55)<($N55-12),12,$N55-SUM($AI55:AI55))) -> 12 | AK55: =IF($CL55=0,0,IF(SUM($AI55:AJ55)<($N55-12),12,$N55-SUM($AI55:AJ55))) -> 12 | AL55: =IF($CL55=0,0,IF(SUM($AI55:AK55)<($N55-12),12,$N55-SUM($AI55:AK55))) -> 12 | AM55: =IF($CL55=0,0,IF(SUM($AI55:AL55)<($N55-12),12,$N55-SUM($AI55:AL55))) -> 12 | AR55: 0 | AS55: =IF($CM55=0,0,IF(SUM($AQ55:AR55)<($N55-12),12,$N55-SUM($AQ55:AR55))) -> 0 | AT55: =IF($CM55=0,0,IF(SUM($AQ55:AS55)<($N55-12),12,$N55-SUM($AQ55:AS55))) -> 0 | AU55: =IF($CM55=0,0,IF(SUM($AQ55:AT55)<($N55-12),12,$N55-SUM($AQ55:AT55))) -> 0 | BA55: 0 | BB55: =IF($CN55=0,0,IF(SUM($AY55:BA55)<($N55-12),12,$N55-SUM($AY55:BA55))) -> 0 | BC55: =IF($CN55=0,0,IF(SUM($AY55:BB55)<($N55-12),12,$N55-SUM($AY55:BB55))) -> 0 | BJ55: 0 | BK55: =IF($CO55=0,0,IF(SUM($BG55:BJ55)<($N55-12),12,$N55-SUM($BG55:BJ55))) -> 0 | BS55: 0 | BU55: 0 | BV55: 0 | BW55: 0.75 | BX55: 0 | BY55: 0 | BZ55: 0 | CA55: 0 | CC55: 0.75 | CE55: 0.25 | CJ55: 0 | CK55: 0 | CL55: 300 | CM55: 0 | CN55: 0 | CO55: 0 | CP55: 0
C56: Replacement of COOPANS Hardware | D56: ATM Operations & Technology & Training | E56: FDPS | F56: Existing | G56: Q001 | H56: 0 | I56: 0 | K56: 0 | L56: €'000 | M56: 0 | N56: 0 | O56: 0 | Q56: 0 | R56: =IF($CJ56=0,0,IF(SUM(Q56:$Q56)<($N56-12),12,$N56-SUM(Q56:$Q56))) -> 0 | S56: =IF($CJ56=0,0,IF(SUM($Q56:R56)<($N56-12),12,$N56-SUM($Q56:R56))) -> 0 | T56: =IF($CJ56=0,0,IF(SUM($Q56:S56)<($N56-12),12,$N56-SUM($Q56:S56))) -> 0 | U56: =IF($CJ56=0,0,IF(SUM($Q56:T56)<($N56-12),12,$N56-SUM($Q56:T56))) -> 0 | V56: =IF($CJ56=0,0,IF(SUM($Q56:U56)<($N56-12),12,$N56-SUM($Q56:U56))) -> 0 | W56: =IF($CJ56=0,0,IF(SUM($Q56:V56)<($N56-12),12,$N56-SUM($Q56:V56))) -> 0 | Z56: 0 | AA56: =IF($CK56=0,0,IF(SUM(Z56:$Z56)<($N56-12),12,$N56-SUM(Z56:$Z56))) -> 0 | AB56: =IF($CK56=0,0,IF(SUM($Z56:AA56)<($N56-12),12,$N56-SUM($Z56:AA56))) -> 0 | AC56: =IF($CK56=0,0,IF(SUM($Z56:AB56)<($N56-12),12,$N56-SUM($Z56:AB56))) -> 0 | AD56: =IF($CK56=0,0,IF(SUM($Z56:AC56)<($N56-12),12,$N56-SUM($Z56:AC56))) -> 0 | AE56: =IF($CK56=0,0,IF(SUM($Z56:AD56)<($N56-12),12,$N56-SUM($Z56:AD56))) -> 0 | AI56: 0 | AJ56: =IF($CL56=0,0,IF(SUM($AI56:AI56)<($N56-12),12,$N56-SUM($AI56:AI56))) -> 0 | AK56: =IF($CL56=0,0,IF(SUM($AI56:AJ56)<($N56-12),12,$N56-SUM($AI56:AJ56))) -> 0 | AL56: =IF($CL56=0,0,IF(SUM($AI56:AK56)<($N56-12),12,$N56-SUM($AI56:AK56))) -> 0 | AM56: =IF($CL56=0,0,IF(SUM($AI56:AL56)<($N56-12),12,$N56-SUM($AI56:AL56))) -> 0 | AR56: 0 | AS56: =IF($CM56=0,0,IF(SUM($AQ56:AR56)<($N56-12),12,$N56-SUM($AQ56:AR56))) -> 0 | AT56: =IF($CM56=0,0,IF(SUM($AQ56:AS56)<($N56-12),12,$N56-SUM($AQ56:AS56))) -> 0 | AU56: =IF($CM56=0,0,IF(SUM($AQ56:AT56)<($N56-12),12,$N56-SUM($AQ56:AT56))) -> 0 | BA56: 0 | BB56: =IF($CN56=0,0,IF(SUM($AY56:BA56)<($N56-12),12,$N56-SUM($AY56:BA56))) -> 0 | BC56: =IF($CN56=0,0,IF(SUM($AY56:BB56)<($N56-12),12,$N56-SUM($AY56:BB56))) -> 0 | BJ56: 0 | BK56: =IF($CO56=0,0,IF(SUM($BG56:BJ56)<($N56-12),12,$N56-SUM($BG56:BJ56))) -> 0 | BS56: 0 | BU56: 0 | BV56: 0 | BW56: 0 | BX56: 0 | BY56: 0 | BZ56: 0 | CA56: 0 | CC56: 0 | CE56: 0 | CJ56: 0 | CK56: 0 | CL56: 0 | CM56: 0 | CN56: 0 | CO56: 0 | CP56: 0
C57: COOPANS HARDWARE Shannon | D57: ATM Operations & Technology & Training | E57: FDPS | F57: Existing | G57: Q001A | H57: RP3 | I57: 2024 | J57: 2024-07-01 | K57: 132.6963387 | L57: €'000 | M57: 8 | N57: 96 | O57: 0.125 | Q57: 0 | R57: =IF($CJ57=0,0,IF(SUM(Q57:$Q57)<($N57-12),12,$N57-SUM(Q57:$Q57))) -> 0 | S57: =IF($CJ57=0,0,IF(SUM($Q57:R57)<($N57-12),12,$N57-SUM($Q57:R57))) -> 0 | T57: =IF($CJ57=0,0,IF(SUM($Q57:S57)<($N57-12),12,$N57-SUM($Q57:S57))) -> 0 | U57: =IF($CJ57=0,0,IF(SUM($Q57:T57)<($N57-12),12,$N57-SUM($Q57:T57))) -> 0 | V57: =IF($CJ57=0,0,IF(SUM($Q57:U57)<($N57-12),12,$N57-SUM($Q57:U57))) -> 0 | W57: =IF($CJ57=0,0,IF(SUM($Q57:V57)<($N57-12),12,$N57-SUM($Q57:V57))) -> 0 | Z57: 6 | AA57: =IF($CK57=0,0,IF(SUM(Z57:$Z57)<($N57-12),12,$N57-SUM(Z57:$Z57))) -> 12 | AB57: =IF($CK57=0,0,IF(SUM($Z57:AA57)<($N57-12),12,$N57-SUM($Z57:AA57))) -> 12 | AC57: =IF($CK57=0,0,IF(SUM($Z57:AB57)<($N57-12),12,$N57-SUM($Z57:AB57))) -> 12 | AD57: =IF($CK57=0,0,IF(SUM($Z57:AC57)<($N57-12),12,$N57-SUM($Z57:AC57))) -> 12 | AE57: =IF($CK57=0,0,IF(SUM($Z57:AD57)<($N57-12),12,$N57-SUM($Z57:AD57))) -> 12 | AI57: 0 | AJ57: =IF($CL57=0,0,IF(SUM($AI57:AI57)<($N57-12),12,$N57-SUM($AI57:AI57))) -> 0 | AK57: =IF($CL57=0,0,IF(SUM($AI57:AJ57)<($N57-12),12,$N57-SUM($AI57:AJ57))) -> 0 | AL57: =IF($CL57=0,0,IF(SUM($AI57:AK57)<($N57-12),12,$N57-SUM($AI57:AK57))) -> 0 | AM57: =IF($CL57=0,0,IF(SUM($AI57:AL57)<($N57-12),12,$N57-SUM($AI57:AL57))) -> 0 | AR57: 0 | AS57: =IF($CM57=0,0,IF(SUM($AQ57:AR57)<($N57-12),12,$N57-SUM($AQ57:AR57))) -> 0 | AT57: =IF($CM57=0,0,IF(SUM($AQ57:AS57)<($N57-12),12,$N57-SUM($AQ57:AS57))) -> 0 | AU57: =IF($CM57=0,0,IF(SUM($AQ57:AT57)<($N57-12),12,$N57-SUM($AQ57:AT57))) -> 0 | BA57: 0 | BB57: =IF($CN57=0,0,IF(SUM($AY57:BA57)<($N57-12),12,$N57-SUM($AY57:BA57))) -> 0 | BC57: =IF($CN57=0,0,IF(SUM($AY57:BB57)<($N57-12),12,$N57-SUM($AY57:BB57))) -> 0 | BJ57: 0 | BK57: =IF($CO57=0,0,IF(SUM($BG57:BJ57)<($N57-12),12,$N57-SUM($BG57:BJ57))) -> 0 | BS57: 0 | BU57: 0 | BV57: 0.5 | BW57: 0 | BX57: 0 | BY57: 0 | BZ57: 0 | CA57: 0 | CC57: 0.75 | CE57: 0.25 | CJ57: 0 | CK57: 132.6963387 | CL57: 0 | CM57: 0 | CN57: 0 | CO57: 0 | CP57: 0
C58: COOPANS HARDWARE Dublin | D58: ATM Operations & Technology & Training | E58: FDPS | F58: Existing | G58: Q001A | H58: 0 | I58: 0 | K58: 0 | L58: €'000 | M58: 8 | N58: 96 | O58: 0.125 | Q58: 0 | R58: =IF($CJ58=0,0,IF(SUM(Q58:$Q58)<($N58-12),12,$N58-SUM(Q58:$Q58))) -> 0 | S58: =IF($CJ58=0,0,IF(SUM($Q58:R58)<($N58-12),12,$N58-SUM($Q58:R58))) -> 0 | T58: =IF($CJ58=0,0,IF(SUM($Q58:S58)<($N58-12),12,$N58-SUM($Q58:S58))) -> 0 | U58: =IF($CJ58=0,0,IF(SUM($Q58:T58)<($N58-12),12,$N58-SUM($Q58:T58))) -> 0 | V58: =IF($CJ58=0,0,IF(SUM($Q58:U58)<($N58-12),12,$N58-SUM($Q58:U58))) -> 0 | W58: =IF($CJ58=0,0,IF(SUM($Q58:V58)<($N58-12),12,$N58-SUM($Q58:V58))) -> 0 | Z58: 0 | AA58: =IF($CK58=0,0,IF(SUM(Z58:$Z58)<($N58-12),12,$N58-SUM(Z58:$Z58))) -> 0 | AB58: =IF($CK58=0,0,IF(SUM($Z58:AA58)<($N58-12),12,$N58-SUM($Z58:AA58))) -> 0 | AC58: =IF($CK58=0,0,IF(SUM($Z58:AB58)<($N58-12),12,$N58-SUM($Z58:AB58))) -> 0 | AD58: =IF($CK58=0,0,IF(SUM($Z58:AC58)<($N58-12),12,$N58-SUM($Z58:AC58))) -> 0 | AE58: =IF($CK58=0,0,IF(SUM($Z58:AD58)<($N58-12),12,$N58-SUM($Z58:AD58))) -> 0 | AI58: 0 | AJ58: =IF($CL58=0,0,IF(SUM($AI58:AI58)<($N58-12),12,$N58-SUM($AI58:AI58))) -> 0 | AK58: =IF($CL58=0,0,IF(SUM($AI58:AJ58)<($N58-12),12,$N58-SUM($AI58:AJ58))) -> 0 | AL58: =IF($CL58=0,0,IF(SUM($AI58:AK58)<($N58-12),12,$N58-SUM($AI58:AK58))) -> 0 | AM58: =IF($CL58=0,0,IF(SUM($AI58:AL58)<($N58-12),12,$N58-SUM($AI58:AL58))) -> 0 | AR58: 0 | AS58: =IF($CM58=0,0,IF(SUM($AQ58:AR58)<($N58-12),12,$N58-SUM($AQ58:AR58))) -> 0 | AT58: =IF($CM58=0,0,IF(SUM($AQ58:AS58)<($N58-12),12,$N58-SUM($AQ58:AS58))) -> 0 | AU58: =IF($CM58=0,0,IF(SUM($AQ58:AT58)<($N58-12),12,$N58-SUM($AQ58:AT58))) -> 0 | BA58: 0 | BB58: =IF($CN58=0,0,IF(SUM($AY58:BA58)<($N58-12),12,$N58-SUM($AY58:BA58))) -> 0 | BC58: =IF($CN58=0,0,IF(SUM($AY58:BB58)<($N58-12),12,$N58-SUM($AY58:BB58))) -> 0 | BJ58: 0 | BK58: =IF($CO58=0,0,IF(SUM($BG58:BJ58)<($N58-12),12,$N58-SUM($BG58:BJ58))) -> 0 | BS58: 0 | BU58: 0 | BV58: 0 | BW58: 0 | BX58: 0 | BY58: 0 | BZ58: 0 | CA58: 0 | CC58: 0.75 | CE58: 0.25 | CJ58: 0 | CK58: 0 | CL58: 0 | CM58: 0 | CN58: 0 | CO58: 0 | CP58: 0
C59: New Tower Simulator Dublin IATS | D59: ATM Operations & Technology & Training | E59: FDPS | F59: Simulator | G59: R017 | H59: 0 | I59: 0 | K59: 0 | L59: €'000 | M59: 8 | N59: 96 | O59: 0.125 | Q59: 0 | R59: =IF($CJ59=0,0,IF(SUM(Q59:$Q59)<($N59-12),12,$N59-SUM(Q59:$Q59))) -> 0 | S59: =IF($CJ59=0,0,IF(SUM($Q59:R59)<($N59-12),12,$N59-SUM($Q59:R59))) -> 0 | T59: =IF($CJ59=0,0,IF(SUM($Q59:S59)<($N59-12),12,$N59-SUM($Q59:S59))) -> 0 | U59: =IF($CJ59=0,0,IF(SUM($Q59:T59)<($N59-12),12,$N59-SUM($Q59:T59))) -> 0 | V59: =IF($CJ59=0,0,IF(SUM($Q59:U59)<($N59-12),12,$N59-SUM($Q59:U59))) -> 0 | W59: =IF($CJ59=0,0,IF(SUM($Q59:V59)<($N59-12),12,$N59-SUM($Q59:V59))) -> 0 | Z59: 0 | AA59: =IF($CK59=0,0,IF(SUM(Z59:$Z59)<($N59-12),12,$N59-SUM(Z59:$Z59))) -> 0 | AB59: =IF($CK59=0,0,IF(SUM($Z59:AA59)<($N59-12),12,$N59-SUM($Z59:AA59))) -> 0 | AC59: =IF($CK59=0,0,IF(SUM($Z59:AB59)<($N59-12),12,$N59-SUM($Z59:AB59))) -> 0 | AD59: =IF($CK59=0,0,IF(SUM($Z59:AC59)<($N59-12),12,$N59-SUM($Z59:AC59))) -> 0 | AE59: =IF($CK59=0,0,IF(SUM($Z59:AD59)<($N59-12),12,$N59-SUM($Z59:AD59))) -> 0 | AI59: 0 | AJ59: =IF($CL59=0,0,IF(SUM($AI59:AI59)<($N59-12),12,$N59-SUM($AI59:AI59))) -> 0 | AK59: =IF($CL59=0,0,IF(SUM($AI59:AJ59)<($N59-12),12,$N59-SUM($AI59:AJ59))) -> 0 | AL59: =IF($CL59=0,0,IF(SUM($AI59:AK59)<($N59-12),12,$N59-SUM($AI59:AK59))) -> 0 | AM59: =IF($CL59=0,0,IF(SUM($AI59:AL59)<($N59-12),12,$N59-SUM($AI59:AL59))) -> 0 | AR59: 0 | AS59: =IF($CM59=0,0,IF(SUM($AQ59:AR59)<($N59-12),12,$N59-SUM($AQ59:AR59))) -> 0 | AT59: =IF($CM59=0,0,IF(SUM($AQ59:AS59)<($N59-12),12,$N59-SUM($AQ59:AS59))) -> 0 | AU59: =IF($CM59=0,0,IF(SUM($AQ59:AT59)<($N59-12),12,$N59-SUM($AQ59:AT59))) -> 0 | BA59: 0 | BB59: =IF($CN59=0,0,IF(SUM($AY59:BA59)<($N59-12),12,$N59-SUM($AY59:BA59))) -> 0 | BC59: =IF($CN59=0,0,IF(SUM($AY59:BB59)<($N59-12),12,$N59-SUM($AY59:BB59))) -> 0 | BJ59: 0 | BK59: =IF($CO59=0,0,IF(SUM($BG59:BJ59)<($N59-12),12,$N59-SUM($BG59:BJ59))) -> 0 | BS59: 0 | BU59: 0 | BV59: 0 | BW59: 0 | BX59: 0 | BY59: 0 | BZ59: 0 | CA59: 0 | CC59: 0 | CE59: 1 | CJ59: 0 | CK59: 0 | CL59: 0 | CM59: 0 | CN59: 0 | CO59: 0 | CP59: 0
C60: Upgrades and Contingency IAA Net | D60: ATM Operations & Technology & Training | E60: FDPS | F60: New | G60: S002 | H60: RP3 | I60: 2024 | J60: 2024-10-01 | K60: 107.88968 | L60: €'000 | M60: 8 | N60: 96 | O60: 0.125 | Q60: 0 | R60: =IF($CJ60=0,0,IF(SUM(Q60:$Q60)<($N60-12),12,$N60-SUM(Q60:$Q60))) -> 0 | S60: =IF($CJ60=0,0,IF(SUM($Q60:R60)<($N60-12),12,$N60-SUM($Q60:R60))) -> 0 | T60: =IF($CJ60=0,0,IF(SUM($Q60:S60)<($N60-12),12,$N60-SUM($Q60:S60))) -> 0 | U60: =IF($CJ60=0,0,IF(SUM($Q60:T60)<($N60-12),12,$N60-SUM($Q60:T60))) -> 0 | V60: =IF($CJ60=0,0,IF(SUM($Q60:U60)<($N60-12),12,$N60-SUM($Q60:U60))) -> 0 | W60: =IF($CJ60=0,0,IF(SUM($Q60:V60)<($N60-12),12,$N60-SUM($Q60:V60))) -> 0 | Z60: 3 | AA60: =IF($CK60=0,0,IF(SUM(Z60:$Z60)<($N60-12),12,$N60-SUM(Z60:$Z60))) -> 12 | AB60: =IF($CK60=0,0,IF(SUM($Z60:AA60)<($N60-12),12,$N60-SUM($Z60:AA60))) -> 12 | AC60: =IF($CK60=0,0,IF(SUM($Z60:AB60)<($N60-12),12,$N60-SUM($Z60:AB60))) -> 12 | AD60: =IF($CK60=0,0,IF(SUM($Z60:AC60)<($N60-12),12,$N60-SUM($Z60:AC60))) -> 12 | AE60: =IF($CK60=0,0,IF(SUM($Z60:AD60)<($N60-12),12,$N60-SUM($Z60:AD60))) -> 12 | AI60: 0 | AJ60: =IF($CL60=0,0,IF(SUM($AI60:AI60)<($N60-12),12,$N60-SUM($AI60:AI60))) -> 0 | AK60: =IF($CL60=0,0,IF(SUM($AI60:AJ60)<($N60-12),12,$N60-SUM($AI60:AJ60))) -> 0 | AL60: =IF($CL60=0,0,IF(SUM($AI60:AK60)<($N60-12),12,$N60-SUM($AI60:AK60))) -> 0 | AM60: =IF($CL60=0,0,IF(SUM($AI60:AL60)<($N60-12),12,$N60-SUM($AI60:AL60))) -> 0 | AR60: 0 | AS60: =IF($CM60=0,0,IF(SUM($AQ60:AR60)<($N60-12),12,$N60-SUM($AQ60:AR60))) -> 0 | AT60: =IF($CM60=0,0,IF(SUM($AQ60:AS60)<($N60-12),12,$N60-SUM($AQ60:AS60))) -> 0 | AU60: =IF($CM60=0,0,IF(SUM($AQ60:AT60)<($N60-12),12,$N60-SUM($AQ60:AT60))) -> 0 | BA60: 0 | BB60: =IF($CN60=0,0,IF(SUM($AY60:BA60)<($N60-12),12,$N60-SUM($AY60:BA60))) -> 0 | BC60: =IF($CN60=0,0,IF(SUM($AY60:BB60)<($N60-12),12,$N60-SUM($AY60:BB60))) -> 0 | BJ60: 0 | BK60: =IF($CO60=0,0,IF(SUM($BG60:BJ60)<($N60-12),12,$N60-SUM($BG60:BJ60))) -> 0 | BS60: 0 | BU60: 0 | BV60: 0.25 | BW60: 0 | BX60: 0 | BY60: 0 | BZ60: 0 | CA60: 0 | CC60: 0.75 | CE60: 0.25 | CJ60: 0 | CK60: 107.88968 | CL60: 0 | CM60: 0 | CN60: 0 | CO60: 0 | CP60: 0
C61: Emergency Air Situation Display System (DUB) | D61: ATM Operations & Technology & Training | E61: FDPS | F61: EASDS | G61: U003 | H61: RP4 | I61: 2026 | J61: 2026-10-01 | K61: 3040 | L61: €'000 | M61: 8 | N61: 96 | O61: 0.125 | Q61: 0 | R61: =IF($CJ61=0,0,IF(SUM(Q61:$Q61)<($N61-12),12,$N61-SUM(Q61:$Q61))) -> 0 | S61: =IF($CJ61=0,0,IF(SUM($Q61:R61)<($N61-12),12,$N61-SUM($Q61:R61))) -> 0 | T61: =IF($CJ61=0,0,IF(SUM($Q61:S61)<($N61-12),12,$N61-SUM($Q61:S61))) -> 0 | U61: =IF($CJ61=0,0,IF(SUM($Q61:T61)<($N61-12),12,$N61-SUM($Q61:T61))) -> 0 | V61: =IF($CJ61=0,0,IF(SUM($Q61:U61)<($N61-12),12,$N61-SUM($Q61:U61))) -> 0 | W61: =IF($CJ61=0,0,IF(SUM($Q61:V61)<($N61-12),12,$N61-SUM($Q61:V61))) -> 0 | Z61: 0 | AA61: =IF($CK61=0,0,IF(SUM(Z61:$Z61)<($N61-12),12,$N61-SUM(Z61:$Z61))) -> 0 | AB61: =IF($CK61=0,0,IF(SUM($Z61:AA61)<($N61-12),12,$N61-SUM($Z61:AA61))) -> 0 | AC61: =IF($CK61=0,0,IF(SUM($Z61:AB61)<($N61-12),12,$N61-SUM($Z61:AB61))) -> 0 | AD61: =IF($CK61=0,0,IF(SUM($Z61:AC61)<($N61-12),12,$N61-SUM($Z61:AC61))) -> 0 | AE61: =IF($CK61=0,0,IF(SUM($Z61:AD61)<($N61-12),12,$N61-SUM($Z61:AD61))) -> 0 | AI61: 0 | AJ61: =IF($CL61=0,0,IF(SUM($AI61:AI61)<($N61-12),12,$N61-SUM($AI61:AI61))) -> 0 | AK61: =IF($CL61=0,0,IF(SUM($AI61:AJ61)<($N61-12),12,$N61-SUM($AI61:AJ61))) -> 0 | AL61: =IF($CL61=0,0,IF(SUM($AI61:AK61)<($N61-12),12,$N61-SUM($AI61:AK61))) -> 0 | AM61: =IF($CL61=0,0,IF(SUM($AI61:AL61)<($N61-12),12,$N61-SUM($AI61:AL61))) -> 0 | AR61: 3 | AS61: =IF($CM61=0,0,IF(SUM($AQ61:AR61)<($N61-12),12,$N61-SUM($AQ61:AR61))) -> 12 | AT61: =IF($CM61=0,0,IF(SUM($AQ61:AS61)<($N61-12),12,$N61-SUM($AQ61:AS61))) -> 12 | AU61: =IF($CM61=0,0,IF(SUM($AQ61:AT61)<($N61-12),12,$N61-SUM($AQ61:AT61))) -> 12 | BA61: 0 | BB61: =IF($CN61=0,0,IF(SUM($AY61:BA61)<($N61-12),12,$N61-SUM($AY61:BA61))) -> 0 | BC61: =IF($CN61=0,0,IF(SUM($AY61:BB61)<($N61-12),12,$N61-SUM($AY61:BB61))) -> 0 | BJ61: 0 | BK61: =IF($CO61=0,0,IF(SUM($BG61:BJ61)<($N61-12),12,$N61-SUM($BG61:BJ61))) -> 0 | BS61: 0 | BU61: 0 | BV61: 0 | BW61: 0 | BX61: 0.25 | BY61: 0 | BZ61: 0 | CA61: 0 | CC61: 0.75 | CE61: 0.25 | CJ61: 0 | CK61: 0 | CL61: 0 | CM61: 3040 | CN61: 0 | CO61: 0 | CP61: 0
C62: Emergency Air Situation Display System (SHN) | D62: ATM Operations & Technology & Training | E62: FDPS | F62: EASDS | G62: U003A | H62: RP4 | I62: 2026 | J62: 2026-10-01 | K62: 5320 | L62: €'000 | M62: 8 | N62: 96 | O62: 0.125 | Q62: 0 | R62: =IF($CJ62=0,0,IF(SUM(Q62:$Q62)<($N62-12),12,$N62-SUM(Q62:$Q62))) -> 0 | S62: =IF($CJ62=0,0,IF(SUM($Q62:R62)<($N62-12),12,$N62-SUM($Q62:R62))) -> 0 | T62: =IF($CJ62=0,0,IF(SUM($Q62:S62)<($N62-12),12,$N62-SUM($Q62:S62))) -> 0 | U62: =IF($CJ62=0,0,IF(SUM($Q62:T62)<($N62-12),12,$N62-SUM($Q62:T62))) -> 0 | V62: =IF($CJ62=0,0,IF(SUM($Q62:U62)<($N62-12),12,$N62-SUM($Q62:U62))) -> 0 | W62: =IF($CJ62=0,0,IF(SUM($Q62:V62)<($N62-12),12,$N62-SUM($Q62:V62))) -> 0 | Z62: 0 | AA62: =IF($CK62=0,0,IF(SUM(Z62:$Z62)<($N62-12),12,$N62-SUM(Z62:$Z62))) -> 0 | AB62: =IF($CK62=0,0,IF(SUM($Z62:AA62)<($N62-12),12,$N62-SUM($Z62:AA62))) -> 0 | AC62: =IF($CK62=0,0,IF(SUM($Z62:AB62)<($N62-12),12,$N62-SUM($Z62:AB62))) -> 0 | AD62: =IF($CK62=0,0,IF(SUM($Z62:AC62)<($N62-12),12,$N62-SUM($Z62:AC62))) -> 0 | AE62: =IF($CK62=0,0,IF(SUM($Z62:AD62)<($N62-12),12,$N62-SUM($Z62:AD62))) -> 0 | AI62: 0 | AJ62: =IF($CL62=0,0,IF(SUM($AI62:AI62)<($N62-12),12,$N62-SUM($AI62:AI62))) -> 0 | AK62: =IF($CL62=0,0,IF(SUM($AI62:AJ62)<($N62-12),12,$N62-SUM($AI62:AJ62))) -> 0 | AL62: =IF($CL62=0,0,IF(SUM($AI62:AK62)<($N62-12),12,$N62-SUM($AI62:AK62))) -> 0 | AM62: =IF($CL62=0,0,IF(SUM($AI62:AL62)<($N62-12),12,$N62-SUM($AI62:AL62))) -> 0 | AR62: 3 | AS62: =IF($CM62=0,0,IF(SUM($AQ62:AR62)<($N62-12),12,$N62-SUM($AQ62:AR62))) -> 12 | AT62: =IF($CM62=0,0,IF(SUM($AQ62:AS62)<($N62-12),12,$N62-SUM($AQ62:AS62))) -> 12 | AU62: =IF($CM62=0,0,IF(SUM($AQ62:AT62)<($N62-12),12,$N62-SUM($AQ62:AT62))) -> 12 | BA62: 0 | BB62: =IF($CN62=0,0,IF(SUM($AY62:BA62)<($N62-12),12,$N62-SUM($AY62:BA62))) -> 0 | BC62: =IF($CN62=0,0,IF(SUM($AY62:BB62)<($N62-12),12,$N62-SUM($AY62:BB62))) -> 0 | BJ62: 0 | BK62: =IF($CO62=0,0,IF(SUM($BG62:BJ62)<($N62-12),12,$N62-SUM($BG62:BJ62))) -> 0 | BS62: 0 | BU62: 0 | BV62: 0 | BW62: 0 | BX62: 0.25 | BY62: 0 | BZ62: 0 | CA62: 0 | CC62: 0.75 | CE62: 0.25 | CJ62: 0 | CK62: 0 | CL62: 0 | CM62: 5320 | CN62: 0 | CO62: 0 | CP62: 0
C63: Emergency Air Situation Display System Simulator (SHN) | D63: ATM Operations & Technology & Training | E63: FDPS | F63: EASDS | G63: U003A | H63: RP4 | I63: 2026 | J63: 2026-10-01 | K63: 570 | L63: €'000 | M63: 8 | N63: 96 | O63: 0.125 | Q63: 0 | R63: =IF($CJ63=0,0,IF(SUM(Q63:$Q63)<($N63-12),12,$N63-SUM(Q63:$Q63))) -> 0 | S63: =IF($CJ63=0,0,IF(SUM($Q63:R63)<($N63-12),12,$N63-SUM($Q63:R63))) -> 0 | T63: =IF($CJ63=0,0,IF(SUM($Q63:S63)<($N63-12),12,$N63-SUM($Q63:S63))) -> 0 | U63: =IF($CJ63=0,0,IF(SUM($Q63:T63)<($N63-12),12,$N63-SUM($Q63:T63))) -> 0 | V63: =IF($CJ63=0,0,IF(SUM($Q63:U63)<($N63-12),12,$N63-SUM($Q63:U63))) -> 0 | W63: =IF($CJ63=0,0,IF(SUM($Q63:V63)<($N63-12),12,$N63-SUM($Q63:V63))) -> 0 | Z63: 0 | AA63: =IF($CK63=0,0,IF(SUM(Z63:$Z63)<($N63-12),12,$N63-SUM(Z63:$Z63))) -> 0 | AB63: =IF($CK63=0,0,IF(SUM($Z63:AA63)<($N63-12),12,$N63-SUM($Z63:AA63))) -> 0 | AC63: =IF($CK63=0,0,IF(SUM($Z63:AB63)<($N63-12),12,$N63-SUM($Z63:AB63))) -> 0 | AD63: =IF($CK63=0,0,IF(SUM($Z63:AC63)<($N63-12),12,$N63-SUM($Z63:AC63))) -> 0 | AE63: =IF($CK63=0,0,IF(SUM($Z63:AD63)<($N63-12),12,$N63-SUM($Z63:AD63))) -> 0 | AI63: 0 | AJ63: =IF($CL63=0,0,IF(SUM($AI63:AI63)<($N63-12),12,$N63-SUM($AI63:AI63))) -> 0 | AK63: =IF($CL63=0,0,IF(SUM($AI63:AJ63)<($N63-12),12,$N63-SUM($AI63:AJ63))) -> 0 | AL63: =IF($CL63=0,0,IF(SUM($AI63:AK63)<($N63-12),12,$N63-SUM($AI63:AK63))) -> 0 | AM63: =IF($CL63=0,0,IF(SUM($AI63:AL63)<($N63-12),12,$N63-SUM($AI63:AL63))) -> 0 | AR63: 3 | AS63: =IF($CM63=0,0,IF(SUM($AQ63:AR63)<($N63-12),12,$N63-SUM($AQ63:AR63))) -> 12 | AT63: =IF($CM63=0,0,IF(SUM($AQ63:AS63)<($N63-12),12,$N63-SUM($AQ63:AS63))) -> 12 | AU63: =IF($CM63=0,0,IF(SUM($AQ63:AT63)<($N63-12),12,$N63-SUM($AQ63:AT63))) -> 12 | BA63: 0 | BB63: =IF($CN63=0,0,IF(SUM($AY63:BA63)<($N63-12),12,$N63-SUM($AY63:BA63))) -> 0 | BC63: =IF($CN63=0,0,IF(SUM($AY63:BB63)<($N63-12),12,$N63-SUM($AY63:BB63))) -> 0 | BJ63: 0 | BK63: =IF($CO63=0,0,IF(SUM($BG63:BJ63)<($N63-12),12,$N63-SUM($BG63:BJ63))) -> 0 | BS63: 0 | BU63: 0 | BV63: 0 | BW63: 0 | BX63: 0.25 | BY63: 0 | BZ63: 0 | CA63: 0 | CC63: 0.75 | CE63: 0.25 | CJ63: 0 | CK63: 0 | CL63: 0 | CM63: 570 | CN63: 0 | CO63: 0 | CP63: 0
C64: Emergency Air Situation Display System Simulator (DUB) | D64: ATM Operations & Technology & Training | E64: FDPS | F64: EASDS | G64: U003A | H64: RP4 | I64: 2026 | J64: 2026-10-01 | K64: 570 | L64: €'000 | M64: 8 | N64: 96 | O64: 0.125 | Q64: 0 | R64: =IF($CJ64=0,0,IF(SUM(Q64:$Q64)<($N64-12),12,$N64-SUM(Q64:$Q64))) -> 0 | S64: =IF($CJ64=0,0,IF(SUM($Q64:R64)<($N64-12),12,$N64-SUM($Q64:R64))) -> 0 | T64: =IF($CJ64=0,0,IF(SUM($Q64:S64)<($N64-12),12,$N64-SUM($Q64:S64))) -> 0 | U64: =IF($CJ64=0,0,IF(SUM($Q64:T64)<($N64-12),12,$N64-SUM($Q64:T64))) -> 0 | V64: =IF($CJ64=0,0,IF(SUM($Q64:U64)<($N64-12),12,$N64-SUM($Q64:U64))) -> 0 | W64: =IF($CJ64=0,0,IF(SUM($Q64:V64)<($N64-12),12,$N64-SUM($Q64:V64))) -> 0 | Z64: 0 | AA64: =IF($CK64=0,0,IF(SUM(Z64:$Z64)<($N64-12),12,$N64-SUM(Z64:$Z64))) -> 0 | AB64: =IF($CK64=0,0,IF(SUM($Z64:AA64)<($N64-12),12,$N64-SUM($Z64:AA64))) -> 0 | AC64: =IF($CK64=0,0,IF(SUM($Z64:AB64)<($N64-12),12,$N64-SUM($Z64:AB64))) -> 0 | AD64: =IF($CK64=0,0,IF(SUM($Z64:AC64)<($N64-12),12,$N64-SUM($Z64:AC64))) -> 0 | AE64: =IF($CK64=0,0,IF(SUM($Z64:AD64)<($N64-12),12,$N64-SUM($Z64:AD64))) -> 0 | AI64: 0 | AJ64: =IF($CL64=0,0,IF(SUM($AI64:AI64)<($N64-12),12,$N64-SUM($AI64:AI64))) -> 0 | AK64: =IF($CL64=0,0,IF(SUM($AI64:AJ64)<($N64-12),12,$N64-SUM($AI64:AJ64))) -> 0 | AL64: =IF($CL64=0,0,IF(SUM($AI64:AK64)<($N64-12),12,$N64-SUM($AI64:AK64))) -> 0 | AM64: =IF($CL64=0,0,IF(SUM($AI64:AL64)<($N64-12),12,$N64-SUM($AI64:AL64))) -> 0 | AR64: 3 | AS64: =IF($CM64=0,0,IF(SUM($AQ64:AR64)<($N64-12),12,$N64-SUM($AQ64:AR64))) -> 12 | AT64: =IF($CM64=0,0,IF(SUM($AQ64:AS64)<($N64-12),12,$N64-SUM($AQ64:AS64))) -> 12 | AU64: =IF($CM64=0,0,IF(SUM($AQ64:AT64)<($N64-12),12,$N64-SUM($AQ64:AT64))) -> 12 | BA64: 0 | BB64: =IF($CN64=0,0,IF(SUM($AY64:BA64)<($N64-12),12,$N64-SUM($AY64:BA64))) -> 0 | BC64: =IF($CN64=0,0,IF(SUM($AY64:BB64)<($N64-12),12,$N64-SUM($AY64:BB64))) -> 0 | BJ64: 0 | BK64: =IF($CO64=0,0,IF(SUM($BG64:BJ64)<($N64-12),12,$N64-SUM($BG64:BJ64))) -> 0 | BS64: 0 | BU64: 0 | BV64: 0 | BW64: 0 | BX64: 0.25 | BY64: 0 | BZ64: 0 | CA64: 0 | CC64: 0.75 | CE64: 0.25 | CJ64: 0 | CK64: 0 | CL64: 0 | CM64: 570 | CN64: 0 | CO64: 0 | CP64: 0
C65: Smart Messenger (AFTN/SMHS) & ROFDS Contingency | D65: ATM Operations & Technology & Training | E65: FDPS | F65: SMART | G65: U005 | H65: 0 | I65: 0 | K65: 0 | L65: €'000 | M65: 0 | N65: 0 | O65: 0 | Q65: 0 | R65: =IF($CJ65=0,0,IF(SUM(Q65:$Q65)<($N65-12),12,$N65-SUM(Q65:$Q65))) -> 0 | S65: =IF($CJ65=0,0,IF(SUM($Q65:R65)<($N65-12),12,$N65-SUM($Q65:R65))) -> 0 | T65: =IF($CJ65=0,0,IF(SUM($Q65:S65)<($N65-12),12,$N65-SUM($Q65:S65))) -> 0 | U65: =IF($CJ65=0,0,IF(SUM($Q65:T65)<($N65-12),12,$N65-SUM($Q65:T65))) -> 0 | V65: =IF($CJ65=0,0,IF(SUM($Q65:U65)<($N65-12),12,$N65-SUM($Q65:U65))) -> 0 | W65: =IF($CJ65=0,0,IF(SUM($Q65:V65)<($N65-12),12,$N65-SUM($Q65:V65))) -> 0 | Z65: 0 | AA65: =IF($CK65=0,0,IF(SUM(Z65:$Z65)<($N65-12),12,$N65-SUM(Z65:$Z65))) -> 0 | AB65: =IF($CK65=0,0,IF(SUM($Z65:AA65)<($N65-12),12,$N65-SUM($Z65:AA65))) -> 0 | AC65: =IF($CK65=0,0,IF(SUM($Z65:AB65)<($N65-12),12,$N65-SUM($Z65:AB65))) -> 0 | AD65: =IF($CK65=0,0,IF(SUM($Z65:AC65)<($N65-12),12,$N65-SUM($Z65:AC65))) -> 0 | AE65: =IF($CK65=0,0,IF(SUM($Z65:AD65)<($N65-12),12,$N65-SUM($Z65:AD65))) -> 0 | AI65: 0 | AJ65: =IF($CL65=0,0,IF(SUM($AI65:AI65)<($N65-12),12,$N65-SUM($AI65:AI65))) -> 0 | AK65: =IF($CL65=0,0,IF(SUM($AI65:AJ65)<($N65-12),12,$N65-SUM($AI65:AJ65))) -> 0 | AL65: =IF($CL65=0,0,IF(SUM($AI65:AK65)<($N65-12),12,$N65-SUM($AI65:AK65))) -> 0 | AM65: =IF($CL65=0,0,IF(SUM($AI65:AL65)<($N65-12),12,$N65-SUM($AI65:AL65))) -> 0 | AR65: 0 | AS65: =IF($CM65=0,0,IF(SUM($AQ65:AR65)<($N65-12),12,$N65-SUM($AQ65:AR65))) -> 0 | AT65: =IF($CM65=0,0,IF(SUM($AQ65:AS65)<($N65-12),12,$N65-SUM($AQ65:AS65))) -> 0 | AU65: =IF($CM65=0,0,IF(SUM($AQ65:AT65)<($N65-12),12,$N65-SUM($AQ65:AT65))) -> 0 | BA65: 0 | BB65: =IF($CN65=0,0,IF(SUM($AY65:BA65)<($N65-12),12,$N65-SUM($AY65:BA65))) -> 0 | BC65: =IF($CN65=0,0,IF(SUM($AY65:BB65)<($N65-12),12,$N65-SUM($AY65:BB65))) -> 0 | BJ65: 0 | BK65: =IF($CO65=0,0,IF(SUM($BG65:BJ65)<($N65-12),12,$N65-SUM($BG65:BJ65))) -> 0 | BS65: 0 | BU65: 0 | BV65: 0 | BW65: 0 | BX65: 0 | BY65: 0 | BZ65: 0 | CA65: 0 | CC65: 0 | CE65: 0 | CJ65: 0 | CK65: 0 | CL65: 0 | CM65: 0 | CN65: 0 | CO65: 0 | CP65: 0
C66: Smart Messenger (AFTN/SMHS) | D66: ATM Operations & Technology & Training | E66: FDPS | F66: SMART | G66: U005A | H66: RP3 | I66: 2024 | J66: 2024-10-01 | K66: 400 | L66: €'000 | M66: 8 | N66: 96 | O66: 0.125 | Q66: 0 | R66: =IF($CJ66=0,0,IF(SUM(Q66:$Q66)<($N66-12),12,$N66-SUM(Q66:$Q66))) -> 0 | S66: =IF($CJ66=0,0,IF(SUM($Q66:R66)<($N66-12),12,$N66-SUM($Q66:R66))) -> 0 | T66: =IF($CJ66=0,0,IF(SUM($Q66:S66)<($N66-12),12,$N66-SUM($Q66:S66))) -> 0 | U66: =IF($CJ66=0,0,IF(SUM($Q66:T66)<($N66-12),12,$N66-SUM($Q66:T66))) -> 0 | V66: =IF($CJ66=0,0,IF(SUM($Q66:U66)<($N66-12),12,$N66-SUM($Q66:U66))) -> 0 | W66: =IF($CJ66=0,0,IF(SUM($Q66:V66)<($N66-12),12,$N66-SUM($Q66:V66))) -> 0 | Z66: 3 | AA66: =IF($CK66=0,0,IF(SUM(Z66:$Z66)<($N66-12),12,$N66-SUM(Z66:$Z66))) -> 12 | AB66: =IF($CK66=0,0,IF(SUM($Z66:AA66)<($N66-12),12,$N66-SUM($Z66:AA66))) -> 12 | AC66: =IF($CK66=0,0,IF(SUM($Z66:AB66)<($N66-12),12,$N66-SUM($Z66:AB66))) -> 12 | AD66: =IF($CK66=0,0,IF(SUM($Z66:AC66)<($N66-12),12,$N66-SUM($Z66:AC66))) -> 12 | AE66: =IF($CK66=0,0,IF(SUM($Z66:AD66)<($N66-12),12,$N66-SUM($Z66:AD66))) -> 12 | AI66: 0 | AJ66: =IF($CL66=0,0,IF(SUM($AI66:AI66)<($N66-12),12,$N66-SUM($AI66:AI66))) -> 0 | AK66: =IF($CL66=0,0,IF(SUM($AI66:AJ66)<($N66-12),12,$N66-SUM($AI66:AJ66))) -> 0 | AL66: =IF($CL66=0,0,IF(SUM($AI66:AK66)<($N66-12),12,$N66-SUM($AI66:AK66))) -> 0 | AM66: =IF($CL66=0,0,IF(SUM($AI66:AL66)<($N66-12),12,$N66-SUM($AI66:AL66))) -> 0 | AR66: 0 | AS66: =IF($CM66=0,0,IF(SUM($AQ66:AR66)<($N66-12),12,$N66-SUM($AQ66:AR66))) -> 0 | AT66: =IF($CM66=0,0,IF(SUM($AQ66:AS66)<($N66-12),12,$N66-SUM($AQ66:AS66))) -> 0 | AU66: =IF($CM66=0,0,IF(SUM($AQ66:AT66)<($N66-12),12,$N66-SUM($AQ66:AT66))) -> 0 | BA66: 0 | BB66: =IF($CN66=0,0,IF(SUM($AY66:BA66)<($N66-12),12,$N66-SUM($AY66:BA66))) -> 0 | BC66: =IF($CN66=0,0,IF(SUM($AY66:BB66)<($N66-12),12,$N66-SUM($AY66:BB66))) -> 0 | BJ66: 0 | BK66: =IF($CO66=0,0,IF(SUM($BG66:BJ66)<($N66-12),12,$N66-SUM($BG66:BJ66))) -> 0 | BS66: 0 | BU66: 0 | BV66: 0.25 | BW66: 0 | BX66: 0 | BY66: 0 | BZ66: 0 | CA66: 0 | CC66: 0.75 | CE66: 0.25 | CJ66: 0 | CK66: 400 | CL66: 0 | CM66: 0 | CN66: 0 | CO66: 0 | CP66: 0
C67: CPDLC SITA Ground Station Expansion | D67: ATM Operations & Technology & Training | E67: FDPS | F67: 0 | G67: Z002 | H67: RP3 | I67: 2025 | J67: 2025-01-01 | K67: 170 | L67: €'000 | M67: 8 | N67: 96 | O67: 0.125 | Q67: 0 | R67: =IF($CJ67=0,0,IF(SUM(Q67:$Q67)<($N67-12),12,$N67-SUM(Q67:$Q67))) -> 0 | S67: =IF($CJ67=0,0,IF(SUM($Q67:R67)<($N67-12),12,$N67-SUM($Q67:R67))) -> 0 | T67: =IF($CJ67=0,0,IF(SUM($Q67:S67)<($N67-12),12,$N67-SUM($Q67:S67))) -> 0 | U67: =IF($CJ67=0,0,IF(SUM($Q67:T67)<($N67-12),12,$N67-SUM($Q67:T67))) -> 0 | V67: =IF($CJ67=0,0,IF(SUM($Q67:U67)<($N67-12),12,$N67-SUM($Q67:U67))) -> 0 | W67: =IF($CJ67=0,0,IF(SUM($Q67:V67)<($N67-12),12,$N67-SUM($Q67:V67))) -> 0 | Z67: 0 | AA67: =IF($CK67=0,0,IF(SUM(Z67:$Z67)<($N67-12),12,$N67-SUM(Z67:$Z67))) -> 0 | AB67: =IF($CK67=0,0,IF(SUM($Z67:AA67)<($N67-12),12,$N67-SUM($Z67:AA67))) -> 0 | AC67: =IF($CK67=0,0,IF(SUM($Z67:AB67)<($N67-12),12,$N67-SUM($Z67:AB67))) -> 0 | AD67: =IF($CK67=0,0,IF(SUM($Z67:AC67)<($N67-12),12,$N67-SUM($Z67:AC67))) -> 0 | AE67: =IF($CK67=0,0,IF(SUM($Z67:AD67)<($N67-12),12,$N67-SUM($Z67:AD67))) -> 0 | AI67: 12 | AJ67: =IF($CL67=0,0,IF(SUM($AI67:AI67)<($N67-12),12,$N67-SUM($AI67:AI67))) -> 12 | AK67: =IF($CL67=0,0,IF(SUM($AI67:AJ67)<($N67-12),12,$N67-SUM($AI67:AJ67))) -> 12 | AL67: =IF($CL67=0,0,IF(SUM($AI67:AK67)<($N67-12),12,$N67-SUM($AI67:AK67))) -> 12 | AM67: =IF($CL67=0,0,IF(SUM($AI67:AL67)<($N67-12),12,$N67-SUM($AI67:AL67))) -> 12 | AR67: 0 | AS67: =IF($CM67=0,0,IF(SUM($AQ67:AR67)<($N67-12),12,$N67-SUM($AQ67:AR67))) -> 0 | AT67: =IF($CM67=0,0,IF(SUM($AQ67:AS67)<($N67-12),12,$N67-SUM($AQ67:AS67))) -> 0 | AU67: =IF($CM67=0,0,IF(SUM($AQ67:AT67)<($N67-12),12,$N67-SUM($AQ67:AT67))) -> 0 | BA67: 0 | BB67: =IF($CN67=0,0,IF(SUM($AY67:BA67)<($N67-12),12,$N67-SUM($AY67:BA67))) -> 0 | BC67: =IF($CN67=0,0,IF(SUM($AY67:BB67)<($N67-12),12,$N67-SUM($AY67:BB67))) -> 0 | BJ67: 0 | BK67: =IF($CO67=0,0,IF(SUM($BG67:BJ67)<($N67-12),12,$N67-SUM($BG67:BJ67))) -> 0 | BS67: 0 | BU67: 0 | BV67: 0 | BW67: 1 | BX67: 0 | BY67: 0 | BZ67: 0 | CA67: 0 | CC67: 0.75 | CE67: 0.25 | CJ67: 0 | CK67: 0 | CL67: 170 | CM67: 0 | CN67: 0 | CO67: 0 | CP67: 0
C68: New Dublin Tower Equipment | D68: ATM Operations & Technology & Training | E68: 0 | F68: DAPTE | G68: R035 | H68: 0 | I68: 0 | K68: 0 | L68: €'000 | M68: 0 | N68: 0 | O68: 0 | Q68: 0 | R68: =IF($CJ68=0,0,IF(SUM(Q68:$Q68)<($N68-12),12,$N68-SUM(Q68:$Q68))) -> 0 | S68: =IF($CJ68=0,0,IF(SUM($Q68:R68)<($N68-12),12,$N68-SUM($Q68:R68))) -> 0 | T68: =IF($CJ68=0,0,IF(SUM($Q68:S68)<($N68-12),12,$N68-SUM($Q68:S68))) -> 0 | U68: =IF($CJ68=0,0,IF(SUM($Q68:T68)<($N68-12),12,$N68-SUM($Q68:T68))) -> 0 | V68: =IF($CJ68=0,0,IF(SUM($Q68:U68)<($N68-12),12,$N68-SUM($Q68:U68))) -> 0 | W68: =IF($CJ68=0,0,IF(SUM($Q68:V68)<($N68-12),12,$N68-SUM($Q68:V68))) -> 0 | Z68: 0 | AA68: =IF($CK68=0,0,IF(SUM(Z68:$Z68)<($N68-12),12,$N68-SUM(Z68:$Z68))) -> 0 | AB68: =IF($CK68=0,0,IF(SUM($Z68:AA68)<($N68-12),12,$N68-SUM($Z68:AA68))) -> 0 | AC68: =IF($CK68=0,0,IF(SUM($Z68:AB68)<($N68-12),12,$N68-SUM($Z68:AB68))) -> 0 | AD68: =IF($CK68=0,0,IF(SUM($Z68:AC68)<($N68-12),12,$N68-SUM($Z68:AC68))) -> 0 | AE68: =IF($CK68=0,0,IF(SUM($Z68:AD68)<($N68-12),12,$N68-SUM($Z68:AD68))) -> 0 | AI68: 0 | AJ68: =IF($CL68=0,0,IF(SUM($AI68:AI68)<($N68-12),12,$N68-SUM($AI68:AI68))) -> 0 | AK68: =IF($CL68=0,0,IF(SUM($AI68:AJ68)<($N68-12),12,$N68-SUM($AI68:AJ68))) -> 0 | AL68: =IF($CL68=0,0,IF(SUM($AI68:AK68)<($N68-12),12,$N68-SUM($AI68:AK68))) -> 0 | AM68: =IF($CL68=0,0,IF(SUM($AI68:AL68)<($N68-12),12,$N68-SUM($AI68:AL68))) -> 0 | AR68: 0 | AS68: =IF($CM68=0,0,IF(SUM($AQ68:AR68)<($N68-12),12,$N68-SUM($AQ68:AR68))) -> 0 | AT68: =IF($CM68=0,0,IF(SUM($AQ68:AS68)<($N68-12),12,$N68-SUM($AQ68:AS68))) -> 0 | AU68: =IF($CM68=0,0,IF(SUM($AQ68:AT68)<($N68-12),12,$N68-SUM($AQ68:AT68))) -> 0 | BA68: 0 | BB68: =IF($CN68=0,0,IF(SUM($AY68:BA68)<($N68-12),12,$N68-SUM($AY68:BA68))) -> 0 | BC68: =IF($CN68=0,0,IF(SUM($AY68:BB68)<($N68-12),12,$N68-SUM($AY68:BB68))) -> 0 | BJ68: 0 | BK68: =IF($CO68=0,0,IF(SUM($BG68:BJ68)<($N68-12),12,$N68-SUM($BG68:BJ68))) -> 0 | BS68: 0 | BU68: 0 | BV68: 0 | BW68: 0 | BX68: 0 | BY68: 0 | BZ68: 0 | CA68: 0 | CC68: 0 | CE68: 0 | CJ68: 0 | CK68: 0 | CL68: 0 | CM68: 0 | CN68: 0 | CO68: 0 | CP68: 0
C69: New Dublin Tower Equipment - Low Tower | D69: ATM Operations & Technology & Training | E69: DAPTE | F69: DAPTE | G69: R035A | H69: RP3 | I69: 2024 | J69: 2024-10-01 | K69: 54.71047 | L69: €'000 | M69: 8 | N69: 96 | O69: 0.125 | Q69: 0 | R69: =IF($CJ69=0,0,IF(SUM(Q69:$Q69)<($N69-12),12,$N69-SUM(Q69:$Q69))) -> 0 | S69: =IF($CJ69=0,0,IF(SUM($Q69:R69)<($N69-12),12,$N69-SUM($Q69:R69))) -> 0 | T69: =IF($CJ69=0,0,IF(SUM($Q69:S69)<($N69-12),12,$N69-SUM($Q69:S69))) -> 0 | U69: =IF($CJ69=0,0,IF(SUM($Q69:T69)<($N69-12),12,$N69-SUM($Q69:T69))) -> 0 | V69: =IF($CJ69=0,0,IF(SUM($Q69:U69)<($N69-12),12,$N69-SUM($Q69:U69))) -> 0 | W69: =IF($CJ69=0,0,IF(SUM($Q69:V69)<($N69-12),12,$N69-SUM($Q69:V69))) -> 0 | Z69: 3 | AA69: =IF($CK69=0,0,IF(SUM(Z69:$Z69)<($N69-12),12,$N69-SUM(Z69:$Z69))) -> 12 | AB69: =IF($CK69=0,0,IF(SUM($Z69:AA69)<($N69-12),12,$N69-SUM($Z69:AA69))) -> 12 | AC69: =IF($CK69=0,0,IF(SUM($Z69:AB69)<($N69-12),12,$N69-SUM($Z69:AB69))) -> 12 | AD69: =IF($CK69=0,0,IF(SUM($Z69:AC69)<($N69-12),12,$N69-SUM($Z69:AC69))) -> 12 | AE69: =IF($CK69=0,0,IF(SUM($Z69:AD69)<($N69-12),12,$N69-SUM($Z69:AD69))) -> 12 | AI69: 0 | AJ69: =IF($CL69=0,0,IF(SUM($AI69:AI69)<($N69-12),12,$N69-SUM($AI69:AI69))) -> 0 | AK69: =IF($CL69=0,0,IF(SUM($AI69:AJ69)<($N69-12),12,$N69-SUM($AI69:AJ69))) -> 0 | AL69: =IF($CL69=0,0,IF(SUM($AI69:AK69)<($N69-12),12,$N69-SUM($AI69:AK69))) -> 0 | AM69: =IF($CL69=0,0,IF(SUM($AI69:AL69)<($N69-12),12,$N69-SUM($AI69:AL69))) -> 0 | AR69: 0 | AS69: =IF($CM69=0,0,IF(SUM($AQ69:AR69)<($N69-12),12,$N69-SUM($AQ69:AR69))) -> 0 | AT69: =IF($CM69=0,0,IF(SUM($AQ69:AS69)<($N69-12),12,$N69-SUM($AQ69:AS69))) -> 0 | AU69: =IF($CM69=0,0,IF(SUM($AQ69:AT69)<($N69-12),12,$N69-SUM($AQ69:AT69))) -> 0 | BA69: 0 | BB69: =IF($CN69=0,0,IF(SUM($AY69:BA69)<($N69-12),12,$N69-SUM($AY69:BA69))) -> 0 | BC69: =IF($CN69=0,0,IF(SUM($AY69:BB69)<($N69-12),12,$N69-SUM($AY69:BB69))) -> 0 | BJ69: 0 | BK69: =IF($CO69=0,0,IF(SUM($BG69:BJ69)<($N69-12),12,$N69-SUM($BG69:BJ69))) -> 0 | BS69: 0 | BU69: 0 | BV69: 0.25 | BW69: 0 | BX69: 0 | BY69: 0 | BZ69: 0 | CA69: 0 | CC69: 0 | CE69: 1 | CJ69: 0 | CK69: 54.71047 | CL69: 0 | CM69: 0 | CN69: 0 | CO69: 0 | CP69: 0
C70: New Dublin Tower Equipment - IATS | D70: ATM Operations & Technology & Training | E70: DAPTE | F70: DAPTE | G70: R035A | H70: RP3 | I70: 2024 | J70: 2024-10-01 | K70: 700 | L70: €'000 | M70: 8 | N70: 96 | O70: 0.125 | Q70: 0 | R70: =IF($CJ70=0,0,IF(SUM(Q70:$Q70)<($N70-12),12,$N70-SUM(Q70:$Q70))) -> 0 | S70: =IF($CJ70=0,0,IF(SUM($Q70:R70)<($N70-12),12,$N70-SUM($Q70:R70))) -> 0 | T70: =IF($CJ70=0,0,IF(SUM($Q70:S70)<($N70-12),12,$N70-SUM($Q70:S70))) -> 0 | U70: =IF($CJ70=0,0,IF(SUM($Q70:T70)<($N70-12),12,$N70-SUM($Q70:T70))) -> 0 | V70: =IF($CJ70=0,0,IF(SUM($Q70:U70)<($N70-12),12,$N70-SUM($Q70:U70))) -> 0 | W70: =IF($CJ70=0,0,IF(SUM($Q70:V70)<($N70-12),12,$N70-SUM($Q70:V70))) -> 0 | Z70: 3 | AA70: =IF($CK70=0,0,IF(SUM(Z70:$Z70)<($N70-12),12,$N70-SUM(Z70:$Z70))) -> 12 | AB70: =IF($CK70=0,0,IF(SUM($Z70:AA70)<($N70-12),12,$N70-SUM($Z70:AA70))) -> 12 | AC70: =IF($CK70=0,0,IF(SUM($Z70:AB70)<($N70-12),12,$N70-SUM($Z70:AB70))) -> 12 | AD70: =IF($CK70=0,0,IF(SUM($Z70:AC70)<($N70-12),12,$N70-SUM($Z70:AC70))) -> 12 | AE70: =IF($CK70=0,0,IF(SUM($Z70:AD70)<($N70-12),12,$N70-SUM($Z70:AD70))) -> 12 | AI70: 3 | AJ70: =IF($CL70=0,0,IF(SUM($AI70:AI70)<($N70-12),12,$N70-SUM($AI70:AI70))) -> 12 | AK70: =IF($CL70=0,0,IF(SUM($AI70:AJ70)<($N70-12),12,$N70-SUM($AI70:AJ70))) -> 12 | AL70: =IF($CL70=0,0,IF(SUM($AI70:AK70)<($N70-12),12,$N70-SUM($AI70:AK70))) -> 12 | AM70: =IF($CL70=0,0,IF(SUM($AI70:AL70)<($N70-12),12,$N70-SUM($AI70:AL70))) -> 12 | AQ70: 5 | AR70: 0 | AS70: =IF($CM70=0,0,IF(SUM($AQ70:AR70)<($N70-12),12,$N70-SUM($AQ70:AR70))) -> 0 | AT70: =IF($CM70=0,0,IF(SUM($AQ70:AS70)<($N70-12),12,$N70-SUM($AQ70:AS70))) -> 0 | AU70: =IF($CM70=0,0,IF(SUM($AQ70:AT70)<($N70-12),12,$N70-SUM($AQ70:AT70))) -> 0 | BA70: 0 | BB70: =IF($CN70=0,0,IF(SUM($AY70:BA70)<($N70-12),12,$N70-SUM($AY70:BA70))) -> 0 | BC70: =IF($CN70=0,0,IF(SUM($AY70:BB70)<($N70-12),12,$N70-SUM($AY70:BB70))) -> 0 | BJ70: 0 | BK70: =IF($CO70=0,0,IF(SUM($BG70:BJ70)<($N70-12),12,$N70-SUM($BG70:BJ70))) -> 0 | BS70: 0 | BU70: 0 | BV70: 0.25 | BW70: 0.25 | BX70: 0 | BY70: 0 | BZ70: 0 | CA70: 0 | CC70: 0 | CE70: 1 | CJ70: 0 | CK70: 350 | CL70: 350 | CM70: 0 | CN70: 0 | CO70: 0 | CP70: 0
C71: IAA Smart Messenger (AFTN/SMHS) | D71: ATM Operations & Technology & Training | E71: FDPS | F71: 0 | G71: RP4-FDPS-1 | H71: RP4 | I71: 2026 | J71: 2026-01-01 | K71: 1500 | L71: €'000 | M71: 8 | N71: 96 | O71: 0.125 | Q71: 0 | R71: =IF($CJ71=0,0,IF(SUM(Q71:$Q71)<($N71-12),12,$N71-SUM(Q71:$Q71))) -> 0 | S71: =IF($CJ71=0,0,IF(SUM($Q71:R71)<($N71-12),12,$N71-SUM($Q71:R71))) -> 0 | T71: =IF($CJ71=0,0,IF(SUM($Q71:S71)<($N71-12),12,$N71-SUM($Q71:S71))) -> 0 | U71: =IF($CJ71=0,0,IF(SUM($Q71:T71)<($N71-12),12,$N71-SUM($Q71:T71))) -> 0 | V71: =IF($CJ71=0,0,IF(SUM($Q71:U71)<($N71-12),12,$N71-SUM($Q71:U71))) -> 0 | W71: =IF($CJ71=0,0,IF(SUM($Q71:V71)<($N71-12),12,$N71-SUM($Q71:V71))) -> 0 | Z71: 0 | AA71: =IF($CK71=0,0,IF(SUM(Z71:$Z71)<($N71-12),12,$N71-SUM(Z71:$Z71))) -> 0 | AB71: =IF($CK71=0,0,IF(SUM($Z71:AA71)<($N71-12),12,$N71-SUM($Z71:AA71))) -> 0 | AC71: =IF($CK71=0,0,IF(SUM($Z71:AB71)<($N71-12),12,$N71-SUM($Z71:AB71))) -> 0 | AD71: =IF($CK71=0,0,IF(SUM($Z71:AC71)<($N71-12),12,$N71-SUM($Z71:AC71))) -> 0 | AE71: =IF($CK71=0,0,IF(SUM($Z71:AD71)<($N71-12),12,$N71-SUM($Z71:AD71))) -> 0 | AI71: 0 | AJ71: =IF($CL71=0,0,IF(SUM($AI71:AI71)<($N71-12),12,$N71-SUM($AI71:AI71))) -> 0 | AK71: =IF($CL71=0,0,IF(SUM($AI71:AJ71)<($N71-12),12,$N71-SUM($AI71:AJ71))) -> 0 | AL71: =IF($CL71=0,0,IF(SUM($AI71:AK71)<($N71-12),12,$N71-SUM($AI71:AK71))) -> 0 | AM71: =IF($CL71=0,0,IF(SUM($AI71:AL71)<($N71-12),12,$N71-SUM($AI71:AL71))) -> 0 | AR71: 12 | AS71: =IF($CM71=0,0,IF(SUM($AQ71:AR71)<($N71-12),12,$N71-SUM($AQ71:AR71))) -> 12 | AT71: =IF($CM71=0,0,IF(SUM($AQ71:AS71)<($N71-12),12,$N71-SUM($AQ71:AS71))) -> 12 | AU71: =IF($CM71=0,0,IF(SUM($AQ71:AT71)<($N71-12),12,$N71-SUM($AQ71:AT71))) -> 12 | BA71: 0 | BB71: =IF($CN71=0,0,IF(SUM($AY71:BA71)<($N71-12),12,$N71-SUM($AY71:BA71))) -> 0 | BC71: =IF($CN71=0,0,IF(SUM($AY71:BB71)<($N71-12),12,$N71-SUM($AY71:BB71))) -> 0 | BJ71: 3 | BK71: =IF($CO71=0,0,IF(SUM($BG71:BJ71)<($N71-12),12,$N71-SUM($BG71:BJ71))) -> 12 | BS71: 0 | BU71: 0 | BV71: 0 | BW71: 0 | BX71: 1 | BY71: 0 | BZ71: 0.25 | CA71: 0 | CC71: 0.75 | CE71: 0.25 | CJ71: 0 | CK71: 0 | CL71: 0 | CM71: 200 | CN71: 0 | CO71: 1300 | CP71: 0
C72: AIM System Upgrade | D72: ATM Operations & Technology & Training | E72: FDPS | F72: 0 | G72: RP4-FDPS-2 | H72: RP4 | I72: 2027 | J72: 2027-10-01 | K72: 1000 | L72: €'000 | M72: 8 | N72: 96 | O72: 0.125 | Q72: 0 | R72: =IF($CJ72=0,0,IF(SUM(Q72:$Q72)<($N72-12),12,$N72-SUM(Q72:$Q72))) -> 0 | S72: =IF($CJ72=0,0,IF(SUM($Q72:R72)<($N72-12),12,$N72-SUM($Q72:R72))) -> 0 | T72: =IF($CJ72=0,0,IF(SUM($Q72:S72)<($N72-12),12,$N72-SUM($Q72:S72))) -> 0 | U72: =IF($CJ72=0,0,IF(SUM($Q72:T72)<($N72-12),12,$N72-SUM($Q72:T72))) -> 0 | V72: =IF($CJ72=0,0,IF(SUM($Q72:U72)<($N72-12),12,$N72-SUM($Q72:U72))) -> 0 | W72: =IF($CJ72=0,0,IF(SUM($Q72:V72)<($N72-12),12,$N72-SUM($Q72:V72))) -> 0 | Z72: 0 | AA72: =IF($CK72=0,0,IF(SUM(Z72:$Z72)<($N72-12),12,$N72-SUM(Z72:$Z72))) -> 0 | AB72: =IF($CK72=0,0,IF(SUM($Z72:AA72)<($N72-12),12,$N72-SUM($Z72:AA72))) -> 0 | AC72: =IF($CK72=0,0,IF(SUM($Z72:AB72)<($N72-12),12,$N72-SUM($Z72:AB72))) -> 0 | AD72: =IF($CK72=0,0,IF(SUM($Z72:AC72)<($N72-12),12,$N72-SUM($Z72:AC72))) -> 0 | AE72: =IF($CK72=0,0,IF(SUM($Z72:AD72)<($N72-12),12,$N72-SUM($Z72:AD72))) -> 0 | AI72: 0 | AJ72: =IF($CL72=0,0,IF(SUM($AI72:AI72)<($N72-12),12,$N72-SUM($AI72:AI72))) -> 0 | AK72: =IF($CL72=0,0,IF(SUM($AI72:AJ72)<($N72-12),12,$N72-SUM($AI72:AJ72))) -> 0 | AL72: =IF($CL72=0,0,IF(SUM($AI72:AK72)<($N72-12),12,$N72-SUM($AI72:AK72))) -> 0 | AM72: =IF($CL72=0,0,IF(SUM($AI72:AL72)<($N72-12),12,$N72-SUM($AI72:AL72))) -> 0 | AR72: 0 | AS72: =IF($CM72=0,0,IF(SUM($AQ72:AR72)<($N72-12),12,$N72-SUM($AQ72:AR72))) -> 0 | AT72: =IF($CM72=0,0,IF(SUM($AQ72:AS72)<($N72-12),12,$N72-SUM($AQ72:AS72))) -> 0 | AU72: =IF($CM72=0,0,IF(SUM($AQ72:AT72)<($N72-12),12,$N72-SUM($AQ72:AT72))) -> 0 | BA72: 3 | BB72: =IF($CN72=0,0,IF(SUM($AY72:BA72)<($N72-12),12,$N72-SUM($AY72:BA72))) -> 12 | BC72: =IF($CN72=0,0,IF(SUM($AY72:BB72)<($N72-12),12,$N72-SUM($AY72:BB72))) -> 12 | BJ72: 0 | BK72: =IF($CO72=0,0,IF(SUM($BG72:BJ72)<($N72-12),12,$N72-SUM($BG72:BJ72))) -> 0 | BS72: 0 | BU72: 0 | BV72: 0 | BW72: 0 | BX72: 0 | BY72: 0.25 | BZ72: 0 | CA72: 0 | CC72: 0.75 | CE72: 0.25 | CJ72: 0 | CK72: 0 | CL72: 0 | CM72: 0 | CN72: 1000 | CO72: 0 | CP72: 0
C73: CMS System Upgrade | D73: ATM Operations & Technology & Training | E73: FDPS | F73: 0 | G73: RP4-FDPS-3 | H73: RP4 | I73: 2028 | J73: 2028-10-01 | K73: 900 | L73: €'000 | M73: 8 | N73: 96 | O73: 0.125 | Q73: 0 | R73: =IF($CJ73=0,0,IF(SUM(Q73:$Q73)<($N73-12),12,$N73-SUM(Q73:$Q73))) -> 0 | S73: =IF($CJ73=0,0,IF(SUM($Q73:R73)<($N73-12),12,$N73-SUM($Q73:R73))) -> 0 | T73: =IF($CJ73=0,0,IF(SUM($Q73:S73)<($N73-12),12,$N73-SUM($Q73:S73))) -> 0 | U73: =IF($CJ73=0,0,IF(SUM($Q73:T73)<($N73-12),12,$N73-SUM($Q73:T73))) -> 0 | V73: =IF($CJ73=0,0,IF(SUM($Q73:U73)<($N73-12),12,$N73-SUM($Q73:U73))) -> 0 | W73: =IF($CJ73=0,0,IF(SUM($Q73:V73)<($N73-12),12,$N73-SUM($Q73:V73))) -> 0 | Z73: 0 | AA73: =IF($CK73=0,0,IF(SUM(Z73:$Z73)<($N73-12),12,$N73-SUM(Z73:$Z73))) -> 0 | AB73: =IF($CK73=0,0,IF(SUM($Z73:AA73)<($N73-12),12,$N73-SUM($Z73:AA73))) -> 0 | AC73: =IF($CK73=0,0,IF(SUM($Z73:AB73)<($N73-12),12,$N73-SUM($Z73:AB73))) -> 0 | AD73: =IF($CK73=0,0,IF(SUM($Z73:AC73)<($N73-12),12,$N73-SUM($Z73:AC73))) -> 0 | AE73: =IF($CK73=0,0,IF(SUM($Z73:AD73)<($N73-12),12,$N73-SUM($Z73:AD73))) -> 0 | AI73: 0 | AJ73: =IF($CL73=0,0,IF(SUM($AI73:AI73)<($N73-12),12,$N73-SUM($AI73:AI73))) -> 0 | AK73: =IF($CL73=0,0,IF(SUM($AI73:AJ73)<($N73-12),12,$N73-SUM($AI73:AJ73))) -> 0 | AL73: =IF($CL73=0,0,IF(SUM($AI73:AK73)<($N73-12),12,$N73-SUM($AI73:AK73))) -> 0 | AM73: =IF($CL73=0,0,IF(SUM($AI73:AL73)<($N73-12),12,$N73-SUM($AI73:AL73))) -> 0 | AR73: 0 | AS73: =IF($CM73=0,0,IF(SUM($AQ73:AR73)<($N73-12),12,$N73-SUM($AQ73:AR73))) -> 0 | AT73: =IF($CM73=0,0,IF(SUM($AQ73:AS73)<($N73-12),12,$N73-SUM($AQ73:AS73))) -> 0 | AU73: =IF($CM73=0,0,IF(SUM($AQ73:AT73)<($N73-12),12,$N73-SUM($AQ73:AT73))) -> 0 | BA73: 0 | BB73: =IF($CN73=0,0,IF(SUM($AY73:BA73)<($N73-12),12,$N73-SUM($AY73:BA73))) -> 0 | BC73: =IF($CN73=0,0,IF(SUM($AY73:BB73)<($N73-12),12,$N73-SUM($AY73:BB73))) -> 0 | BJ73: 3 | BK73: =IF($CO73=0,0,IF(SUM($BG73:BJ73)<($N73-12),12,$N73-SUM($BG73:BJ73))) -> 12 | BS73: 0 | BU73: 0 | BV73: 0 | BW73: 0 | BX73: 0 | BY73: 0 | BZ73: 0.25 | CA73: 0 | CC73: 0.75 | CE73: 0.25 | CJ73: 0 | CK73: 0 | CL73: 0 | CM73: 0 | CN73: 0 | CO73: 900 | CP73: 0
C74: CASDS | D74: ATM Operations & Technology & Training | E74: FDPS | F74: RP4-EASDS | G74: RP4-FDPS-4 | H74: 0 | I74: 0 | K74: 0 | L74: €'000 | M74: 8 | N74: 96 | O74: 0.125 | Q74: 0 | R74: =IF($CJ74=0,0,IF(SUM(Q74:$Q74)<($N74-12),12,$N74-SUM(Q74:$Q74))) -> 0 | S74: =IF($CJ74=0,0,IF(SUM($Q74:R74)<($N74-12),12,$N74-SUM($Q74:R74))) -> 0 | T74: =IF($CJ74=0,0,IF(SUM($Q74:S74)<($N74-12),12,$N74-SUM($Q74:S74))) -> 0 | U74: =IF($CJ74=0,0,IF(SUM($Q74:T74)<($N74-12),12,$N74-SUM($Q74:T74))) -> 0 | V74: =IF($CJ74=0,0,IF(SUM($Q74:U74)<($N74-12),12,$N74-SUM($Q74:U74))) -> 0 | W74: =IF($CJ74=0,0,IF(SUM($Q74:V74)<($N74-12),12,$N74-SUM($Q74:V74))) -> 0 | Z74: 0 | AA74: =IF($CK74=0,0,IF(SUM(Z74:$Z74)<($N74-12),12,$N74-SUM(Z74:$Z74))) -> 0 | AB74: =IF($CK74=0,0,IF(SUM($Z74:AA74)<($N74-12),12,$N74-SUM($Z74:AA74))) -> 0 | AC74: =IF($CK74=0,0,IF(SUM($Z74:AB74)<($N74-12),12,$N74-SUM($Z74:AB74))) -> 0 | AD74: =IF($CK74=0,0,IF(SUM($Z74:AC74)<($N74-12),12,$N74-SUM($Z74:AC74))) -> 0 | AE74: =IF($CK74=0,0,IF(SUM($Z74:AD74)<($N74-12),12,$N74-SUM($Z74:AD74))) -> 0 | AI74: 0 | AJ74: =IF($CL74=0,0,IF(SUM($AI74:AI74)<($N74-12),12,$N74-SUM($AI74:AI74))) -> 0 | AK74: =IF($CL74=0,0,IF(SUM($AI74:AJ74)<($N74-12),12,$N74-SUM($AI74:AJ74))) -> 0 | AL74: =IF($CL74=0,0,IF(SUM($AI74:AK74)<($N74-12),12,$N74-SUM($AI74:AK74))) -> 0 | AM74: =IF($CL74=0,0,IF(SUM($AI74:AL74)<($N74-12),12,$N74-SUM($AI74:AL74))) -> 0 | AR74: 0 | AS74: =IF($CM74=0,0,IF(SUM($AQ74:AR74)<($N74-12),12,$N74-SUM($AQ74:AR74))) -> 0 | AT74: =IF($CM74=0,0,IF(SUM($AQ74:AS74)<($N74-12),12,$N74-SUM($AQ74:AS74))) -> 0 | AU74: =IF($CM74=0,0,IF(SUM($AQ74:AT74)<($N74-12),12,$N74-SUM($AQ74:AT74))) -> 0 | BA74: 0 | BB74: =IF($CN74=0,0,IF(SUM($AY74:BA74)<($N74-12),12,$N74-SUM($AY74:BA74))) -> 0 | BC74: =IF($CN74=0,0,IF(SUM($AY74:BB74)<($N74-12),12,$N74-SUM($AY74:BB74))) -> 0 | BJ74: 0 | BK74: =IF($CO74=0,0,IF(SUM($BG74:BJ74)<($N74-12),12,$N74-SUM($BG74:BJ74))) -> 0 | BS74: 0 | BU74: 0 | BV74: 0 | BW74: 0 | BX74: 0 | BY74: 0 | BZ74: 0 | CA74: 0 | CC74: 0.75 | CE74: 0.25 | CJ74: 0 | CK74: 0 | CL74: 0 | CM74: 0 | CN74: 0 | CO74: 0 | CP74: 0
C75: CASDS (DUB) | D75: ATM Operations & Technology & Training | E75: FDPS | F75: RP4-EASDS | G75: RP4-FDPS-4A | H75: RP4 | I75: 2029 | J75: 2029-10-01 | K75: 1440 | L75: €'000 | M75: 8 | N75: 96 | O75: 0.125 | Q75: 0 | R75: =IF($CJ75=0,0,IF(SUM(Q75:$Q75)<($N75-12),12,$N75-SUM(Q75:$Q75))) -> 0 | S75: =IF($CJ75=0,0,IF(SUM($Q75:R75)<($N75-12),12,$N75-SUM($Q75:R75))) -> 0 | T75: =IF($CJ75=0,0,IF(SUM($Q75:S75)<($N75-12),12,$N75-SUM($Q75:S75))) -> 0 | U75: =IF($CJ75=0,0,IF(SUM($Q75:T75)<($N75-12),12,$N75-SUM($Q75:T75))) -> 0 | V75: =IF($CJ75=0,0,IF(SUM($Q75:U75)<($N75-12),12,$N75-SUM($Q75:U75))) -> 0 | W75: =IF($CJ75=0,0,IF(SUM($Q75:V75)<($N75-12),12,$N75-SUM($Q75:V75))) -> 0 | Z75: 0 | AA75: =IF($CK75=0,0,IF(SUM(Z75:$Z75)<($N75-12),12,$N75-SUM(Z75:$Z75))) -> 0 | AB75: =IF($CK75=0,0,IF(SUM($Z75:AA75)<($N75-12),12,$N75-SUM($Z75:AA75))) -> 0 | AC75: =IF($CK75=0,0,IF(SUM($Z75:AB75)<($N75-12),12,$N75-SUM($Z75:AB75))) -> 0 | AD75: =IF($CK75=0,0,IF(SUM($Z75:AC75)<($N75-12),12,$N75-SUM($Z75:AC75))) -> 0 | AE75: =IF($CK75=0,0,IF(SUM($Z75:AD75)<($N75-12),12,$N75-SUM($Z75:AD75))) -> 0 | AI75: 0 | AJ75: =IF($CL75=0,0,IF(SUM($AI75:AI75)<($N75-12),12,$N75-SUM($AI75:AI75))) -> 0 | AK75: =IF($CL75=0,0,IF(SUM($AI75:AJ75)<($N75-12),12,$N75-SUM($AI75:AJ75))) -> 0 | AL75: =IF($CL75=0,0,IF(SUM($AI75:AK75)<($N75-12),12,$N75-SUM($AI75:AK75))) -> 0 | AM75: =IF($CL75=0,0,IF(SUM($AI75:AL75)<($N75-12),12,$N75-SUM($AI75:AL75))) -> 0 | AR75: 0 | AS75: =IF($CM75=0,0,IF(SUM($AQ75:AR75)<($N75-12),12,$N75-SUM($AQ75:AR75))) -> 0 | AT75: =IF($CM75=0,0,IF(SUM($AQ75:AS75)<($N75-12),12,$N75-SUM($AQ75:AS75))) -> 0 | AU75: =IF($CM75=0,0,IF(SUM($AQ75:AT75)<($N75-12),12,$N75-SUM($AQ75:AT75))) -> 0 | BA75: 0 | BB75: =IF($CN75=0,0,IF(SUM($AY75:BA75)<($N75-12),12,$N75-SUM($AY75:BA75))) -> 0 | BC75: =IF($CN75=0,0,IF(SUM($AY75:BB75)<($N75-12),12,$N75-SUM($AY75:BB75))) -> 0 | BJ75: 0 | BK75: =IF($CO75=0,0,IF(SUM($BG75:BJ75)<($N75-12),12,$N75-SUM($BG75:BJ75))) -> 0 | BS75: 3 | BU75: 0 | BV75: 0 | BW75: 0 | BX75: 0 | BY75: 0 | BZ75: 0 | CA75: 0.25 | CC75: 0.75 | CE75: 0.25 | CJ75: 0 | CK75: 0 | CL75: 0 | CM75: 0 | CN75: 0 | CO75: 0 | CP75: 1440
C76: CASDS (SHN) | D76: ATM Operations & Technology & Training | E76: FDPS | F76: RP4-EASDS | G76: RP4-FDPS-4A | H76: RP4 | I76: 2029 | J76: 2029-10-01 | K76: 2520 | L76: €'000 | M76: 8 | N76: 96 | O76: 0.125 | Q76: 0 | R76: =IF($CJ76=0,0,IF(SUM(Q76:$Q76)<($N76-12),12,$N76-SUM(Q76:$Q76))) -> 0 | S76: =IF($CJ76=0,0,IF(SUM($Q76:R76)<($N76-12),12,$N76-SUM($Q76:R76))) -> 0 | T76: =IF($CJ76=0,0,IF(SUM($Q76:S76)<($N76-12),12,$N76-SUM($Q76:S76))) -> 0 | U76: =IF($CJ76=0,0,IF(SUM($Q76:T76)<($N76-12),12,$N76-SUM($Q76:T76))) -> 0 | V76: =IF($CJ76=0,0,IF(SUM($Q76:U76)<($N76-12),12,$N76-SUM($Q76:U76))) -> 0 | W76: =IF($CJ76=0,0,IF(SUM($Q76:V76)<($N76-12),12,$N76-SUM($Q76:V76))) -> 0 | Z76: 0 | AA76: =IF($CK76=0,0,IF(SUM(Z76:$Z76)<($N76-12),12,$N76-SUM(Z76:$Z76))) -> 0 | AB76: =IF($CK76=0,0,IF(SUM($Z76:AA76)<($N76-12),12,$N76-SUM($Z76:AA76))) -> 0 | AC76: =IF($CK76=0,0,IF(SUM($Z76:AB76)<($N76-12),12,$N76-SUM($Z76:AB76))) -> 0 | AD76: =IF($CK76=0,0,IF(SUM($Z76:AC76)<($N76-12),12,$N76-SUM($Z76:AC76))) -> 0 | AE76: =IF($CK76=0,0,IF(SUM($Z76:AD76)<($N76-12),12,$N76-SUM($Z76:AD76))) -> 0 | AI76: 0 | AJ76: =IF($CL76=0,0,IF(SUM($AI76:AI76)<($N76-12),12,$N76-SUM($AI76:AI76))) -> 0 | AK76: =IF($CL76=0,0,IF(SUM($AI76:AJ76)<($N76-12),12,$N76-SUM($AI76:AJ76))) -> 0 | AL76: =IF($CL76=0,0,IF(SUM($AI76:AK76)<($N76-12),12,$N76-SUM($AI76:AK76))) -> 0 | AM76: =IF($CL76=0,0,IF(SUM($AI76:AL76)<($N76-12),12,$N76-SUM($AI76:AL76))) -> 0 | AR76: 0 | AS76: =IF($CM76=0,0,IF(SUM($AQ76:AR76)<($N76-12),12,$N76-SUM($AQ76:AR76))) -> 0 | AT76: =IF($CM76=0,0,IF(SUM($AQ76:AS76)<($N76-12),12,$N76-SUM($AQ76:AS76))) -> 0 | AU76: =IF($CM76=0,0,IF(SUM($AQ76:AT76)<($N76-12),12,$N76-SUM($AQ76:AT76))) -> 0 | BA76: 0 | BB76: =IF($CN76=0,0,IF(SUM($AY76:BA76)<($N76-12),12,$N76-SUM($AY76:BA76))) -> 0 | BC76: =IF($CN76=0,0,IF(SUM($AY76:BB76)<($N76-12),12,$N76-SUM($AY76:BB76))) -> 0 | BJ76: 0 | BK76: =IF($CO76=0,0,IF(SUM($BG76:BJ76)<($N76-12),12,$N76-SUM($BG76:BJ76))) -> 0 | BS76: 3 | BU76: 0 | BV76: 0 | BW76: 0 | BX76: 0 | BY76: 0 | BZ76: 0 | CA76: 0.25 | CC76: 0.75 | CE76: 0.25 | CJ76: 0 | CK76: 0 | CL76: 0 | CM76: 0 | CN76: 0 | CO76: 0 | CP76: 2520
C77: CASDS Simulator (DUB) | D77: ATM Operations & Technology & Training | E77: FDPS | F77: RP4-EASDS | G77: RP4-FDPS-4A | H77: RP4 | I77: 2029 | J77: 2029-10-01 | K77: 270 | L77: €'000 | M77: 8 | N77: 96 | O77: 0.125 | Q77: 0 | R77: =IF($CJ77=0,0,IF(SUM(Q77:$Q77)<($N77-12),12,$N77-SUM(Q77:$Q77))) -> 0 | S77: =IF($CJ77=0,0,IF(SUM($Q77:R77)<($N77-12),12,$N77-SUM($Q77:R77))) -> 0 | T77: =IF($CJ77=0,0,IF(SUM($Q77:S77)<($N77-12),12,$N77-SUM($Q77:S77))) -> 0 | U77: =IF($CJ77=0,0,IF(SUM($Q77:T77)<($N77-12),12,$N77-SUM($Q77:T77))) -> 0 | V77: =IF($CJ77=0,0,IF(SUM($Q77:U77)<($N77-12),12,$N77-SUM($Q77:U77))) -> 0 | W77: =IF($CJ77=0,0,IF(SUM($Q77:V77)<($N77-12),12,$N77-SUM($Q77:V77))) -> 0 | Z77: 0 | AA77: =IF($CK77=0,0,IF(SUM(Z77:$Z77)<($N77-12),12,$N77-SUM(Z77:$Z77))) -> 0 | AB77: =IF($CK77=0,0,IF(SUM($Z77:AA77)<($N77-12),12,$N77-SUM($Z77:AA77))) -> 0 | AC77: =IF($CK77=0,0,IF(SUM($Z77:AB77)<($N77-12),12,$N77-SUM($Z77:AB77))) -> 0 | AD77: =IF($CK77=0,0,IF(SUM($Z77:AC77)<($N77-12),12,$N77-SUM($Z77:AC77))) -> 0 | AE77: =IF($CK77=0,0,IF(SUM($Z77:AD77)<($N77-12),12,$N77-SUM($Z77:AD77))) -> 0 | AI77: 0 | AJ77: =IF($CL77=0,0,IF(SUM($AI77:AI77)<($N77-12),12,$N77-SUM($AI77:AI77))) -> 0 | AK77: =IF($CL77=0,0,IF(SUM($AI77:AJ77)<($N77-12),12,$N77-SUM($AI77:AJ77))) -> 0 | AL77: =IF($CL77=0,0,IF(SUM($AI77:AK77)<($N77-12),12,$N77-SUM($AI77:AK77))) -> 0 | AM77: =IF($CL77=0,0,IF(SUM($AI77:AL77)<($N77-12),12,$N77-SUM($AI77:AL77))) -> 0 | AR77: 0 | AS77: =IF($CM77=0,0,IF(SUM($AQ77:AR77)<($N77-12),12,$N77-SUM($AQ77:AR77))) -> 0 | AT77: =IF($CM77=0,0,IF(SUM($AQ77:AS77)<($N77-12),12,$N77-SUM($AQ77:AS77))) -> 0 | AU77: =IF($CM77=0,0,IF(SUM($AQ77:AT77)<($N77-12),12,$N77-SUM($AQ77:AT77))) -> 0 | BA77: 0 | BB77: =IF($CN77=0,0,IF(SUM($AY77:BA77)<($N77-12),12,$N77-SUM($AY77:BA77))) -> 0 | BC77: =IF($CN77=0,0,IF(SUM($AY77:BB77)<($N77-12),12,$N77-SUM($AY77:BB77))) -> 0 | BJ77: 0 | BK77: =IF($CO77=0,0,IF(SUM($BG77:BJ77)<($N77-12),12,$N77-SUM($BG77:BJ77))) -> 0 | BS77: 3 | BU77: 0 | BV77: 0 | BW77: 0 | BX77: 0 | BY77: 0 | BZ77: 0 | CA77: 0.25 | CC77: 0.75 | CE77: 0.25 | CJ77: 0 | CK77: 0 | CL77: 0 | CM77: 0 | CN77: 0 | CO77: 0 | CP77: 270
C78: CASDS Simulator (SHN) | D78: ATM Operations & Technology & Training | E78: FDPS | F78: RP4-EASDS | G78: RP4-FDPS-4A | H78: RP4 | I78: 2029 | J78: 2029-10-01 | K78: 270 | L78: €'000 | M78: 8 | N78: 96 | O78: 0.125 | Q78: 0 | R78: =IF($CJ78=0,0,IF(SUM(Q78:$Q78)<($N78-12),12,$N78-SUM(Q78:$Q78))) -> 0 | S78: =IF($CJ78=0,0,IF(SUM($Q78:R78)<($N78-12),12,$N78-SUM($Q78:R78))) -> 0 | T78: =IF($CJ78=0,0,IF(SUM($Q78:S78)<($N78-12),12,$N78-SUM($Q78:S78))) -> 0 | U78: =IF($CJ78=0,0,IF(SUM($Q78:T78)<($N78-12),12,$N78-SUM($Q78:T78))) -> 0 | V78: =IF($CJ78=0,0,IF(SUM($Q78:U78)<($N78-12),12,$N78-SUM($Q78:U78))) -> 0 | W78: =IF($CJ78=0,0,IF(SUM($Q78:V78)<($N78-12),12,$N78-SUM($Q78:V78))) -> 0 | Z78: 0 | AA78: =IF($CK78=0,0,IF(SUM(Z78:$Z78)<($N78-12),12,$N78-SUM(Z78:$Z78))) -> 0 | AB78: =IF($CK78=0,0,IF(SUM($Z78:AA78)<($N78-12),12,$N78-SUM($Z78:AA78))) -> 0 | AC78: =IF($CK78=0,0,IF(SUM($Z78:AB78)<($N78-12),12,$N78-SUM($Z78:AB78))) -> 0 | AD78: =IF($CK78=0,0,IF(SUM($Z78:AC78)<($N78-12),12,$N78-SUM($Z78:AC78))) -> 0 | AE78: =IF($CK78=0,0,IF(SUM($Z78:AD78)<($N78-12),12,$N78-SUM($Z78:AD78))) -> 0 | AI78: 0 | AJ78: =IF($CL78=0,0,IF(SUM($AI78:AI78)<($N78-12),12,$N78-SUM($AI78:AI78))) -> 0 | AK78: =IF($CL78=0,0,IF(SUM($AI78:AJ78)<($N78-12),12,$N78-SUM($AI78:AJ78))) -> 0 | AL78: =IF($CL78=0,0,IF(SUM($AI78:AK78)<($N78-12),12,$N78-SUM($AI78:AK78))) -> 0 | AM78: =IF($CL78=0,0,IF(SUM($AI78:AL78)<($N78-12),12,$N78-SUM($AI78:AL78))) -> 0 | AR78: 0 | AS78: =IF($CM78=0,0,IF(SUM($AQ78:AR78)<($N78-12),12,$N78-SUM($AQ78:AR78))) -> 0 | AT78: =IF($CM78=0,0,IF(SUM($AQ78:AS78)<($N78-12),12,$N78-SUM($AQ78:AS78))) -> 0 | AU78: =IF($CM78=0,0,IF(SUM($AQ78:AT78)<($N78-12),12,$N78-SUM($AQ78:AT78))) -> 0 | BA78: 0 | BB78: =IF($CN78=0,0,IF(SUM($AY78:BA78)<($N78-12),12,$N78-SUM($AY78:BA78))) -> 0 | BC78: =IF($CN78=0,0,IF(SUM($AY78:BB78)<($N78-12),12,$N78-SUM($AY78:BB78))) -> 0 | BJ78: 0 | BK78: =IF($CO78=0,0,IF(SUM($BG78:BJ78)<($N78-12),12,$N78-SUM($BG78:BJ78))) -> 0 | BS78: 3 | BU78: 0 | BV78: 0 | BW78: 0 | BX78: 0 | BY78: 0 | BZ78: 0 | CA78: 0.25 | CC78: 0.75 | CE78: 0.25 | CJ78: 0 | CK78: 0 | CL78: 0 | CM78: 0 | CN78: 0 | CO78: 0 | CP78: 270
C79: I-ATS System Developments | D79: ATM Operations & Technology & Training | E79: FDPS | F79: 0 | G79: RP4-FDPS-5 | H79: RP4 | I79: 2025 | J79: 2025-10-01 | K79: 2000 | L79: €'000 | M79: 8 | N79: 96 | O79: 0.125 | Q79: 0 | R79: =IF($CJ79=0,0,IF(SUM(Q79:$Q79)<($N79-12),12,$N79-SUM(Q79:$Q79))) -> 0 | S79: =IF($CJ79=0,0,IF(SUM($Q79:R79)<($N79-12),12,$N79-SUM($Q79:R79))) -> 0 | T79: =IF($CJ79=0,0,IF(SUM($Q79:S79)<($N79-12),12,$N79-SUM($Q79:S79))) -> 0 | U79: =IF($CJ79=0,0,IF(SUM($Q79:T79)<($N79-12),12,$N79-SUM($Q79:T79))) -> 0 | V79: =IF($CJ79=0,0,IF(SUM($Q79:U79)<($N79-12),12,$N79-SUM($Q79:U79))) -> 0 | W79: =IF($CJ79=0,0,IF(SUM($Q79:V79)<($N79-12),12,$N79-SUM($Q79:V79))) -> 0 | Z79: 0 | AA79: =IF($CK79=0,0,IF(SUM(Z79:$Z79)<($N79-12),12,$N79-SUM(Z79:$Z79))) -> 0 | AB79: =IF($CK79=0,0,IF(SUM($Z79:AA79)<($N79-12),12,$N79-SUM($Z79:AA79))) -> 0 | AC79: =IF($CK79=0,0,IF(SUM($Z79:AB79)<($N79-12),12,$N79-SUM($Z79:AB79))) -> 0 | AD79: =IF($CK79=0,0,IF(SUM($Z79:AC79)<($N79-12),12,$N79-SUM($Z79:AC79))) -> 0 | AE79: =IF($CK79=0,0,IF(SUM($Z79:AD79)<($N79-12),12,$N79-SUM($Z79:AD79))) -> 0 | AI79: 3 | AJ79: =IF($CL79=0,0,IF(SUM($AI79:AI79)<($N79-12),12,$N79-SUM($AI79:AI79))) -> 12 | AK79: =IF($CL79=0,0,IF(SUM($AI79:AJ79)<($N79-12),12,$N79-SUM($AI79:AJ79))) -> 12 | AL79: =IF($CL79=0,0,IF(SUM($AI79:AK79)<($N79-12),12,$N79-SUM($AI79:AK79))) -> 12 | AM79: =IF($CL79=0,0,IF(SUM($AI79:AL79)<($N79-12),12,$N79-SUM($AI79:AL79))) -> 12 | AR79: 0 | AS79: =IF($CM79=0,0,IF(SUM($AQ79:AR79)<($N79-12),12,$N79-SUM($AQ79:AR79))) -> 0 | AT79: =IF($CM79=0,0,IF(SUM($AQ79:AS79)<($N79-12),12,$N79-SUM($AQ79:AS79))) -> 0 | AU79: =IF($CM79=0,0,IF(SUM($AQ79:AT79)<($N79-12),12,$N79-SUM($AQ79:AT79))) -> 0 | BA79: 3 | BB79: =IF($CN79=0,0,IF(SUM($AY79:BA79)<($N79-12),12,$N79-SUM($AY79:BA79))) -> 12 | BC79: =IF($CN79=0,0,IF(SUM($AY79:BB79)<($N79-12),12,$N79-SUM($AY79:BB79))) -> 12 | BJ79: 0 | BK79: =IF($CO79=0,0,IF(SUM($BG79:BJ79)<($N79-12),12,$N79-SUM($BG79:BJ79))) -> 0 | BS79: 3 | BU79: 0 | BV79: 0 | BW79: 0.25 | BX79: 0 | BY79: 0.25 | BZ79: 0 | CA79: 0.25 | CC79: 0.75 | CE79: 0.25 | CJ79: 0 | CK79: 0 | CL79: 800 | CM79: 0 | CN79: 800 | CO79: 0 | CP79: 400
C80: IWXXM to TAC Conversion Tool | D80: ATM Operations & Technology & Training | E80: FDPS | F80: 0 | G80: RP4-FDPS-6 | H80: RP4 | I80: 2028 | J80: 2028-01-01 | K80: 500 | L80: €'000 | M80: 8 | N80: 96 | O80: 0.125 | Q80: 0 | R80: =IF($CJ80=0,0,IF(SUM(Q80:$Q80)<($N80-12),12,$N80-SUM(Q80:$Q80))) -> 0 | S80: =IF($CJ80=0,0,IF(SUM($Q80:R80)<($N80-12),12,$N80-SUM($Q80:R80))) -> 0 | T80: =IF($CJ80=0,0,IF(SUM($Q80:S80)<($N80-12),12,$N80-SUM($Q80:S80))) -> 0 | U80: =IF($CJ80=0,0,IF(SUM($Q80:T80)<($N80-12),12,$N80-SUM($Q80:T80))) -> 0 | V80: =IF($CJ80=0,0,IF(SUM($Q80:U80)<($N80-12),12,$N80-SUM($Q80:U80))) -> 0 | W80: =IF($CJ80=0,0,IF(SUM($Q80:V80)<($N80-12),12,$N80-SUM($Q80:V80))) -> 0 | Z80: 0 | AA80: =IF($CK80=0,0,IF(SUM(Z80:$Z80)<($N80-12),12,$N80-SUM(Z80:$Z80))) -> 0 | AB80: =IF($CK80=0,0,IF(SUM($Z80:AA80)<($N80-12),12,$N80-SUM($Z80:AA80))) -> 0 | AC80: =IF($CK80=0,0,IF(SUM($Z80:AB80)<($N80-12),12,$N80-SUM($Z80:AB80))) -> 0 | AD80: =IF($CK80=0,0,IF(SUM($Z80:AC80)<($N80-12),12,$N80-SUM($Z80:AC80))) -> 0 | AE80: =IF($CK80=0,0,IF(SUM($Z80:AD80)<($N80-12),12,$N80-SUM($Z80:AD80))) -> 0 | AI80: 0 | AJ80: =IF($CL80=0,0,IF(SUM($AI80:AI80)<($N80-12),12,$N80-SUM($AI80:AI80))) -> 0 | AK80: =IF($CL80=0,0,IF(SUM($AI80:AJ80)<($N80-12),12,$N80-SUM($AI80:AJ80))) -> 0 | AL80: =IF($CL80=0,0,IF(SUM($AI80:AK80)<($N80-12),12,$N80-SUM($AI80:AK80))) -> 0 | AM80: =IF($CL80=0,0,IF(SUM($AI80:AL80)<($N80-12),12,$N80-SUM($AI80:AL80))) -> 0 | AR80: 0 | AS80: =IF($CM80=0,0,IF(SUM($AQ80:AR80)<($N80-12),12,$N80-SUM($AQ80:AR80))) -> 0 | AT80: =IF($CM80=0,0,IF(SUM($AQ80:AS80)<($N80-12),12,$N80-SUM($AQ80:AS80))) -> 0 | AU80: =IF($CM80=0,0,IF(SUM($AQ80:AT80)<($N80-12),12,$N80-SUM($AQ80:AT80))) -> 0 | BA80: 0 | BB80: =IF($CN80=0,0,IF(SUM($AY80:BA80)<($N80-12),12,$N80-SUM($AY80:BA80))) -> 0 | BC80: =IF($CN80=0,0,IF(SUM($AY80:BB80)<($N80-12),12,$N80-SUM($AY80:BB80))) -> 0 | BJ80: 12 | BK80: =IF($CO80=0,0,IF(SUM($BG80:BJ80)<($N80-12),12,$N80-SUM($BG80:BJ80))) -> 12 | BS80: 0 | BU80: 0 | BV80: 0 | BW80: 0 | BX80: 0 | BY80: 0 | BZ80: 1 | CA80: 0 | CC80: 0.75 | CE80: 0.25 | CJ80: 0 | CK80: 0 | CL80: 0 | CM80: 0 | CN80: 0 | CO80: 500 | CP80: 0
C81: 0 | D81: 0 | E81: 0 | F81: 0 | G81: 0 | H81: 0 | I81: 0 | K81: 0 | L81: €'000 | M81: 0 | N81: 0 | O81: 0 | Q81: 0 | R81: =IF($CJ81=0,0,IF(SUM(Q81:$Q81)<($N81-12),12,$N81-SUM(Q81:$Q81))) -> 0 | S81: =IF($CJ81=0,0,IF(SUM($Q81:R81)<($N81-12),12,$N81-SUM($Q81:R81))) -> 0 | T81: =IF($CJ81=0,0,IF(SUM($Q81:S81)<($N81-12),12,$N81-SUM($Q81:S81))) -> 0 | U81: =IF($CJ81=0,0,IF(SUM($Q81:T81)<($N81-12),12,$N81-SUM($Q81:T81))) -> 0 | V81: =IF($CJ81=0,0,IF(SUM($Q81:U81)<($N81-12),12,$N81-SUM($Q81:U81))) -> 0 | W81: =IF($CJ81=0,0,IF(SUM($Q81:V81)<($N81-12),12,$N81-SUM($Q81:V81))) -> 0 | Z81: 0 | AA81: =IF($CK81=0,0,IF(SUM(Z81:$Z81)<($N81-12),12,$N81-SUM(Z81:$Z81))) -> 0 | AB81: =IF($CK81=0,0,IF(SUM($Z81:AA81)<($N81-12),12,$N81-SUM($Z81:AA81))) -> 0 | AC81: =IF($CK81=0,0,IF(SUM($Z81:AB81)<($N81-12),12,$N81-SUM($Z81:AB81))) -> 0 | AD81: =IF($CK81=0,0,IF(SUM($Z81:AC81)<($N81-12),12,$N81-SUM($Z81:AC81))) -> 0 | AE81: =IF($CK81=0,0,IF(SUM($Z81:AD81)<($N81-12),12,$N81-SUM($Z81:AD81))) -> 0 | AI81: 0 | AJ81: =IF($CL81=0,0,IF(SUM($AI81:AI81)<($N81-12),12,$N81-SUM($AI81:AI81))) -> 0 | AK81: =IF($CL81=0,0,IF(SUM($AI81:AJ81)<($N81-12),12,$N81-SUM($AI81:AJ81))) -> 0 | AL81: =IF($CL81=0,0,IF(SUM($AI81:AK81)<($N81-12),12,$N81-SUM($AI81:AK81))) -> 0 | AM81: =IF($CL81=0,0,IF(SUM($AI81:AL81)<($N81-12),12,$N81-SUM($AI81:AL81))) -> 0 | AR81: 0 | AS81: =IF($CM81=0,0,IF(SUM($AQ81:AR81)<($N81-12),12,$N81-SUM($AQ81:AR81))) -> 0 | AT81: =IF($CM81=0,0,IF(SUM($AQ81:AS81)<($N81-12),12,$N81-SUM($AQ81:AS81))) -> 0 | AU81: =IF($CM81=0,0,IF(SUM($AQ81:AT81)<($N81-12),12,$N81-SUM($AQ81:AT81))) -> 0 | BA81: 0 | BB81: =IF($CN81=0,0,IF(SUM($AY81:BA81)<($N81-12),12,$N81-SUM($AY81:BA81))) -> 0 | BC81: =IF($CN81=0,0,IF(SUM($AY81:BB81)<($N81-12),12,$N81-SUM($AY81:BB81))) -> 0 | BJ81: 0 | BK81: =IF($CO81=0,0,IF(SUM($BG81:BJ81)<($N81-12),12,$N81-SUM($BG81:BJ81))) -> 0 | BS81: 0 | BU81: 0 | BV81: 0 | BW81: 0 | BX81: 0 | BY81: 0 | BZ81: 0 | CA81: 0 | CC81: 0 | CE81: 0 | CJ81: 0 | CK81: 0 | CL81: 0 | CM81: 0 | CN81: 0 | CO81: 0 | CP81: 0
C82: 0 | D82: 0 | E82: 0 | F82: 0 | G82: 0 | H82: 0 | I82: 0 | K82: 0 | L82: €'000 | M82: 0 | N82: 0 | O82: 0 | Q82: 0 | R82: =IF($CJ82=0,0,IF(SUM(Q82:$Q82)<($N82-12),12,$N82-SUM(Q82:$Q82))) -> 0 | S82: =IF($CJ82=0,0,IF(SUM($Q82:R82)<($N82-12),12,$N82-SUM($Q82:R82))) -> 0 | T82: =IF($CJ82=0,0,IF(SUM($Q82:S82)<($N82-12),12,$N82-SUM($Q82:S82))) -> 0 | U82: =IF($CJ82=0,0,IF(SUM($Q82:T82)<($N82-12),12,$N82-SUM($Q82:T82))) -> 0 | V82: =IF($CJ82=0,0,IF(SUM($Q82:U82)<($N82-12),12,$N82-SUM($Q82:U82))) -> 0 | W82: =IF($CJ82=0,0,IF(SUM($Q82:V82)<($N82-12),12,$N82-SUM($Q82:V82))) -> 0 | Z82: 0 | AA82: =IF($CK82=0,0,IF(SUM(Z82:$Z82)<($N82-12),12,$N82-SUM(Z82:$Z82))) -> 0 | AB82: =IF($CK82=0,0,IF(SUM($Z82:AA82)<($N82-12),12,$N82-SUM($Z82:AA82))) -> 0 | AC82: =IF($CK82=0,0,IF(SUM($Z82:AB82)<($N82-12),12,$N82-SUM($Z82:AB82))) -> 0 | AD82: =IF($CK82=0,0,IF(SUM($Z82:AC82)<($N82-12),12,$N82-SUM($Z82:AC82))) -> 0 | AE82: =IF($CK82=0,0,IF(SUM($Z82:AD82)<($N82-12),12,$N82-SUM($Z82:AD82))) -> 0 | AI82: 0 | AJ82: =IF($CL82=0,0,IF(SUM($AI82:AI82)<($N82-12),12,$N82-SUM($AI82:AI82))) -> 0 | AK82: =IF($CL82=0,0,IF(SUM($AI82:AJ82)<($N82-12),12,$N82-SUM($AI82:AJ82))) -> 0 | AL82: =IF($CL82=0,0,IF(SUM($AI82:AK82)<($N82-12),12,$N82-SUM($AI82:AK82))) -> 0 | AM82: =IF($CL82=0,0,IF(SUM($AI82:AL82)<($N82-12),12,$N82-SUM($AI82:AL82))) -> 0 | AR82: 0 | AS82: =IF($CM82=0,0,IF(SUM($AQ82:AR82)<($N82-12),12,$N82-SUM($AQ82:AR82))) -> 0 | AT82: =IF($CM82=0,0,IF(SUM($AQ82:AS82)<($N82-12),12,$N82-SUM($AQ82:AS82))) -> 0 | AU82: =IF($CM82=0,0,IF(SUM($AQ82:AT82)<($N82-12),12,$N82-SUM($AQ82:AT82))) -> 0 | BA82: 0 | BB82: =IF($CN82=0,0,IF(SUM($AY82:BA82)<($N82-12),12,$N82-SUM($AY82:BA82))) -> 0 | BC82: =IF($CN82=0,0,IF(SUM($AY82:BB82)<($N82-12),12,$N82-SUM($AY82:BB82))) -> 0 | BJ82: 0 | BK82: =IF($CO82=0,0,IF(SUM($BG82:BJ82)<($N82-12),12,$N82-SUM($BG82:BJ82))) -> 0 | BS82: 0 | BU82: 0 | BV82: 0 | BW82: 0 | BX82: 0 | BY82: 0 | BZ82: 0 | CA82: 0 | CC82: 0 | CE82: 0 | CJ82: 0 | CK82: 0 | CL82: 0 | CM82: 0 | CN82: 0 | CO82: 0 | CP82: 0
C83: 0 | D83: 0 | E83: 0 | F83: 0 | G83: 0 | H83: 0 | I83: 0 | K83: 0 | L83: €'000 | M83: 0 | N83: 0 | O83: 0 | Q83: 0 | R83: =IF($CJ83=0,0,IF(SUM(Q83:$Q83)<($N83-12),12,$N83-SUM(Q83:$Q83))) -> 0 | S83: =IF($CJ83=0,0,IF(SUM($Q83:R83)<($N83-12),12,$N83-SUM($Q83:R83))) -> 0 | T83: =IF($CJ83=0,0,IF(SUM($Q83:S83)<($N83-12),12,$N83-SUM($Q83:S83))) -> 0 | U83: =IF($CJ83=0,0,IF(SUM($Q83:T83)<($N83-12),12,$N83-SUM($Q83:T83))) -> 0 | V83: =IF($CJ83=0,0,IF(SUM($Q83:U83)<($N83-12),12,$N83-SUM($Q83:U83))) -> 0 | W83: =IF($CJ83=0,0,IF(SUM($Q83:V83)<($N83-12),12,$N83-SUM($Q83:V83))) -> 0 | Z83: 0 | AA83: =IF($CK83=0,0,IF(SUM(Z83:$Z83)<($N83-12),12,$N83-SUM(Z83:$Z83))) -> 0 | AB83: =IF($CK83=0,0,IF(SUM($Z83:AA83)<($N83-12),12,$N83-SUM($Z83:AA83))) -> 0 | AC83: =IF($CK83=0,0,IF(SUM($Z83:AB83)<($N83-12),12,$N83-SUM($Z83:AB83))) -> 0 | AD83: =IF($CK83=0,0,IF(SUM($Z83:AC83)<($N83-12),12,$N83-SUM($Z83:AC83))) -> 0 | AE83: =IF($CK83=0,0,IF(SUM($Z83:AD83)<($N83-12),12,$N83-SUM($Z83:AD83))) -> 0 | AI83: 0 | AJ83: =IF($CL83=0,0,IF(SUM($AI83:AI83)<($N83-12),12,$N83-SUM($AI83:AI83))) -> 0 | AK83: =IF($CL83=0,0,IF(SUM($AI83:AJ83)<($N83-12),12,$N83-SUM($AI83:AJ83))) -> 0 | AL83: =IF($CL83=0,0,IF(SUM($AI83:AK83)<($N83-12),12,$N83-SUM($AI83:AK83))) -> 0 | AM83: =IF($CL83=0,0,IF(SUM($AI83:AL83)<($N83-12),12,$N83-SUM($AI83:AL83))) -> 0 | AR83: 0 | AS83: =IF($CM83=0,0,IF(SUM($AQ83:AR83)<($N83-12),12,$N83-SUM($AQ83:AR83))) -> 0 | AT83: =IF($CM83=0,0,IF(SUM($AQ83:AS83)<($N83-12),12,$N83-SUM($AQ83:AS83))) -> 0 | AU83: =IF($CM83=0,0,IF(SUM($AQ83:AT83)<($N83-12),12,$N83-SUM($AQ83:AT83))) -> 0 | BA83: 0 | BB83: =IF($CN83=0,0,IF(SUM($AY83:BA83)<($N83-12),12,$N83-SUM($AY83:BA83))) -> 0 | BC83: =IF($CN83=0,0,IF(SUM($AY83:BB83)<($N83-12),12,$N83-SUM($AY83:BB83))) -> 0 | BJ83: 0 | BK83: =IF($CO83=0,0,IF(SUM($BG83:BJ83)<($N83-12),12,$N83-SUM($BG83:BJ83))) -> 0 | BS83: 0 | BU83: 0 | BV83: 0 | BW83: 0 | BX83: 0 | BY83: 0 | BZ83: 0 | CA83: 0 | CC83: 0 | CE83: 0 | CJ83: 0 | CK83: 0 | CL83: 0 | CM83: 0 | CN83: 0 | CO83: 0 | CP83: 0
C84: 0 | D84: 0 | E84: 0 | F84: 0 | G84: COMM Projects | H84: 0 | I84: 0 | K84: 0 | L84: €'000 | M84: 0 | N84: 0 | O84: 0 | Q84: 0 | R84: =IF($CJ84=0,0,IF(SUM(Q84:$Q84)<($N84-12),12,$N84-SUM(Q84:$Q84))) -> 0 | S84: =IF($CJ84=0,0,IF(SUM($Q84:R84)<($N84-12),12,$N84-SUM($Q84:R84))) -> 0 | T84: =IF($CJ84=0,0,IF(SUM($Q84:S84)<($N84-12),12,$N84-SUM($Q84:S84))) -> 0 | U84: =IF($CJ84=0,0,IF(SUM($Q84:T84)<($N84-12),12,$N84-SUM($Q84:T84))) -> 0 | V84: =IF($CJ84=0,0,IF(SUM($Q84:U84)<($N84-12),12,$N84-SUM($Q84:U84))) -> 0 | W84: =IF($CJ84=0,0,IF(SUM($Q84:V84)<($N84-12),12,$N84-SUM($Q84:V84))) -> 0 | Z84: 0 | AA84: =IF($CK84=0,0,IF(SUM(Z84:$Z84)<($N84-12),12,$N84-SUM(Z84:$Z84))) -> 0 | AB84: =IF($CK84=0,0,IF(SUM($Z84:AA84)<($N84-12),12,$N84-SUM($Z84:AA84))) -> 0 | AC84: =IF($CK84=0,0,IF(SUM($Z84:AB84)<($N84-12),12,$N84-SUM($Z84:AB84))) -> 0 | AD84: =IF($CK84=0,0,IF(SUM($Z84:AC84)<($N84-12),12,$N84-SUM($Z84:AC84))) -> 0 | AE84: =IF($CK84=0,0,IF(SUM($Z84:AD84)<($N84-12),12,$N84-SUM($Z84:AD84))) -> 0 | AI84: 0 | AJ84: =IF($CL84=0,0,IF(SUM($AI84:AI84)<($N84-12),12,$N84-SUM($AI84:AI84))) -> 0 | AK84: =IF($CL84=0,0,IF(SUM($AI84:AJ84)<($N84-12),12,$N84-SUM($AI84:AJ84))) -> 0 | AL84: =IF($CL84=0,0,IF(SUM($AI84:AK84)<($N84-12),12,$N84-SUM($AI84:AK84))) -> 0 | AM84: =IF($CL84=0,0,IF(SUM($AI84:AL84)<($N84-12),12,$N84-SUM($AI84:AL84))) -> 0 | AR84: 0 | AS84: =IF($CM84=0,0,IF(SUM($AQ84:AR84)<($N84-12),12,$N84-SUM($AQ84:AR84))) -> 0 | AT84: =IF($CM84=0,0,IF(SUM($AQ84:AS84)<($N84-12),12,$N84-SUM($AQ84:AS84))) -> 0 | AU84: =IF($CM84=0,0,IF(SUM($AQ84:AT84)<($N84-12),12,$N84-SUM($AQ84:AT84))) -> 0 | BA84: 0 | BB84: =IF($CN84=0,0,IF(SUM($AY84:BA84)<($N84-12),12,$N84-SUM($AY84:BA84))) -> 0 | BC84: =IF($CN84=0,0,IF(SUM($AY84:BB84)<($N84-12),12,$N84-SUM($AY84:BB84))) -> 0 | BJ84: 0 | BK84: =IF($CO84=0,0,IF(SUM($BG84:BJ84)<($N84-12),12,$N84-SUM($BG84:BJ84))) -> 0 | BS84: 0 | BU84: 0 | BV84: 0 | BW84: 0 | BX84: 0 | BY84: 0 | BZ84: 0 | CA84: 0 | CC84: 0 | CE84: 0 | CJ84: 0 | CK84: 0 | CL84: 0 | CM84: 0 | CN84: 0 | CO84: 0 | CP84: 0
C85: Replacement of the Voice Communications System Switch | D85: ATM Operations & Technology & Training | E85: COMM | F85: Existing | G85: J004 | H85: 0 | I85: 0 | K85: 0 | L85: €'000 | M85: 0 | N85: 0 | O85: 0 | Q85: 0 | R85: =IF($CJ85=0,0,IF(SUM(Q85:$Q85)<($N85-12),12,$N85-SUM(Q85:$Q85))) -> 0 | S85: =IF($CJ85=0,0,IF(SUM($Q85:R85)<($N85-12),12,$N85-SUM($Q85:R85))) -> 0 | T85: =IF($CJ85=0,0,IF(SUM($Q85:S85)<($N85-12),12,$N85-SUM($Q85:S85))) -> 0 | U85: =IF($CJ85=0,0,IF(SUM($Q85:T85)<($N85-12),12,$N85-SUM($Q85:T85))) -> 0 | V85: =IF($CJ85=0,0,IF(SUM($Q85:U85)<($N85-12),12,$N85-SUM($Q85:U85))) -> 0 | W85: =IF($CJ85=0,0,IF(SUM($Q85:V85)<($N85-12),12,$N85-SUM($Q85:V85))) -> 0 | Z85: 0 | AA85: =IF($CK85=0,0,IF(SUM(Z85:$Z85)<($N85-12),12,$N85-SUM(Z85:$Z85))) -> 0 | AB85: =IF($CK85=0,0,IF(SUM($Z85:AA85)<($N85-12),12,$N85-SUM($Z85:AA85))) -> 0 | AC85: =IF($CK85=0,0,IF(SUM($Z85:AB85)<($N85-12),12,$N85-SUM($Z85:AB85))) -> 0 | AD85: =IF($CK85=0,0,IF(SUM($Z85:AC85)<($N85-12),12,$N85-SUM($Z85:AC85))) -> 0 | AE85: =IF($CK85=0,0,IF(SUM($Z85:AD85)<($N85-12),12,$N85-SUM($Z85:AD85))) -> 0 | AI85: 0 | AJ85: =IF($CL85=0,0,IF(SUM($AI85:AI85)<($N85-12),12,$N85-SUM($AI85:AI85))) -> 0 | AK85: =IF($CL85=0,0,IF(SUM($AI85:AJ85)<($N85-12),12,$N85-SUM($AI85:AJ85))) -> 0 | AL85: =IF($CL85=0,0,IF(SUM($AI85:AK85)<($N85-12),12,$N85-SUM($AI85:AK85))) -> 0 | AM85: =IF($CL85=0,0,IF(SUM($AI85:AL85)<($N85-12),12,$N85-SUM($AI85:AL85))) -> 0 | AR85: 0 | AS85: =IF($CM85=0,0,IF(SUM($AQ85:AR85)<($N85-12),12,$N85-SUM($AQ85:AR85))) -> 0 | AT85: =IF($CM85=0,0,IF(SUM($AQ85:AS85)<($N85-12),12,$N85-SUM($AQ85:AS85))) -> 0 | AU85: =IF($CM85=0,0,IF(SUM($AQ85:AT85)<($N85-12),12,$N85-SUM($AQ85:AT85))) -> 0 | BA85: 0 | BB85: =IF($CN85=0,0,IF(SUM($AY85:BA85)<($N85-12),12,$N85-SUM($AY85:BA85))) -> 0 | BC85: =IF($CN85=0,0,IF(SUM($AY85:BB85)<($N85-12),12,$N85-SUM($AY85:BB85))) -> 0 | BJ85: 0 | BK85: =IF($CO85=0,0,IF(SUM($BG85:BJ85)<($N85-12),12,$N85-SUM($BG85:BJ85))) -> 0 | BS85: 0 | BU85: 0 | BV85: 0 | BW85: 0 | BX85: 0 | BY85: 0 | BZ85: 0 | CA85: 0 | CC85: 0 | CE85: 0 | CJ85: 0 | CK85: 0 | CL85: 0 | CM85: 0 | CN85: 0 | CO85: 0 | CP85: 0
C86: Shannon Tower MEP | D86: ATM Operations & Technology & Training | E86: COMM | F86: Existing | G86: J004A | H86: RP3 | I86: 2024 | J86: 2024-10-01 | K86: 153.30981 | L86: €'000 | M86: 8 | N86: 96 | O86: 0.125 | Q86: 0 | R86: =IF($CJ86=0,0,IF(SUM(Q86:$Q86)<($N86-12),12,$N86-SUM(Q86:$Q86))) -> 0 | S86: =IF($CJ86=0,0,IF(SUM($Q86:R86)<($N86-12),12,$N86-SUM($Q86:R86))) -> 0 | T86: =IF($CJ86=0,0,IF(SUM($Q86:S86)<($N86-12),12,$N86-SUM($Q86:S86))) -> 0 | U86: =IF($CJ86=0,0,IF(SUM($Q86:T86)<($N86-12),12,$N86-SUM($Q86:T86))) -> 0 | V86: =IF($CJ86=0,0,IF(SUM($Q86:U86)<($N86-12),12,$N86-SUM($Q86:U86))) -> 0 | W86: =IF($CJ86=0,0,IF(SUM($Q86:V86)<($N86-12),12,$N86-SUM($Q86:V86))) -> 0 | Z86: 3 | AA86: =IF($CK86=0,0,IF(SUM(Z86:$Z86)<($N86-12),12,$N86-SUM(Z86:$Z86))) -> 12 | AB86: =IF($CK86=0,0,IF(SUM($Z86:AA86)<($N86-12),12,$N86-SUM($Z86:AA86))) -> 12 | AC86: =IF($CK86=0,0,IF(SUM($Z86:AB86)<($N86-12),12,$N86-SUM($Z86:AB86))) -> 12 | AD86: =IF($CK86=0,0,IF(SUM($Z86:AC86)<($N86-12),12,$N86-SUM($Z86:AC86))) -> 12 | AE86: =IF($CK86=0,0,IF(SUM($Z86:AD86)<($N86-12),12,$N86-SUM($Z86:AD86))) -> 12 | AI86: 0 | AJ86: =IF($CL86=0,0,IF(SUM($AI86:AI86)<($N86-12),12,$N86-SUM($AI86:AI86))) -> 0 | AK86: =IF($CL86=0,0,IF(SUM($AI86:AJ86)<($N86-12),12,$N86-SUM($AI86:AJ86))) -> 0 | AL86: =IF($CL86=0,0,IF(SUM($AI86:AK86)<($N86-12),12,$N86-SUM($AI86:AK86))) -> 0 | AM86: =IF($CL86=0,0,IF(SUM($AI86:AL86)<($N86-12),12,$N86-SUM($AI86:AL86))) -> 0 | AR86: 0 | AS86: =IF($CM86=0,0,IF(SUM($AQ86:AR86)<($N86-12),12,$N86-SUM($AQ86:AR86))) -> 0 | AT86: =IF($CM86=0,0,IF(SUM($AQ86:AS86)<($N86-12),12,$N86-SUM($AQ86:AS86))) -> 0 | AU86: =IF($CM86=0,0,IF(SUM($AQ86:AT86)<($N86-12),12,$N86-SUM($AQ86:AT86))) -> 0 | BA86: 0 | BB86: =IF($CN86=0,0,IF(SUM($AY86:BA86)<($N86-12),12,$N86-SUM($AY86:BA86))) -> 0 | BC86: =IF($CN86=0,0,IF(SUM($AY86:BB86)<($N86-12),12,$N86-SUM($AY86:BB86))) -> 0 | BJ86: 0 | BK86: =IF($CO86=0,0,IF(SUM($BG86:BJ86)<($N86-12),12,$N86-SUM($BG86:BJ86))) -> 0 | BS86: 0 | BU86: 0 | BV86: 0.25 | BW86: 0 | BX86: 0 | BY86: 0 | BZ86: 0 | CA86: 0 | CC86: 0.75 | CE86: 0.25 | CJ86: 0 | CK86: 153.30981 | CL86: 0 | CM86: 0 | CN86: 0 | CO86: 0 | CP86: 0
C87: VHF Replacement Programme | D87: ATM Operations & Technology & Training | E87: COMM | F87: VHF | G87: Q006 | H87: 0 | I87: 0 | K87: 0 | L87: €'000 | M87: 0 | N87: 0 | O87: 0 | Q87: 0 | R87: =IF($CJ87=0,0,IF(SUM(Q87:$Q87)<($N87-12),12,$N87-SUM(Q87:$Q87))) -> 0 | S87: =IF($CJ87=0,0,IF(SUM($Q87:R87)<($N87-12),12,$N87-SUM($Q87:R87))) -> 0 | T87: =IF($CJ87=0,0,IF(SUM($Q87:S87)<($N87-12),12,$N87-SUM($Q87:S87))) -> 0 | U87: =IF($CJ87=0,0,IF(SUM($Q87:T87)<($N87-12),12,$N87-SUM($Q87:T87))) -> 0 | V87: =IF($CJ87=0,0,IF(SUM($Q87:U87)<($N87-12),12,$N87-SUM($Q87:U87))) -> 0 | W87: =IF($CJ87=0,0,IF(SUM($Q87:V87)<($N87-12),12,$N87-SUM($Q87:V87))) -> 0 | Z87: 0 | AA87: =IF($CK87=0,0,IF(SUM(Z87:$Z87)<($N87-12),12,$N87-SUM(Z87:$Z87))) -> 0 | AB87: =IF($CK87=0,0,IF(SUM($Z87:AA87)<($N87-12),12,$N87-SUM($Z87:AA87))) -> 0 | AC87: =IF($CK87=0,0,IF(SUM($Z87:AB87)<($N87-12),12,$N87-SUM($Z87:AB87))) -> 0 | AD87: =IF($CK87=0,0,IF(SUM($Z87:AC87)<($N87-12),12,$N87-SUM($Z87:AC87))) -> 0 | AE87: =IF($CK87=0,0,IF(SUM($Z87:AD87)<($N87-12),12,$N87-SUM($Z87:AD87))) -> 0 | AI87: 0 | AJ87: =IF($CL87=0,0,IF(SUM($AI87:AI87)<($N87-12),12,$N87-SUM($AI87:AI87))) -> 0 | AK87: =IF($CL87=0,0,IF(SUM($AI87:AJ87)<($N87-12),12,$N87-SUM($AI87:AJ87))) -> 0 | AL87: =IF($CL87=0,0,IF(SUM($AI87:AK87)<($N87-12),12,$N87-SUM($AI87:AK87))) -> 0 | AM87: =IF($CL87=0,0,IF(SUM($AI87:AL87)<($N87-12),12,$N87-SUM($AI87:AL87))) -> 0 | AR87: 0 | AS87: =IF($CM87=0,0,IF(SUM($AQ87:AR87)<($N87-12),12,$N87-SUM($AQ87:AR87))) -> 0 | AT87: =IF($CM87=0,0,IF(SUM($AQ87:AS87)<($N87-12),12,$N87-SUM($AQ87:AS87))) -> 0 | AU87: =IF($CM87=0,0,IF(SUM($AQ87:AT87)<($N87-12),12,$N87-SUM($AQ87:AT87))) -> 0 | BA87: 0 | BB87: =IF($CN87=0,0,IF(SUM($AY87:BA87)<($N87-12),12,$N87-SUM($AY87:BA87))) -> 0 | BC87: =IF($CN87=0,0,IF(SUM($AY87:BB87)<($N87-12),12,$N87-SUM($AY87:BB87))) -> 0 | BJ87: 0 | BK87: =IF($CO87=0,0,IF(SUM($BG87:BJ87)<($N87-12),12,$N87-SUM($BG87:BJ87))) -> 0 | BS87: 0 | BU87: 0 | BV87: 0 | BW87: 0 | BX87: 0 | BY87: 0 | BZ87: 0 | CA87: 0 | CC87: 0 | CE87: 0 | CJ87: 0 | CK87: 0 | CL87: 0 | CM87: 0 | CN87: 0 | CO87: 0 | CP87: 0
C88: VHF Replacement Malin | D88: ATM Operations & Technology & Training | E88: COMM | F88: VHF | G88: Q006A | H88: RP3 | I88: 2023 | J88: 2023-10-01 | K88: 35 | L88: €'000 | M88: 8 | N88: 96 | O88: 0.125 | Q88: 3 | R88: =IF($CJ88=0,0,IF(SUM(Q88:$Q88)<($N88-12),12,$N88-SUM(Q88:$Q88))) -> 12 | S88: =IF($CJ88=0,0,IF(SUM($Q88:R88)<($N88-12),12,$N88-SUM($Q88:R88))) -> 12 | T88: =IF($CJ88=0,0,IF(SUM($Q88:S88)<($N88-12),12,$N88-SUM($Q88:S88))) -> 12 | U88: =IF($CJ88=0,0,IF(SUM($Q88:T88)<($N88-12),12,$N88-SUM($Q88:T88))) -> 12 | V88: =IF($CJ88=0,0,IF(SUM($Q88:U88)<($N88-12),12,$N88-SUM($Q88:U88))) -> 12 | W88: =IF($CJ88=0,0,IF(SUM($Q88:V88)<($N88-12),12,$N88-SUM($Q88:V88))) -> 12 | Z88: 12 | AA88: =IF($CK88=0,0,IF(SUM(Z88:$Z88)<($N88-12),12,$N88-SUM(Z88:$Z88))) -> 0 | AB88: =IF($CK88=0,0,IF(SUM($Z88:AA88)<($N88-12),12,$N88-SUM($Z88:AA88))) -> 0 | AC88: =IF($CK88=0,0,IF(SUM($Z88:AB88)<($N88-12),12,$N88-SUM($Z88:AB88))) -> 0 | AD88: =IF($CK88=0,0,IF(SUM($Z88:AC88)<($N88-12),12,$N88-SUM($Z88:AC88))) -> 0 | AE88: =IF($CK88=0,0,IF(SUM($Z88:AD88)<($N88-12),12,$N88-SUM($Z88:AD88))) -> 0 | AI88: 0 | AJ88: =IF($CL88=0,0,IF(SUM($AI88:AI88)<($N88-12),12,$N88-SUM($AI88:AI88))) -> 0 | AK88: =IF($CL88=0,0,IF(SUM($AI88:AJ88)<($N88-12),12,$N88-SUM($AI88:AJ88))) -> 0 | AL88: =IF($CL88=0,0,IF(SUM($AI88:AK88)<($N88-12),12,$N88-SUM($AI88:AK88))) -> 0 | AM88: =IF($CL88=0,0,IF(SUM($AI88:AL88)<($N88-12),12,$N88-SUM($AI88:AL88))) -> 0 | AR88: 0 | AS88: =IF($CM88=0,0,IF(SUM($AQ88:AR88)<($N88-12),12,$N88-SUM($AQ88:AR88))) -> 0 | AT88: =IF($CM88=0,0,IF(SUM($AQ88:AS88)<($N88-12),12,$N88-SUM($AQ88:AS88))) -> 0 | AU88: =IF($CM88=0,0,IF(SUM($AQ88:AT88)<($N88-12),12,$N88-SUM($AQ88:AT88))) -> 0 | BA88: 0 | BB88: =IF($CN88=0,0,IF(SUM($AY88:BA88)<($N88-12),12,$N88-SUM($AY88:BA88))) -> 0 | BC88: =IF($CN88=0,0,IF(SUM($AY88:BB88)<($N88-12),12,$N88-SUM($AY88:BB88))) -> 0 | BJ88: 0 | BK88: =IF($CO88=0,0,IF(SUM($BG88:BJ88)<($N88-12),12,$N88-SUM($BG88:BJ88))) -> 0 | BS88: 0 | BU88: 0.25 | BV88: 1 | BW88: 0 | BX88: 0 | BY88: 0 | BZ88: 0 | CA88: 0 | CC88: 1 | CE88: 0 | CJ88: 35 | CK88: 0 | CL88: 0 | CM88: 0 | CN88: 0 | CO88: 0 | CP88: 0
C89: VHF Replacement Shannon | D89: ATM Operations & Technology & Training | E89: COMM | F89: VHF | G89: Q006A | H89: RP3 | I89: 2024 | J89: 2024-07-01 | K89: 302 | L89: €'000 | M89: 8 | N89: 96 | O89: 0.125 | Q89: 0 | R89: =IF($CJ89=0,0,IF(SUM(Q89:$Q89)<($N89-12),12,$N89-SUM(Q89:$Q89))) -> 0 | S89: =IF($CJ89=0,0,IF(SUM($Q89:R89)<($N89-12),12,$N89-SUM($Q89:R89))) -> 0 | T89: =IF($CJ89=0,0,IF(SUM($Q89:S89)<($N89-12),12,$N89-SUM($Q89:S89))) -> 0 | U89: =IF($CJ89=0,0,IF(SUM($Q89:T89)<($N89-12),12,$N89-SUM($Q89:T89))) -> 0 | V89: =IF($CJ89=0,0,IF(SUM($Q89:U89)<($N89-12),12,$N89-SUM($Q89:U89))) -> 0 | W89: =IF($CJ89=0,0,IF(SUM($Q89:V89)<($N89-12),12,$N89-SUM($Q89:V89))) -> 0 | Z89: 6 | AA89: =IF($CK89=0,0,IF(SUM(Z89:$Z89)<($N89-12),12,$N89-SUM(Z89:$Z89))) -> 12 | AB89: =IF($CK89=0,0,IF(SUM($Z89:AA89)<($N89-12),12,$N89-SUM($Z89:AA89))) -> 12 | AC89: =IF($CK89=0,0,IF(SUM($Z89:AB89)<($N89-12),12,$N89-SUM($Z89:AB89))) -> 12 | AD89: =IF($CK89=0,0,IF(SUM($Z89:AC89)<($N89-12),12,$N89-SUM($Z89:AC89))) -> 12 | AE89: =IF($CK89=0,0,IF(SUM($Z89:AD89)<($N89-12),12,$N89-SUM($Z89:AD89))) -> 12 | AI89: 0 | AJ89: =IF($CL89=0,0,IF(SUM($AI89:AI89)<($N89-12),12,$N89-SUM($AI89:AI89))) -> 0 | AK89: =IF($CL89=0,0,IF(SUM($AI89:AJ89)<($N89-12),12,$N89-SUM($AI89:AJ89))) -> 0 | AL89: =IF($CL89=0,0,IF(SUM($AI89:AK89)<($N89-12),12,$N89-SUM($AI89:AK89))) -> 0 | AM89: =IF($CL89=0,0,IF(SUM($AI89:AL89)<($N89-12),12,$N89-SUM($AI89:AL89))) -> 0 | AR89: 0 | AS89: =IF($CM89=0,0,IF(SUM($AQ89:AR89)<($N89-12),12,$N89-SUM($AQ89:AR89))) -> 0 | AT89: =IF($CM89=0,0,IF(SUM($AQ89:AS89)<($N89-12),12,$N89-SUM($AQ89:AS89))) -> 0 | AU89: =IF($CM89=0,0,IF(SUM($AQ89:AT89)<($N89-12),12,$N89-SUM($AQ89:AT89))) -> 0 | BA89: 0 | BB89: =IF($CN89=0,0,IF(SUM($AY89:BA89)<($N89-12),12,$N89-SUM($AY89:BA89))) -> 0 | BC89: =IF($CN89=0,0,IF(SUM($AY89:BB89)<($N89-12),12,$N89-SUM($AY89:BB89))) -> 0 | BJ89: 0 | BK89: =IF($CO89=0,0,IF(SUM($BG89:BJ89)<($N89-12),12,$N89-SUM($BG89:BJ89))) -> 0 | BS89: 0 | BU89: 0 | BV89: 0.5 | BW89: 0 | BX89: 0 | BY89: 0 | BZ89: 0 | CA89: 0 | CC89: 0.75 | CE89: 0.25 | CJ89: 0 | CK89: 302 | CL89: 0 | CM89: 0 | CN89: 0 | CO89: 0 | CP89: 0
C90: VHF Replacement Cork | D90: ATM Operations & Technology & Training | E90: COMM | F90: VHF | G90: Q006A | H90: RP3 | I90: 2024 | J90: 2024-07-01 | K90: 312 | L90: €'000 | M90: 8 | N90: 96 | O90: 0.125 | Q90: 0 | R90: =IF($CJ90=0,0,IF(SUM(Q90:$Q90)<($N90-12),12,$N90-SUM(Q90:$Q90))) -> 0 | S90: =IF($CJ90=0,0,IF(SUM($Q90:R90)<($N90-12),12,$N90-SUM($Q90:R90))) -> 0 | T90: =IF($CJ90=0,0,IF(SUM($Q90:S90)<($N90-12),12,$N90-SUM($Q90:S90))) -> 0 | U90: =IF($CJ90=0,0,IF(SUM($Q90:T90)<($N90-12),12,$N90-SUM($Q90:T90))) -> 0 | V90: =IF($CJ90=0,0,IF(SUM($Q90:U90)<($N90-12),12,$N90-SUM($Q90:U90))) -> 0 | W90: =IF($CJ90=0,0,IF(SUM($Q90:V90)<($N90-12),12,$N90-SUM($Q90:V90))) -> 0 | Z90: 6 | AA90: =IF($CK90=0,0,IF(SUM(Z90:$Z90)<($N90-12),12,$N90-SUM(Z90:$Z90))) -> 12 | AB90: =IF($CK90=0,0,IF(SUM($Z90:AA90)<($N90-12),12,$N90-SUM($Z90:AA90))) -> 12 | AC90: =IF($CK90=0,0,IF(SUM($Z90:AB90)<($N90-12),12,$N90-SUM($Z90:AB90))) -> 12 | AD90: =IF($CK90=0,0,IF(SUM($Z90:AC90)<($N90-12),12,$N90-SUM($Z90:AC90))) -> 12 | AE90: =IF($CK90=0,0,IF(SUM($Z90:AD90)<($N90-12),12,$N90-SUM($Z90:AD90))) -> 12 | AI90: 0 | AJ90: =IF($CL90=0,0,IF(SUM($AI90:AI90)<($N90-12),12,$N90-SUM($AI90:AI90))) -> 0 | AK90: =IF($CL90=0,0,IF(SUM($AI90:AJ90)<($N90-12),12,$N90-SUM($AI90:AJ90))) -> 0 | AL90: =IF($CL90=0,0,IF(SUM($AI90:AK90)<($N90-12),12,$N90-SUM($AI90:AK90))) -> 0 | AM90: =IF($CL90=0,0,IF(SUM($AI90:AL90)<($N90-12),12,$N90-SUM($AI90:AL90))) -> 0 | AR90: 0 | AS90: =IF($CM90=0,0,IF(SUM($AQ90:AR90)<($N90-12),12,$N90-SUM($AQ90:AR90))) -> 0 | AT90: =IF($CM90=0,0,IF(SUM($AQ90:AS90)<($N90-12),12,$N90-SUM($AQ90:AS90))) -> 0 | AU90: =IF($CM90=0,0,IF(SUM($AQ90:AT90)<($N90-12),12,$N90-SUM($AQ90:AT90))) -> 0 | BA90: 0 | BB90: =IF($CN90=0,0,IF(SUM($AY90:BA90)<($N90-12),12,$N90-SUM($AY90:BA90))) -> 0 | BC90: =IF($CN90=0,0,IF(SUM($AY90:BB90)<($N90-12),12,$N90-SUM($AY90:BB90))) -> 0 | BJ90: 0 | BK90: =IF($CO90=0,0,IF(SUM($BG90:BJ90)<($N90-12),12,$N90-SUM($BG90:BJ90))) -> 0 | BS90: 0 | BU90: 0 | BV90: 0.5 | BW90: 0 | BX90: 0 | BY90: 0 | BZ90: 0 | CA90: 0 | CC90: 0 | CE90: 1 | CJ90: 0 | CK90: 312 | CL90: 0 | CM90: 0 | CN90: 0 | CO90: 0 | CP90: 0
C91: VHF Replacement Remote Sites WCK Hill + Mt Gabriel | D91: ATM Operations & Technology & Training | E91: COMM | F91: VHF | G91: Q006A | H91: RP3 | I91: 2024 | J91: 2024-04-01 | K91: 0 | L91: €'000 | M91: 8 | N91: 96 | O91: 0.125 | Q91: 0 | R91: =IF($CJ91=0,0,IF(SUM(Q91:$Q91)<($N91-12),12,$N91-SUM(Q91:$Q91))) -> 0 | S91: =IF($CJ91=0,0,IF(SUM($Q91:R91)<($N91-12),12,$N91-SUM($Q91:R91))) -> 0 | T91: =IF($CJ91=0,0,IF(SUM($Q91:S91)<($N91-12),12,$N91-SUM($Q91:S91))) -> 0 | U91: =IF($CJ91=0,0,IF(SUM($Q91:T91)<($N91-12),12,$N91-SUM($Q91:T91))) -> 0 | V91: =IF($CJ91=0,0,IF(SUM($Q91:U91)<($N91-12),12,$N91-SUM($Q91:U91))) -> 0 | W91: =IF($CJ91=0,0,IF(SUM($Q91:V91)<($N91-12),12,$N91-SUM($Q91:V91))) -> 0 | Z91: 0 | AA91: =IF($CK91=0,0,IF(SUM(Z91:$Z91)<($N91-12),12,$N91-SUM(Z91:$Z91))) -> 0 | AB91: =IF($CK91=0,0,IF(SUM($Z91:AA91)<($N91-12),12,$N91-SUM($Z91:AA91))) -> 0 | AC91: =IF($CK91=0,0,IF(SUM($Z91:AB91)<($N91-12),12,$N91-SUM($Z91:AB91))) -> 0 | AD91: =IF($CK91=0,0,IF(SUM($Z91:AC91)<($N91-12),12,$N91-SUM($Z91:AC91))) -> 0 | AE91: =IF($CK91=0,0,IF(SUM($Z91:AD91)<($N91-12),12,$N91-SUM($Z91:AD91))) -> 0 | AI91: 0 | AJ91: =IF($CL91=0,0,IF(SUM($AI91:AI91)<($N91-12),12,$N91-SUM($AI91:AI91))) -> 0 | AK91: =IF($CL91=0,0,IF(SUM($AI91:AJ91)<($N91-12),12,$N91-SUM($AI91:AJ91))) -> 0 | AL91: =IF($CL91=0,0,IF(SUM($AI91:AK91)<($N91-12),12,$N91-SUM($AI91:AK91))) -> 0 | AM91: =IF($CL91=0,0,IF(SUM($AI91:AL91)<($N91-12),12,$N91-SUM($AI91:AL91))) -> 0 | AR91: 0 | AS91: =IF($CM91=0,0,IF(SUM($AQ91:AR91)<($N91-12),12,$N91-SUM($AQ91:AR91))) -> 0 | AT91: =IF($CM91=0,0,IF(SUM($AQ91:AS91)<($N91-12),12,$N91-SUM($AQ91:AS91))) -> 0 | AU91: =IF($CM91=0,0,IF(SUM($AQ91:AT91)<($N91-12),12,$N91-SUM($AQ91:AT91))) -> 0 | BA91: 0 | BB91: =IF($CN91=0,0,IF(SUM($AY91:BA91)<($N91-12),12,$N91-SUM($AY91:BA91))) -> 0 | BC91: =IF($CN91=0,0,IF(SUM($AY91:BB91)<($N91-12),12,$N91-SUM($AY91:BB91))) -> 0 | BJ91: 0 | BK91: =IF($CO91=0,0,IF(SUM($BG91:BJ91)<($N91-12),12,$N91-SUM($BG91:BJ91))) -> 0 | BS91: 0 | BU91: 0 | BV91: 0 | BW91: 0 | BX91: 0 | BY91: 0 | BZ91: 0 | CA91: 0 | CC91: 1 | CE91: 0 | CJ91: 0 | CK91: 0 | CL91: 0 | CM91: 0 | CN91: 0 | CO91: 0 | CP91: 0
C92: VHF Replacement Remote Sites Glen + Doon | D92: ATM Operations & Technology & Training | E92: COMM | F92: VHF | G92: Q006A | H92: RP3 | I92: 2024 | J92: 2024-04-01 | K92: 361 | L92: €'000 | M92: 8 | N92: 96 | O92: 0.125 | Q92: 0 | R92: =IF($CJ92=0,0,IF(SUM(Q92:$Q92)<($N92-12),12,$N92-SUM(Q92:$Q92))) -> 0 | S92: =IF($CJ92=0,0,IF(SUM($Q92:R92)<($N92-12),12,$N92-SUM($Q92:R92))) -> 0 | T92: =IF($CJ92=0,0,IF(SUM($Q92:S92)<($N92-12),12,$N92-SUM($Q92:S92))) -> 0 | U92: =IF($CJ92=0,0,IF(SUM($Q92:T92)<($N92-12),12,$N92-SUM($Q92:T92))) -> 0 | V92: =IF($CJ92=0,0,IF(SUM($Q92:U92)<($N92-12),12,$N92-SUM($Q92:U92))) -> 0 | W92: =IF($CJ92=0,0,IF(SUM($Q92:V92)<($N92-12),12,$N92-SUM($Q92:V92))) -> 0 | Z92: 9 | AA92: =IF($CK92=0,0,IF(SUM(Z92:$Z92)<($N92-12),12,$N92-SUM(Z92:$Z92))) -> 12 | AB92: =IF($CK92=0,0,IF(SUM($Z92:AA92)<($N92-12),12,$N92-SUM($Z92:AA92))) -> 12 | AC92: =IF($CK92=0,0,IF(SUM($Z92:AB92)<($N92-12),12,$N92-SUM($Z92:AB92))) -> 12 | AD92: =IF($CK92=0,0,IF(SUM($Z92:AC92)<($N92-12),12,$N92-SUM($Z92:AC92))) -> 12 | AE92: =IF($CK92=0,0,IF(SUM($Z92:AD92)<($N92-12),12,$N92-SUM($Z92:AD92))) -> 12 | AI92: 0 | AJ92: =IF($CL92=0,0,IF(SUM($AI92:AI92)<($N92-12),12,$N92-SUM($AI92:AI92))) -> 0 | AK92: =IF($CL92=0,0,IF(SUM($AI92:AJ92)<($N92-12),12,$N92-SUM($AI92:AJ92))) -> 0 | AL92: =IF($CL92=0,0,IF(SUM($AI92:AK92)<($N92-12),12,$N92-SUM($AI92:AK92))) -> 0 | AM92: =IF($CL92=0,0,IF(SUM($AI92:AL92)<($N92-12),12,$N92-SUM($AI92:AL92))) -> 0 | AR92: 0 | AS92: =IF($CM92=0,0,IF(SUM($AQ92:AR92)<($N92-12),12,$N92-SUM($AQ92:AR92))) -> 0 | AT92: =IF($CM92=0,0,IF(SUM($AQ92:AS92)<($N92-12),12,$N92-SUM($AQ92:AS92))) -> 0 | AU92: =IF($CM92=0,0,IF(SUM($AQ92:AT92)<($N92-12),12,$N92-SUM($AQ92:AT92))) -> 0 | BA92: 0 | BB92: =IF($CN92=0,0,IF(SUM($AY92:BA92)<($N92-12),12,$N92-SUM($AY92:BA92))) -> 0 | BC92: =IF($CN92=0,0,IF(SUM($AY92:BB92)<($N92-12),12,$N92-SUM($AY92:BB92))) -> 0 | BJ92: 0 | BK92: =IF($CO92=0,0,IF(SUM($BG92:BJ92)<($N92-12),12,$N92-SUM($BG92:BJ92))) -> 0 | BS92: 0 | BU92: 0 | BV92: 0.75 | BW92: 0 | BX92: 0 | BY92: 0 | BZ92: 0 | CA92: 0 | CC92: 1 | CE92: 0 | CJ92: 0 | CK92: 361 | CL92: 0 | CM92: 0 | CN92: 0 | CO92: 0 | CP92: 0
C93: Frequency Expnasion Programme (Knock, Kerry & Dublin) | D93: ATM Operations & Technology & Training | E93: COMM | F93: New | G93: R009 | H93: 0 | I93: 0 | K93: 0 | L93: €'000 | M93: 0 | N93: 0 | O93: 0 | Q93: 0 | R93: =IF($CJ93=0,0,IF(SUM(Q93:$Q93)<($N93-12),12,$N93-SUM(Q93:$Q93))) -> 0 | S93: =IF($CJ93=0,0,IF(SUM($Q93:R93)<($N93-12),12,$N93-SUM($Q93:R93))) -> 0 | T93: =IF($CJ93=0,0,IF(SUM($Q93:S93)<($N93-12),12,$N93-SUM($Q93:S93))) -> 0 | U93: =IF($CJ93=0,0,IF(SUM($Q93:T93)<($N93-12),12,$N93-SUM($Q93:T93))) -> 0 | V93: =IF($CJ93=0,0,IF(SUM($Q93:U93)<($N93-12),12,$N93-SUM($Q93:U93))) -> 0 | W93: =IF($CJ93=0,0,IF(SUM($Q93:V93)<($N93-12),12,$N93-SUM($Q93:V93))) -> 0 | Z93: 0 | AA93: =IF($CK93=0,0,IF(SUM(Z93:$Z93)<($N93-12),12,$N93-SUM(Z93:$Z93))) -> 0 | AB93: =IF($CK93=0,0,IF(SUM($Z93:AA93)<($N93-12),12,$N93-SUM($Z93:AA93))) -> 0 | AC93: =IF($CK93=0,0,IF(SUM($Z93:AB93)<($N93-12),12,$N93-SUM($Z93:AB93))) -> 0 | AD93: =IF($CK93=0,0,IF(SUM($Z93:AC93)<($N93-12),12,$N93-SUM($Z93:AC93))) -> 0 | AE93: =IF($CK93=0,0,IF(SUM($Z93:AD93)<($N93-12),12,$N93-SUM($Z93:AD93))) -> 0 | AI93: 0 | AJ93: =IF($CL93=0,0,IF(SUM($AI93:AI93)<($N93-12),12,$N93-SUM($AI93:AI93))) -> 0 | AK93: =IF($CL93=0,0,IF(SUM($AI93:AJ93)<($N93-12),12,$N93-SUM($AI93:AJ93))) -> 0 | AL93: =IF($CL93=0,0,IF(SUM($AI93:AK93)<($N93-12),12,$N93-SUM($AI93:AK93))) -> 0 | AM93: =IF($CL93=0,0,IF(SUM($AI93:AL93)<($N93-12),12,$N93-SUM($AI93:AL93))) -> 0 | AR93: 0 | AS93: =IF($CM93=0,0,IF(SUM($AQ93:AR93)<($N93-12),12,$N93-SUM($AQ93:AR93))) -> 0 | AT93: =IF($CM93=0,0,IF(SUM($AQ93:AS93)<($N93-12),12,$N93-SUM($AQ93:AS93))) -> 0 | AU93: =IF($CM93=0,0,IF(SUM($AQ93:AT93)<($N93-12),12,$N93-SUM($AQ93:AT93))) -> 0 | BA93: 0 | BB93: =IF($CN93=0,0,IF(SUM($AY93:BA93)<($N93-12),12,$N93-SUM($AY93:BA93))) -> 0 | BC93: =IF($CN93=0,0,IF(SUM($AY93:BB93)<($N93-12),12,$N93-SUM($AY93:BB93))) -> 0 | BJ93: 0 | BK93: =IF($CO93=0,0,IF(SUM($BG93:BJ93)<($N93-12),12,$N93-SUM($BG93:BJ93))) -> 0 | BS93: 0 | BU93: 0 | BV93: 0 | BW93: 0 | BX93: 0 | BY93: 0 | BZ93: 0 | CA93: 0 | CC93: 0 | CE93: 0 | CJ93: 0 | CK93: 0 | CL93: 0 | CM93: 0 | CN93: 0 | CO93: 0 | CP93: 0
C94: Frequency Expnasion Programme Dublin | D94: ATM Operations & Technology & Training | E94: COMM | F94: New | G94: R009A | H94: 0 | I94: 0 | K94: 0 | L94: €'000 | M94: 8 | N94: 96 | O94: 0.125 | Q94: 0 | R94: =IF($CJ94=0,0,IF(SUM(Q94:$Q94)<($N94-12),12,$N94-SUM(Q94:$Q94))) -> 0 | S94: =IF($CJ94=0,0,IF(SUM($Q94:R94)<($N94-12),12,$N94-SUM($Q94:R94))) -> 0 | T94: =IF($CJ94=0,0,IF(SUM($Q94:S94)<($N94-12),12,$N94-SUM($Q94:S94))) -> 0 | U94: =IF($CJ94=0,0,IF(SUM($Q94:T94)<($N94-12),12,$N94-SUM($Q94:T94))) -> 0 | V94: =IF($CJ94=0,0,IF(SUM($Q94:U94)<($N94-12),12,$N94-SUM($Q94:U94))) -> 0 | W94: =IF($CJ94=0,0,IF(SUM($Q94:V94)<($N94-12),12,$N94-SUM($Q94:V94))) -> 0 | Z94: 0 | AA94: =IF($CK94=0,0,IF(SUM(Z94:$Z94)<($N94-12),12,$N94-SUM(Z94:$Z94))) -> 0 | AB94: =IF($CK94=0,0,IF(SUM($Z94:AA94)<($N94-12),12,$N94-SUM($Z94:AA94))) -> 0 | AC94: =IF($CK94=0,0,IF(SUM($Z94:AB94)<($N94-12),12,$N94-SUM($Z94:AB94))) -> 0 | AD94: =IF($CK94=0,0,IF(SUM($Z94:AC94)<($N94-12),12,$N94-SUM($Z94:AC94))) -> 0 | AE94: =IF($CK94=0,0,IF(SUM($Z94:AD94)<($N94-12),12,$N94-SUM($Z94:AD94))) -> 0 | AI94: 0 | AJ94: =IF($CL94=0,0,IF(SUM($AI94:AI94)<($N94-12),12,$N94-SUM($AI94:AI94))) -> 0 | AK94: =IF($CL94=0,0,IF(SUM($AI94:AJ94)<($N94-12),12,$N94-SUM($AI94:AJ94))) -> 0 | AL94: =IF($CL94=0,0,IF(SUM($AI94:AK94)<($N94-12),12,$N94-SUM($AI94:AK94))) -> 0 | AM94: =IF($CL94=0,0,IF(SUM($AI94:AL94)<($N94-12),12,$N94-SUM($AI94:AL94))) -> 0 | AR94: 0 | AS94: =IF($CM94=0,0,IF(SUM($AQ94:AR94)<($N94-12),12,$N94-SUM($AQ94:AR94))) -> 0 | AT94: =IF($CM94=0,0,IF(SUM($AQ94:AS94)<($N94-12),12,$N94-SUM($AQ94:AS94))) -> 0 | AU94: =IF($CM94=0,0,IF(SUM($AQ94:AT94)<($N94-12),12,$N94-SUM($AQ94:AT94))) -> 0 | BA94: 0 | BB94: =IF($CN94=0,0,IF(SUM($AY94:BA94)<($N94-12),12,$N94-SUM($AY94:BA94))) -> 0 | BC94: =IF($CN94=0,0,IF(SUM($AY94:BB94)<($N94-12),12,$N94-SUM($AY94:BB94))) -> 0 | BJ94: 0 | BK94: =IF($CO94=0,0,IF(SUM($BG94:BJ94)<($N94-12),12,$N94-SUM($BG94:BJ94))) -> 0 | BS94: 0 | BU94: 0 | BV94: 0 | BW94: 0 | BX94: 0 | BY94: 0 | BZ94: 0 | CA94: 0 | CC94: 0.75 | CE94: 0.25 | CJ94: 0 | CK94: 0 | CL94: 0 | CM94: 0 | CN94: 0 | CO94: 0 | CP94: 0
C95: Frequency Expnasion Programme Knock | D95: ATM Operations & Technology & Training | E95: COMM | F95: New | G95: R009A | H95: 0 | I95: 0 | K95: 0 | L95: €'000 | M95: 8 | N95: 96 | O95: 0.125 | Q95: 0 | R95: =IF($CJ95=0,0,IF(SUM(Q95:$Q95)<($N95-12),12,$N95-SUM(Q95:$Q95))) -> 0 | S95: =IF($CJ95=0,0,IF(SUM($Q95:R95)<($N95-12),12,$N95-SUM($Q95:R95))) -> 0 | T95: =IF($CJ95=0,0,IF(SUM($Q95:S95)<($N95-12),12,$N95-SUM($Q95:S95))) -> 0 | U95: =IF($CJ95=0,0,IF(SUM($Q95:T95)<($N95-12),12,$N95-SUM($Q95:T95))) -> 0 | V95: =IF($CJ95=0,0,IF(SUM($Q95:U95)<($N95-12),12,$N95-SUM($Q95:U95))) -> 0 | W95: =IF($CJ95=0,0,IF(SUM($Q95:V95)<($N95-12),12,$N95-SUM($Q95:V95))) -> 0 | Z95: 0 | AA95: =IF($CK95=0,0,IF(SUM(Z95:$Z95)<($N95-12),12,$N95-SUM(Z95:$Z95))) -> 0 | AB95: =IF($CK95=0,0,IF(SUM($Z95:AA95)<($N95-12),12,$N95-SUM($Z95:AA95))) -> 0 | AC95: =IF($CK95=0,0,IF(SUM($Z95:AB95)<($N95-12),12,$N95-SUM($Z95:AB95))) -> 0 | AD95: =IF($CK95=0,0,IF(SUM($Z95:AC95)<($N95-12),12,$N95-SUM($Z95:AC95))) -> 0 | AE95: =IF($CK95=0,0,IF(SUM($Z95:AD95)<($N95-12),12,$N95-SUM($Z95:AD95))) -> 0 | AI95: 0 | AJ95: =IF($CL95=0,0,IF(SUM($AI95:AI95)<($N95-12),12,$N95-SUM($AI95:AI95))) -> 0 | AK95: =IF($CL95=0,0,IF(SUM($AI95:AJ95)<($N95-12),12,$N95-SUM($AI95:AJ95))) -> 0 | AL95: =IF($CL95=0,0,IF(SUM($AI95:AK95)<($N95-12),12,$N95-SUM($AI95:AK95))) -> 0 | AM95: =IF($CL95=0,0,IF(SUM($AI95:AL95)<($N95-12),12,$N95-SUM($AI95:AL95))) -> 0 | AR95: 0 | AS95: =IF($CM95=0,0,IF(SUM($AQ95:AR95)<($N95-12),12,$N95-SUM($AQ95:AR95))) -> 0 | AT95: =IF($CM95=0,0,IF(SUM($AQ95:AS95)<($N95-12),12,$N95-SUM($AQ95:AS95))) -> 0 | AU95: =IF($CM95=0,0,IF(SUM($AQ95:AT95)<($N95-12),12,$N95-SUM($AQ95:AT95))) -> 0 | BA95: 0 | BB95: =IF($CN95=0,0,IF(SUM($AY95:BA95)<($N95-12),12,$N95-SUM($AY95:BA95))) -> 0 | BC95: =IF($CN95=0,0,IF(SUM($AY95:BB95)<($N95-12),12,$N95-SUM($AY95:BB95))) -> 0 | BJ95: 0 | BK95: =IF($CO95=0,0,IF(SUM($BG95:BJ95)<($N95-12),12,$N95-SUM($BG95:BJ95))) -> 0 | BS95: 0 | BU95: 0 | BV95: 0 | BW95: 0 | BX95: 0 | BY95: 0 | BZ95: 0 | CA95: 0 | CC95: 1 | CE95: 0 | CJ95: 0 | CK95: 0 | CL95: 0 | CM95: 0 | CN95: 0 | CO95: 0 | CP95: 0
C96: Frequency Expnasion Programme Shannon (Woodcock Hill, Dooncarton, Glc) | D96: ATM Operations & Technology & Training | E96: COMM | F96: New | G96: R009A | H96: 0 | I96: 0 | K96: -9.999999951e-06 | L96: €'000 | M96: 8 | N96: 96 | O96: 0.125 | Q96: 0 | R96: =IF($CJ96=0,0,IF(SUM(Q96:$Q96)<($N96-12),12,$N96-SUM(Q96:$Q96))) -> 0 | S96: =IF($CJ96=0,0,IF(SUM($Q96:R96)<($N96-12),12,$N96-SUM($Q96:R96))) -> 0 | T96: =IF($CJ96=0,0,IF(SUM($Q96:S96)<($N96-12),12,$N96-SUM($Q96:S96))) -> 0 | U96: =IF($CJ96=0,0,IF(SUM($Q96:T96)<($N96-12),12,$N96-SUM($Q96:T96))) -> 0 | V96: =IF($CJ96=0,0,IF(SUM($Q96:U96)<($N96-12),12,$N96-SUM($Q96:U96))) -> 0 | W96: =IF($CJ96=0,0,IF(SUM($Q96:V96)<($N96-12),12,$N96-SUM($Q96:V96))) -> 0 | Z96: 12 | AA96: =IF($CK96=0,0,IF(SUM(Z96:$Z96)<($N96-12),12,$N96-SUM(Z96:$Z96))) -> 12 | AB96: =IF($CK96=0,0,IF(SUM($Z96:AA96)<($N96-12),12,$N96-SUM($Z96:AA96))) -> 12 | AC96: =IF($CK96=0,0,IF(SUM($Z96:AB96)<($N96-12),12,$N96-SUM($Z96:AB96))) -> 12 | AD96: =IF($CK96=0,0,IF(SUM($Z96:AC96)<($N96-12),12,$N96-SUM($Z96:AC96))) -> 12 | AE96: =IF($CK96=0,0,IF(SUM($Z96:AD96)<($N96-12),12,$N96-SUM($Z96:AD96))) -> 12 | AI96: 0 | AJ96: =IF($CL96=0,0,IF(SUM($AI96:AI96)<($N96-12),12,$N96-SUM($AI96:AI96))) -> 0 | AK96: =IF($CL96=0,0,IF(SUM($AI96:AJ96)<($N96-12),12,$N96-SUM($AI96:AJ96))) -> 0 | AL96: =IF($CL96=0,0,IF(SUM($AI96:AK96)<($N96-12),12,$N96-SUM($AI96:AK96))) -> 0 | AM96: =IF($CL96=0,0,IF(SUM($AI96:AL96)<($N96-12),12,$N96-SUM($AI96:AL96))) -> 0 | AR96: 0 | AS96: =IF($CM96=0,0,IF(SUM($AQ96:AR96)<($N96-12),12,$N96-SUM($AQ96:AR96))) -> 0 | AT96: =IF($CM96=0,0,IF(SUM($AQ96:AS96)<($N96-12),12,$N96-SUM($AQ96:AS96))) -> 0 | AU96: =IF($CM96=0,0,IF(SUM($AQ96:AT96)<($N96-12),12,$N96-SUM($AQ96:AT96))) -> 0 | BA96: 0 | BB96: =IF($CN96=0,0,IF(SUM($AY96:BA96)<($N96-12),12,$N96-SUM($AY96:BA96))) -> 0 | BC96: =IF($CN96=0,0,IF(SUM($AY96:BB96)<($N96-12),12,$N96-SUM($AY96:BB96))) -> 0 | BJ96: 0 | BK96: =IF($CO96=0,0,IF(SUM($BG96:BJ96)<($N96-12),12,$N96-SUM($BG96:BJ96))) -> 0 | BS96: 0 | BU96: 0 | BV96: 1 | BW96: 0 | BX96: 0 | BY96: 0 | BZ96: 0 | CA96: 0 | CC96: 1 | CE96: 0 | CJ96: 0 | CK96: -9.999999951e-06 | CL96: 0 | CM96: 0 | CN96: 0 | CO96: 0 | CP96: 0
C97: Met Server | D97: ATM Operations & Technology & Training | E97: COMM | F97: MET | G97: R016 | H97: 0 | I97: 0 | K97: 0 | L97: €'000 | M97: 8 | N97: 96 | O97: 0.125 | Q97: 0 | R97: =IF($CJ97=0,0,IF(SUM(Q97:$Q97)<($N97-12),12,$N97-SUM(Q97:$Q97))) -> 0 | S97: =IF($CJ97=0,0,IF(SUM($Q97:R97)<($N97-12),12,$N97-SUM($Q97:R97))) -> 0 | T97: =IF($CJ97=0,0,IF(SUM($Q97:S97)<($N97-12),12,$N97-SUM($Q97:S97))) -> 0 | U97: =IF($CJ97=0,0,IF(SUM($Q97:T97)<($N97-12),12,$N97-SUM($Q97:T97))) -> 0 | V97: =IF($CJ97=0,0,IF(SUM($Q97:U97)<($N97-12),12,$N97-SUM($Q97:U97))) -> 0 | W97: =IF($CJ97=0,0,IF(SUM($Q97:V97)<($N97-12),12,$N97-SUM($Q97:V97))) -> 0 | Z97: 0 | AA97: =IF($CK97=0,0,IF(SUM(Z97:$Z97)<($N97-12),12,$N97-SUM(Z97:$Z97))) -> 0 | AB97: =IF($CK97=0,0,IF(SUM($Z97:AA97)<($N97-12),12,$N97-SUM($Z97:AA97))) -> 0 | AC97: =IF($CK97=0,0,IF(SUM($Z97:AB97)<($N97-12),12,$N97-SUM($Z97:AB97))) -> 0 | AD97: =IF($CK97=0,0,IF(SUM($Z97:AC97)<($N97-12),12,$N97-SUM($Z97:AC97))) -> 0 | AE97: =IF($CK97=0,0,IF(SUM($Z97:AD97)<($N97-12),12,$N97-SUM($Z97:AD97))) -> 0 | AI97: 0 | AJ97: =IF($CL97=0,0,IF(SUM($AI97:AI97)<($N97-12),12,$N97-SUM($AI97:AI97))) -> 0 | AK97: =IF($CL97=0,0,IF(SUM($AI97:AJ97)<($N97-12),12,$N97-SUM($AI97:AJ97))) -> 0 | AL97: =IF($CL97=0,0,IF(SUM($AI97:AK97)<($N97-12),12,$N97-SUM($AI97:AK97))) -> 0 | AM97: =IF($CL97=0,0,IF(SUM($AI97:AL97)<($N97-12),12,$N97-SUM($AI97:AL97))) -> 0 | AR97: 0 | AS97: =IF($CM97=0,0,IF(SUM($AQ97:AR97)<($N97-12),12,$N97-SUM($AQ97:AR97))) -> 0 | AT97: =IF($CM97=0,0,IF(SUM($AQ97:AS97)<($N97-12),12,$N97-SUM($AQ97:AS97))) -> 0 | AU97: =IF($CM97=0,0,IF(SUM($AQ97:AT97)<($N97-12),12,$N97-SUM($AQ97:AT97))) -> 0 | BA97: 0 | BB97: =IF($CN97=0,0,IF(SUM($AY97:BA97)<($N97-12),12,$N97-SUM($AY97:BA97))) -> 0 | BC97: =IF($CN97=0,0,IF(SUM($AY97:BB97)<($N97-12),12,$N97-SUM($AY97:BB97))) -> 0 | BJ97: 0 | BK97: =IF($CO97=0,0,IF(SUM($BG97:BJ97)<($N97-12),12,$N97-SUM($BG97:BJ97))) -> 0 | BS97: 0 | BU97: 0 | BV97: 0 | BW97: 0 | BX97: 0 | BY97: 0 | BZ97: 0 | CA97: 0 | CC97: 0.75 | CE97: 0.25 | CJ97: 0 | CK97: 0 | CL97: 0 | CM97: 0 | CN97: 0 | CO97: 0 | CP97: 0
C98: Met Server CRK | D98: ATM Operations & Technology & Training | E98: COMM | F98: MET | G98: R016A | H98: RP4 | I98: 2026 | J98: 2026-07-01 | K98: 440.3333333 | L98: €'000 | M98: 8 | N98: 96 | O98: 0.125 | Q98: 0 | R98: =IF($CJ98=0,0,IF(SUM(Q98:$Q98)<($N98-12),12,$N98-SUM(Q98:$Q98))) -> 0 | S98: =IF($CJ98=0,0,IF(SUM($Q98:R98)<($N98-12),12,$N98-SUM($Q98:R98))) -> 0 | T98: =IF($CJ98=0,0,IF(SUM($Q98:S98)<($N98-12),12,$N98-SUM($Q98:S98))) -> 0 | U98: =IF($CJ98=0,0,IF(SUM($Q98:T98)<($N98-12),12,$N98-SUM($Q98:T98))) -> 0 | V98: =IF($CJ98=0,0,IF(SUM($Q98:U98)<($N98-12),12,$N98-SUM($Q98:U98))) -> 0 | W98: =IF($CJ98=0,0,IF(SUM($Q98:V98)<($N98-12),12,$N98-SUM($Q98:V98))) -> 0 | Z98: 0 | AA98: =IF($CK98=0,0,IF(SUM(Z98:$Z98)<($N98-12),12,$N98-SUM(Z98:$Z98))) -> 0 | AB98: =IF($CK98=0,0,IF(SUM($Z98:AA98)<($N98-12),12,$N98-SUM($Z98:AA98))) -> 0 | AC98: =IF($CK98=0,0,IF(SUM($Z98:AB98)<($N98-12),12,$N98-SUM($Z98:AB98))) -> 0 | AD98: =IF($CK98=0,0,IF(SUM($Z98:AC98)<($N98-12),12,$N98-SUM($Z98:AC98))) -> 0 | AE98: =IF($CK98=0,0,IF(SUM($Z98:AD98)<($N98-12),12,$N98-SUM($Z98:AD98))) -> 0 | AI98: 0 | AJ98: =IF($CL98=0,0,IF(SUM($AI98:AI98)<($N98-12),12,$N98-SUM($AI98:AI98))) -> 0 | AK98: =IF($CL98=0,0,IF(SUM($AI98:AJ98)<($N98-12),12,$N98-SUM($AI98:AJ98))) -> 0 | AL98: =IF($CL98=0,0,IF(SUM($AI98:AK98)<($N98-12),12,$N98-SUM($AI98:AK98))) -> 0 | AM98: =IF($CL98=0,0,IF(SUM($AI98:AL98)<($N98-12),12,$N98-SUM($AI98:AL98))) -> 0 | AR98: 6 | AS98: =IF($CM98=0,0,IF(SUM($AQ98:AR98)<($N98-12),12,$N98-SUM($AQ98:AR98))) -> 12 | AT98: =IF($CM98=0,0,IF(SUM($AQ98:AS98)<($N98-12),12,$N98-SUM($AQ98:AS98))) -> 12 | AU98: =IF($CM98=0,0,IF(SUM($AQ98:AT98)<($N98-12),12,$N98-SUM($AQ98:AT98))) -> 12 | BA98: 0 | BB98: =IF($CN98=0,0,IF(SUM($AY98:BA98)<($N98-12),12,$N98-SUM($AY98:BA98))) -> 0 | BC98: =IF($CN98=0,0,IF(SUM($AY98:BB98)<($N98-12),12,$N98-SUM($AY98:BB98))) -> 0 | BJ98: 0 | BK98: =IF($CO98=0,0,IF(SUM($BG98:BJ98)<($N98-12),12,$N98-SUM($BG98:BJ98))) -> 0 | BS98: 0 | BU98: 0 | BV98: 0 | BW98: 0 | BX98: 0.5 | BY98: 0 | BZ98: 0 | CA98: 0 | CC98: 0.5 | CE98: 0.5 | CJ98: 0 | CK98: 0 | CL98: 0 | CM98: 440.3333333 | CN98: 0 | CO98: 0 | CP98: 0
C99: Met Server SHN | D99: ATM Operations & Technology & Training | E99: COMM | F99: MET | G99: R016A | H99: RP4 | I99: 2025 | J99: 2025-10-01 | K99: 1308.333333 | L99: €'000 | M99: 8 | N99: 96 | O99: 0.125 | Q99: 0 | R99: =IF($CJ99=0,0,IF(SUM(Q99:$Q99)<($N99-12),12,$N99-SUM(Q99:$Q99))) -> 0 | S99: =IF($CJ99=0,0,IF(SUM($Q99:R99)<($N99-12),12,$N99-SUM($Q99:R99))) -> 0 | T99: =IF($CJ99=0,0,IF(SUM($Q99:S99)<($N99-12),12,$N99-SUM($Q99:S99))) -> 0 | U99: =IF($CJ99=0,0,IF(SUM($Q99:T99)<($N99-12),12,$N99-SUM($Q99:T99))) -> 0 | V99: =IF($CJ99=0,0,IF(SUM($Q99:U99)<($N99-12),12,$N99-SUM($Q99:U99))) -> 0 | W99: =IF($CJ99=0,0,IF(SUM($Q99:V99)<($N99-12),12,$N99-SUM($Q99:V99))) -> 0 | Z99: 0 | AA99: =IF($CK99=0,0,IF(SUM(Z99:$Z99)<($N99-12),12,$N99-SUM(Z99:$Z99))) -> 0 | AB99: =IF($CK99=0,0,IF(SUM($Z99:AA99)<($N99-12),12,$N99-SUM($Z99:AA99))) -> 0 | AC99: =IF($CK99=0,0,IF(SUM($Z99:AB99)<($N99-12),12,$N99-SUM($Z99:AB99))) -> 0 | AD99: =IF($CK99=0,0,IF(SUM($Z99:AC99)<($N99-12),12,$N99-SUM($Z99:AC99))) -> 0 | AE99: =IF($CK99=0,0,IF(SUM($Z99:AD99)<($N99-12),12,$N99-SUM($Z99:AD99))) -> 0 | AI99: 3 | AJ99: =IF($CL99=0,0,IF(SUM($AI99:AI99)<($N99-12),12,$N99-SUM($AI99:AI99))) -> 12 | AK99: =IF($CL99=0,0,IF(SUM($AI99:AJ99)<($N99-12),12,$N99-SUM($AI99:AJ99))) -> 12 | AL99: =IF($CL99=0,0,IF(SUM($AI99:AK99)<($N99-12),12,$N99-SUM($AI99:AK99))) -> 12 | AM99: =IF($CL99=0,0,IF(SUM($AI99:AL99)<($N99-12),12,$N99-SUM($AI99:AL99))) -> 12 | AR99: 6 | AS99: =IF($CM99=0,0,IF(SUM($AQ99:AR99)<($N99-12),12,$N99-SUM($AQ99:AR99))) -> 12 | AT99: =IF($CM99=0,0,IF(SUM($AQ99:AS99)<($N99-12),12,$N99-SUM($AQ99:AS99))) -> 12 | AU99: =IF($CM99=0,0,IF(SUM($AQ99:AT99)<($N99-12),12,$N99-SUM($AQ99:AT99))) -> 12 | BA99: 0 | BB99: =IF($CN99=0,0,IF(SUM($AY99:BA99)<($N99-12),12,$N99-SUM($AY99:BA99))) -> 0 | BC99: =IF($CN99=0,0,IF(SUM($AY99:BB99)<($N99-12),12,$N99-SUM($AY99:BB99))) -> 0 | BJ99: 0 | BK99: =IF($CO99=0,0,IF(SUM($BG99:BJ99)<($N99-12),12,$N99-SUM($BG99:BJ99))) -> 0 | BS99: 0 | BU99: 0 | BV99: 0 | BW99: 0.25 | BX99: 0.5 | BY99: 0 | BZ99: 0 | CA99: 0 | CC99: 0.75 | CE99: 0.25 | CJ99: 0 | CK99: 0 | CL99: 958.3333333 | CM99: 350 | CN99: 0 | CO99: 0 | CP99: 0
C100: Met Server DUB | D100: ATM Operations & Technology & Training | E100: COMM | F100: MET | G100: R016A | H100: RP3 | I100: 2024 | J100: 2024-10-01 | K100: 825.3096767 | L100: €'000 | M100: 8 | N100: 96 | O100: 0.125 | Q100: 0 | R100: =IF($CJ100=0,0,IF(SUM(Q100:$Q100)<($N100-12),12,$N100-SUM(Q100:$Q100))) -> 0 | S100: =IF($CJ100=0,0,IF(SUM($Q100:R100)<($N100-12),12,$N100-SUM($Q100:R100))) -> 0 | T100: =IF($CJ100=0,0,IF(SUM($Q100:S100)<($N100-12),12,$N100-SUM($Q100:S100))) -> 0 | U100: =IF($CJ100=0,0,IF(SUM($Q100:T100)<($N100-12),12,$N100-SUM($Q100:T100))) -> 0 | V100: =IF($CJ100=0,0,IF(SUM($Q100:U100)<($N100-12),12,$N100-SUM($Q100:U100))) -> 0 | W100: =IF($CJ100=0,0,IF(SUM($Q100:V100)<($N100-12),12,$N100-SUM($Q100:V100))) -> 0 | Z100: 3 | AA100: =IF($CK100=0,0,IF(SUM(Z100:$Z100)<($N100-12),12,$N100-SUM(Z100:$Z100))) -> 12 | AB100: =IF($CK100=0,0,IF(SUM($Z100:AA100)<($N100-12),12,$N100-SUM($Z100:AA100))) -> 12 | AC100: =IF($CK100=0,0,IF(SUM($Z100:AB100)<($N100-12),12,$N100-SUM($Z100:AB100))) -> 12 | AD100: =IF($CK100=0,0,IF(SUM($Z100:AC100)<($N100-12),12,$N100-SUM($Z100:AC100))) -> 12 | AE100: =IF($CK100=0,0,IF(SUM($Z100:AD100)<($N100-12),12,$N100-SUM($Z100:AD100))) -> 12 | AI100: 0 | AJ100: =IF($CL100=0,0,IF(SUM($AI100:AI100)<($N100-12),12,$N100-SUM($AI100:AI100))) -> 0 | AK100: =IF($CL100=0,0,IF(SUM($AI100:AJ100)<($N100-12),12,$N100-SUM($AI100:AJ100))) -> 0 | AL100: =IF($CL100=0,0,IF(SUM($AI100:AK100)<($N100-12),12,$N100-SUM($AI100:AK100))) -> 0 | AM100: =IF($CL100=0,0,IF(SUM($AI100:AL100)<($N100-12),12,$N100-SUM($AI100:AL100))) -> 0 | AR100: 0 | AS100: =IF($CM100=0,0,IF(SUM($AQ100:AR100)<($N100-12),12,$N100-SUM($AQ100:AR100))) -> 0 | AT100: =IF($CM100=0,0,IF(SUM($AQ100:AS100)<($N100-12),12,$N100-SUM($AQ100:AS100))) -> 0 | AU100: =IF($CM100=0,0,IF(SUM($AQ100:AT100)<($N100-12),12,$N100-SUM($AQ100:AT100))) -> 0 | BA100: 0 | BB100: =IF($CN100=0,0,IF(SUM($AY100:BA100)<($N100-12),12,$N100-SUM($AY100:BA100))) -> 0 | BC100: =IF($CN100=0,0,IF(SUM($AY100:BB100)<($N100-12),12,$N100-SUM($AY100:BB100))) -> 0 | BJ100: 0 | BK100: =IF($CO100=0,0,IF(SUM($BG100:BJ100)<($N100-12),12,$N100-SUM($BG100:BJ100))) -> 0 | BS100: 0 | BU100: 0 | BV100: 0.25 | BW100: 0 | BX100: 0 | BY100: 0 | BZ100: 0 | CA100: 0 | CC100: 0.75 | CE100: 0.25 | CJ100: 0 | CK100: 825.3096767 | CL100: 0 | CM100: 0 | CN100: 0 | CO100: 0 | CP100: 0
C101: Voice Communication Switch | D101: ATM Operations & Technology & Training | E101: COMM | F101: VOIP | G101: S005 | H101: 0 | I101: 0 | K101: 0 | L101: €'000 | M101: 0 | N101: 0 | O101: 0 | Q101: 0 | R101: =IF($CJ101=0,0,IF(SUM(Q101:$Q101)<($N101-12),12,$N101-SUM(Q101:$Q101))) -> 0 | S101: =IF($CJ101=0,0,IF(SUM($Q101:R101)<($N101-12),12,$N101-SUM($Q101:R101))) -> 0 | T101: =IF($CJ101=0,0,IF(SUM($Q101:S101)<($N101-12),12,$N101-SUM($Q101:S101))) -> 0 | U101: =IF($CJ101=0,0,IF(SUM($Q101:T101)<($N101-12),12,$N101-SUM($Q101:T101))) -> 0 | V101: =IF($CJ101=0,0,IF(SUM($Q101:U101)<($N101-12),12,$N101-SUM($Q101:U101))) -> 0 | W101: =IF($CJ101=0,0,IF(SUM($Q101:V101)<($N101-12),12,$N101-SUM($Q101:V101))) -> 0 | Z101: 0 | AA101: =IF($CK101=0,0,IF(SUM(Z101:$Z101)<($N101-12),12,$N101-SUM(Z101:$Z101))) -> 0 | AB101: =IF($CK101=0,0,IF(SUM($Z101:AA101)<($N101-12),12,$N101-SUM($Z101:AA101))) -> 0 | AC101: =IF($CK101=0,0,IF(SUM($Z101:AB101)<($N101-12),12,$N101-SUM($Z101:AB101))) -> 0 | AD101: =IF($CK101=0,0,IF(SUM($Z101:AC101)<($N101-12),12,$N101-SUM($Z101:AC101))) -> 0 | AE101: =IF($CK101=0,0,IF(SUM($Z101:AD101)<($N101-12),12,$N101-SUM($Z101:AD101))) -> 0 | AI101: 0 | AJ101: =IF($CL101=0,0,IF(SUM($AI101:AI101)<($N101-12),12,$N101-SUM($AI101:AI101))) -> 0 | AK101: =IF($CL101=0,0,IF(SUM($AI101:AJ101)<($N101-12),12,$N101-SUM($AI101:AJ101))) -> 0 | AL101: =IF($CL101=0,0,IF(SUM($AI101:AK101)<($N101-12),12,$N101-SUM($AI101:AK101))) -> 0 | AM101: =IF($CL101=0,0,IF(SUM($AI101:AL101)<($N101-12),12,$N101-SUM($AI101:AL101))) -> 0 | AR101: 0 | AS101: =IF($CM101=0,0,IF(SUM($AQ101:AR101)<($N101-12),12,$N101-SUM($AQ101:AR101))) -> 0 | AT101: =IF($CM101=0,0,IF(SUM($AQ101:AS101)<($N101-12),12,$N101-SUM($AQ101:AS101))) -> 0 | AU101: =IF($CM101=0,0,IF(SUM($AQ101:AT101)<($N101-12),12,$N101-SUM($AQ101:AT101))) -> 0 | BA101: 0 | BB101: =IF($CN101=0,0,IF(SUM($AY101:BA101)<($N101-12),12,$N101-SUM($AY101:BA101))) -> 0 | BC101: =IF($CN101=0,0,IF(SUM($AY101:BB101)<($N101-12),12,$N101-SUM($AY101:BB101))) -> 0 | BJ101: 0 | BK101: =IF($CO101=0,0,IF(SUM($BG101:BJ101)<($N101-12),12,$N101-SUM($BG101:BJ101))) -> 0 | BS101: 0 | BU101: 0 | BV101: 0 | BW101: 0 | BX101: 0 | BY101: 0 | BZ101: 0 | CA101: 0 | CC101: 0 | CE101: 0 | CJ101: 0 | CK101: 0 | CL101: 0 | CM101: 0 | CN101: 0 | CO101: 0 | CP101: 0
C102: VOIP Switch CRK | D102: ATM Operations & Technology & Training | E102: COMM | F102: VOIP | G102: S005A | H102: RP4 | I102: 2025 | J102: 2025-01-01 | K102: 715.3692543 | L102: €'000 | M102: 8 | N102: 96 | O102: 0.125 | Q102: 0 | R102: =IF($CJ102=0,0,IF(SUM(Q102:$Q102)<($N102-12),12,$N102-SUM(Q102:$Q102))) -> 0 | S102: =IF($CJ102=0,0,IF(SUM($Q102:R102)<($N102-12),12,$N102-SUM($Q102:R102))) -> 0 | T102: =IF($CJ102=0,0,IF(SUM($Q102:S102)<($N102-12),12,$N102-SUM($Q102:S102))) -> 0 | U102: =IF($CJ102=0,0,IF(SUM($Q102:T102)<($N102-12),12,$N102-SUM($Q102:T102))) -> 0 | V102: =IF($CJ102=0,0,IF(SUM($Q102:U102)<($N102-12),12,$N102-SUM($Q102:U102))) -> 0 | W102: =IF($CJ102=0,0,IF(SUM($Q102:V102)<($N102-12),12,$N102-SUM($Q102:V102))) -> 0 | Z102: 0 | AA102: =IF($CK102=0,0,IF(SUM(Z102:$Z102)<($N102-12),12,$N102-SUM(Z102:$Z102))) -> 0 | AB102: =IF($CK102=0,0,IF(SUM($Z102:AA102)<($N102-12),12,$N102-SUM($Z102:AA102))) -> 0 | AC102: =IF($CK102=0,0,IF(SUM($Z102:AB102)<($N102-12),12,$N102-SUM($Z102:AB102))) -> 0 | AD102: =IF($CK102=0,0,IF(SUM($Z102:AC102)<($N102-12),12,$N102-SUM($Z102:AC102))) -> 0 | AE102: =IF($CK102=0,0,IF(SUM($Z102:AD102)<($N102-12),12,$N102-SUM($Z102:AD102))) -> 0 | AI102: 12 | AJ102: =IF($CL102=0,0,IF(SUM($AI102:AI102)<($N102-12),12,$N102-SUM($AI102:AI102))) -> 12 | AK102: =IF($CL102=0,0,IF(SUM($AI102:AJ102)<($N102-12),12,$N102-SUM($AI102:AJ102))) -> 12 | AL102: =IF($CL102=0,0,IF(SUM($AI102:AK102)<($N102-12),12,$N102-SUM($AI102:AK102))) -> 12 | AM102: =IF($CL102=0,0,IF(SUM($AI102:AL102)<($N102-12),12,$N102-SUM($AI102:AL102))) -> 12 | AR102: 0 | AS102: =IF($CM102=0,0,IF(SUM($AQ102:AR102)<($N102-12),12,$N102-SUM($AQ102:AR102))) -> 0 | AT102: =IF($CM102=0,0,IF(SUM($AQ102:AS102)<($N102-12),12,$N102-SUM($AQ102:AS102))) -> 0 | AU102: =IF($CM102=0,0,IF(SUM($AQ102:AT102)<($N102-12),12,$N102-SUM($AQ102:AT102))) -> 0 | BA102: 0 | BB102: =IF($CN102=0,0,IF(SUM($AY102:BA102)<($N102-12),12,$N102-SUM($AY102:BA102))) -> 0 | BC102: =IF($CN102=0,0,IF(SUM($AY102:BB102)<($N102-12),12,$N102-SUM($AY102:BB102))) -> 0 | BJ102: 0 | BK102: =IF($CO102=0,0,IF(SUM($BG102:BJ102)<($N102-12),12,$N102-SUM($BG102:BJ102))) -> 0 | BS102: 0 | BU102: 0 | BV102: 0 | BW102: 1 | BX102: 0 | BY102: 0 | BZ102: 0 | CA102: 0 | CC102: 0 | CE102: 1 | CJ102: 0 | CK102: 0 | CL102: 715.3692543 | CM102: 0 | CN102: 0 | CO102: 0 | CP102: 0
C103: VOIP Switch VCS7 | D103: ATM Operations & Technology & Training | E103: COMM | F103: VOIP | G103: S005A | H103: RP3 | I103: 2023 | J103: 2023-10-01 | K103: 84.29966603 | L103: €'000 | M103: 8 | N103: 96 | O103: 0.125 | Q103: 3 | R103: =IF($CJ103=0,0,IF(SUM(Q103:$Q103)<($N103-12),12,$N103-SUM(Q103:$Q103))) -> 12 | S103: =IF($CJ103=0,0,IF(SUM($Q103:R103)<($N103-12),12,$N103-SUM($Q103:R103))) -> 12 | T103: =IF($CJ103=0,0,IF(SUM($Q103:S103)<($N103-12),12,$N103-SUM($Q103:S103))) -> 12 | U103: =IF($CJ103=0,0,IF(SUM($Q103:T103)<($N103-12),12,$N103-SUM($Q103:T103))) -> 12 | V103: =IF($CJ103=0,0,IF(SUM($Q103:U103)<($N103-12),12,$N103-SUM($Q103:U103))) -> 12 | W103: =IF($CJ103=0,0,IF(SUM($Q103:V103)<($N103-12),12,$N103-SUM($Q103:V103))) -> 12 | Z103: 12 | AA103: =IF($CK103=0,0,IF(SUM(Z103:$Z103)<($N103-12),12,$N103-SUM(Z103:$Z103))) -> 0 | AB103: =IF($CK103=0,0,IF(SUM($Z103:AA103)<($N103-12),12,$N103-SUM($Z103:AA103))) -> 0 | AC103: =IF($CK103=0,0,IF(SUM($Z103:AB103)<($N103-12),12,$N103-SUM($Z103:AB103))) -> 0 | AD103: =IF($CK103=0,0,IF(SUM($Z103:AC103)<($N103-12),12,$N103-SUM($Z103:AC103))) -> 0 | AE103: =IF($CK103=0,0,IF(SUM($Z103:AD103)<($N103-12),12,$N103-SUM($Z103:AD103))) -> 0 | AI103: 0 | AJ103: =IF($CL103=0,0,IF(SUM($AI103:AI103)<($N103-12),12,$N103-SUM($AI103:AI103))) -> 0 | AK103: =IF($CL103=0,0,IF(SUM($AI103:AJ103)<($N103-12),12,$N103-SUM($AI103:AJ103))) -> 0 | AL103: =IF($CL103=0,0,IF(SUM($AI103:AK103)<($N103-12),12,$N103-SUM($AI103:AK103))) -> 0 | AM103: =IF($CL103=0,0,IF(SUM($AI103:AL103)<($N103-12),12,$N103-SUM($AI103:AL103))) -> 0 | AR103: 0 | AS103: =IF($CM103=0,0,IF(SUM($AQ103:AR103)<($N103-12),12,$N103-SUM($AQ103:AR103))) -> 0 | AT103: =IF($CM103=0,0,IF(SUM($AQ103:AS103)<($N103-12),12,$N103-SUM($AQ103:AS103))) -> 0 | AU103: =IF($CM103=0,0,IF(SUM($AQ103:AT103)<($N103-12),12,$N103-SUM($AQ103:AT103))) -> 0 | BA103: 0 | BB103: =IF($CN103=0,0,IF(SUM($AY103:BA103)<($N103-12),12,$N103-SUM($AY103:BA103))) -> 0 | BC103: =IF($CN103=0,0,IF(SUM($AY103:BB103)<($N103-12),12,$N103-SUM($AY103:BB103))) -> 0 | BJ103: 0 | BK103: =IF($CO103=0,0,IF(SUM($BG103:BJ103)<($N103-12),12,$N103-SUM($BG103:BJ103))) -> 0 | BS103: 0 | BU103: 0.25 | BV103: 1 | BW103: 0 | BX103: 0 | BY103: 0 | BZ103: 0 | CA103: 0 | CC103: 0.75 | CE103: 0.25 | CJ103: 84.29966603 | CK103: 0 | CL103: 0 | CM103: 0 | CN103: 0 | CO103: 0 | CP103: 0
C104: VOIP Switch Ballycasey Main | D104: ATM Operations & Technology & Training | E104: COMM | F104: VOIP | G104: S005A | H104: RP4 | I104: 2026 | J104: 2026-04-01 | K104: 1320.554039 | L104: €'000 | M104: 8 | N104: 96 | O104: 0.125 | Q104: 0 | R104: =IF($CJ104=0,0,IF(SUM(Q104:$Q104)<($N104-12),12,$N104-SUM(Q104:$Q104))) -> 0 | S104: =IF($CJ104=0,0,IF(SUM($Q104:R104)<($N104-12),12,$N104-SUM($Q104:R104))) -> 0 | T104: =IF($CJ104=0,0,IF(SUM($Q104:S104)<($N104-12),12,$N104-SUM($Q104:S104))) -> 0 | U104: =IF($CJ104=0,0,IF(SUM($Q104:T104)<($N104-12),12,$N104-SUM($Q104:T104))) -> 0 | V104: =IF($CJ104=0,0,IF(SUM($Q104:U104)<($N104-12),12,$N104-SUM($Q104:U104))) -> 0 | W104: =IF($CJ104=0,0,IF(SUM($Q104:V104)<($N104-12),12,$N104-SUM($Q104:V104))) -> 0 | Z104: 0 | AA104: =IF($CK104=0,0,IF(SUM(Z104:$Z104)<($N104-12),12,$N104-SUM(Z104:$Z104))) -> 0 | AB104: =IF($CK104=0,0,IF(SUM($Z104:AA104)<($N104-12),12,$N104-SUM($Z104:AA104))) -> 0 | AC104: =IF($CK104=0,0,IF(SUM($Z104:AB104)<($N104-12),12,$N104-SUM($Z104:AB104))) -> 0 | AD104: =IF($CK104=0,0,IF(SUM($Z104:AC104)<($N104-12),12,$N104-SUM($Z104:AC104))) -> 0 | AE104: =IF($CK104=0,0,IF(SUM($Z104:AD104)<($N104-12),12,$N104-SUM($Z104:AD104))) -> 0 | AI104: 0 | AJ104: =IF($CL104=0,0,IF(SUM($AI104:AI104)<($N104-12),12,$N104-SUM($AI104:AI104))) -> 0 | AK104: =IF($CL104=0,0,IF(SUM($AI104:AJ104)<($N104-12),12,$N104-SUM($AI104:AJ104))) -> 0 | AL104: =IF($CL104=0,0,IF(SUM($AI104:AK104)<($N104-12),12,$N104-SUM($AI104:AK104))) -> 0 | AM104: =IF($CL104=0,0,IF(SUM($AI104:AL104)<($N104-12),12,$N104-SUM($AI104:AL104))) -> 0 | AR104: 9 | AS104: =IF($CM104=0,0,IF(SUM($AQ104:AR104)<($N104-12),12,$N104-SUM($AQ104:AR104))) -> 12 | AT104: =IF($CM104=0,0,IF(SUM($AQ104:AS104)<($N104-12),12,$N104-SUM($AQ104:AS104))) -> 12 | AU104: =IF($CM104=0,0,IF(SUM($AQ104:AT104)<($N104-12),12,$N104-SUM($AQ104:AT104))) -> 12 | BA104: 0 | BB104: =IF($CN104=0,0,IF(SUM($AY104:BA104)<($N104-12),12,$N104-SUM($AY104:BA104))) -> 0 | BC104: =IF($CN104=0,0,IF(SUM($AY104:BB104)<($N104-12),12,$N104-SUM($AY104:BB104))) -> 0 | BJ104: 0 | BK104: =IF($CO104=0,0,IF(SUM($BG104:BJ104)<($N104-12),12,$N104-SUM($BG104:BJ104))) -> 0 | BS104: 0 | BU104: 0 | BV104: 0 | BW104: 0 | BX104: 0.75 | BY104: 0 | BZ104: 0 | CA104: 0 | CC104: 1 | CE104: 0 | CJ104: 0 | CK104: 0 | CL104: 0 | CM104: 1320.554039 | CN104: 0 | CO104: 0 | CP104: 0
C105: VOIP Switch STBU | D105: ATM Operations & Technology & Training | E105: COMM | F105: VOIP | G105: S005A | H105: RP4 | I105: 2025 | J105: 2025-10-01 | K105: 361.7082521 | L105: €'000 | M105: 8 | N105: 96 | O105: 0.125 | Q105: 0 | R105: =IF($CJ105=0,0,IF(SUM(Q105:$Q105)<($N105-12),12,$N105-SUM(Q105:$Q105))) -> 0 | S105: =IF($CJ105=0,0,IF(SUM($Q105:R105)<($N105-12),12,$N105-SUM($Q105:R105))) -> 0 | T105: =IF($CJ105=0,0,IF(SUM($Q105:S105)<($N105-12),12,$N105-SUM($Q105:S105))) -> 0 | U105: =IF($CJ105=0,0,IF(SUM($Q105:T105)<($N105-12),12,$N105-SUM($Q105:T105))) -> 0 | V105: =IF($CJ105=0,0,IF(SUM($Q105:U105)<($N105-12),12,$N105-SUM($Q105:U105))) -> 0 | W105: =IF($CJ105=0,0,IF(SUM($Q105:V105)<($N105-12),12,$N105-SUM($Q105:V105))) -> 0 | Z105: 0 | AA105: =IF($CK105=0,0,IF(SUM(Z105:$Z105)<($N105-12),12,$N105-SUM(Z105:$Z105))) -> 0 | AB105: =IF($CK105=0,0,IF(SUM($Z105:AA105)<($N105-12),12,$N105-SUM($Z105:AA105))) -> 0 | AC105: =IF($CK105=0,0,IF(SUM($Z105:AB105)<($N105-12),12,$N105-SUM($Z105:AB105))) -> 0 | AD105: =IF($CK105=0,0,IF(SUM($Z105:AC105)<($N105-12),12,$N105-SUM($Z105:AC105))) -> 0 | AE105: =IF($CK105=0,0,IF(SUM($Z105:AD105)<($N105-12),12,$N105-SUM($Z105:AD105))) -> 0 | AI105: 3 | AJ105: =IF($CL105=0,0,IF(SUM($AI105:AI105)<($N105-12),12,$N105-SUM($AI105:AI105))) -> 12 | AK105: =IF($CL105=0,0,IF(SUM($AI105:AJ105)<($N105-12),12,$N105-SUM($AI105:AJ105))) -> 12 | AL105: =IF($CL105=0,0,IF(SUM($AI105:AK105)<($N105-12),12,$N105-SUM($AI105:AK105))) -> 12 | AM105: =IF($CL105=0,0,IF(SUM($AI105:AL105)<($N105-12),12,$N105-SUM($AI105:AL105))) -> 12 | AR105: 0 | AS105: =IF($CM105=0,0,IF(SUM($AQ105:AR105)<($N105-12),12,$N105-SUM($AQ105:AR105))) -> 0 | AT105: =IF($CM105=0,0,IF(SUM($AQ105:AS105)<($N105-12),12,$N105-SUM($AQ105:AS105))) -> 0 | AU105: =IF($CM105=0,0,IF(SUM($AQ105:AT105)<($N105-12),12,$N105-SUM($AQ105:AT105))) -> 0 | BA105: 0 | BB105: =IF($CN105=0,0,IF(SUM($AY105:BA105)<($N105-12),12,$N105-SUM($AY105:BA105))) -> 0 | BC105: =IF($CN105=0,0,IF(SUM($AY105:BB105)<($N105-12),12,$N105-SUM($AY105:BB105))) -> 0 | BJ105: 0 | BK105: =IF($CO105=0,0,IF(SUM($BG105:BJ105)<($N105-12),12,$N105-SUM($BG105:BJ105))) -> 0 | BS105: 0 | BU105: 0 | BV105: 0 | BW105: 0.25 | BX105: 0 | BY105: 0 | BZ105: 0 | CA105: 0 | CC105: 0.75 | CE105: 0.25 | CJ105: 0 | CK105: 0 | CL105: 361.7082521 | CM105: 0 | CN105: 0 | CO105: 0 | CP105: 0
C106: Ballycasey CVF | D106: ATM Operations & Technology & Training | E106: COMM | F106: 0 | G106: S005A | H106: RP4 | I106: 2026 | J106: 2026-04-01 | K106: 671.7711282 | L106: €'000 | M106: 8 | N106: 96 | O106: 0.125 | Q106: 0 | R106: =IF($CJ106=0,0,IF(SUM(Q106:$Q106)<($N106-12),12,$N106-SUM(Q106:$Q106))) -> 0 | S106: =IF($CJ106=0,0,IF(SUM($Q106:R106)<($N106-12),12,$N106-SUM($Q106:R106))) -> 0 | T106: =IF($CJ106=0,0,IF(SUM($Q106:S106)<($N106-12),12,$N106-SUM($Q106:S106))) -> 0 | U106: =IF($CJ106=0,0,IF(SUM($Q106:T106)<($N106-12),12,$N106-SUM($Q106:T106))) -> 0 | V106: =IF($CJ106=0,0,IF(SUM($Q106:U106)<($N106-12),12,$N106-SUM($Q106:U106))) -> 0 | W106: =IF($CJ106=0,0,IF(SUM($Q106:V106)<($N106-12),12,$N106-SUM($Q106:V106))) -> 0 | Z106: 0 | AA106: =IF($CK106=0,0,IF(SUM(Z106:$Z106)<($N106-12),12,$N106-SUM(Z106:$Z106))) -> 0 | AB106: =IF($CK106=0,0,IF(SUM($Z106:AA106)<($N106-12),12,$N106-SUM($Z106:AA106))) -> 0 | AC106: =IF($CK106=0,0,IF(SUM($Z106:AB106)<($N106-12),12,$N106-SUM($Z106:AB106))) -> 0 | AD106: =IF($CK106=0,0,IF(SUM($Z106:AC106)<($N106-12),12,$N106-SUM($Z106:AC106))) -> 0 | AE106: =IF($CK106=0,0,IF(SUM($Z106:AD106)<($N106-12),12,$N106-SUM($Z106:AD106))) -> 0 | AI106: 0 | AJ106: =IF($CL106=0,0,IF(SUM($AI106:AI106)<($N106-12),12,$N106-SUM($AI106:AI106))) -> 0 | AK106: =IF($CL106=0,0,IF(SUM($AI106:AJ106)<($N106-12),12,$N106-SUM($AI106:AJ106))) -> 0 | AL106: =IF($CL106=0,0,IF(SUM($AI106:AK106)<($N106-12),12,$N106-SUM($AI106:AK106))) -> 0 | AM106: =IF($CL106=0,0,IF(SUM($AI106:AL106)<($N106-12),12,$N106-SUM($AI106:AL106))) -> 0 | AR106: 9 | AS106: =IF($CM106=0,0,IF(SUM($AQ106:AR106)<($N106-12),12,$N106-SUM($AQ106:AR106))) -> 12 | AT106: =IF($CM106=0,0,IF(SUM($AQ106:AS106)<($N106-12),12,$N106-SUM($AQ106:AS106))) -> 12 | AU106: =IF($CM106=0,0,IF(SUM($AQ106:AT106)<($N106-12),12,$N106-SUM($AQ106:AT106))) -> 12 | BA106: 0 | BB106: =IF($CN106=0,0,IF(SUM($AY106:BA106)<($N106-12),12,$N106-SUM($AY106:BA106))) -> 0 | BC106: =IF($CN106=0,0,IF(SUM($AY106:BB106)<($N106-12),12,$N106-SUM($AY106:BB106))) -> 0 | BJ106: 0 | BK106: =IF($CO106=0,0,IF(SUM($BG106:BJ106)<($N106-12),12,$N106-SUM($BG106:BJ106))) -> 0 | BS106: 0 | BU106: 0 | BV106: 0 | BW106: 0 | BX106: 0.75 | BY106: 0 | BZ106: 0 | CA106: 0 | CC106: 1 | CE106: 0 | CJ106: 0 | CK106: 0 | CL106: 0 | CM106: 671.7711282 | CN106: 0 | CO106: 0 | CP106: 0
C107: PABX Infrastructure Upgrade BCY/CRK | D107: ATM Operations & Technology & Training | E107: COMM | F107: New | G107: S009 | H107: RP3 | I107: 2024 | J107: 2024-10-01 | K107: 100 | L107: €'000 | M107: 12 | N107: 144 | O107: 0.08333333333 | Q107: 0 | R107: =IF($CJ107=0,0,IF(SUM(Q107:$Q107)<($N107-12),12,$N107-SUM(Q107:$Q107))) -> 0 | S107: =IF($CJ107=0,0,IF(SUM($Q107:R107)<($N107-12),12,$N107-SUM($Q107:R107))) -> 0 | T107: =IF($CJ107=0,0,IF(SUM($Q107:S107)<($N107-12),12,$N107-SUM($Q107:S107))) -> 0 | U107: =IF($CJ107=0,0,IF(SUM($Q107:T107)<($N107-12),12,$N107-SUM($Q107:T107))) -> 0 | V107: =IF($CJ107=0,0,IF(SUM($Q107:U107)<($N107-12),12,$N107-SUM($Q107:U107))) -> 0 | W107: =IF($CJ107=0,0,IF(SUM($Q107:V107)<($N107-12),12,$N107-SUM($Q107:V107))) -> 0 | Z107: 3 | AA107: =IF($CK107=0,0,IF(SUM(Z107:$Z107)<($N107-12),12,$N107-SUM(Z107:$Z107))) -> 12 | AB107: =IF($CK107=0,0,IF(SUM($Z107:AA107)<($N107-12),12,$N107-SUM($Z107:AA107))) -> 12 | AC107: =IF($CK107=0,0,IF(SUM($Z107:AB107)<($N107-12),12,$N107-SUM($Z107:AB107))) -> 12 | AD107: =IF($CK107=0,0,IF(SUM($Z107:AC107)<($N107-12),12,$N107-SUM($Z107:AC107))) -> 12 | AE107: =IF($CK107=0,0,IF(SUM($Z107:AD107)<($N107-12),12,$N107-SUM($Z107:AD107))) -> 12 | AI107: 0 | AJ107: =IF($CL107=0,0,IF(SUM($AI107:AI107)<($N107-12),12,$N107-SUM($AI107:AI107))) -> 0 | AK107: =IF($CL107=0,0,IF(SUM($AI107:AJ107)<($N107-12),12,$N107-SUM($AI107:AJ107))) -> 0 | AL107: =IF($CL107=0,0,IF(SUM($AI107:AK107)<($N107-12),12,$N107-SUM($AI107:AK107))) -> 0 | AM107: =IF($CL107=0,0,IF(SUM($AI107:AL107)<($N107-12),12,$N107-SUM($AI107:AL107))) -> 0 | AR107: 0 | AS107: =IF($CM107=0,0,IF(SUM($AQ107:AR107)<($N107-12),12,$N107-SUM($AQ107:AR107))) -> 0 | AT107: =IF($CM107=0,0,IF(SUM($AQ107:AS107)<($N107-12),12,$N107-SUM($AQ107:AS107))) -> 0 | AU107: =IF($CM107=0,0,IF(SUM($AQ107:AT107)<($N107-12),12,$N107-SUM($AQ107:AT107))) -> 0 | BA107: 0 | BB107: =IF($CN107=0,0,IF(SUM($AY107:BA107)<($N107-12),12,$N107-SUM($AY107:BA107))) -> 0 | BC107: =IF($CN107=0,0,IF(SUM($AY107:BB107)<($N107-12),12,$N107-SUM($AY107:BB107))) -> 0 | BJ107: 0 | BK107: =IF($CO107=0,0,IF(SUM($BG107:BJ107)<($N107-12),12,$N107-SUM($BG107:BJ107))) -> 0 | BS107: 0 | BU107: 0 | BV107: 0.25 | BW107: 0 | BX107: 0 | BY107: 0 | BZ107: 0 | CA107: 0 | CC107: 0.75 | CE107: 0.25 | CJ107: 0 | CK107: 100 | CL107: 0 | CM107: 0 | CN107: 0 | CO107: 0 | CP107: 0
C108: Approach Video Recording System | D108: ATM Operations & Technology & Training | E108: COMM | F108: 0 | G108: Y004 | H108: RP3 | I108: 2024 | J108: 2024-07-01 | K108: 230 | L108: €'000 | M108: 8 | N108: 96 | O108: 0.125 | Q108: 0 | R108: =IF($CJ108=0,0,IF(SUM(Q108:$Q108)<($N108-12),12,$N108-SUM(Q108:$Q108))) -> 0 | S108: =IF($CJ108=0,0,IF(SUM($Q108:R108)<($N108-12),12,$N108-SUM($Q108:R108))) -> 0 | T108: =IF($CJ108=0,0,IF(SUM($Q108:S108)<($N108-12),12,$N108-SUM($Q108:S108))) -> 0 | U108: =IF($CJ108=0,0,IF(SUM($Q108:T108)<($N108-12),12,$N108-SUM($Q108:T108))) -> 0 | V108: =IF($CJ108=0,0,IF(SUM($Q108:U108)<($N108-12),12,$N108-SUM($Q108:U108))) -> 0 | W108: =IF($CJ108=0,0,IF(SUM($Q108:V108)<($N108-12),12,$N108-SUM($Q108:V108))) -> 0 | Z108: 6 | AA108: =IF($CK108=0,0,IF(SUM(Z108:$Z108)<($N108-12),12,$N108-SUM(Z108:$Z108))) -> 12 | AB108: =IF($CK108=0,0,IF(SUM($Z108:AA108)<($N108-12),12,$N108-SUM($Z108:AA108))) -> 12 | AC108: =IF($CK108=0,0,IF(SUM($Z108:AB108)<($N108-12),12,$N108-SUM($Z108:AB108))) -> 12 | AD108: =IF($CK108=0,0,IF(SUM($Z108:AC108)<($N108-12),12,$N108-SUM($Z108:AC108))) -> 12 | AE108: =IF($CK108=0,0,IF(SUM($Z108:AD108)<($N108-12),12,$N108-SUM($Z108:AD108))) -> 12 | AI108: 0 | AJ108: =IF($CL108=0,0,IF(SUM($AI108:AI108)<($N108-12),12,$N108-SUM($AI108:AI108))) -> 0 | AK108: =IF($CL108=0,0,IF(SUM($AI108:AJ108)<($N108-12),12,$N108-SUM($AI108:AJ108))) -> 0 | AL108: =IF($CL108=0,0,IF(SUM($AI108:AK108)<($N108-12),12,$N108-SUM($AI108:AK108))) -> 0 | AM108: =IF($CL108=0,0,IF(SUM($AI108:AL108)<($N108-12),12,$N108-SUM($AI108:AL108))) -> 0 | AR108: 0 | AS108: =IF($CM108=0,0,IF(SUM($AQ108:AR108)<($N108-12),12,$N108-SUM($AQ108:AR108))) -> 0 | AT108: =IF($CM108=0,0,IF(SUM($AQ108:AS108)<($N108-12),12,$N108-SUM($AQ108:AS108))) -> 0 | AU108: =IF($CM108=0,0,IF(SUM($AQ108:AT108)<($N108-12),12,$N108-SUM($AQ108:AT108))) -> 0 | BA108: 0 | BB108: =IF($CN108=0,0,IF(SUM($AY108:BA108)<($N108-12),12,$N108-SUM($AY108:BA108))) -> 0 | BC108: =IF($CN108=0,0,IF(SUM($AY108:BB108)<($N108-12),12,$N108-SUM($AY108:BB108))) -> 0 | BJ108: 0 | BK108: =IF($CO108=0,0,IF(SUM($BG108:BJ108)<($N108-12),12,$N108-SUM($BG108:BJ108))) -> 0 | BS108: 0 | BU108: 0 | BV108: 0.5 | BW108: 0 | BX108: 0 | BY108: 0 | BZ108: 0 | CA108: 0 | CC108: 0.75 | CE108: 0.25 | CJ108: 0 | CK108: 230 | CL108: 0 | CM108: 0 | CN108: 0 | CO108: 0 | CP108: 0
C109: Skysoft "Off the Glass Recording" system | D109: ATM Operations & Technology & Training | E109: FDPS | F109: 0 | G109: Z003 | H109: 0 | I109: 0 | K109: 0 | L109: €'000 | M109: 8 | N109: 96 | O109: 0.125 | Q109: 0 | R109: =IF($CJ109=0,0,IF(SUM(Q109:$Q109)<($N109-12),12,$N109-SUM(Q109:$Q109))) -> 0 | S109: =IF($CJ109=0,0,IF(SUM($Q109:R109)<($N109-12),12,$N109-SUM($Q109:R109))) -> 0 | T109: =IF($CJ109=0,0,IF(SUM($Q109:S109)<($N109-12),12,$N109-SUM($Q109:S109))) -> 0 | U109: =IF($CJ109=0,0,IF(SUM($Q109:T109)<($N109-12),12,$N109-SUM($Q109:T109))) -> 0 | V109: =IF($CJ109=0,0,IF(SUM($Q109:U109)<($N109-12),12,$N109-SUM($Q109:U109))) -> 0 | W109: =IF($CJ109=0,0,IF(SUM($Q109:V109)<($N109-12),12,$N109-SUM($Q109:V109))) -> 0 | Z109: 0 | AA109: =IF($CK109=0,0,IF(SUM(Z109:$Z109)<($N109-12),12,$N109-SUM(Z109:$Z109))) -> 0 | AB109: =IF($CK109=0,0,IF(SUM($Z109:AA109)<($N109-12),12,$N109-SUM($Z109:AA109))) -> 0 | AC109: =IF($CK109=0,0,IF(SUM($Z109:AB109)<($N109-12),12,$N109-SUM($Z109:AB109))) -> 0 | AD109: =IF($CK109=0,0,IF(SUM($Z109:AC109)<($N109-12),12,$N109-SUM($Z109:AC109))) -> 0 | AE109: =IF($CK109=0,0,IF(SUM($Z109:AD109)<($N109-12),12,$N109-SUM($Z109:AD109))) -> 0 | AI109: 0 | AJ109: =IF($CL109=0,0,IF(SUM($AI109:AI109)<($N109-12),12,$N109-SUM($AI109:AI109))) -> 0 | AK109: =IF($CL109=0,0,IF(SUM($AI109:AJ109)<($N109-12),12,$N109-SUM($AI109:AJ109))) -> 0 | AL109: =IF($CL109=0,0,IF(SUM($AI109:AK109)<($N109-12),12,$N109-SUM($AI109:AK109))) -> 0 | AM109: =IF($CL109=0,0,IF(SUM($AI109:AL109)<($N109-12),12,$N109-SUM($AI109:AL109))) -> 0 | AR109: 0 | AS109: =IF($CM109=0,0,IF(SUM($AQ109:AR109)<($N109-12),12,$N109-SUM($AQ109:AR109))) -> 0 | AT109: =IF($CM109=0,0,IF(SUM($AQ109:AS109)<($N109-12),12,$N109-SUM($AQ109:AS109))) -> 0 | AU109: =IF($CM109=0,0,IF(SUM($AQ109:AT109)<($N109-12),12,$N109-SUM($AQ109:AT109))) -> 0 | BA109: 0 | BB109: =IF($CN109=0,0,IF(SUM($AY109:BA109)<($N109-12),12,$N109-SUM($AY109:BA109))) -> 0 | BC109: =IF($CN109=0,0,IF(SUM($AY109:BB109)<($N109-12),12,$N109-SUM($AY109:BB109))) -> 0 | BJ109: 0 | BK109: =IF($CO109=0,0,IF(SUM($BG109:BJ109)<($N109-12),12,$N109-SUM($BG109:BJ109))) -> 0 | BS109: 0 | BU109: 0 | BV109: 0 | BW109: 0 | BX109: 0 | BY109: 0 | BZ109: 0 | CA109: 0 | CC109: 0.75 | CE109: 0.25 | CJ109: 0 | CK109: 0 | CL109: 0 | CM109: 0 | CN109: 0 | CO109: 0 | CP109: 0
C110: Skysoft "Off the Glass Recording" system DAP | D110: ATM Operations & Technology & Training | E110: COMM | F110: 0 | G110: Z003A | H110: RP4 | I110: 2028 | J110: 2028-01-01 | K110: 150 | L110: €'000 | M110: 8 | N110: 96 | O110: 0.125 | Q110: 0 | R110: =IF($CJ110=0,0,IF(SUM(Q110:$Q110)<($N110-12),12,$N110-SUM(Q110:$Q110))) -> 0 | S110: =IF($CJ110=0,0,IF(SUM($Q110:R110)<($N110-12),12,$N110-SUM($Q110:R110))) -> 0 | T110: =IF($CJ110=0,0,IF(SUM($Q110:S110)<($N110-12),12,$N110-SUM($Q110:S110))) -> 0 | U110: =IF($CJ110=0,0,IF(SUM($Q110:T110)<($N110-12),12,$N110-SUM($Q110:T110))) -> 0 | V110: =IF($CJ110=0,0,IF(SUM($Q110:U110)<($N110-12),12,$N110-SUM($Q110:U110))) -> 0 | W110: =IF($CJ110=0,0,IF(SUM($Q110:V110)<($N110-12),12,$N110-SUM($Q110:V110))) -> 0 | Z110: 0 | AA110: =IF($CK110=0,0,IF(SUM(Z110:$Z110)<($N110-12),12,$N110-SUM(Z110:$Z110))) -> 0 | AB110: =IF($CK110=0,0,IF(SUM($Z110:AA110)<($N110-12),12,$N110-SUM($Z110:AA110))) -> 0 | AC110: =IF($CK110=0,0,IF(SUM($Z110:AB110)<($N110-12),12,$N110-SUM($Z110:AB110))) -> 0 | AD110: =IF($CK110=0,0,IF(SUM($Z110:AC110)<($N110-12),12,$N110-SUM($Z110:AC110))) -> 0 | AE110: =IF($CK110=0,0,IF(SUM($Z110:AD110)<($N110-12),12,$N110-SUM($Z110:AD110))) -> 0 | AI110: 0 | AJ110: =IF($CL110=0,0,IF(SUM($AI110:AI110)<($N110-12),12,$N110-SUM($AI110:AI110))) -> 0 | AK110: =IF($CL110=0,0,IF(SUM($AI110:AJ110)<($N110-12),12,$N110-SUM($AI110:AJ110))) -> 0 | AL110: =IF($CL110=0,0,IF(SUM($AI110:AK110)<($N110-12),12,$N110-SUM($AI110:AK110))) -> 0 | AM110: =IF($CL110=0,0,IF(SUM($AI110:AL110)<($N110-12),12,$N110-SUM($AI110:AL110))) -> 0 | AR110: 0 | AS110: =IF($CM110=0,0,IF(SUM($AQ110:AR110)<($N110-12),12,$N110-SUM($AQ110:AR110))) -> 0 | AT110: =IF($CM110=0,0,IF(SUM($AQ110:AS110)<($N110-12),12,$N110-SUM($AQ110:AS110))) -> 0 | AU110: =IF($CM110=0,0,IF(SUM($AQ110:AT110)<($N110-12),12,$N110-SUM($AQ110:AT110))) -> 0 | BA110: 0 | BB110: =IF($CN110=0,0,IF(SUM($AY110:BA110)<($N110-12),12,$N110-SUM($AY110:BA110))) -> 0 | BC110: =IF($CN110=0,0,IF(SUM($AY110:BB110)<($N110-12),12,$N110-SUM($AY110:BB110))) -> 0 | BJ110: 12 | BK110: =IF($CO110=0,0,IF(SUM($BG110:BJ110)<($N110-12),12,$N110-SUM($BG110:BJ110))) -> 12 | BS110: 0 | BU110: 0 | BV110: 0 | BW110: 0 | BX110: 0 | BY110: 0 | BZ110: 1 | CA110: 0 | CC110: 0.75 | CE110: 0.25 | CJ110: 0 | CK110: 0 | CL110: 0 | CM110: 0 | CN110: 0 | CO110: 150 | CP110: 0
C111: Skysoft "Off the Glass Recording" system BCY | D111: ATM Operations & Technology & Training | E111: COMM | F111: 0 | G111: Z003A | H111: RP4 | I111: 2028 | J111: 2028-01-01 | K111: 150 | L111: €'000 | M111: 8 | N111: 96 | O111: 0.125 | Q111: 0 | R111: =IF($CJ111=0,0,IF(SUM(Q111:$Q111)<($N111-12),12,$N111-SUM(Q111:$Q111))) -> 0 | S111: =IF($CJ111=0,0,IF(SUM($Q111:R111)<($N111-12),12,$N111-SUM($Q111:R111))) -> 0 | T111: =IF($CJ111=0,0,IF(SUM($Q111:S111)<($N111-12),12,$N111-SUM($Q111:S111))) -> 0 | U111: =IF($CJ111=0,0,IF(SUM($Q111:T111)<($N111-12),12,$N111-SUM($Q111:T111))) -> 0 | V111: =IF($CJ111=0,0,IF(SUM($Q111:U111)<($N111-12),12,$N111-SUM($Q111:U111))) -> 0 | W111: =IF($CJ111=0,0,IF(SUM($Q111:V111)<($N111-12),12,$N111-SUM($Q111:V111))) -> 0 | Z111: 0 | AA111: =IF($CK111=0,0,IF(SUM(Z111:$Z111)<($N111-12),12,$N111-SUM(Z111:$Z111))) -> 0 | AB111: =IF($CK111=0,0,IF(SUM($Z111:AA111)<($N111-12),12,$N111-SUM($Z111:AA111))) -> 0 | AC111: =IF($CK111=0,0,IF(SUM($Z111:AB111)<($N111-12),12,$N111-SUM($Z111:AB111))) -> 0 | AD111: =IF($CK111=0,0,IF(SUM($Z111:AC111)<($N111-12),12,$N111-SUM($Z111:AC111))) -> 0 | AE111: =IF($CK111=0,0,IF(SUM($Z111:AD111)<($N111-12),12,$N111-SUM($Z111:AD111))) -> 0 | AI111: 0 | AJ111: =IF($CL111=0,0,IF(SUM($AI111:AI111)<($N111-12),12,$N111-SUM($AI111:AI111))) -> 0 | AK111: =IF($CL111=0,0,IF(SUM($AI111:AJ111)<($N111-12),12,$N111-SUM($AI111:AJ111))) -> 0 | AL111: =IF($CL111=0,0,IF(SUM($AI111:AK111)<($N111-12),12,$N111-SUM($AI111:AK111))) -> 0 | AM111: =IF($CL111=0,0,IF(SUM($AI111:AL111)<($N111-12),12,$N111-SUM($AI111:AL111))) -> 0 | AR111: 0 | AS111: =IF($CM111=0,0,IF(SUM($AQ111:AR111)<($N111-12),12,$N111-SUM($AQ111:AR111))) -> 0 | AT111: =IF($CM111=0,0,IF(SUM($AQ111:AS111)<($N111-12),12,$N111-SUM($AQ111:AS111))) -> 0 | AU111: =IF($CM111=0,0,IF(SUM($AQ111:AT111)<($N111-12),12,$N111-SUM($AQ111:AT111))) -> 0 | BA111: 0 | BB111: =IF($CN111=0,0,IF(SUM($AY111:BA111)<($N111-12),12,$N111-SUM($AY111:BA111))) -> 0 | BC111: =IF($CN111=0,0,IF(SUM($AY111:BB111)<($N111-12),12,$N111-SUM($AY111:BB111))) -> 0 | BJ111: 12 | BK111: =IF($CO111=0,0,IF(SUM($BG111:BJ111)<($N111-12),12,$N111-SUM($BG111:BJ111))) -> 12 | BS111: 0 | BU111: 0 | BV111: 0 | BW111: 0 | BX111: 0 | BY111: 0 | BZ111: 1 | CA111: 0 | CC111: 1 | CE111: 0 | CJ111: 0 | CK111: 0 | CL111: 0 | CM111: 0 | CN111: 0 | CO111: 150 | CP111: 0
C112: Skysoft "Off the Glass Recording" system STBU | D112: ATM Operations & Technology & Training | E112: COMM | F112: 0 | G112: Z003A | H112: RP4 | I112: 2028 | J112: 2028-04-01 | K112: =SUM(CG112:CP112) -> 100 | L112: €'000 | M112: 8 | N112: =M112*12 -> 96 | O112: =IFERROR(1/M112,0) -> 0.125 | Q112: 0 | R112: =IF($CJ112=0,0,IF(SUM(Q112:$Q112)<($N112-12),12,$N112-SUM(Q112:$Q112))) -> 0 | S112: =IF($CJ112=0,0,IF(SUM($Q112:R112)<($N112-12),12,$N112-SUM($Q112:R112))) -> 0 | T112: =IF($CJ112=0,0,IF(SUM($Q112:S112)<($N112-12),12,$N112-SUM($Q112:S112))) -> 0 | U112: =IF($CJ112=0,0,IF(SUM($Q112:T112)<($N112-12),12,$N112-SUM($Q112:T112))) -> 0 | V112: =IF($CJ112=0,0,IF(SUM($Q112:U112)<($N112-12),12,$N112-SUM($Q112:U112))) -> 0 | W112: =IF($CJ112=0,0,IF(SUM($Q112:V112)<($N112-12),12,$N112-SUM($Q112:V112))) -> 0 | Z112: 0 | AA112: =IF($CK112=0,0,IF(SUM(Z112:$Z112)<($N112-12),12,$N112-SUM(Z112:$Z112))) -> 0 | AB112: =IF($CK112=0,0,IF(SUM($Z112:AA112)<($N112-12),12,$N112-SUM($Z112:AA112))) -> 0 | AC112: =IF($CK112=0,0,IF(SUM($Z112:AB112)<($N112-12),12,$N112-SUM($Z112:AB112))) -> 0 | AD112: =IF($CK112=0,0,IF(SUM($Z112:AC112)<($N112-12),12,$N112-SUM($Z112:AC112))) -> 0 | AE112: =IF($CK112=0,0,IF(SUM($Z112:AD112)<($N112-12),12,$N112-SUM($Z112:AD112))) -> 0 | AI112: 0 | AJ112: =IF($CL112=0,0,IF(SUM($AI112:AI112)<($N112-12),12,$N112-SUM($AI112:AI112))) -> 0 | AK112: =IF($CL112=0,0,IF(SUM($AI112:AJ112)<($N112-12),12,$N112-SUM($AI112:AJ112))) -> 0 | AL112: =IF($CL112=0,0,IF(SUM($AI112:AK112)<($N112-12),12,$N112-SUM($AI112:AK112))) -> 0 | AM112: =IF($CL112=0,0,IF(SUM($AI112:AL112)<($N112-12),12,$N112-SUM($AI112:AL112))) -> 0 | AR112: 0 | AS112: =IF($CM112=0,0,IF(SUM($AQ112:AR112)<($N112-12),12,$N112-SUM($AQ112:AR112))) -> 0 | AT112: =IF($CM112=0,0,IF(SUM($AQ112:AS112)<($N112-12),12,$N112-SUM($AQ112:AS112))) -> 0 | AU112: =IF($CM112=0,0,IF(SUM($AQ112:AT112)<($N112-12),12,$N112-SUM($AQ112:AT112))) -> 0 | BA112: 0 | BB112: =IF($CN112=0,0,IF(SUM($AY112:BA112)<($N112-12),12,$N112-SUM($AY112:BA112))) -> 0 | BC112: =IF($CN112=0,0,IF(SUM($AY112:BB112)<($N112-12),12,$N112-SUM($AY112:BB112))) -> 0 | BJ112: 9 | BK112: =IF($CO112=0,0,IF(SUM($BG112:BJ112)<($N112-12),12,$N112-SUM($BG112:BJ112))) -> 12 | BS112: 0 | BU112: =Q112/12 -> 0 | BV112: =Z112/12 -> 0 | BW112: =AI112/12 -> 0 | BX112: =AR112/12 -> 0 | BY112: =BA112/12 -> 0 | BZ112: =BJ112/12 -> 0.75 | CA112: =BS112/12 -> 0 | CC112: 0.75 | CE112: 0.25 | CJ112: 0 | CK112: 0 | CL112: 0 | CM112: 0 | CN112: 0 | CO112: 100 | CP112: 0
C113: Skysoft "Off the Glass Recording" system CRK | D113: ATM Operations & Technology & Training | E113: COMM | F113: 0 | G113: Z003A | H113: RP4 | I113: 2028 | J113: 2028-04-01 | K113: 100 | L113: €'000 | M113: 8 | N113: 96 | O113: 0.125 | Q113: 0 | R113: =IF($CJ113=0,0,IF(SUM(Q113:$Q113)<($N113-12),12,$N113-SUM(Q113:$Q113))) -> 0 | S113: =IF($CJ113=0,0,IF(SUM($Q113:R113)<($N113-12),12,$N113-SUM($Q113:R113))) -> 0 | T113: =IF($CJ113=0,0,IF(SUM($Q113:S113)<($N113-12),12,$N113-SUM($Q113:S113))) -> 0 | U113: =IF($CJ113=0,0,IF(SUM($Q113:T113)<($N113-12),12,$N113-SUM($Q113:T113))) -> 0 | V113: =IF($CJ113=0,0,IF(SUM($Q113:U113)<($N113-12),12,$N113-SUM($Q113:U113))) -> 0 | W113: =IF($CJ113=0,0,IF(SUM($Q113:V113)<($N113-12),12,$N113-SUM($Q113:V113))) -> 0 | Z113: 0 | AA113: =IF($CK113=0,0,IF(SUM(Z113:$Z113)<($N113-12),12,$N113-SUM(Z113:$Z113))) -> 0 | AB113: =IF($CK113=0,0,IF(SUM($Z113:AA113)<($N113-12),12,$N113-SUM($Z113:AA113))) -> 0 | AC113: =IF($CK113=0,0,IF(SUM($Z113:AB113)<($N113-12),12,$N113-SUM($Z113:AB113))) -> 0 | AD113: =IF($CK113=0,0,IF(SUM($Z113:AC113)<($N113-12),12,$N113-SUM($Z113:AC113))) -> 0 | AE113: =IF($CK113=0,0,IF(SUM($Z113:AD113)<($N113-12),12,$N113-SUM($Z113:AD113))) -> 0 | AI113: 0 | AJ113: =IF($CL113=0,0,IF(SUM($AI113:AI113)<($N113-12),12,$N113-SUM($AI113:AI113))) -> 0 | AK113: =IF($CL113=0,0,IF(SUM($AI113:AJ113)<($N113-12),12,$N113-SUM($AI113:AJ113))) -> 0 | AL113: =IF($CL113=0,0,IF(SUM($AI113:AK113)<($N113-12),12,$N113-SUM($AI113:AK113))) -> 0 | AM113: =IF($CL113=0,0,IF(SUM($AI113:AL113)<($N113-12),12,$N113-SUM($AI113:AL113))) -> 0 | AR113: 0 | AS113: =IF($CM113=0,0,IF(SUM($AQ113:AR113)<($N113-12),12,$N113-SUM($AQ113:AR113))) -> 0 | AT113: =IF($CM113=0,0,IF(SUM($AQ113:AS113)<($N113-12),12,$N113-SUM($AQ113:AS113))) -> 0 | AU113: =IF($CM113=0,0,IF(SUM($AQ113:AT113)<($N113-12),12,$N113-SUM($AQ113:AT113))) -> 0 | BA113: 0 | BB113: =IF($CN113=0,0,IF(SUM($AY113:BA113)<($N113-12),12,$N113-SUM($AY113:BA113))) -> 0 | BC113: =IF($CN113=0,0,IF(SUM($AY113:BB113)<($N113-12),12,$N113-SUM($AY113:BB113))) -> 0 | BJ113: 9 | BK113: =IF($CO113=0,0,IF(SUM($BG113:BJ113)<($N113-12),12,$N113-SUM($BG113:BJ113))) -> 12 | BS113: 0 | BU113: 0 | BV113: 0 | BW113: 0 | BX113: 0 | BY113: 0 | BZ113: 0.75 | CA113: 0 | CC113: 0.5 | CE113: 0.5 | CJ113: 0 | CK113: 0 | CL113: 0 | CM113: 0 | CN113: 0 | CO113: 100 | CP113: 0
C114: MEP EVCS Mid-life SW Upgrade | D114: ATM Operations & Technology & Training | E114: COMM | F114: 0 | G114: Z004 | H114: 0 | I114: 0 | K114: 0 | L114: €'000 | M114: 8 | N114: 96 | O114: 0.125 | Q114: 0 | R114: =IF($CJ114=0,0,IF(SUM(Q114:$Q114)<($N114-12),12,$N114-SUM(Q114:$Q114))) -> 0 | S114: =IF($CJ114=0,0,IF(SUM($Q114:R114)<($N114-12),12,$N114-SUM($Q114:R114))) -> 0 | T114: =IF($CJ114=0,0,IF(SUM($Q114:S114)<($N114-12),12,$N114-SUM($Q114:S114))) -> 0 | U114: =IF($CJ114=0,0,IF(SUM($Q114:T114)<($N114-12),12,$N114-SUM($Q114:T114))) -> 0 | V114: =IF($CJ114=0,0,IF(SUM($Q114:U114)<($N114-12),12,$N114-SUM($Q114:U114))) -> 0 | W114: =IF($CJ114=0,0,IF(SUM($Q114:V114)<($N114-12),12,$N114-SUM($Q114:V114))) -> 0 | Z114: 0 | AA114: =IF($CK114=0,0,IF(SUM(Z114:$Z114)<($N114-12),12,$N114-SUM(Z114:$Z114))) -> 0 | AB114: =IF($CK114=0,0,IF(SUM($Z114:AA114)<($N114-12),12,$N114-SUM($Z114:AA114))) -> 0 | AC114: =IF($CK114=0,0,IF(SUM($Z114:AB114)<($N114-12),12,$N114-SUM($Z114:AB114))) -> 0 | AD114: =IF($CK114=0,0,IF(SUM($Z114:AC114)<($N114-12),12,$N114-SUM($Z114:AC114))) -> 0 | AE114: =IF($CK114=0,0,IF(SUM($Z114:AD114)<($N114-12),12,$N114-SUM($Z114:AD114))) -> 0 | AI114: 0 | AJ114: =IF($CL114=0,0,IF(SUM($AI114:AI114)<($N114-12),12,$N114-SUM($AI114:AI114))) -> 0 | AK114: =IF($CL114=0,0,IF(SUM($AI114:AJ114)<($N114-12),12,$N114-SUM($AI114:AJ114))) -> 0 | AL114: =IF($CL114=0,0,IF(SUM($AI114:AK114)<($N114-12),12,$N114-SUM($AI114:AK114))) -> 0 | AM114: =IF($CL114=0,0,IF(SUM($AI114:AL114)<($N114-12),12,$N114-SUM($AI114:AL114))) -> 0 | AR114: 0 | AS114: =IF($CM114=0,0,IF(SUM($AQ114:AR114)<($N114-12),12,$N114-SUM($AQ114:AR114))) -> 0 | AT114: =IF($CM114=0,0,IF(SUM($AQ114:AS114)<($N114-12),12,$N114-SUM($AQ114:AS114))) -> 0 | AU114: =IF($CM114=0,0,IF(SUM($AQ114:AT114)<($N114-12),12,$N114-SUM($AQ114:AT114))) -> 0 | BA114: 0 | BB114: =IF($CN114=0,0,IF(SUM($AY114:BA114)<($N114-12),12,$N114-SUM($AY114:BA114))) -> 0 | BC114: =IF($CN114=0,0,IF(SUM($AY114:BB114)<($N114-12),12,$N114-SUM($AY114:BB114))) -> 0 | BJ114: 0 | BK114: =IF($CO114=0,0,IF(SUM($BG114:BJ114)<($N114-12),12,$N114-SUM($BG114:BJ114))) -> 0 | BS114: 0 | BU114: 0 | BV114: 0 | BW114: 0 | BX114: 0 | BY114: 0 | BZ114: 0 | CA114: 0 | CC114: 0.75 | CE114: 0.25 | CJ114: 0 | CK114: 0 | CL114: 0 | CM114: 0 | CN114: 0 | CO114: 0 | CP114: 0
C115: MEP EVCS Mid-life Upgrade DAP | D115: ATM Operations & Technology & Training | E115: COMM | F115: 0 | G115: Z004A | H115: RP4 | I115: 2025 | J115: 2025-04-01 | K115: 100 | L115: €'000 | M115: 8 | N115: 96 | O115: 0.125 | Q115: 0 | R115: =IF($CJ115=0,0,IF(SUM(Q115:$Q115)<($N115-12),12,$N115-SUM(Q115:$Q115))) -> 0 | S115: =IF($CJ115=0,0,IF(SUM($Q115:R115)<($N115-12),12,$N115-SUM($Q115:R115))) -> 0 | T115: =IF($CJ115=0,0,IF(SUM($Q115:S115)<($N115-12),12,$N115-SUM($Q115:S115))) -> 0 | U115: =IF($CJ115=0,0,IF(SUM($Q115:T115)<($N115-12),12,$N115-SUM($Q115:T115))) -> 0 | V115: =IF($CJ115=0,0,IF(SUM($Q115:U115)<($N115-12),12,$N115-SUM($Q115:U115))) -> 0 | W115: =IF($CJ115=0,0,IF(SUM($Q115:V115)<($N115-12),12,$N115-SUM($Q115:V115))) -> 0 | Z115: 0 | AA115: =IF($CK115=0,0,IF(SUM(Z115:$Z115)<($N115-12),12,$N115-SUM(Z115:$Z115))) -> 0 | AB115: =IF($CK115=0,0,IF(SUM($Z115:AA115)<($N115-12),12,$N115-SUM($Z115:AA115))) -> 0 | AC115: =IF($CK115=0,0,IF(SUM($Z115:AB115)<($N115-12),12,$N115-SUM($Z115:AB115))) -> 0 | AD115: =IF($CK115=0,0,IF(SUM($Z115:AC115)<($N115-12),12,$N115-SUM($Z115:AC115))) -> 0 | AE115: =IF($CK115=0,0,IF(SUM($Z115:AD115)<($N115-12),12,$N115-SUM($Z115:AD115))) -> 0 | AI115: 9 | AJ115: =IF($CL115=0,0,IF(SUM($AI115:AI115)<($N115-12),12,$N115-SUM($AI115:AI115))) -> 12 | AK115: =IF($CL115=0,0,IF(SUM($AI115:AJ115)<($N115-12),12,$N115-SUM($AI115:AJ115))) -> 12 | AL115: =IF($CL115=0,0,IF(SUM($AI115:AK115)<($N115-12),12,$N115-SUM($AI115:AK115))) -> 12 | AM115: =IF($CL115=0,0,IF(SUM($AI115:AL115)<($N115-12),12,$N115-SUM($AI115:AL115))) -> 12 | AR115: 0 | AS115: =IF($CM115=0,0,IF(SUM($AQ115:AR115)<($N115-12),12,$N115-SUM($AQ115:AR115))) -> 0 | AT115: =IF($CM115=0,0,IF(SUM($AQ115:AS115)<($N115-12),12,$N115-SUM($AQ115:AS115))) -> 0 | AU115: =IF($CM115=0,0,IF(SUM($AQ115:AT115)<($N115-12),12,$N115-SUM($AQ115:AT115))) -> 0 | BA115: 0 | BB115: =IF($CN115=0,0,IF(SUM($AY115:BA115)<($N115-12),12,$N115-SUM($AY115:BA115))) -> 0 | BC115: =IF($CN115=0,0,IF(SUM($AY115:BB115)<($N115-12),12,$N115-SUM($AY115:BB115))) -> 0 | BJ115: 0 | BK115: =IF($CO115=0,0,IF(SUM($BG115:BJ115)<($N115-12),12,$N115-SUM($BG115:BJ115))) -> 0 | BS115: 0 | BU115: 0 | BV115: 0 | BW115: 0.75 | BX115: 0 | BY115: 0 | BZ115: 0 | CA115: 0 | CC115: 0.75 | CE115: 0.25 | CJ115: 0 | CK115: 0 | CL115: 100 | CM115: 0 | CN115: 0 | CO115: 0 | CP115: 0
C116: MEP EVCS Mid-life Upgrade BCY | D116: ATM Operations & Technology & Training | E116: COMM | F116: 0 | G116: Z004A | H116: RP4 | I116: 2025 | J116: 2025-04-01 | K116: 100 | L116: €'000 | M116: 8 | N116: 96 | O116: 0.125 | Q116: 0 | R116: =IF($CJ116=0,0,IF(SUM(Q116:$Q116)<($N116-12),12,$N116-SUM(Q116:$Q116))) -> 0 | S116: =IF($CJ116=0,0,IF(SUM($Q116:R116)<($N116-12),12,$N116-SUM($Q116:R116))) -> 0 | T116: =IF($CJ116=0,0,IF(SUM($Q116:S116)<($N116-12),12,$N116-SUM($Q116:S116))) -> 0 | U116: =IF($CJ116=0,0,IF(SUM($Q116:T116)<($N116-12),12,$N116-SUM($Q116:T116))) -> 0 | V116: =IF($CJ116=0,0,IF(SUM($Q116:U116)<($N116-12),12,$N116-SUM($Q116:U116))) -> 0 | W116: =IF($CJ116=0,0,IF(SUM($Q116:V116)<($N116-12),12,$N116-SUM($Q116:V116))) -> 0 | Z116: 0 | AA116: =IF($CK116=0,0,IF(SUM(Z116:$Z116)<($N116-12),12,$N116-SUM(Z116:$Z116))) -> 0 | AB116: =IF($CK116=0,0,IF(SUM($Z116:AA116)<($N116-12),12,$N116-SUM($Z116:AA116))) -> 0 | AC116: =IF($CK116=0,0,IF(SUM($Z116:AB116)<($N116-12),12,$N116-SUM($Z116:AB116))) -> 0 | AD116: =IF($CK116=0,0,IF(SUM($Z116:AC116)<($N116-12),12,$N116-SUM($Z116:AC116))) -> 0 | AE116: =IF($CK116=0,0,IF(SUM($Z116:AD116)<($N116-12),12,$N116-SUM($Z116:AD116))) -> 0 | AI116: 9 | AJ116: =IF($CL116=0,0,IF(SUM($AI116:AI116)<($N116-12),12,$N116-SUM($AI116:AI116))) -> 12 | AK116: =IF($CL116=0,0,IF(SUM($AI116:AJ116)<($N116-12),12,$N116-SUM($AI116:AJ116))) -> 12 | AL116: =IF($CL116=0,0,IF(SUM($AI116:AK116)<($N116-12),12,$N116-SUM($AI116:AK116))) -> 12 | AM116: =IF($CL116=0,0,IF(SUM($AI116:AL116)<($N116-12),12,$N116-SUM($AI116:AL116))) -> 12 | AR116: 0 | AS116: =IF($CM116=0,0,IF(SUM($AQ116:AR116)<($N116-12),12,$N116-SUM($AQ116:AR116))) -> 0 | AT116: =IF($CM116=0,0,IF(SUM($AQ116:AS116)<($N116-12),12,$N116-SUM($AQ116:AS116))) -> 0 | AU116: =IF($CM116=0,0,IF(SUM($AQ116:AT116)<($N116-12),12,$N116-SUM($AQ116:AT116))) -> 0 | BA116: 0 | BB116: =IF($CN116=0,0,IF(SUM($AY116:BA116)<($N116-12),12,$N116-SUM($AY116:BA116))) -> 0 | BC116: =IF($CN116=0,0,IF(SUM($AY116:BB116)<($N116-12),12,$N116-SUM($AY116:BB116))) -> 0 | BJ116: 0 | BK116: =IF($CO116=0,0,IF(SUM($BG116:BJ116)<($N116-12),12,$N116-SUM($BG116:BJ116))) -> 0 | BS116: 0 | BU116: 0 | BV116: 0 | BW116: 0.75 | BX116: 0 | BY116: 0 | BZ116: 0 | CA116: 0 | CC116: 1 | CE116: 0 | CJ116: 0 | CK116: 0 | CL116: 100 | CM116: 0 | CN116: 0 | CO116: 0 | CP116: 0
C117: MEP EVCS Mid-life Upgrade STBU | D117: ATM Operations & Technology & Training | E117: COMM | F117: 0 | G117: Z004A | H117: RP4 | I117: 2025 | J117: 2025-07-01 | K117: 100 | L117: €'000 | M117: 8 | N117: 96 | O117: 0.125 | Q117: 0 | R117: =IF($CJ117=0,0,IF(SUM(Q117:$Q117)<($N117-12),12,$N117-SUM(Q117:$Q117))) -> 0 | S117: =IF($CJ117=0,0,IF(SUM($Q117:R117)<($N117-12),12,$N117-SUM($Q117:R117))) -> 0 | T117: =IF($CJ117=0,0,IF(SUM($Q117:S117)<($N117-12),12,$N117-SUM($Q117:S117))) -> 0 | U117: =IF($CJ117=0,0,IF(SUM($Q117:T117)<($N117-12),12,$N117-SUM($Q117:T117))) -> 0 | V117: =IF($CJ117=0,0,IF(SUM($Q117:U117)<($N117-12),12,$N117-SUM($Q117:U117))) -> 0 | W117: =IF($CJ117=0,0,IF(SUM($Q117:V117)<($N117-12),12,$N117-SUM($Q117:V117))) -> 0 | Z117: 0 | AA117: =IF($CK117=0,0,IF(SUM(Z117:$Z117)<($N117-12),12,$N117-SUM(Z117:$Z117))) -> 0 | AB117: =IF($CK117=0,0,IF(SUM($Z117:AA117)<($N117-12),12,$N117-SUM($Z117:AA117))) -> 0 | AC117: =IF($CK117=0,0,IF(SUM($Z117:AB117)<($N117-12),12,$N117-SUM($Z117:AB117))) -> 0 | AD117: =IF($CK117=0,0,IF(SUM($Z117:AC117)<($N117-12),12,$N117-SUM($Z117:AC117))) -> 0 | AE117: =IF($CK117=0,0,IF(SUM($Z117:AD117)<($N117-12),12,$N117-SUM($Z117:AD117))) -> 0 | AI117: 6 | AJ117: =IF($CL117=0,0,IF(SUM($AI117:AI117)<($N117-12),12,$N117-SUM($AI117:AI117))) -> 12 | AK117: =IF($CL117=0,0,IF(SUM($AI117:AJ117)<($N117-12),12,$N117-SUM($AI117:AJ117))) -> 12 | AL117: =IF($CL117=0,0,IF(SUM($AI117:AK117)<($N117-12),12,$N117-SUM($AI117:AK117))) -> 12 | AM117: =IF($CL117=0,0,IF(SUM($AI117:AL117)<($N117-12),12,$N117-SUM($AI117:AL117))) -> 12 | AR117: 0 | AS117: =IF($CM117=0,0,IF(SUM($AQ117:AR117)<($N117-12),12,$N117-SUM($AQ117:AR117))) -> 0 | AT117: =IF($CM117=0,0,IF(SUM($AQ117:AS117)<($N117-12),12,$N117-SUM($AQ117:AS117))) -> 0 | AU117: =IF($CM117=0,0,IF(SUM($AQ117:AT117)<($N117-12),12,$N117-SUM($AQ117:AT117))) -> 0 | BA117: 0 | BB117: =IF($CN117=0,0,IF(SUM($AY117:BA117)<($N117-12),12,$N117-SUM($AY117:BA117))) -> 0 | BC117: =IF($CN117=0,0,IF(SUM($AY117:BB117)<($N117-12),12,$N117-SUM($AY117:BB117))) -> 0 | BJ117: 0 | BK117: =IF($CO117=0,0,IF(SUM($BG117:BJ117)<($N117-12),12,$N117-SUM($BG117:BJ117))) -> 0 | BS117: 0 | BU117: 0 | BV117: 0 | BW117: 0.5 | BX117: 0 | BY117: 0 | BZ117: 0 | CA117: 0 | CC117: 0.75 | CE117: 0.25 | CJ117: 0 | CK117: 0 | CL117: 100 | CM117: 0 | CN117: 0 | CO117: 0 | CP117: 0
C118: MEP EVCS Mid-life Upgrade CRK | D118: ATM Operations & Technology & Training | E118: COMM | F118: 0 | G118: Z004A | H118: RP4 | I118: 2025 | J118: 2025-07-01 | K118: 100 | L118: €'000 | M118: 8 | N118: 96 | O118: 0.125 | Q118: 0 | R118: =IF($CJ118=0,0,IF(SUM(Q118:$Q118)<($N118-12),12,$N118-SUM(Q118:$Q118))) -> 0 | S118: =IF($CJ118=0,0,IF(SUM($Q118:R118)<($N118-12),12,$N118-SUM($Q118:R118))) -> 0 | T118: =IF($CJ118=0,0,IF(SUM($Q118:S118)<($N118-12),12,$N118-SUM($Q118:S118))) -> 0 | U118: =IF($CJ118=0,0,IF(SUM($Q118:T118)<($N118-12),12,$N118-SUM($Q118:T118))) -> 0 | V118: =IF($CJ118=0,0,IF(SUM($Q118:U118)<($N118-12),12,$N118-SUM($Q118:U118))) -> 0 | W118: =IF($CJ118=0,0,IF(SUM($Q118:V118)<($N118-12),12,$N118-SUM($Q118:V118))) -> 0 | Z118: 0 | AA118: =IF($CK118=0,0,IF(SUM(Z118:$Z118)<($N118-12),12,$N118-SUM(Z118:$Z118))) -> 0 | AB118: =IF($CK118=0,0,IF(SUM($Z118:AA118)<($N118-12),12,$N118-SUM($Z118:AA118))) -> 0 | AC118: =IF($CK118=0,0,IF(SUM($Z118:AB118)<($N118-12),12,$N118-SUM($Z118:AB118))) -> 0 | AD118: =IF($CK118=0,0,IF(SUM($Z118:AC118)<($N118-12),12,$N118-SUM($Z118:AC118))) -> 0 | AE118: =IF($CK118=0,0,IF(SUM($Z118:AD118)<($N118-12),12,$N118-SUM($Z118:AD118))) -> 0 | AI118: 6 | AJ118: =IF($CL118=0,0,IF(SUM($AI118:AI118)<($N118-12),12,$N118-SUM($AI118:AI118))) -> 12 | AK118: =IF($CL118=0,0,IF(SUM($AI118:AJ118)<($N118-12),12,$N118-SUM($AI118:AJ118))) -> 12 | AL118: =IF($CL118=0,0,IF(SUM($AI118:AK118)<($N118-12),12,$N118-SUM($AI118:AK118))) -> 12 | AM118: =IF($CL118=0,0,IF(SUM($AI118:AL118)<($N118-12),12,$N118-SUM($AI118:AL118))) -> 12 | AR118: 0 | AS118: =IF($CM118=0,0,IF(SUM($AQ118:AR118)<($N118-12),12,$N118-SUM($AQ118:AR118))) -> 0 | AT118: =IF($CM118=0,0,IF(SUM($AQ118:AS118)<($N118-12),12,$N118-SUM($AQ118:AS118))) -> 0 | AU118: =IF($CM118=0,0,IF(SUM($AQ118:AT118)<($N118-12),12,$N118-SUM($AQ118:AT118))) -> 0 | BA118: 0 | BB118: =IF($CN118=0,0,IF(SUM($AY118:BA118)<($N118-12),12,$N118-SUM($AY118:BA118))) -> 0 | BC118: =IF($CN118=0,0,IF(SUM($AY118:BB118)<($N118-12),12,$N118-SUM($AY118:BB118))) -> 0 | BJ118: 0 | BK118: =IF($CO118=0,0,IF(SUM($BG118:BJ118)<($N118-12),12,$N118-SUM($BG118:BJ118))) -> 0 | BS118: 0 | BU118: 0 | BV118: 0 | BW118: 0.5 | BX118: 0 | BY118: 0 | BZ118: 0 | CA118: 0 | CC118: 0.5 | CE118: 0.5 | CJ118: 0 | CK118: 0 | CL118: 100 | CM118: 0 | CN118: 0 | CO118: 0 | CP118: 0
C119: Dublin CVF VCCS Replacement | D119: ATM Operations & Technology & Training | E119: COMM | F119: 0 | G119: Z005 | H119: RP4 | I119: 2028 | J119: 2028-10-01 | K119: 600 | L119: €'000 | M119: 8 | N119: 96 | O119: 0.125 | Q119: 0 | R119: =IF($CJ119=0,0,IF(SUM(Q119:$Q119)<($N119-12),12,$N119-SUM(Q119:$Q119))) -> 0 | S119: =IF($CJ119=0,0,IF(SUM($Q119:R119)<($N119-12),12,$N119-SUM($Q119:R119))) -> 0 | T119: =IF($CJ119=0,0,IF(SUM($Q119:S119)<($N119-12),12,$N119-SUM($Q119:S119))) -> 0 | U119: =IF($CJ119=0,0,IF(SUM($Q119:T119)<($N119-12),12,$N119-SUM($Q119:T119))) -> 0 | V119: =IF($CJ119=0,0,IF(SUM($Q119:U119)<($N119-12),12,$N119-SUM($Q119:U119))) -> 0 | W119: =IF($CJ119=0,0,IF(SUM($Q119:V119)<($N119-12),12,$N119-SUM($Q119:V119))) -> 0 | Z119: 0 | AA119: =IF($CK119=0,0,IF(SUM(Z119:$Z119)<($N119-12),12,$N119-SUM(Z119:$Z119))) -> 0 | AB119: =IF($CK119=0,0,IF(SUM($Z119:AA119)<($N119-12),12,$N119-SUM($Z119:AA119))) -> 0 | AC119: =IF($CK119=0,0,IF(SUM($Z119:AB119)<($N119-12),12,$N119-SUM($Z119:AB119))) -> 0 | AD119: =IF($CK119=0,0,IF(SUM($Z119:AC119)<($N119-12),12,$N119-SUM($Z119:AC119))) -> 0 | AE119: =IF($CK119=0,0,IF(SUM($Z119:AD119)<($N119-12),12,$N119-SUM($Z119:AD119))) -> 0 | AI119: 0 | AJ119: =IF($CL119=0,0,IF(SUM($AI119:AI119)<($N119-12),12,$N119-SUM($AI119:AI119))) -> 0 | AK119: =IF($CL119=0,0,IF(SUM($AI119:AJ119)<($N119-12),12,$N119-SUM($AI119:AJ119))) -> 0 | AL119: =IF($CL119=0,0,IF(SUM($AI119:AK119)<($N119-12),12,$N119-SUM($AI119:AK119))) -> 0 | AM119: =IF($CL119=0,0,IF(SUM($AI119:AL119)<($N119-12),12,$N119-SUM($AI119:AL119))) -> 0 | AR119: 0 | AS119: =IF($CM119=0,0,IF(SUM($AQ119:AR119)<($N119-12),12,$N119-SUM($AQ119:AR119))) -> 0 | AT119: =IF($CM119=0,0,IF(SUM($AQ119:AS119)<($N119-12),12,$N119-SUM($AQ119:AS119))) -> 0 | AU119: =IF($CM119=0,0,IF(SUM($AQ119:AT119)<($N119-12),12,$N119-SUM($AQ119:AT119))) -> 0 | BA119: 0 | BB119: =IF($CN119=0,0,IF(SUM($AY119:BA119)<($N119-12),12,$N119-SUM($AY119:BA119))) -> 0 | BC119: =IF($CN119=0,0,IF(SUM($AY119:BB119)<($N119-12),12,$N119-SUM($AY119:BB119))) -> 0 | BJ119: 3 | BK119: =IF($CO119=0,0,IF(SUM($BG119:BJ119)<($N119-12),12,$N119-SUM($BG119:BJ119))) -> 12 | BS119: 0 | BU119: 0 | BV119: 0 | BW119: 0 | BX119: 0 | BY119: 0 | BZ119: 0.25 | CA119: 0 | CC119: 0.75 | CE119: 0.25 | CJ119: 0 | CK119: 0 | CL119: 0 | CM119: 0 | CN119: 0 | CO119: 600 | CP119: 0
C120: Engineering Test Equipment | D120: ATM Operations & Technology & Training | E120: COMM | F120: 0 | G120: Z006 | H120: RP3 | I120: 2024 | J120: 2024-07-01 | K120: 150 | L120: €'000 | M120: 5 | N120: 60 | O120: 0.2 | Q120: 0 | R120: =IF($CJ120=0,0,IF(SUM(Q120:$Q120)<($N120-12),12,$N120-SUM(Q120:$Q120))) -> 0 | S120: =IF($CJ120=0,0,IF(SUM($Q120:R120)<($N120-12),12,$N120-SUM($Q120:R120))) -> 0 | T120: =IF($CJ120=0,0,IF(SUM($Q120:S120)<($N120-12),12,$N120-SUM($Q120:S120))) -> 0 | U120: =IF($CJ120=0,0,IF(SUM($Q120:T120)<($N120-12),12,$N120-SUM($Q120:T120))) -> 0 | V120: =IF($CJ120=0,0,IF(SUM($Q120:U120)<($N120-12),12,$N120-SUM($Q120:U120))) -> 0 | W120: =IF($CJ120=0,0,IF(SUM($Q120:V120)<($N120-12),12,$N120-SUM($Q120:V120))) -> 0 | Z120: 4.5 | AA120: =IF($CK120=0,0,IF(SUM(Z120:$Z120)<($N120-12),12,$N120-SUM(Z120:$Z120))) -> 12 | AB120: =IF($CK120=0,0,IF(SUM($Z120:AA120)<($N120-12),12,$N120-SUM($Z120:AA120))) -> 12 | AC120: =IF($CK120=0,0,IF(SUM($Z120:AB120)<($N120-12),12,$N120-SUM($Z120:AB120))) -> 12 | AD120: =IF($CK120=0,0,IF(SUM($Z120:AC120)<($N120-12),12,$N120-SUM($Z120:AC120))) -> 12 | AE120: =IF($CK120=0,0,IF(SUM($Z120:AD120)<($N120-12),12,$N120-SUM($Z120:AD120))) -> 7.5 | AI120: 12 | AJ120: =IF($CL120=0,0,IF(SUM($AI120:AI120)<($N120-12),12,$N120-SUM($AI120:AI120))) -> 12 | AK120: =IF($CL120=0,0,IF(SUM($AI120:AJ120)<($N120-12),12,$N120-SUM($AI120:AJ120))) -> 12 | AL120: =IF($CL120=0,0,IF(SUM($AI120:AK120)<($N120-12),12,$N120-SUM($AI120:AK120))) -> 12 | AM120: =IF($CL120=0,0,IF(SUM($AI120:AL120)<($N120-12),12,$N120-SUM($AI120:AL120))) -> 12 | AR120: 0 | AS120: =IF($CM120=0,0,IF(SUM($AQ120:AR120)<($N120-12),12,$N120-SUM($AQ120:AR120))) -> 0 | AT120: =IF($CM120=0,0,IF(SUM($AQ120:AS120)<($N120-12),12,$N120-SUM($AQ120:AS120))) -> 0 | AU120: =IF($CM120=0,0,IF(SUM($AQ120:AT120)<($N120-12),12,$N120-SUM($AQ120:AT120))) -> 0 | BA120: 0 | BB120: =IF($CN120=0,0,IF(SUM($AY120:BA120)<($N120-12),12,$N120-SUM($AY120:BA120))) -> 0 | BC120: =IF($CN120=0,0,IF(SUM($AY120:BB120)<($N120-12),12,$N120-SUM($AY120:BB120))) -> 0 | BJ120: 0 | BK120: =IF($CO120=0,0,IF(SUM($BG120:BJ120)<($N120-12),12,$N120-SUM($BG120:BJ120))) -> 0 | BS120: 0 | BU120: 0 | BV120: 0.375 | BW120: 1 | BX120: 0 | BY120: 0 | BZ120: 0 | CA120: 0 | CC120: 0.75 | CE120: 0.25 | CJ120: 0 | CK120: 100 | CL120: 50 | CM120: 0 | CN120: 0 | CO120: 0 | CP120: 0
C121: CEROC Main R&S & VCCS Upgrade | D121: ATM Operations & Technology & Training | E121: COMM | F121: 0 | G121: RP4-COMM-1 | H121: 0 | I121: 0 | K121: 0 | L121: €'000 | M121: 8 | N121: 96 | O121: 0.125 | Q121: 0 | R121: =IF($CJ121=0,0,IF(SUM(Q121:$Q121)<($N121-12),12,$N121-SUM(Q121:$Q121))) -> 0 | S121: =IF($CJ121=0,0,IF(SUM($Q121:R121)<($N121-12),12,$N121-SUM($Q121:R121))) -> 0 | T121: =IF($CJ121=0,0,IF(SUM($Q121:S121)<($N121-12),12,$N121-SUM($Q121:S121))) -> 0 | U121: =IF($CJ121=0,0,IF(SUM($Q121:T121)<($N121-12),12,$N121-SUM($Q121:T121))) -> 0 | V121: =IF($CJ121=0,0,IF(SUM($Q121:U121)<($N121-12),12,$N121-SUM($Q121:U121))) -> 0 | W121: =IF($CJ121=0,0,IF(SUM($Q121:V121)<($N121-12),12,$N121-SUM($Q121:V121))) -> 0 | Z121: 0 | AA121: =IF($CK121=0,0,IF(SUM(Z121:$Z121)<($N121-12),12,$N121-SUM(Z121:$Z121))) -> 0 | AB121: =IF($CK121=0,0,IF(SUM($Z121:AA121)<($N121-12),12,$N121-SUM($Z121:AA121))) -> 0 | AC121: =IF($CK121=0,0,IF(SUM($Z121:AB121)<($N121-12),12,$N121-SUM($Z121:AB121))) -> 0 | AD121: =IF($CK121=0,0,IF(SUM($Z121:AC121)<($N121-12),12,$N121-SUM($Z121:AC121))) -> 0 | AE121: =IF($CK121=0,0,IF(SUM($Z121:AD121)<($N121-12),12,$N121-SUM($Z121:AD121))) -> 0 | AI121: 0 | AJ121: =IF($CL121=0,0,IF(SUM($AI121:AI121)<($N121-12),12,$N121-SUM($AI121:AI121))) -> 0 | AK121: =IF($CL121=0,0,IF(SUM($AI121:AJ121)<($N121-12),12,$N121-SUM($AI121:AJ121))) -> 0 | AL121: =IF($CL121=0,0,IF(SUM($AI121:AK121)<($N121-12),12,$N121-SUM($AI121:AK121))) -> 0 | AM121: =IF($CL121=0,0,IF(SUM($AI121:AL121)<($N121-12),12,$N121-SUM($AI121:AL121))) -> 0 | AR121: 0 | AS121: =IF($CM121=0,0,IF(SUM($AQ121:AR121)<($N121-12),12,$N121-SUM($AQ121:AR121))) -> 0 | AT121: =IF($CM121=0,0,IF(SUM($AQ121:AS121)<($N121-12),12,$N121-SUM($AQ121:AS121))) -> 0 | AU121: =IF($CM121=0,0,IF(SUM($AQ121:AT121)<($N121-12),12,$N121-SUM($AQ121:AT121))) -> 0 | BA121: 0 | BB121: =IF($CN121=0,0,IF(SUM($AY121:BA121)<($N121-12),12,$N121-SUM($AY121:BA121))) -> 0 | BC121: =IF($CN121=0,0,IF(SUM($AY121:BB121)<($N121-12),12,$N121-SUM($AY121:BB121))) -> 0 | BJ121: 0 | BK121: =IF($CO121=0,0,IF(SUM($BG121:BJ121)<($N121-12),12,$N121-SUM($BG121:BJ121))) -> 0 | BS121: 0 | BU121: 0 | BV121: 0 | BW121: 0 | BX121: 0 | BY121: 0 | BZ121: 0 | CA121: 0 | CC121: 1 | CE121: 0 | CJ121: 0 | CK121: 0 | CL121: 0 | CM121: 0 | CN121: 0 | CO121: 0 | CP121: 0
C122: Comms and Navigation Test Equipment | D122: ATM Operations & Technology & Training | E122: COMM | F122: 0 | G122: RP4-COMM-2 | H122: RP4 | I122: 2025 | J122: 2025-07-01 | K122: 350 | L122: €'000 | M122: 5 | N122: 60 | O122: 0.2 | Q122: 0 | R122: =IF($CJ122=0,0,IF(SUM(Q122:$Q122)<($N122-12),12,$N122-SUM(Q122:$Q122))) -> 0 | S122: =IF($CJ122=0,0,IF(SUM($Q122:R122)<($N122-12),12,$N122-SUM($Q122:R122))) -> 0 | T122: =IF($CJ122=0,0,IF(SUM($Q122:S122)<($N122-12),12,$N122-SUM($Q122:S122))) -> 0 | U122: =IF($CJ122=0,0,IF(SUM($Q122:T122)<($N122-12),12,$N122-SUM($Q122:T122))) -> 0 | V122: =IF($CJ122=0,0,IF(SUM($Q122:U122)<($N122-12),12,$N122-SUM($Q122:U122))) -> 0 | W122: =IF($CJ122=0,0,IF(SUM($Q122:V122)<($N122-12),12,$N122-SUM($Q122:V122))) -> 0 | Z122: 0 | AA122: =IF($CK122=0,0,IF(SUM(Z122:$Z122)<($N122-12),12,$N122-SUM(Z122:$Z122))) -> 0 | AB122: =IF($CK122=0,0,IF(SUM($Z122:AA122)<($N122-12),12,$N122-SUM($Z122:AA122))) -> 0 | AC122: =IF($CK122=0,0,IF(SUM($Z122:AB122)<($N122-12),12,$N122-SUM($Z122:AB122))) -> 0 | AD122: =IF($CK122=0,0,IF(SUM($Z122:AC122)<($N122-12),12,$N122-SUM($Z122:AC122))) -> 0 | AE122: =IF($CK122=0,0,IF(SUM($Z122:AD122)<($N122-12),12,$N122-SUM($Z122:AD122))) -> 0 | AI122: 4.5 | AJ122: =IF($CL122=0,0,IF(SUM($AI122:AI122)<($N122-12),12,$N122-SUM($AI122:AI122))) -> 12 | AK122: =IF($CL122=0,0,IF(SUM($AI122:AJ122)<($N122-12),12,$N122-SUM($AI122:AJ122))) -> 12 | AL122: =IF($CL122=0,0,IF(SUM($AI122:AK122)<($N122-12),12,$N122-SUM($AI122:AK122))) -> 12 | AM122: =IF($CL122=0,0,IF(SUM($AI122:AL122)<($N122-12),12,$N122-SUM($AI122:AL122))) -> 12 | AR122: 8.4 | AS122: =IF($CM122=0,0,IF(SUM($AQ122:AR122)<($N122-12),12,$N122-SUM($AQ122:AR122))) -> 12 | AT122: =IF($CM122=0,0,IF(SUM($AQ122:AS122)<($N122-12),12,$N122-SUM($AQ122:AS122))) -> 12 | AU122: =IF($CM122=0,0,IF(SUM($AQ122:AT122)<($N122-12),12,$N122-SUM($AQ122:AT122))) -> 12 | BA122: 7.5 | BB122: =IF($CN122=0,0,IF(SUM($AY122:BA122)<($N122-12),12,$N122-SUM($AY122:BA122))) -> 12 | BC122: =IF($CN122=0,0,IF(SUM($AY122:BB122)<($N122-12),12,$N122-SUM($AY122:BB122))) -> 12 | BJ122: 12 | BK122: =IF($CO122=0,0,IF(SUM($BG122:BJ122)<($N122-12),12,$N122-SUM($BG122:BJ122))) -> 12 | BS122: 0 | BU122: 0 | BV122: 0 | BW122: 0.375 | BX122: 0.7 | BY122: 0.625 | BZ122: 1 | CA122: 0 | CC122: 0.75 | CE122: 0.25 | CJ122: 0 | CK122: 0 | CL122: 100 | CM122: 125 | CN122: 100 | CO122: 25 | CP122: 0
C123: MEP EVCS Mid-life HW Upgrade | D123: ATM Operations & Technology & Training | E123: COMM | F123: RP4-MEP | G123: RP4-COMM-3 | H123: RP4 | I123: 2027 | J123: 2027-10-01 | K123: 1750 | L123: €'000 | M123: 5 | N123: 60 | O123: 0.2 | Q123: 0 | R123: =IF($CJ123=0,0,IF(SUM(Q123:$Q123)<($N123-12),12,$N123-SUM(Q123:$Q123))) -> 0 | S123: =IF($CJ123=0,0,IF(SUM($Q123:R123)<($N123-12),12,$N123-SUM($Q123:R123))) -> 0 | T123: =IF($CJ123=0,0,IF(SUM($Q123:S123)<($N123-12),12,$N123-SUM($Q123:S123))) -> 0 | U123: =IF($CJ123=0,0,IF(SUM($Q123:T123)<($N123-12),12,$N123-SUM($Q123:T123))) -> 0 | V123: =IF($CJ123=0,0,IF(SUM($Q123:U123)<($N123-12),12,$N123-SUM($Q123:U123))) -> 0 | W123: =IF($CJ123=0,0,IF(SUM($Q123:V123)<($N123-12),12,$N123-SUM($Q123:V123))) -> 0 | Z123: 0 | AA123: =IF($CK123=0,0,IF(SUM(Z123:$Z123)<($N123-12),12,$N123-SUM(Z123:$Z123))) -> 0 | AB123: =IF($CK123=0,0,IF(SUM($Z123:AA123)<($N123-12),12,$N123-SUM($Z123:AA123))) -> 0 | AC123: =IF($CK123=0,0,IF(SUM($Z123:AB123)<($N123-12),12,$N123-SUM($Z123:AB123))) -> 0 | AD123: =IF($CK123=0,0,IF(SUM($Z123:AC123)<($N123-12),12,$N123-SUM($Z123:AC123))) -> 0 | AE123: =IF($CK123=0,0,IF(SUM($Z123:AD123)<($N123-12),12,$N123-SUM($Z123:AD123))) -> 0 | AI123: 0 | AJ123: =IF($CL123=0,0,IF(SUM($AI123:AI123)<($N123-12),12,$N123-SUM($AI123:AI123))) -> 0 | AK123: =IF($CL123=0,0,IF(SUM($AI123:AJ123)<($N123-12),12,$N123-SUM($AI123:AJ123))) -> 0 | AL123: =IF($CL123=0,0,IF(SUM($AI123:AK123)<($N123-12),12,$N123-SUM($AI123:AK123))) -> 0 | AM123: =IF($CL123=0,0,IF(SUM($AI123:AL123)<($N123-12),12,$N123-SUM($AI123:AL123))) -> 0 | AR123: 0 | AS123: =IF($CM123=0,0,IF(SUM($AQ123:AR123)<($N123-12),12,$N123-SUM($AQ123:AR123))) -> 0 | AT123: =IF($CM123=0,0,IF(SUM($AQ123:AS123)<($N123-12),12,$N123-SUM($AQ123:AS123))) -> 0 | AU123: =IF($CM123=0,0,IF(SUM($AQ123:AT123)<($N123-12),12,$N123-SUM($AQ123:AT123))) -> 0 | BA123: 3 | BB123: =IF($CN123=0,0,IF(SUM($AY123:BA123)<($N123-12),12,$N123-SUM($AY123:BA123))) -> 12 | BC123: =IF($CN123=0,0,IF(SUM($AY123:BB123)<($N123-12),12,$N123-SUM($AY123:BB123))) -> 12 | BJ123: 0 | BK123: =IF($CO123=0,0,IF(SUM($BG123:BJ123)<($N123-12),12,$N123-SUM($BG123:BJ123))) -> 0 | BS123: 0 | BU123: 0 | BV123: 0 | BW123: 0 | BX123: 0 | BY123: 0.25 | BZ123: 0 | CA123: 0 | CC123: 0.75 | CE123: 0.25 | CJ123: 0 | CK123: 0 | CL123: 0 | CM123: 0 | CN123: 1750 | CO123: 0 | CP123: 0
